Workbook

Sheet 2021-31 GL OPEX (hidden)
A1: YEAR | B1: Team Name | C1: CapEx Opex | D1: CC | E1: CC Name | F1: Project/CC Description | G1: Account Code | H1: Asset Number | I1: Activity | J1: NATURAL ACCOUNT | K1: NATURAL ACCOUNT DESC | L1: 2025 | M1: Work Comments | N1: General Comment
A2: 2025 | B2: ANALYTIC | C2: GL | D2: 521 | E2: Community Growth Analytics | F2: Community Growth Analytics | G2: 15211100 | H2: 1100 | I2: Salaries | J2: =VLOOKUP(H2,'[1]Natural Account List - Active'!A:C,3,FALSE) -> 22000 | K2: =VLOOKUP(H2,'[1]Natural Account List - Active'!A:D,4,FALSE) -> Salaries and wages - permanent | L2: 420735
A3: 2025 | B3: ANALYTIC | C3: GL | D3: 521 | E3: Community Growth Analytics | F3: Community Growth Analytics | G3: 15211113 | H3: 1113 | I3: KiwiSaver Employer's Contribution over ETC | J3: =VLOOKUP(H3,'[1]Natural Account List - Active'!A:C,3,FALSE) -> 22050 | K3: =VLOOKUP(H3,'[1]Natural Account List - Active'!A:D,4,FALSE) -> Kiwisaver | L3: 12622
A4: 2025 | B4: ANALYTIC | C4: GL | D4: 521 | E4: Community Growth Analytics | F4: Community Growth Analytics | G4: 15212001 | H4: 2001 | I4: Vehicles | J4: =VLOOKUP(H4,'[1]Natural Account List - Active'!A:C,3,FALSE) -> 32001 | K4: =VLOOKUP(H4,'[1]Natural Account List - Active'!A:D,4,FALSE) -> Vehicles | L4: 30678
A5: 2025 | B5: ANALYTIC | C5: GL | D5: 521 | E5: Community Growth Analytics | F5: Community Growth Analytics | G5: 15212905 | H5: 2905 | I5: Interest on DC Reserves | J5: =VLOOKUP(H5,'[1]Natural Account List - Active'!A:C,3,FALSE) -> 32905 | K5: =VLOOKUP(H5,'[1]Natural Account List - Active'!A:D,4,FALSE) -> Interest on DC Reserves | L5: 30502
A6: 2025 | B6: ANALYTIC | C6: GL | D6: 521 | E6: Community Growth Analytics | F6: Community Growth Analytics | G6: 15211202 | H6: 1202 | I6: General Consultants | J6: =VLOOKUP(H6,'[1]Natural Account List - Active'!A:C,3,FALSE) -> 25030 | K6: =VLOOKUP(H6,'[1]Natural Account List - Active'!A:D,4,FALSE) -> Consulting | L6: 21203 | N6: Population forecasting, capacity model development and review, economic and growth advisory, infrastructure and growth funding advisory
A7: 2025 | B7: ANALYTIC | C7: GL | D7: 521 | E7: Community Growth Analytics | F7: Community Growth Analytics | G7: 15211101 | H7: 1101 | I7: ACC Levy | J7: =VLOOKUP(H7,'[1]Natural Account List - Active'!A:C,3,FALSE) -> 22080 | K7: =VLOOKUP(H7,'[1]Natural Account List - Active'!A:D,4,FALSE) -> ACC levies | L7: 1136
A8: 2025 | B8: ANALYTIC | C8: GL | D8: 521 | E8: Community Growth Analytics | F8: Community Growth Analytics | G8: 15211688 | H8: 1688 | I8: General Expenses | J8: =VLOOKUP(H8,'[1]Natural Account List - Active'!A:C,3,FALSE) -> 25123 | K8: =VLOOKUP(H8,'[1]Natural Account List - Active'!A:D,4,FALSE) -> General Expenses | L8: 1084 | N8: miscellaneous expenses
A9: 2025 | B9: ANALYTIC | C9: GL | D9: 521 | E9: Community Growth Analytics | F9: Community Growth Analytics | G9: 15211130 | H9: 1130 | I9: Training Costs | J9: =VLOOKUP(H9,'[1]Natural Account List - Active'!A:C,3,FALSE) -> 22065 | K9: =VLOOKUP(H9,'[1]Natural Account List - Active'!A:D,4,FALSE) -> Training Costs | L9: 4241 | N9: 4 staffs @ 1,000 each
A10: 2025 | B10: ANIMAL | C10: GL | D10: 603 | E10: Animal Control | F10: Animal Control | G10: 16031100 | H10: 1100 | I10: Salaries | J10: =VLOOKUP(H10,'[1]Natural Account List - Active'!A:C,3,FALSE) -> 22000 | K10: =VLOOKUP(H10,'[1]Natural Account List - Active'!A:D,4,FALSE) -> Salaries and wages - permanent | L10: 961340
A11: 2025 | B11: ANIMAL | C11: GL | D11: 603 | E11: Animal Control | F11: Animal Control | G11: 16031130 | H11: 1130 | I11: Training Costs | J11: =VLOOKUP(H11,'[1]Natural Account List - Active'!A:C,3,FALSE) -> 22065 | K11: =VLOOKUP(H11,'[1]Natural Account List - Active'!A:D,4,FALSE) -> Training Costs | L11: 11233 | N11: Annual conference (not attended in 19/20 year). Firearms training. Compliance training.
A12: 2025 | B12: ANIMAL | C12: GL | D12: 603 | E12: Animal Control | F12: Animal Control | G12: 16031450 | H12: 1450 | I12: Dog Pound Expenses | J12: =VLOOKUP(H12,'[1]Natural Account List - Active'!A:C,3,FALSE) -> 25200 | K12: =VLOOKUP(H12,'[1]Natural Account List - Active'!A:D,4,FALSE) -> Dog Pound Expenses | L12: 51948 | N12: Costs relating directly to pound. Dog food, replacement beds, chemicals, microchips, Facility Maintenace, washing powder etc. impound numbers are dropping but welfare requirements are stricter.
A13: 2025 | B13: ANIMAL | C13: GL | D13: 603 | E13: Animal Control | F13: Animal Control | G13: 16031601 | H13: 1601 | I13: Printing/Stationery | J13: =VLOOKUP(H13,'[1]Natural Account List - Active'!A:C,3,FALSE) -> 26030 | K13: =VLOOKUP(H13,'[1]Natural Account List - Active'!A:D,4,FALSE) -> Printing/Stationery | L13: 9009 | N13: Annual Registration costs. Advertising in the paper and sending of renewals. Registration reminder Notices, newsletter for registration.
A14: 2025 | B14: ANIMAL | C14: GL | D14: 603 | E14: Animal Control | F14: Animal Control | G14: 16031682 | H14: 1682 | I14: National dog database levy | J14: =VLOOKUP(H14,'[1]Natural Account List - Active'!A:C,3,FALSE) -> 25206 | K14: =VLOOKUP(H14,'[1]Natural Account List - Active'!A:D,4,FALSE) -> National dog database levy | L14: 10147 | N14: Central Government fee for administration of NDD, as dog numbers increase so does this levy
A15: 2025 | B15: ANIMAL | C15: GL | D15: 603 | E15: Animal Control | F15: Animal Control | G15: 16032605 | H15: 2605 | I15: Environmental Administration | J15: =VLOOKUP(H15,'[1]Natural Account List - Active'!A:C,3,FALSE) -> 32605 | K15: =VLOOKUP(H15,'[1]Natural Account List - Active'!A:D,4,FALSE) -> Environmental Administration | L15: 204135
A16: 2025 | B16: ANIMAL | C16: GL | D16: 603 | E16: Animal Control | F16: Animal Control | G16: 16031113 | H16: 1113 | I16: KiwiSaver Employer's Contribution over ETC | J16: =VLOOKUP(H16,'[1]Natural Account List - Active'!A:C,3,FALSE) -> 22050 | K16: =VLOOKUP(H16,'[1]Natural Account List - Active'!A:D,4,FALSE) -> Kiwisaver | L16: 28840
A17: 2025 | B17: ANIMAL | C17: GL | D17: 603 | E17: Animal Control | F17: Animal Control | G17: 16031458 | H17: 1458 | I17: Specialized minor equipments | J17: =VLOOKUP(H17,'[1]Natural Account List - Active'!A:C,3,FALSE) -> 25451 | K17: =VLOOKUP(H17,'[1]Natural Account List - Active'!A:D,4,FALSE) -> Specialized minor equipments | L17: 12192 | N17: 2 SRBA vests ($2500) and replacement cameras. Maintenance and replacement of specialist equipment (Catch Poles, Flexis, Leads, Horse equipment, Bite Sticks, Bite gloves etc) fitting out 8 vehicles with a full set of equipment.
A18: 2025 | B18: ANIMAL | C18: GL | D18: 603 | E18: Animal Control | F18: Animal Control | G18: 16033100 | H18: 3100 | I18: Dog Registration | J18: =VLOOKUP(H18,'[1]Natural Account List - Active'!A:C,3,FALSE) -> 16090 | K18: =VLOOKUP(H18,'[1]Natural Account List - Active'!A:D,4,FALSE) -> Dog Registration | L18: -945122 | N18: 15% decrease in slow scenario
A19: 2025 | B19: ANIMAL | C19: GL | D19: 603 | E19: Animal Control | F19: Animal Control | G19: 16033113 | H19: 3113 | I19: Microchipping Fee | J19: =VLOOKUP(H19,'[1]Natural Account List - Active'!A:C,3,FALSE) -> 16092 | K19: =VLOOKUP(H19,'[1]Natural Account List - Active'!A:D,4,FALSE) -> Microchipping Fee | L19: -2216
A20: 2025 | B20: ANIMAL | C20: GL | D20: 603 | E20: Animal Control | F20: Animal Control | G20: 16031201 | H20: 1201 | I20: Consultants - staff shortages | J20: =VLOOKUP(H20,'[1]Natural Account List - Active'!A:C,3,FALSE) -> 25060 | K20: =VLOOKUP(H20,'[1]Natural Account List - Active'!A:D,4,FALSE) -> Consultants - staff shortages | L20: 1590 | N20: Cover for short staffing, cover for team building and culture
A21: 2025 | B21: ANIMAL | C21: GL | D21: 603 | E21: Animal Control | F21: Animal Control | G21: 16031452 | H21: 1452 | I21: Euthanasia | J21: =VLOOKUP(H21,'[1]Natural Account List - Active'!A:C,3,FALSE) -> 25201 | K21: =VLOOKUP(H21,'[1]Natural Account List - Active'!A:D,4,FALSE) -> Euthanasia | L21: 44527 | N21: Average of 3000/month. Vet expenses, includes adoption dog vet expenses
A22: 2025 | B22: ANIMAL | C22: GL | D22: 603 | E22: Animal Control | F22: Animal Control | G22: 16031457 | H22: 1457 | I22: Engagement & Education | J22: =VLOOKUP(H22,'[1]Natural Account List - Active'!A:C,3,FALSE) -> 25205 | K22: =VLOOKUP(H22,'[1]Natural Account List - Active'!A:D,4,FALSE) -> Engagement & Education | L22: 11261 | N22: Running of community events, promotional material, collateral, design work,
A23: 2025 | B23: ANIMAL | C23: GL | D23: 603 | E23: Animal Control | F23: Animal Control | G23: 16032003 | H23: 2003 | I23: Property Rental | J23: =VLOOKUP(H23,'[1]Natural Account List - Active'!A:C,3,FALSE) -> 32003 | K23: =VLOOKUP(H23,'[1]Natural Account List - Active'!A:D,4,FALSE) -> Property Rental | L23: 86898
A24: 2025 | B24: ANIMAL | C24: GL | D24: 603 | E24: Animal Control | F24: Animal Control | G24: 16032000 | H24: 2000 | I24: Overheads | J24: =VLOOKUP(H24,'[1]Natural Account List - Active'!A:C,3,FALSE) -> 32000 | K24: =VLOOKUP(H24,'[1]Natural Account List - Active'!A:D,4,FALSE) -> Overheads | L24: 614810
A25: 2025 | B25: ANIMAL | C25: GL | D25: 603 | E25: Animal Control | F25: Animal Control | G25: 16033403 | H25: 3403 | I25: Dog Pound | J25: =VLOOKUP(H25,'[1]Natural Account List - Active'!A:C,3,FALSE) -> 16086 | K25: =VLOOKUP(H25,'[1]Natural Account List - Active'!A:D,4,FALSE) -> Dog Pound | L25: -37748
A26: 2025 | B26: ANIMAL | C26: GL | D26: 603 | E26: Animal Control | F26: Animal Control | G26: 16031101 | H26: 1101 | I26: ACC Levy | J26: =VLOOKUP(H26,'[1]Natural Account List - Active'!A:C,3,FALSE) -> 22080 | K26: =VLOOKUP(H26,'[1]Natural Account List - Active'!A:D,4,FALSE) -> ACC levies | L26: 2596
A27: 2025 | B27: ANIMAL | C27: GL | D27: 603 | E27: Animal Control | F27: Animal Control | G27: 16031102 | H27: 1102 | I27: Employment Related Expenses | J27: =VLOOKUP(H27,'[1]Natural Account List - Active'!A:C,3,FALSE) -> 22063 | K27: =VLOOKUP(H27,'[1]Natural Account List - Active'!A:D,4,FALSE) -> Employment Related Expenses | L27: 1908 | N27: NZIAM Membership.
A28: 2025 | B28: ANIMAL | C28: GL | D28: 603 | E28: Animal Control | F28: Animal Control | G28: 16031401 | H28: 1401 | I28: Power/Gas | J28: =VLOOKUP(H28,'[1]Natural Account List - Active'!A:C,3,FALSE) -> 23030 | K28: =VLOOKUP(H28,'[1]Natural Account List - Active'!A:D,4,FALSE) -> Electricity | L28: 3923 | N28: Power bills for both pound facilities
A29: 2025 | B29: ANIMAL | C29: GL | D29: 603 | E29: Animal Control | F29: Animal Control | G29: 16031455 | H29: 1455 | I29: Carcass Disposal | J29: =VLOOKUP(H29,'[1]Natural Account List - Active'!A:C,3,FALSE) -> 25204 | K29: =VLOOKUP(H29,'[1]Natural Account List - Active'!A:D,4,FALSE) -> Carcass Disposal | L29: 6146 | N29: Waste Management HiAb bin at the Ngaruawahia pound fortnightly collection costing $215.25
A30: 2025 | B30: ANIMAL | C30: GL | D30: 603 | E30: Animal Control | F30: Animal Control | G30: 16031688 | H30: 1688 | I30: General Expenses | J30: =VLOOKUP(H30,'[1]Natural Account List - Active'!A:C,3,FALSE) -> 25123 | K30: =VLOOKUP(H30,'[1]Natural Account List - Active'!A:D,4,FALSE) -> General Expenses | L30: 4167 | N30: Miscellaneous purchases eg, room hire, equipment hire, registration tags, team culture building
A31: 2025 | B31: ANIMAL | C31: GL | D31: 603 | E31: Animal Control | F31: Animal Control | G31: 16032001 | H31: 2001 | I31: Vehicles | J31: =VLOOKUP(H31,'[1]Natural Account List - Active'!A:C,3,FALSE) -> 32001 | K31: =VLOOKUP(H31,'[1]Natural Account List - Active'!A:D,4,FALSE) -> Vehicles | L31: 227246
A32: 2025 | B32: ANIMAL | C32: GL | D32: 603 | E32: Animal Control | F32: Animal Control | G32: 16033402 | H32: 3402 | I32: Stock Pound | J32: =VLOOKUP(H32,'[1]Natural Account List - Active'!A:C,3,FALSE) -> 16085 | K32: =VLOOKUP(H32,'[1]Natural Account List - Active'!A:D,4,FALSE) -> Stock pound charges | L32: -1252
A33: 2025 | B33: ANIMAL | C33: GL | D33: 603 | E33: Animal Control | F33: Animal Control | G33: 16031605 | H33: 1605 | I33: Phones | J33: =VLOOKUP(H33,'[1]Natural Account List - Active'!A:C,3,FALSE) -> 23040 | K33: =VLOOKUP(H33,'[1]Natural Account List - Active'!A:D,4,FALSE) -> Landline call costs/line rental | L33: 6896 | N33: 1 x Vodaphone account, 4 new devices in a year (high spec camera for evidential), 11x telecom phone accounts (costs carried by IM)
A34: 2025 | B34: ANIMAL | C34: GL | D34: 603 | E34: Animal Control | F34: Animal Control | G34: 16031609 | H34: 1609 | I34: Rent | J34: =VLOOKUP(H34,'[1]Natural Account List - Active'!A:C,3,FALSE) -> 25110 | K34: =VLOOKUP(H34,'[1]Natural Account List - Active'!A:D,4,FALSE) -> Rent | L34: 53611 | N34: Pukekohe dog pound and rates (5% increase in contract for 2021)
A35: 2025 | B35: ANIMAL | C35: GL | D35: 603 | E35: Animal Control | F35: Animal Control | G35: 16033106 | H35: 3106 | I35: Dog Infringements | J35: =VLOOKUP(H35,'[1]Natural Account List - Active'!A:C,3,FALSE) -> 15040 | K35: =VLOOKUP(H35,'[1]Natural Account List - Active'!A:D,4,FALSE) -> Dog Infringements | L35: -71950
A36: 2025 | B36: ANIMAL | C36: GL | D36: 603 | E36: Animal Control | F36: Animal Control | G36: 16032020 | H36: 2020 | I36: Overheads (Mgmt) | J36: =VLOOKUP(H36,'[1]Natural Account List - Active'!A:C,3,FALSE) -> 32020 | K36: =VLOOKUP(H36,'[1]Natural Account List - Active'!A:D,4,FALSE) -> Overheads (Mgmt) | L36: 21160
A37: 2025 | B37: ANIMAL | C37: GL | D37: 603 | E37: Animal Control | F37: Animal Control | G37: 16031454 | H37: 1454 | I37: Stock Pound Expenses | J37: =VLOOKUP(H37,'[1]Natural Account List - Active'!A:C,3,FALSE) -> 25203 | K37: =VLOOKUP(H37,'[1]Natural Account List - Active'!A:D,4,FALSE) -> Stock Pound Expenses | L37: 2702 | N37: Transporting stock to pound and/or sales. Feeding stock as required
A38: 2025 | B38: ANIMAL | C38: GL | D38: 603 | E38: Animal Control | F38: Animal Control | G38: 16031602 | H38: 1602 | I38: Advertising | J38: =VLOOKUP(H38,'[1]Natural Account List - Active'!A:C,3,FALSE) -> 23050 | K38: =VLOOKUP(H38,'[1]Natural Account List - Active'!A:D,4,FALSE) -> Advertising | L38: 3941 | N38: News paper advertisments for annual registration run. Sale of stock (public notices)
A39: 2025 | B39: ANIMAL | C39: GL | D39: 603 | E39: Animal Control | F39: Animal Control | G39: 16033406 | H39: 3406 | I39: Miscellaneous Recoveries | J39: =VLOOKUP(H39,'[1]Natural Account List - Active'!A:C,3,FALSE) -> 19099 | K39: =VLOOKUP(H39,'[1]Natural Account List - Active'!A:D,4,FALSE) -> Miscellaneous Revenue | L39: -106
A40: 2025 | B40: ANIMAL | C40: GL | D40: 603 | E40: Animal Control | F40: Animal Control | G40: 16031205 | H40: 1205 | I40: Department of Courts Charges | J40: =VLOOKUP(H40,'[1]Natural Account List - Active'!A:C,3,FALSE) -> 25100 | K40: =VLOOKUP(H40,'[1]Natural Account List - Active'!A:D,4,FALSE) -> Department of Courts Charges | L40: 6756 | N40: Court costs relating to infringements
A41: 2025 | B41: ANIMAL | C41: GL | D41: 603 | E41: Animal Control | F41: Animal Control | G41: 16031680 | H41: 1680 | I41: Uniforms | J41: =VLOOKUP(H41,'[1]Natural Account List - Active'!A:C,3,FALSE) -> 22091 | K41: =VLOOKUP(H41,'[1]Natural Account List - Active'!A:D,4,FALSE) -> Uniforms | L41: 7951 | N41: 10 x boots annually ($250) 11 x Uniforms replacements. Shirts, pants, jackets ($320) 2 x full set of uniform annually ($450)
A42: 2025 | B42: BUILDQ | C42: GL | D42: 602 | E42: Building Quality | F42: Building Quality | G42: 16021202 | H42: 1202 | I42: General Consultants | J42: =VLOOKUP(H42,'[1]Natural Account List - Active'!A:C,3,FALSE) -> 25030 | K42: =VLOOKUP(H42,'[1]Natural Account List - Active'!A:D,4,FALSE) -> Consulting | L42: 45047 | N42: This sum is used for our Bi annual IANZ accreditation assessments
A43: 2025 | B43: BUILDQ | C43: GL | D43: 602 | E43: Building Quality | F43: Building Quality | G43: 16021601 | H43: 1601 | I43: Printing/Stationery | J43: =VLOOKUP(H43,'[1]Natural Account List - Active'!A:C,3,FALSE) -> 26030 | K43: =VLOOKUP(H43,'[1]Natural Account List - Active'!A:D,4,FALSE) -> Printing/Stationery | L43: 1126 | N43: This sum is used to cover inspection note books which are used to issue instruction on site.
A44: 2025 | B44: BUILDQ | C44: GL | D44: 602 | E44: Building Quality | F44: Building Quality | G44: 16021102 | H44: 1102 | I44: Employment Related Expenses | J44: =VLOOKUP(H44,'[1]Natural Account List - Active'!A:C,3,FALSE) -> 22063 | K44: =VLOOKUP(H44,'[1]Natural Account List - Active'!A:D,4,FALSE) -> Employment Related Expenses | L44: 8671 | N44: Professional memberships and in the past has been used to cover items such as moisture meters, bootsetc.
A45: 2025 | B45: BUILDQ | C45: GL | D45: 602 | E45: Building Quality | F45: Building Quality | G45: 16021113 | H45: 1113 | I45: KiwiSaver Employer's Contribution over ETC | J45: =VLOOKUP(H45,'[1]Natural Account List - Active'!A:C,3,FALSE) -> 22050 | K45: =VLOOKUP(H45,'[1]Natural Account List - Active'!A:D,4,FALSE) -> Kiwisaver | L45: 74681
A46: 2025 | B46: BUILDQ | C46: GL | D46: 602 | E46: Building Quality | F46: Building Quality | G46: 16021142 | H46: 1142 | I46: Disputes Resolution Fund | J46: =VLOOKUP(H46,'[1]Natural Account List - Active'!A:C,3,FALSE) -> 22093 | K46: =VLOOKUP(H46,'[1]Natural Account List - Active'!A:D,4,FALSE) -> Disputes Resolution Fund | L46: 5301 | N46: This sum allows for remedying small issues that do arise.
A47: 2025 | B47: BUILDQ | C47: GL | D47: 602 | E47: Building Quality | F47: Building Quality | G47: 16021617 | H47: 1617 | I47: Title Searches | J47: =VLOOKUP(H47,'[1]Natural Account List - Active'!A:C,3,FALSE) -> 25116 | K47: =VLOOKUP(H47,'[1]Natural Account List - Active'!A:D,4,FALSE) -> Title Searches | L47: 2253
A48: 2025 | B48: BUILDQ | C48: GL | D48: 602 | E48: Building Quality | F48: Building Quality | G48: 16023103 | H48: 3103 | I48: PIMS | J48: =VLOOKUP(H48,'[1]Natural Account List - Active'!A:C,3,FALSE) -> 16095 | K48: =VLOOKUP(H48,'[1]Natural Account List - Active'!A:D,4,FALSE) -> Property information charges | L48: -19367 | N48: 20% decrease in Slow Scenario
A49: 2025 | B49: BUILDQ | C49: GL | D49: 602 | E49: Building Quality | F49: Building Quality | G49: 16023404 | H49: 3404 | I49: Title Searches/Photos/Maps | J49: =VLOOKUP(H49,'[1]Natural Account List - Active'!A:C,3,FALSE) -> 16008 | K49: =VLOOKUP(H49,'[1]Natural Account List - Active'!A:D,4,FALSE) -> Title Searches/Photos/Maps | L49: -5277 | N49: 20% decrease in Slow Scenario
A50: 2025 | B50: BUILDQ | C50: GL | D50: 602 | E50: Building Quality | F50: Building Quality | G50: 16021130 | H50: 1130 | I50: Training Costs | J50: =VLOOKUP(H50,'[1]Natural Account List - Active'!A:C,3,FALSE) -> 22065 | K50: =VLOOKUP(H50,'[1]Natural Account List - Active'!A:D,4,FALSE) -> Training Costs | L50: 31805 | N50: These costs allow for traininng to maintain competency and up skill the team. It includes for
A51: 2025 | B51: BUILDQ | C51: GL | D51: 602 | E51: Building Quality | F51: Building Quality | G51: 16021688 | H51: 1688 | I51: General Expenses | J51: =VLOOKUP(H51,'[1]Natural Account List - Active'!A:C,3,FALSE) -> 25123 | K51: =VLOOKUP(H51,'[1]Natural Account List - Active'!A:D,4,FALSE) -> General Expenses | L51: 4630 | N51: Used to cover a range of items, purchase off moisture meters, tools such as tapes, spades, spears, hammers etc.
A52: 2025 | B52: BUILDQ | C52: GL | D52: 602 | E52: Building Quality | F52: Building Quality | G52: 16021101 | H52: 1101 | I52: ACC Levy | J52: =VLOOKUP(H52,'[1]Natural Account List - Active'!A:C,3,FALSE) -> 22080 | K52: =VLOOKUP(H52,'[1]Natural Account List - Active'!A:D,4,FALSE) -> ACC levies | L52: 7452
A53: 2025 | B53: BUILDQ | C53: GL | D53: 602 | E53: Building Quality | F53: Building Quality | G53: 16021107 | H53: 1107 | I53: Fringe Benefit Tax | J53: =VLOOKUP(H53,'[1]Natural Account List - Active'!A:C,3,FALSE) -> 22039 | K53: =VLOOKUP(H53,'[1]Natural Account List - Active'!A:D,4,FALSE) -> FBT | L53: 33489 | N53: N/C
A54: 2025 | B54: BUILDQ | C54: GL | D54: 602 | E54: Building Quality | F54: Building Quality | G54: 16021226 | H54: 1226 | I54: Consultants - Review | J54: =VLOOKUP(H54,'[1]Natural Account List - Active'!A:C,3,FALSE) -> 25069 | K54: =VLOOKUP(H54,'[1]Natural Account List - Active'!A:D,4,FALSE) -> Consultants - Review | L54: 78831 | N54: additional expenses - issues register
A55: 2025 | B55: BUILDQ | C55: GL | D55: 602 | E55: Building Quality | F55: Building Quality | G55: 16021615 | H55: 1615 | I55: Software Maintenance | J55: =VLOOKUP(H55,'[1]Natural Account List - Active'!A:C,3,FALSE) -> 25115 | K55: =VLOOKUP(H55,'[1]Natural Account List - Active'!A:D,4,FALSE) -> Software Maintenance | L55: 285422 | N55: alpha one cost
A56: 2025 | B56: BUILDQ | C56: GL | D56: 602 | E56: Building Quality | F56: Building Quality | G56: 16022003 | H56: 2003 | I56: Property Rental | J56: =VLOOKUP(H56,'[1]Natural Account List - Active'!A:C,3,FALSE) -> 32003 | K56: =VLOOKUP(H56,'[1]Natural Account List - Active'!A:D,4,FALSE) -> Property Rental | L56: 149030
A57: 2025 | B57: BUILDQ | C57: GL | D57: 602 | E57: Building Quality | F57: Building Quality | G57: 16023406 | H57: 3406 | I57: Miscellaneous Recoveries | J57: =VLOOKUP(H57,'[1]Natural Account List - Active'!A:C,3,FALSE) -> 19099 | K57: =VLOOKUP(H57,'[1]Natural Account List - Active'!A:D,4,FALSE) -> Miscellaneous Revenue | L57: -4501 | N57: 20% decrease in Slow Scenario
A58: 2025 | B58: BUILDQ | C58: GL | D58: 602 | E58: Building Quality | F58: Building Quality | G58: 16022020 | H58: 2020 | I58: Overheads (Mgmt) | J58: =VLOOKUP(H58,'[1]Natural Account List - Active'!A:C,3,FALSE) -> 32020 | K58: =VLOOKUP(H58,'[1]Natural Account List - Active'!A:D,4,FALSE) -> Overheads (Mgmt) | L58: 36259
A59: 2025 | B59: BUILDQ | C59: GL | D59: 602 | E59: Building Quality | F59: Building Quality | G59: 16021680 | H59: 1680 | I59: Uniforms | J59: =VLOOKUP(H59,'[1]Natural Account List - Active'!A:C,3,FALSE) -> 22091 | K59: =VLOOKUP(H59,'[1]Natural Account List - Active'!A:D,4,FALSE) -> Uniforms | L59: 6393 | N59: For uniforms but also includes H&S gear and has included boots and safety shoes.
A60: 2025 | B60: BUILDQ | C60: GL | D60: 602 | E60: Building Quality | F60: Building Quality | G60: 16022000 | H60: 2000 | I60: Overheads | J60: =VLOOKUP(H60,'[1]Natural Account List - Active'!A:C,3,FALSE) -> 32000 | K60: =VLOOKUP(H60,'[1]Natural Account List - Active'!A:D,4,FALSE) -> Overheads | L60: 1046848
A61: 2025 | B61: BUILDQ | C61: GL | D61: 602 | E61: Building Quality | F61: Building Quality | G61: 16022001 | H61: 2001 | I61: Vehicles | J61: =VLOOKUP(H61,'[1]Natural Account List - Active'!A:C,3,FALSE) -> 32001 | K61: =VLOOKUP(H61,'[1]Natural Account List - Active'!A:D,4,FALSE) -> Vehicles | L61: 386319
A62: 2025 | B62: BUILDQ | C62: GL | D62: 602 | E62: Building Quality | F62: Building Quality | G62: 16023101 | H62: 3101 | I62: General Fees & Charges | J62: =VLOOKUP(H62,'[1]Natural Account List - Active'!A:C,3,FALSE) -> 18060 | K62: =VLOOKUP(H62,'[1]Natural Account List - Active'!A:D,4,FALSE) -> General Fees & Charges | L62: -6138728 | N62: 20% decrease in Slow Scenario
A63: 2025 | B63: BUILDQ | C63: GL | D63: 602 | E63: Building Quality | F63: Building Quality | G63: 16021100 | H63: 1100 | I63: Salaries | J63: =VLOOKUP(H63,'[1]Natural Account List - Active'!A:C,3,FALSE) -> 22000 | K63: =VLOOKUP(H63,'[1]Natural Account List - Active'!A:D,4,FALSE) -> Salaries and wages - permanent | L63: 2760182
A64: 2025 | B64: BUILDQ | C64: OpEx | D64: 602 | E64: Building Quality | F64: Waikato wide building consent process | G64: 6BC62000-E0-1202-0000 | H64: 1202 | I64: General Consultants | J64: =VLOOKUP(H64,'[1]Natural Account List - Active'!A:C,3,FALSE) -> 25030 | K64: =VLOOKUP(H64,'[1]Natural Account List - Active'!A:D,4,FALSE) -> Consulting | L64: 76579
A65: 2025 | B65: CHIEFEXE | C65: GL | D65: 200 | E65: Chief Executive | F65: Chief Executive | G65: 12002020 | H65: 2020 | I65: Overheads (Mgmt) | J65: =VLOOKUP(H65,'[1]Natural Account List - Active'!A:C,3,FALSE) -> 32020 | K65: =VLOOKUP(H65,'[1]Natural Account List - Active'!A:D,4,FALSE) -> Overheads (Mgmt) | L65: 4545
A66: 2025 | B66: CHIEFEXE | C66: GL | D66: 200 | E66: Chief Executive | F66: Chief Executive | G66: 12002000 | H66: 2000 | I66: Overheads | J66: =VLOOKUP(H66,'[1]Natural Account List - Active'!A:C,3,FALSE) -> 32000 | K66: =VLOOKUP(H66,'[1]Natural Account List - Active'!A:D,4,FALSE) -> Overheads | L66: 108583
A67: 2025 | B67: CHIEFEXE | C67: GL | D67: 200 | E67: Chief Executive | F67: Chief Executive | G67: 12002001 | H67: 2001 | I67: Vehicles | J67: =VLOOKUP(H67,'[1]Natural Account List - Active'!A:C,3,FALSE) -> 32001 | K67: =VLOOKUP(H67,'[1]Natural Account List - Active'!A:D,4,FALSE) -> Vehicles | L67: 25565
A68: 2025 | B68: CHIEFEXE | C68: GL | D68: 200 | E68: Chief Executive | F68: Chief Executive | G68: 12001101 | H68: 1101 | I68: ACC Levy | J68: =VLOOKUP(H68,'[1]Natural Account List - Active'!A:C,3,FALSE) -> 22080 | K68: =VLOOKUP(H68,'[1]Natural Account List - Active'!A:D,4,FALSE) -> ACC levies | L68: 2168
A69: 2025 | B69: CHIEFEXE | C69: GL | D69: 200 | E69: Chief Executive | F69: Chief Executive | G69: 12001107 | H69: 1107 | I69: Fringe Benefit Tax | J69: =VLOOKUP(H69,'[1]Natural Account List - Active'!A:C,3,FALSE) -> 22039 | K69: =VLOOKUP(H69,'[1]Natural Account List - Active'!A:D,4,FALSE) -> FBT | L69: 6835 | N69: FBT on Gavin's vehicle 1536.67 per quarter + Expenses FBT 300 per annum
A70: 2025 | B70: CHIEFEXE | C70: GL | D70: 200 | E70: Chief Executive | F70: Chief Executive | G70: 12001113 | H70: 1113 | I70: KiwiSaver Employer's Contribution over ETC | J70: =VLOOKUP(H70,'[1]Natural Account List - Active'!A:C,3,FALSE) -> 22050 | K70: =VLOOKUP(H70,'[1]Natural Account List - Active'!A:D,4,FALSE) -> Kiwisaver | L70: 24088
A71: 2025 | B71: CHIEFEXE | C71: GL | D71: 200 | E71: Chief Executive | F71: Chief Executive | G71: 12001130 | H71: 1130 | I71: Training Costs | J71: =VLOOKUP(H71,'[1]Natural Account List - Active'!A:C,3,FALSE) -> 22065 | K71: =VLOOKUP(H71,'[1]Natural Account List - Active'!A:D,4,FALSE) -> Training Costs | L71: 10361
A72: 2025 | B72: CHIEFEXE | C72: GL | D72: 200 | E72: Chief Executive | F72: Chief Executive | G72: 12002003 | H72: 2003 | I72: Property Rental | J72: =VLOOKUP(H72,'[1]Natural Account List - Active'!A:C,3,FALSE) -> 32003 | K72: =VLOOKUP(H72,'[1]Natural Account List - Active'!A:D,4,FALSE) -> Property Rental | L72: 18576
A73: 2025 | B73: CHIEFEXE | C73: GL | D73: 200 | E73: Chief Executive | F73: Chief Executive | G73: 12004000 | H73: 4000 | I73: Overheads | J73: =VLOOKUP(H73,'[1]Natural Account List - Active'!A:C,3,FALSE) -> 34000 | K73: =VLOOKUP(H73,'[1]Natural Account List - Active'!A:D,4,FALSE) -> Overheads | L73: -1035701
A74: 2025 | B74: CHIEFEXE | C74: GL | D74: 200 | E74: Chief Executive | F74: Chief Executive | G74: 12001202 | H74: 1202 | I74: General Consultants | J74: =VLOOKUP(H74,'[1]Natural Account List - Active'!A:C,3,FALSE) -> 25030 | K74: =VLOOKUP(H74,'[1]Natural Account List - Active'!A:D,4,FALSE) -> Consulting | L74: 8481 | N74: reduced from $12,747
A75: 2025 | B75: CHIEFEXE | C75: GL | D75: 200 | E75: Chief Executive | F75: Chief Executive | G75: 12002007 | H75: 2007 | I75: Catering Costs | J75: =VLOOKUP(H75,'[1]Natural Account List - Active'!A:C,3,FALSE) -> 32007 | K75: =VLOOKUP(H75,'[1]Natural Account List - Active'!A:D,4,FALSE) -> Catering Costs | L75: 5831 | N75: Staff celebrations etc
A76: 2025 | B76: CHIEFEXE | C76: GL | D76: 200 | E76: Chief Executive | F76: Chief Executive | G76: 12001100 | H76: 1100 | I76: Salaries | J76: =VLOOKUP(H76,'[1]Natural Account List - Active'!A:C,3,FALSE) -> 22000 | K76: =VLOOKUP(H76,'[1]Natural Account List - Active'!A:D,4,FALSE) -> Salaries and wages - permanent | L76: 802934
A77: 2025 | B77: CHIEFEXE | C77: GL | D77: 200 | E77: Chief Executive | F77: Chief Executive | G77: 12001102 | H77: 1102 | I77: Employment Related Expenses | J77: =VLOOKUP(H77,'[1]Natural Account List - Active'!A:C,3,FALSE) -> 22063 | K77: =VLOOKUP(H77,'[1]Natural Account List - Active'!A:D,4,FALSE) -> Employment Related Expenses | L77: 9602 | N77: Professional Membership
A78: 2025 | B78: CHIEFEXE | C78: GL | D78: 200 | E78: Chief Executive | F78: Chief Executive | G78: 12001688 | H78: 1688 | I78: General Expenses | J78: =VLOOKUP(H78,'[1]Natural Account List - Active'!A:C,3,FALSE) -> 25123 | K78: =VLOOKUP(H78,'[1]Natural Account List - Active'!A:D,4,FALSE) -> General Expenses | L78: 8132
A79: 2025 | B79: CIVDEF | C79: GL | D79: 607 | E79: Civil Defence | F79: Civil Defence | G79: 16071100 | H79: 1100 | I79: Salaries | J79: =VLOOKUP(H79,'[1]Natural Account List - Active'!A:C,3,FALSE) -> 22000 | K79: =VLOOKUP(H79,'[1]Natural Account List - Active'!A:D,4,FALSE) -> Salaries and wages - permanent | L79: 175065
A80: 2025 | B80: CIVDEF | C80: GL | D80: 607 | E80: Civil Defence | F80: Civil Defence | G80: 16071602 | H80: 1602 | I80: Advertising | J80: =VLOOKUP(H80,'[1]Natural Account List - Active'!A:C,3,FALSE) -> 23050 | K80: =VLOOKUP(H80,'[1]Natural Account List - Active'!A:D,4,FALSE) -> Advertising | L80: 2253
A81: 2025 | B81: CIVDEF | C81: GL | D81: 607 | E81: Civil Defence | F81: Civil Defence | G81: 16071605 | H81: 1605 | I81: Phones | J81: =VLOOKUP(H81,'[1]Natural Account List - Active'!A:C,3,FALSE) -> 23040 | K81: =VLOOKUP(H81,'[1]Natural Account List - Active'!A:D,4,FALSE) -> Landline call costs/line rental | L81: 2253
A82: 2025 | B82: CIVDEF | C82: GL | D82: 607 | E82: Civil Defence | F82: Civil Defence | G82: 16071609 | H82: 1609 | I82: Rent | J82: =VLOOKUP(H82,'[1]Natural Account List - Active'!A:C,3,FALSE) -> 25110 | K82: =VLOOKUP(H82,'[1]Natural Account List - Active'!A:D,4,FALSE) -> Rent | L82: 4730 | N82: Wright Satellite Iridium Access & Pukeitionga Repeater Site Rental
A83: 2025 | B83: CIVDEF | C83: GL | D83: 607 | E83: Civil Defence | F83: Civil Defence | G83: 16071107 | H83: 1107 | I83: Fringe Benefit Tax | J83: =VLOOKUP(H83,'[1]Natural Account List - Active'!A:C,3,FALSE) -> 22039 | K83: =VLOOKUP(H83,'[1]Natural Account List - Active'!A:D,4,FALSE) -> FBT | L83: 5743
A84: 2025 | B84: CIVDEF | C84: GL | D84: 607 | E84: Civil Defence | F84: Civil Defence | G84: 16071113 | H84: 1113 | I84: KiwiSaver Employer's Contribution over ETC | J84: =VLOOKUP(H84,'[1]Natural Account List - Active'!A:C,3,FALSE) -> 22050 | K84: =VLOOKUP(H84,'[1]Natural Account List - Active'!A:D,4,FALSE) -> Kiwisaver | L84: 5252
A85: 2025 | B85: CIVDEF | C85: GL | D85: 607 | E85: Civil Defence | F85: Civil Defence | G85: 16071601 | H85: 1601 | I85: Printing/Stationery | J85: =VLOOKUP(H85,'[1]Natural Account List - Active'!A:C,3,FALSE) -> 26030 | K85: =VLOOKUP(H85,'[1]Natural Account List - Active'!A:D,4,FALSE) -> Printing/Stationery | L85: 2253
A86: 2025 | B86: CIVDEF | C86: GL | D86: 607 | E86: Civil Defence | F86: Civil Defence | G86: 16071680 | H86: 1680 | I86: Uniforms | J86: =VLOOKUP(H86,'[1]Natural Account List - Active'!A:C,3,FALSE) -> 22091 | K86: =VLOOKUP(H86,'[1]Natural Account List - Active'!A:D,4,FALSE) -> Uniforms | L86: 451
A87: 2025 | B87: CIVDEF | C87: GL | D87: 607 | E87: Civil Defence | F87: Civil Defence | G87: 16072000 | H87: 2000 | I87: Overheads | J87: =VLOOKUP(H87,'[1]Natural Account List - Active'!A:C,3,FALSE) -> 32000 | K87: =VLOOKUP(H87,'[1]Natural Account List - Active'!A:D,4,FALSE) -> Overheads | L87: 61598
A88: 2025 | B88: CIVDEF | C88: GL | D88: 607 | E88: Civil Defence | F88: Civil Defence | G88: 16072007 | H88: 2007 | I88: Catering Costs | J88: =VLOOKUP(H88,'[1]Natural Account List - Active'!A:C,3,FALSE) -> 32007 | K88: =VLOOKUP(H88,'[1]Natural Account List - Active'!A:D,4,FALSE) -> Catering Costs | L88: 1126 | N88: inclusive of catering for training conducted in WDC
A89: 2025 | B89: CIVDEF | C89: GL | D89: 607 | E89: Civil Defence | F89: Civil Defence | G89: 16071130 | H89: 1130 | I89: Training Costs | J89: =VLOOKUP(H89,'[1]Natural Account List - Active'!A:C,3,FALSE) -> 22065 | K89: =VLOOKUP(H89,'[1]Natural Account List - Active'!A:D,4,FALSE) -> Training Costs | L89: 17959 | N89: for all civil defence staff members across the business
A90: 2025 | B90: CIVDEF | C90: GL | D90: 607 | E90: Civil Defence | F90: Civil Defence | G90: 16071101 | H90: 1101 | I90: ACC Levy | J90: =VLOOKUP(H90,'[1]Natural Account List - Active'!A:C,3,FALSE) -> 22080 | K90: =VLOOKUP(H90,'[1]Natural Account List - Active'!A:D,4,FALSE) -> ACC levies | L90: 473
A91: 2025 | B91: CIVDEF | C91: GL | D91: 607 | E91: Civil Defence | F91: Civil Defence | G91: 16071490 | H91: 1490 | I91: Repairs and Maintenance | J91: =VLOOKUP(H91,'[1]Natural Account List - Active'!A:C,3,FALSE) -> 25401 | K91: =VLOOKUP(H91,'[1]Natural Account List - Active'!A:D,4,FALSE) -> Repairs and Maintenance | L91: 2253 | N91: repair & maintenance of radio
A92: 2025 | B92: CIVDEF | C92: GL | D92: 607 | E92: Civil Defence | F92: Civil Defence | G92: 16072001 | H92: 2001 | I92: Vehicles | J92: =VLOOKUP(H92,'[1]Natural Account List - Active'!A:C,3,FALSE) -> 32001 | K92: =VLOOKUP(H92,'[1]Natural Account List - Active'!A:D,4,FALSE) -> Vehicles | L92: 17043
A93: 2025 | B93: CIVDEF | C93: GL | D93: 607 | E93: Civil Defence | F93: Civil Defence | G93: 16071616 | H93: 1616 | I93: Subscriptions & Journals | J93: =VLOOKUP(H93,'[1]Natural Account List - Active'!A:C,3,FALSE) -> 24051 | K93: =VLOOKUP(H93,'[1]Natural Account List - Active'!A:D,4,FALSE) -> Subscriptions | L93: 5743 | N93: BGAN, Teamtalk & Sky network + WRC Lifeline Utilities Group Membership
A94: 2025 | B94: CIVDEF | C94: GL | D94: 607 | E94: Civil Defence | F94: Civil Defence | G94: 16071688 | H94: 1688 | I94: General Expenses | J94: =VLOOKUP(H94,'[1]Natural Account List - Active'!A:C,3,FALSE) -> 25123 | K94: =VLOOKUP(H94,'[1]Natural Account List - Active'!A:D,4,FALSE) -> General Expenses | L94: 8674
A95: 2025 | B95: CIVDEF | C95: OpEx | D95: 607 | E95: Civil Defence | F95: Community Resilience Fund | G95: 6CD67007-E0-1688-0000 | H95: 1688 | I95: General Expenses | J95: =VLOOKUP(H95,'[1]Natural Account List - Active'!A:C,3,FALSE) -> 25123 | K95: =VLOOKUP(H95,'[1]Natural Account List - Active'!A:D,4,FALSE) -> General Expenses | L95: 5421 | N95: funds for community resilience
A96: 2025 | B96: COMASSET | C96: GL | D96: 123 | E96: Community Assets | F96: Community Assets | G96: 11231107 | H96: 1107 | I96: Fringe Benefit Tax | J96: =VLOOKUP(H96,'[1]Natural Account List - Active'!A:C,3,FALSE) -> 22039 | K96: =VLOOKUP(H96,'[1]Natural Account List - Active'!A:D,4,FALSE) -> FBT | L96: 212 | N96: FBT on Pool vehicles plus other expenses
A97: 2025 | B97: COMASSET | C97: GL | D97: 123 | E97: Community Assets | F97: Community Assets | G97: 11231132 | H97: 1132 | I97: Conferences | J97: =VLOOKUP(H97,'[1]Natural Account List - Active'!A:C,3,FALSE) -> 22067 | K97: =VLOOKUP(H97,'[1]Natural Account List - Active'!A:D,4,FALSE) -> Conferences | L97: 7951 | N97: Zero for year one, allocation of one conference a year per person @ 1500 for each consecutive year.
A98: 2025 | B98: COMASSET | C98: GL | D98: 123 | E98: Community Assets | F98: Community Assets | G98: 11232007 | H98: 2007 | I98: Catering Costs | J98: =VLOOKUP(H98,'[1]Natural Account List - Active'!A:C,3,FALSE) -> 32007 | K98: =VLOOKUP(H98,'[1]Natural Account List - Active'!A:D,4,FALSE) -> Catering Costs | L98: 1060 | N98: Catered 1/4 year team workshops
A99: 2025 | B99: COMASSET | C99: GL | D99: 123 | E99: Community Assets | F99: Community Assets | G99: 11231688 | H99: 1688 | I99: General Expenses | J99: =VLOOKUP(H99,'[1]Natural Account List - Active'!A:C,3,FALSE) -> 25123 | K99: =VLOOKUP(H99,'[1]Natural Account List - Active'!A:D,4,FALSE) -> General Expenses | L99: 1626 | N99: This include external meals and staff farewell, celebrations etc
A100: 2025 | B100: COMASSET | C100: GL | D100: 123 | E100: Community Assets | F100: Community Assets | G100: 11232001 | H100: 2001 | I100: Vehicles | J100: =VLOOKUP(H100,'[1]Natural Account List - Active'!A:C,3,FALSE) -> 32001 | K100: =VLOOKUP(H100,'[1]Natural Account List - Active'!A:D,4,FALSE) -> Vehicles | L100: 4261
A101: 2025 | B101: COMASSET | C101: GL | D101: 123 | E101: Community Assets | F101: Community Assets | G101: 11231108 | H101: 1108 | I101: Mileage Reimbursement | J101: =VLOOKUP(H101,'[1]Natural Account List - Active'!A:C,3,FALSE) -> 22047 | K101: =VLOOKUP(H101,'[1]Natural Account List - Active'!A:D,4,FALSE) -> Mileage Reimbursement | L101: 838 | N101: 1000km @ 79c per Km
A102: 2025 | B102: COMASSET | C102: GL | D102: 123 | E102: Community Assets | F102: Community Assets | G102: 11231100 | H102: 1100 | I102: Salaries | J102: =VLOOKUP(H102,'[1]Natural Account List - Active'!A:C,3,FALSE) -> 22000 | K102: =VLOOKUP(H102,'[1]Natural Account List - Active'!A:D,4,FALSE) -> Salaries and wages - permanent | L102: 554386
A103: 2025 | B103: COMASSET | C103: GL | D103: 123 | E103: Community Assets | F103: Community Assets | G103: 11231101 | H103: 1101 | I103: ACC Levy | J103: =VLOOKUP(H103,'[1]Natural Account List - Active'!A:C,3,FALSE) -> 22080 | K103: =VLOOKUP(H103,'[1]Natural Account List - Active'!A:D,4,FALSE) -> ACC levies | L103: 1497
A104: 2025 | B104: COMASSET | C104: GL | D104: 123 | E104: Community Assets | F104: Community Assets | G104: 11231106 | H104: 1106 | I104: Membership Expenses | J104: =VLOOKUP(H104,'[1]Natural Account List - Active'!A:C,3,FALSE) -> 22064 | K104: =VLOOKUP(H104,'[1]Natural Account List - Active'!A:D,4,FALSE) -> Membership Expenses | L104: 2601 | N104: IPWEA & Engeneering NZ memberships.
A105: 2025 | B105: COMASSET | C105: GL | D105: 123 | E105: Community Assets | F105: Community Assets | G105: 11231113 | H105: 1113 | I105: KiwiSaver Employer's Contribution over ETC | J105: =VLOOKUP(H105,'[1]Natural Account List - Active'!A:C,3,FALSE) -> 22050 | K105: =VLOOKUP(H105,'[1]Natural Account List - Active'!A:D,4,FALSE) -> Kiwisaver | L105: 16632
A106: 2025 | B106: COMASSET | C106: GL | D106: 123 | E106: Community Assets | F106: Community Assets | G106: 11231130 | H106: 1130 | I106: Training Costs | J106: =VLOOKUP(H106,'[1]Natural Account List - Active'!A:C,3,FALSE) -> 22065 | K106: =VLOOKUP(H106,'[1]Natural Account List - Active'!A:D,4,FALSE) -> Training Costs | L106: 4962 | N106: IPWEA Digital Badges & training (Asset Management) plus additional 7 K for BI training for the team in year 1
A107: 2025 | B107: COMASSET | C107: OpEx | D107: 123 | E107: Community Assets | F107: Reval. Consultant - Open Space & Solid Waste | G107: 1CA11003-E0-1213-0000 | H107: 1213 | I107: Valuation Consultants | J107: =VLOOKUP(H107,'[1]Natural Account List - Active'!A:C,3,FALSE) -> 23022 | K107: =VLOOKUP(H107,'[1]Natural Account List - Active'!A:D,4,FALSE) -> Valuation fees | L107: 36046 | M107: Consultants / Revaluations / Open Spaces & Solid Waste | N107: Based on the actual Invoices received in 2020
A108: 2025 | B108: COMASSET | C108: OpEx | D108: 123 | E108: Community Assets | F108: SPM software License fees | G108: 1CA11005-E0-1613-0000 | H108: 1613 | I108: Software Support | J108: =VLOOKUP(H108,'[1]Natural Account List - Active'!A:C,3,FALSE) -> 25113 | K108: =VLOOKUP(H108,'[1]Natural Account List - Active'!A:D,4,FALSE) -> Software Support | L108: 37106 | M108: Software / SPM License fees | N108: Licence fees - based on actual invoices and % of markup
A109: 2025 | B109: COMASSET | C109: OpEx | D109: 123 | E109: Community Assets | F109: Consultants - AMPs General costs to dept | G109: 1CA11007-E0-1202-0000 | H109: 1202 | I109: General Consultants | J109: =VLOOKUP(H109,'[1]Natural Account List - Active'!A:C,3,FALSE) -> 25030 | K109: =VLOOKUP(H109,'[1]Natural Account List - Active'!A:D,4,FALSE) -> Consulting | L109: 148423 | M109: Consultants / AMPs / General costs to dept | N109: General consulting to Assets dept.
A110: 2025 | B110: COMCONN | C110: GL | D110: 133 | E110: Community Connections | F110: Community Connections | G110: 11331688 | H110: 1688 | I110: General Expenses | J110: =VLOOKUP(H110,'[1]Natural Account List - Active'!A:C,3,FALSE) -> 25123 | K110: =VLOOKUP(H110,'[1]Natural Account List - Active'!A:D,4,FALSE) -> General Expenses | L110: 7590
A111: 2025 | B111: COMCONN | C111: GL | D111: 133 | E111: Community Connections | F111: Community Connections | G111: 11331100 | H111: 1100 | I111: Salaries | J111: =VLOOKUP(H111,'[1]Natural Account List - Active'!A:C,3,FALSE) -> 22000 | K111: =VLOOKUP(H111,'[1]Natural Account List - Active'!A:D,4,FALSE) -> Salaries and wages - permanent | L111: 1490840
A112: 2025 | B112: COMCONN | C112: GL | D112: 133 | E112: Community Connections | F112: Community Connections | G112: 11331202 | H112: 1202 | I112: General Consultants | J112: =VLOOKUP(H112,'[1]Natural Account List - Active'!A:C,3,FALSE) -> 25030 | K112: =VLOOKUP(H112,'[1]Natural Account List - Active'!A:D,4,FALSE) -> Consulting | L112: 47686 | N112: $40,000 per annum reallcoated to Strategic Property Team
A113: 2025 | B113: COMCONN | C113: GL | D113: 133 | E113: Community Connections | F113: Community Connections | G113: 11331107 | H113: 1107 | I113: Fringe Benefit Tax | J113: =VLOOKUP(H113,'[1]Natural Account List - Active'!A:C,3,FALSE) -> 22039 | K113: =VLOOKUP(H113,'[1]Natural Account List - Active'!A:D,4,FALSE) -> FBT | L113: 7701 | N113: Increased to reflect 202 actuals
A114: 2025 | B114: COMCONN | C114: GL | D114: 133 | E114: Community Connections | F114: Community Connections | G114: 11331108 | H114: 1108 | I114: Mileage Reimbursement | J114: =VLOOKUP(H114,'[1]Natural Account List - Active'!A:C,3,FALSE) -> 22047 | K114: =VLOOKUP(H114,'[1]Natural Account List - Active'!A:D,4,FALSE) -> Mileage Reimbursement | L114: 542 | N114: Increased due to felxible working changes
A115: 2025 | B115: COMCONN | C115: GL | D115: 133 | E115: Community Connections | F115: Community Connections | G115: 11332000 | H115: 2000 | I115: Overheads | J115: =VLOOKUP(H115,'[1]Natural Account List - Active'!A:C,3,FALSE) -> 32000 | K115: =VLOOKUP(H115,'[1]Natural Account List - Active'!A:D,4,FALSE) -> Overheads | L115: 804258
A116: 2025 | B116: COMCONN | C116: GL | D116: 133 | E116: Community Connections | F116: Community Connections | G116: 11332001 | H116: 2001 | I116: Vehicles | J116: =VLOOKUP(H116,'[1]Natural Account List - Active'!A:C,3,FALSE) -> 32001 | K116: =VLOOKUP(H116,'[1]Natural Account List - Active'!A:D,4,FALSE) -> Vehicles | L116: 117364
A117: 2025 | B117: COMCONN | C117: GL | D117: 133 | E117: Community Connections | F117: Community Connections | G117: 11332020 | H117: 2020 | I117: Overheads (Mgmt) | J117: =VLOOKUP(H117,'[1]Natural Account List - Active'!A:C,3,FALSE) -> 32020 | K117: =VLOOKUP(H117,'[1]Natural Account List - Active'!A:D,4,FALSE) -> Overheads (Mgmt) | L117: 25655
A118: 2025 | B118: COMCONN | C118: GL | D118: 133 | E118: Community Connections | F118: Community Connections | G118: 11331616 | H118: 1616 | I118: Subscriptions & Journals | J118: =VLOOKUP(H118,'[1]Natural Account List - Active'!A:C,3,FALSE) -> 24051 | K118: =VLOOKUP(H118,'[1]Natural Account List - Active'!A:D,4,FALSE) -> Subscriptions | L118: 16819 | N118: Reduced to align with 2021 budget
A119: 2025 | B119: COMCONN | C119: GL | D119: 133 | E119: Community Connections | F119: Community Connections | G119: 11331101 | H119: 1101 | I119: ACC Levy | J119: =VLOOKUP(H119,'[1]Natural Account List - Active'!A:C,3,FALSE) -> 22080 | K119: =VLOOKUP(H119,'[1]Natural Account List - Active'!A:D,4,FALSE) -> ACC levies | L119: 4025
A120: 2025 | B120: COMCONN | C120: GL | D120: 133 | E120: Community Connections | F120: Community Connections | G120: 11331113 | H120: 1113 | I120: KiwiSaver Employer's Contribution over ETC | J120: =VLOOKUP(H120,'[1]Natural Account List - Active'!A:C,3,FALSE) -> 22050 | K120: =VLOOKUP(H120,'[1]Natural Account List - Active'!A:D,4,FALSE) -> Kiwisaver | L120: 44725
A121: 2025 | B121: COMCONN | C121: GL | D121: 133 | E121: Community Connections | F121: Community Connections | G121: 11331680 | H121: 1680 | I121: Uniforms | J121: =VLOOKUP(H121,'[1]Natural Account List - Active'!A:C,3,FALSE) -> 22091 | K121: =VLOOKUP(H121,'[1]Natural Account List - Active'!A:D,4,FALSE) -> Uniforms | L121: 5421 | N121: Increased to relfect increase in staff wearing uniforms
A122: 2025 | B122: COMCONN | C122: GL | D122: 133 | E122: Community Connections | F122: Community Connections | G122: 11331608 | H122: 1608 | I122: Zero Harm | J122: =VLOOKUP(H122,'[1]Natural Account List - Active'!A:C,3,FALSE) -> 25108 | K122: =VLOOKUP(H122,'[1]Natural Account List - Active'!A:D,4,FALSE) -> Zero Harm | L122: 8003 | N122: Reduced to align with 2021 budget
A123: 2025 | B123: COMCONN | C123: GL | D123: 133 | E123: Community Connections | F123: Community Connections | G123: 11334004 | H123: 4004 | I123: Property Management | J123: =VLOOKUP(H123,'[1]Natural Account List - Active'!A:C,3,FALSE) -> 34004 | K123: =VLOOKUP(H123,'[1]Natural Account List - Active'!A:D,4,FALSE) -> Property Management | L123: -2720113
A124: 2025 | B124: COMCONN | C124: GL | D124: 133 | E124: Community Connections | F124: Community Connections | G124: 11332003 | H124: 2003 | I124: Property Rental | J124: =VLOOKUP(H124,'[1]Natural Account List - Active'!A:C,3,FALSE) -> 32003 | K124: =VLOOKUP(H124,'[1]Natural Account List - Active'!A:D,4,FALSE) -> Property Rental | L124: 105473
A125: 2025 | B125: COMCONN | C125: GL | D125: 133 | E125: Community Connections | F125: Community Connections | G125: 11332007 | H125: 2007 | I125: Catering Costs | J125: =VLOOKUP(H125,'[1]Natural Account List - Active'!A:C,3,FALSE) -> 32007 | K125: =VLOOKUP(H125,'[1]Natural Account List - Active'!A:D,4,FALSE) -> Catering Costs | L125: 1699
A126: 2025 | B126: COMCONN | C126: GL | D126: 133 | E126: Community Connections | F126: Community Connections | G126: 11331130 | H126: 1130 | I126: Training Costs | J126: =VLOOKUP(H126,'[1]Natural Account List - Active'!A:C,3,FALSE) -> 22065 | K126: =VLOOKUP(H126,'[1]Natural Account List - Active'!A:D,4,FALSE) -> Training Costs | L126: 32311 | N126: Reserve Planner x 2 @ $1800, TL's x 3 @ $1500, Café x 4 @ $250, Campground x 3 @ $500, Admin, OS, Facilties and V&E x 13 @ $1500, Woodlands x 3 @ $1000 - total $29800 per year
A127: 2025 | B127: COMCONN | C127: OpEx | D127: 133 | E127: Community Connections | F127: Events & Venues - Volunteer Training kits | G127: 1EV13001-E0-1602-0000 | H127: 1602 | I127: Advertising | J127: =VLOOKUP(H127,'[1]Natural Account List - Active'!A:C,3,FALSE) -> 23050 | K127: =VLOOKUP(H127,'[1]Natural Account List - Active'!A:D,4,FALSE) -> Advertising | L127: 2169 | M127: Events & Venues / Volunteer Work / Training kits | N127: Budget to create 8 volunteer work kits (inlcuding training material & advertising brochures) to provide to volunteer groups who do volunteer work within WDC reserves and open spaces.
A128: 2025 | B128: COMCONN | C128: OpEx | D128: 133 | E128: Community Connections | F128: Events & Venues - General Expenses | G128: 1EV13002-E0-1688-0000 | H128: 1688 | I128: General Expenses | J128: =VLOOKUP(H128,'[1]Natural Account List - Active'!A:C,3,FALSE) -> 25123 | K128: =VLOOKUP(H128,'[1]Natural Account List - Active'!A:D,4,FALSE) -> General Expenses | L128: 10843 | M128: Events & Venues / Volunteer Work / General Expenses | N128: Funds to help assist CV&E team with volunteer events and plantings DW.
A129: 2025 | B129: COMCONN | C129: GL | D129: 140 | E129: Parks and Reserves General Districts | F129: Parks and Reserves General Districts | G129: 11403114 | H129: 3114 | I129: Development Contributions | J129: =VLOOKUP(H129,'[1]Natural Account List - Active'!A:C,3,FALSE) -> 15000 | K129: =VLOOKUP(H129,'[1]Natural Account List - Active'!A:D,4,FALSE) -> Development contributions recognised | L129: -1833163
A130: 2025 | B130: COMCONN | C130: GL | D130: 140 | E130: Parks and Reserves General Districts | F130: Parks and Reserves General Districts | G130: 11403123 | H130: 3123 | I130: DW Community Facilties DCL | J130: =VLOOKUP(H130,'[1]Natural Account List - Active'!A:C,3,FALSE) -> 15009 | K130: =VLOOKUP(H130,'[1]Natural Account List - Active'!A:D,4,FALSE) -> DW Community Facilties DCL | L130: -1427649
A131: 2025 | B131: COMCONN | C131: GL | D131: 140 | E131: Parks and Reserves General Districts | F131: Parks and Reserves General Districts | G131: 11402900 | H131: 2900 | I131: Interest on Internal Loans | J131: =VLOOKUP(H131,'[1]Natural Account List - Active'!A:C,3,FALSE) -> 32900 | K131: =VLOOKUP(H131,'[1]Natural Account List - Active'!A:D,4,FALSE) -> Interest on Internal Loans | L131: 493246
A132: 2025 | B132: COMCONN | C132: GL | D132: 140 | E132: Parks and Reserves General Districts | F132: Parks and Reserves General Districts | G132: 11402901 | H132: 2901 | I132: Interest on Council Reserves | J132: =VLOOKUP(H132,'[1]Natural Account List - Active'!A:C,3,FALSE) -> 32901 | K132: =VLOOKUP(H132,'[1]Natural Account List - Active'!A:D,4,FALSE) -> Interest on Council Reserves | L132: 44
A133: 2025 | B133: COMCONN | C133: GL | D133: 140 | E133: Parks and Reserves General Districts | F133: Parks and Reserves General Districts | G133: 11401604 | H133: 1604 | I133: Rates | J133: =VLOOKUP(H133,'[1]Natural Account List - Active'!A:C,3,FALSE) -> 23035 | K133: =VLOOKUP(H133,'[1]Natural Account List - Active'!A:D,4,FALSE) -> Rates - council owned properties | L133: 31840
A134: 2025 | B134: COMCONN | C134: GL | D134: 140 | E134: Parks and Reserves General Districts | F134: Parks and Reserves General Districts | G134: 11402905 | H134: 2905 | I134: Interest on DC Reserves | J134: =VLOOKUP(H134,'[1]Natural Account List - Active'!A:C,3,FALSE) -> 32905 | K134: =VLOOKUP(H134,'[1]Natural Account List - Active'!A:D,4,FALSE) -> Interest on DC Reserves | L134: 404578
A135: 2025 | B135: COMCONN | C135: GL | D135: 140 | E135: Parks and Reserves General Districts | F135: Parks and Reserves General Districts | G135: 11404901 | H135: 4901 | I135: Interest on Council Reserves | J135: =VLOOKUP(H135,'[1]Natural Account List - Active'!A:C,3,FALSE) -> 34901 | K135: =VLOOKUP(H135,'[1]Natural Account List - Active'!A:D,4,FALSE) -> Interest on Council Reserves | L135: -84675
A136: 2025 | B136: COMCONN | C136: GL | D136: 140 | E136: Parks and Reserves General Districts | F136: Parks and Reserves General Districts | G136: 11402004 | H136: 2004 | I136: Property Management | J136: =VLOOKUP(H136,'[1]Natural Account List - Active'!A:C,3,FALSE) -> 32004 | K136: =VLOOKUP(H136,'[1]Natural Account List - Active'!A:D,4,FALSE) -> Property Management | L136: 560342
A137: 2025 | B137: COMCONN | C137: GL | D137: 140 | E137: Parks and Reserves General Districts | F137: Parks and Reserves General Districts | G137: 11401411 | H137: 1411 | I137: Depreciation | J137: =VLOOKUP(H137,'[1]Natural Account List - Active'!A:C,3,FALSE) -> 20000 | K137: =VLOOKUP(H137,'[1]Natural Account List - Active'!A:D,4,FALSE) -> Depreciation | L137: 2566656
A138: 2025 | B138: COMCONN | C138: GL | D138: 140 | E138: Parks and Reserves General Districts | F138: Parks and Reserves General Districts | G138: 11401630 | H138: 1630 | I138: Waikato Regional Council Rates | J138: =VLOOKUP(H138,'[1]Natural Account List - Active'!A:C,3,FALSE) -> 23036 | K138: =VLOOKUP(H138,'[1]Natural Account List - Active'!A:D,4,FALSE) -> Waikato Regional Council Rates | L138: 1913
A139: 2025 | B139: COMCONN | C139: GL | D139: 140 | E139: Parks and Reserves General Districts | F139: Parks and Reserves General Districts | G139: 11401600 | H139: 1600 | I139: Insurance | J139: =VLOOKUP(H139,'[1]Natural Account List - Active'!A:C,3,FALSE) -> 23012 | K139: =VLOOKUP(H139,'[1]Natural Account List - Active'!A:D,4,FALSE) -> Insurance premiums - other | L139: 46711 | N139: As per AON 2020/2021 Insurance
A140: 2025 | B140: COMCONN | C140: GL | D140: 140 | E140: Parks and Reserves General Districts | F140: Parks and Reserves General Districts | G140: 11403101 | H140: 3101 | I140: General Fees & Charges | J140: =VLOOKUP(H140,'[1]Natural Account List - Active'!A:C,3,FALSE) -> 18060 | K140: =VLOOKUP(H140,'[1]Natural Account List - Active'!A:D,4,FALSE) -> General Fees & Charges | L140: -2391
A141: 2025 | B141: COMCONN | C141: OpEx | D141: 140 | E141: Parks and Reserves General Districts | F141: District Wide beaches | G141: 1BE16000-E0-1490-0000 | H141: 1490 | I141: Repairs and Maintenance | J141: =VLOOKUP(H141,'[1]Natural Account List - Active'!A:C,3,FALSE) -> 25401 | K141: =VLOOKUP(H141,'[1]Natural Account List - Active'!A:D,4,FALSE) -> Repairs and Maintenance | L141: 5421 | M141: Reduced as this budget is seldom used. Only for rubbish removal. | N141: 1BE10000E-1490 - District Wide beaches - Repairs and Maintenance
A142: 2025 | B142: COMCONN | C142: OpEx | D142: 140 | E142: Parks and Reserves General Districts | F142: District Wide bridges | G142: 1BG10000-E0-2900-0000 | H142: 2900 | I142: Interest on Internal Loans | J142: =VLOOKUP(H142,'[1]Natural Account List - Active'!A:C,3,FALSE) -> 32900 | K142: =VLOOKUP(H142,'[1]Natural Account List - Active'!A:D,4,FALSE) -> Interest on Internal Loans | L142: 67
A143: 2025 | B143: COMCONN | C143: OpEx | D143: 140 | E143: Parks and Reserves General Districts | F143: Raglan bridge | G143: 1BG10030-E0-2900-0000 | H143: 2900 | I143: Interest on Internal Loans | J143: =VLOOKUP(H143,'[1]Natural Account List - Active'!A:C,3,FALSE) -> 32900 | K143: =VLOOKUP(H143,'[1]Natural Account List - Active'!A:D,4,FALSE) -> Interest on Internal Loans | L143: 59335
A144: 2025 | B144: COMCONN | C144: OpEx | D144: 140 | E144: Parks and Reserves General Districts | F144: District Wide bridges | G144: 1BG16000-E0-1490-0000 | H144: 1490 | I144: Repairs and Maintenance | J144: =VLOOKUP(H144,'[1]Natural Account List - Active'!A:C,3,FALSE) -> 25401 | K144: =VLOOKUP(H144,'[1]Natural Account List - Active'!A:D,4,FALSE) -> Repairs and Maintenance | L144: 21143 | M144: Budget required for compliance reporting on bridges | N144: 1BG10000E-1490 - District Wide bridges - Repairs and Maintenance
A145: 2025 | B145: COMCONN | C145: OpEx | D145: 140 | E145: Parks and Reserves General Districts | F145: District Wide bridges | G145: 1BG16000-E0-1411-0000 | H145: 1411 | I145: Depreciation | J145: =VLOOKUP(H145,'[1]Natural Account List - Active'!A:C,3,FALSE) -> 20000 | K145: =VLOOKUP(H145,'[1]Natural Account List - Active'!A:D,4,FALSE) -> Depreciation | L145: 26
A146: 2025 | B146: COMCONN | C146: OpEx | D146: 140 | E146: Parks and Reserves General Districts | F146: District Wide boat ramps | G146: 1BR10000-E0-3110-0000 | H146: 3110 | I146: Rents & Leases | J146: =VLOOKUP(H146,'[1]Natural Account List - Active'!A:C,3,FALSE) -> 14000 | K146: =VLOOKUP(H146,'[1]Natural Account List - Active'!A:D,4,FALSE) -> Lease rental income | L146: -6087
A147: 2025 | B147: COMCONN | C147: OpEx | D147: 140 | E147: Parks and Reserves General Districts | F147: District Wide boat ramps | G147: 1BR10000-E0-2900-0000 | H147: 2900 | I147: Interest on Internal Loans | J147: =VLOOKUP(H147,'[1]Natural Account List - Active'!A:C,3,FALSE) -> 32900 | K147: =VLOOKUP(H147,'[1]Natural Account List - Active'!A:D,4,FALSE) -> Interest on Internal Loans | L147: 11437
A148: 2025 | B148: COMCONN | C148: OpEx | D148: 140 | E148: Parks and Reserves General Districts | F148: District Wide boat ramps | G148: 1BR16000-E0-1490-0000 | H148: 1490 | I148: Repairs and Maintenance | J148: =VLOOKUP(H148,'[1]Natural Account List - Active'!A:C,3,FALSE) -> 25401 | K148: =VLOOKUP(H148,'[1]Natural Account List - Active'!A:D,4,FALSE) -> Repairs and Maintenance | L148: 15657 | M148: Actual cost to maintain to the current Level of service | N148: 1BR10000E-1490 - District Wide boat ramps - Repairs and Maintenance
A149: 2025 | B149: COMCONN | C149: OpEx | D149: 140 | E149: Parks and Reserves General Districts | F149: District Wide boat ramps | G149: 1BR16000-E0-1400-0000 | H149: 1400 | I149: Resource Consents | J149: =VLOOKUP(H149,'[1]Natural Account List - Active'!A:C,3,FALSE) -> 25101 | K149: =VLOOKUP(H149,'[1]Natural Account List - Active'!A:D,4,FALSE) -> Resource Consents | L149: 7563 | M149: Required for boat resouce consent monitoring | N149: 1BR10000E-1400 - District Wide boat ramps - Resource Consents
A150: 2025 | B150: COMCONN | C150: OpEx | D150: 140 | E150: Parks and Reserves General Districts | F150: District Wide boat ramps | G150: 1BR16000-E0-1411-0000 | H150: 1411 | I150: Depreciation | J150: =VLOOKUP(H150,'[1]Natural Account List - Active'!A:C,3,FALSE) -> 20000 | K150: =VLOOKUP(H150,'[1]Natural Account List - Active'!A:D,4,FALSE) -> Depreciation | L150: 13266
A151: 2025 | B151: COMCONN | C151: OpEx | D151: 140 | E151: Parks and Reserves General Districts | F151: District Wide cemeteries | G151: 1CM10000-E0-1411-0000 | H151: 1411 | I151: Depreciation | J151: =VLOOKUP(H151,'[1]Natural Account List - Active'!A:C,3,FALSE) -> 20000 | K151: =VLOOKUP(H151,'[1]Natural Account List - Active'!A:D,4,FALSE) -> Depreciation | L151: 8511
A152: 2025 | B152: COMCONN | C152: OpEx | D152: 140 | E152: Parks and Reserves General Districts | F152: District Wide cemeteries | G152: 1CM10000-E0-2900-0000 | H152: 2900 | I152: Interest on Internal Loans | J152: =VLOOKUP(H152,'[1]Natural Account List - Active'!A:C,3,FALSE) -> 32900 | K152: =VLOOKUP(H152,'[1]Natural Account List - Active'!A:D,4,FALSE) -> Interest on Internal Loans | L152: 904
A153: 2025 | B153: COMCONN | C153: OpEx | D153: 140 | E153: Parks and Reserves General Districts | F153: Huntly cemetery | G153: 1CM10010-E0-1604-0000 | H153: 1604 | I153: Rates | J153: =VLOOKUP(H153,'[1]Natural Account List - Active'!A:C,3,FALSE) -> 23035 | K153: =VLOOKUP(H153,'[1]Natural Account List - Active'!A:D,4,FALSE) -> Rates - council owned properties | L153: 1711
A154: 2025 | B154: COMCONN | C154: OpEx | D154: 140 | E154: Parks and Reserves General Districts | F154: Huntly cemetery | G154: 1CM10010-E0-2900-0000 | H154: 2900 | I154: Interest on Internal Loans | J154: =VLOOKUP(H154,'[1]Natural Account List - Active'!A:C,3,FALSE) -> 32900 | K154: =VLOOKUP(H154,'[1]Natural Account List - Active'!A:D,4,FALSE) -> Interest on Internal Loans | L154: 1101
A155: 2025 | B155: COMCONN | C155: OpEx | D155: 140 | E155: Parks and Reserves General Districts | F155: Ngaruawahia cemetery | G155: 1CM10020-E0-2900-0000 | H155: 2900 | I155: Interest on Internal Loans | J155: =VLOOKUP(H155,'[1]Natural Account List - Active'!A:C,3,FALSE) -> 32900 | K155: =VLOOKUP(H155,'[1]Natural Account List - Active'!A:D,4,FALSE) -> Interest on Internal Loans | L155: 1132
A156: 2025 | B156: COMCONN | C156: OpEx | D156: 140 | E156: Parks and Reserves General Districts | F156: Raglan cemetery | G156: 1CM10030-E0-2900-0000 | H156: 2900 | I156: Interest on Internal Loans | J156: =VLOOKUP(H156,'[1]Natural Account List - Active'!A:C,3,FALSE) -> 32900 | K156: =VLOOKUP(H156,'[1]Natural Account List - Active'!A:D,4,FALSE) -> Interest on Internal Loans | L156: 226
A157: 2025 | B157: COMCONN | C157: OpEx | D157: 140 | E157: Parks and Reserves General Districts | F157: Te Mata cemetery | G157: 1CM10031-E0-2900-0000 | H157: 2900 | I157: Interest on Internal Loans | J157: =VLOOKUP(H157,'[1]Natural Account List - Active'!A:C,3,FALSE) -> 32900 | K157: =VLOOKUP(H157,'[1]Natural Account List - Active'!A:D,4,FALSE) -> Interest on Internal Loans | L157: 121
A158: 2025 | B158: COMCONN | C158: OpEx | D158: 140 | E158: Parks and Reserves General Districts | F158: Rangiriri cemetery | G158: 1CM10054-E0-2900-0000 | H158: 2900 | I158: Interest on Internal Loans | J158: =VLOOKUP(H158,'[1]Natural Account List - Active'!A:C,3,FALSE) -> 32900 | K158: =VLOOKUP(H158,'[1]Natural Account List - Active'!A:D,4,FALSE) -> Interest on Internal Loans | L158: 2910
A159: 2025 | B159: COMCONN | C159: OpEx | D159: 140 | E159: Parks and Reserves General Districts | F159: Western Districts cemetery | G159: 1CM10070-E0-1604-0000 | H159: 1604 | I159: Rates | J159: =VLOOKUP(H159,'[1]Natural Account List - Active'!A:C,3,FALSE) -> 23035 | K159: =VLOOKUP(H159,'[1]Natural Account List - Active'!A:D,4,FALSE) -> Rates - council owned properties | L159: 1396
A160: 2025 | B160: COMCONN | C160: OpEx | D160: 140 | E160: Parks and Reserves General Districts | F160: Western Districts cemetery | G160: 1CM10070-E0-1630-0000 | H160: 1630 | I160: Waikato Regional Council Rates | J160: =VLOOKUP(H160,'[1]Natural Account List - Active'!A:C,3,FALSE) -> 23036 | K160: =VLOOKUP(H160,'[1]Natural Account List - Active'!A:D,4,FALSE) -> Waikato Regional Council Rates | L160: 313
A161: 2025 | B161: COMCONN | C161: OpEx | D161: 140 | E161: Parks and Reserves General Districts | F161: Whatawhata cemetery | G161: 1CM10071-E0-2900-0000 | H161: 2900 | I161: Interest on Internal Loans | J161: =VLOOKUP(H161,'[1]Natural Account List - Active'!A:C,3,FALSE) -> 32900 | K161: =VLOOKUP(H161,'[1]Natural Account List - Active'!A:D,4,FALSE) -> Interest on Internal Loans | L161: 1603
A162: 2025 | B162: COMCONN | C162: OpEx | D162: 140 | E162: Parks and Reserves General Districts | F162: Tuakau cemetery | G162: 1CM10095-E0-2900-0000 | H162: 2900 | I162: Interest on Internal Loans | J162: =VLOOKUP(H162,'[1]Natural Account List - Active'!A:C,3,FALSE) -> 32900 | K162: =VLOOKUP(H162,'[1]Natural Account List - Active'!A:D,4,FALSE) -> Interest on Internal Loans | L162: 36697
A163: 2025 | B163: COMCONN | C163: OpEx | D163: 140 | E163: Parks and Reserves General Districts | F163: Tuakau cemetery | G163: 1CM10095-E0-1604-0000 | H163: 1604 | I163: Rates | J163: =VLOOKUP(H163,'[1]Natural Account List - Active'!A:C,3,FALSE) -> 23035 | K163: =VLOOKUP(H163,'[1]Natural Account List - Active'!A:D,4,FALSE) -> Rates - council owned properties | L163: 5330
A164: 2025 | B164: COMCONN | C164: OpEx | D164: 140 | E164: Parks and Reserves General Districts | F164: Tuakau cemetery | G164: 1CM10095-E0-1630-0000 | H164: 1630 | I164: Waikato Regional Council Rates | J164: =VLOOKUP(H164,'[1]Natural Account List - Active'!A:C,3,FALSE) -> 23036 | K164: =VLOOKUP(H164,'[1]Natural Account List - Active'!A:D,4,FALSE) -> Waikato Regional Council Rates | L164: 738
A165: 2025 | B165: COMCONN | C165: OpEx | D165: 140 | E165: Parks and Reserves General Districts | F165: Whangarata Cemetery | G165: 1CM10098-E0-1411-0000 | H165: 1411 | I165: Depreciation | J165: =VLOOKUP(H165,'[1]Natural Account List - Active'!A:C,3,FALSE) -> 20000 | K165: =VLOOKUP(H165,'[1]Natural Account List - Active'!A:D,4,FALSE) -> Depreciation | L165: 33676
A166: 2025 | B166: COMCONN | C166: OpEx | D166: 140 | E166: Parks and Reserves General Districts | F166: District Wide cemeteries | G166: 1CM15000-E0-3156-0000 | H166: 3156 | I166: Cemeteries Re-interment | J166: =VLOOKUP(H166,'[1]Natural Account List - Active'!A:C,3,FALSE) -> 16057 | K166: =VLOOKUP(H166,'[1]Natural Account List - Active'!A:D,4,FALSE) -> Cemeteries Re-interment | L166: -44446
A167: 2025 | B167: COMCONN | C167: OpEx | D167: 140 | E167: Parks and Reserves General Districts | F167: District Wide cemeteries | G167: 1CM15000-E0-3168-0000 | H167: 3168 | I167: Cemeteries - Locate Plot | J167: =VLOOKUP(H167,'[1]Natural Account List - Active'!A:C,3,FALSE) -> 16059 | K167: =VLOOKUP(H167,'[1]Natural Account List - Active'!A:D,4,FALSE) -> Cemeteries - Locate Plot | L167: -23
A168: 2025 | B168: COMCONN | C168: OpEx | D168: 140 | E168: Parks and Reserves General Districts | F168: District Wide cemeteries | G168: 1CM15000-E0-3154-0000 | H168: 3154 | I168: Cemeteries Plot - Adult | J168: =VLOOKUP(H168,'[1]Natural Account List - Active'!A:C,3,FALSE) -> 16055 | K168: =VLOOKUP(H168,'[1]Natural Account List - Active'!A:D,4,FALSE) -> Cemeteries Plot - Adult | L168: -240307
A169: 2025 | B169: COMCONN | C169: OpEx | D169: 140 | E169: Parks and Reserves General Districts | F169: District Wide cemeteries | G169: 1CM15000-E0-3151-0000 | H169: 3151 | I169: Cemeteries Ashes plot | J169: =VLOOKUP(H169,'[1]Natural Account List - Active'!A:C,3,FALSE) -> 16053 | K169: =VLOOKUP(H169,'[1]Natural Account List - Active'!A:D,4,FALSE) -> Cemeteries Ashes plot | L169: -28879
A170: 2025 | B170: COMCONN | C170: OpEx | D170: 140 | E170: Parks and Reserves General Districts | F170: District Wide cemeteries | G170: 1CM15000-E0-3155-0000 | H170: 3155 | I170: Cemeteries plot - Child | J170: =VLOOKUP(H170,'[1]Natural Account List - Active'!A:C,3,FALSE) -> 16056 | K170: =VLOOKUP(H170,'[1]Natural Account List - Active'!A:D,4,FALSE) -> Cemeteries plot - Child | L170: -2501
A171: 2025 | B171: COMCONN | C171: OpEx | D171: 140 | E171: Parks and Reserves General Districts | F171: District Wide cemeteries | G171: 1CM15000-E0-3153-0000 | H171: 3153 | I171: Cemeteries Interment | J171: =VLOOKUP(H171,'[1]Natural Account List - Active'!A:C,3,FALSE) -> 16054 | K171: =VLOOKUP(H171,'[1]Natural Account List - Active'!A:D,4,FALSE) -> Cemeteries Interment | L171: -184129
A172: 2025 | B172: COMCONN | C172: OpEx | D172: 140 | E172: Parks and Reserves General Districts | F172: District Wide cemeteries | G172: 1CM15000-E0-3167-0000 | H172: 3167 | I172: Cemeteries - Memorial Permit | J172: =VLOOKUP(H172,'[1]Natural Account List - Active'!A:C,3,FALSE) -> 16058 | K172: =VLOOKUP(H172,'[1]Natural Account List - Active'!A:D,4,FALSE) -> Cemeteries - Memorial Permit | L172: -532
A173: 2025 | B173: COMCONN | C173: OpEx | D173: 140 | E173: Parks and Reserves General Districts | F173: District Wide cemeteries | G173: 1CM15000-E0-3150-0000 | H173: 3150 | I173: Cemeteries Ashes Interment | J173: =VLOOKUP(H173,'[1]Natural Account List - Active'!A:C,3,FALSE) -> 16052 | K173: =VLOOKUP(H173,'[1]Natural Account List - Active'!A:D,4,FALSE) -> Cemeteries Ashes Interment | L173: -21461
A174: 2025 | B174: COMCONN | C174: OpEx | D174: 140 | E174: Parks and Reserves General Districts | F174: District Wide cemeteries | G174: 1CM16000-E0-1490-0000 | H174: 1490 | I174: Repairs and Maintenance | J174: =VLOOKUP(H174,'[1]Natural Account List - Active'!A:C,3,FALSE) -> 25401 | K174: =VLOOKUP(H174,'[1]Natural Account List - Active'!A:D,4,FALSE) -> Repairs and Maintenance | L174: 407680 | M174: Cost to maintain cemeteries and includes Opex for new cemeteries at whangarata. | N174: 1CM10000E-1490 - District Wide cemeteries - Repairs and Maintenance
A175: 2025 | B175: COMCONN | C175: OpEx | D175: 140 | E175: Parks and Reserves General Districts | F175: District Wide cemeteries | G175: 1CM16000-E0-1688-0000 | H175: 1688 | I175: General Expenses | J175: =VLOOKUP(H175,'[1]Natural Account List - Active'!A:C,3,FALSE) -> 25123 | K175: =VLOOKUP(H175,'[1]Natural Account List - Active'!A:D,4,FALSE) -> General Expenses | L175: 8751 | N175: 1CM10000E-1688 - District Wide cemeteries - General Expenses
A176: 2025 | B176: COMCONN | C176: OpEx | D176: 140 | E176: Parks and Reserves General Districts | F176: District Wide cemeteries | G176: 1CM16000-E0-1405-0000 | H176: 1405 | I176: Water | J176: =VLOOKUP(H176,'[1]Natural Account List - Active'!A:C,3,FALSE) -> 23032 | K176: =VLOOKUP(H176,'[1]Natural Account List - Active'!A:D,4,FALSE) -> Water | L176: 1870 | N176: 1CM10000E-1405 - District Wide cemeteries - Water
A177: 2025 | B177: COMCONN | C177: OpEx | D177: 140 | E177: Parks and Reserves General Districts | F177: District Wide cemeteries | G177: 1CM16000-E0-1407-0000 | H177: 1407 | I177: Burials | J177: =VLOOKUP(H177,'[1]Natural Account List - Active'!A:C,3,FALSE) -> 25102 | K177: =VLOOKUP(H177,'[1]Natural Account List - Active'!A:D,4,FALSE) -> Burials | L177: 151796 | M177: Increased to cover costs asssociayed with burials. Cost will be recovered by burial fees. | N177: 1CM10000E-1407 - District Wide cemeteries - Burials
A178: 2025 | B178: COMCONN | C178: OpEx | D178: 140 | E178: Parks and Reserves General Districts | F178: Raglan cemetery | G178: 1CM16030-E0-1411-0000 | H178: 1411 | I178: Depreciation | J178: =VLOOKUP(H178,'[1]Natural Account List - Active'!A:C,3,FALSE) -> 20000 | K178: =VLOOKUP(H178,'[1]Natural Account List - Active'!A:D,4,FALSE) -> Depreciation | L178: 278
A179: 2025 | B179: COMCONN | C179: OpEx | D179: 140 | E179: Parks and Reserves General Districts | F179: Te Mata cemetery | G179: 1CM16031-E0-1411-0000 | H179: 1411 | I179: Depreciation | J179: =VLOOKUP(H179,'[1]Natural Account List - Active'!A:C,3,FALSE) -> 20000 | K179: =VLOOKUP(H179,'[1]Natural Account List - Active'!A:D,4,FALSE) -> Depreciation | L179: 144
A180: 2025 | B180: COMCONN | C180: OpEx | D180: 140 | E180: Parks and Reserves General Districts | F180: Rangiriri cemetery | G180: 1CM16054-E0-1411-0000 | H180: 1411 | I180: Depreciation | J180: =VLOOKUP(H180,'[1]Natural Account List - Active'!A:C,3,FALSE) -> 20000 | K180: =VLOOKUP(H180,'[1]Natural Account List - Active'!A:D,4,FALSE) -> Depreciation | L180: 1146
A181: 2025 | B181: COMCONN | C181: OpEx | D181: 140 | E181: Parks and Reserves General Districts | F181: Tuakau cemetery | G181: 1CM16095-E0-1411-0000 | H181: 1411 | I181: Depreciation | J181: =VLOOKUP(H181,'[1]Natural Account List - Active'!A:C,3,FALSE) -> 20000 | K181: =VLOOKUP(H181,'[1]Natural Account List - Active'!A:D,4,FALSE) -> Depreciation | L181: 12678
A182: 2025 | B182: COMCONN | C182: OpEx | D182: 140 | E182: Parks and Reserves General Districts | F182: Huntly court | G182: 1CT10010-E0-1411-0000 | H182: 1411 | I182: Depreciation | J182: =VLOOKUP(H182,'[1]Natural Account List - Active'!A:C,3,FALSE) -> 20000 | K182: =VLOOKUP(H182,'[1]Natural Account List - Active'!A:D,4,FALSE) -> Depreciation | L182: 2981
A183: 2025 | B183: COMCONN | C183: OpEx | D183: 140 | E183: Parks and Reserves General Districts | F183: District Wide courts | G183: 1CT16000-E0-1490-0000 | H183: 1490 | I183: Repairs and Maintenance | J183: =VLOOKUP(H183,'[1]Natural Account List - Active'!A:C,3,FALSE) -> 25401 | K183: =VLOOKUP(H183,'[1]Natural Account List - Active'!A:D,4,FALSE) -> Repairs and Maintenance | L183: 36865 | M183: Actual cost to maintain to the current Level of service | N183: 1CT10000E-1490 - District Wide courts - Repairs and Maintenance
A184: 2025 | B184: COMCONN | C184: OpEx | D184: 140 | E184: Parks and Reserves General Districts | F184: District Wide eco enhancements | G184: 1EE16000-E0-1492-0000 | H184: 1492 | I184: R&M Grounds | J184: =VLOOKUP(H184,'[1]Natural Account List - Active'!A:C,3,FALSE) -> 25403 | K184: =VLOOKUP(H184,'[1]Natural Account List - Active'!A:D,4,FALSE) -> R&M Grounds | L184: 162638 | M184: Budget increased to ensure that ecological restoration requirements are met and meet the dedicated levels of service outlined in the Parks AMPs | N184: 1EE10000E-1492 - District Wide Eco District Wide eco enhancements - operational Projects
A185: 2025 | B185: COMCONN | C185: OpEx | D185: 140 | E185: Parks and Reserves General Districts | F185: District Wide eco enhancements | G185: 1EE16000-E0-1490-0000 | H185: 1490 | I185: Repairs and Maintenance | J185: =VLOOKUP(H185,'[1]Natural Account List - Active'!A:C,3,FALSE) -> 25401 | K185: =VLOOKUP(H185,'[1]Natural Account List - Active'!A:D,4,FALSE) -> Repairs and Maintenance | L185: 66666 | M185: Contractual maintenance costs | N185: 1EE10000E-1490 - District Wide eco enhancements - Repairs and Maintenance
A186: 2025 | B186: COMCONN | C186: OpEx | D186: 140 | E186: Parks and Reserves General Districts | F186: Tamahere esplanade reserve | G186: 1ER10046-E0-2900-0000 | H186: 2900 | I186: Interest on Internal Loans | J186: =VLOOKUP(H186,'[1]Natural Account List - Active'!A:C,3,FALSE) -> 32900 | K186: =VLOOKUP(H186,'[1]Natural Account List - Active'!A:D,4,FALSE) -> Interest on Internal Loans | L186: 1949
A187: 2025 | B187: COMCONN | C187: OpEx | D187: 140 | E187: Parks and Reserves General Districts | F187: Ngaruawahia heritage | G187: 1HE10020-E0-1411-0000 | H187: 1411 | I187: Depreciation | J187: =VLOOKUP(H187,'[1]Natural Account List - Active'!A:C,3,FALSE) -> 20000 | K187: =VLOOKUP(H187,'[1]Natural Account List - Active'!A:D,4,FALSE) -> Depreciation | L187: 657
A188: 2025 | B188: COMCONN | C188: OpEx | D188: 140 | E188: Parks and Reserves General Districts | F188: Puketerini lake | G188: 1LA10012-E0-3410-0000 | H188: 3410 | I188: Lake Puketirini key | J188: =VLOOKUP(H188,'[1]Natural Account List - Active'!A:C,3,FALSE) -> 16003 | K188: =VLOOKUP(H188,'[1]Natural Account List - Active'!A:D,4,FALSE) -> Lake Puketirini key | L188: -4261
A189: 2025 | B189: COMCONN | C189: OpEx | D189: 140 | E189: Parks and Reserves General Districts | F189: Lake Kainui | G189: 1LA10024-E0-1411-0000 | H189: 1411 | I189: Depreciation | J189: =VLOOKUP(H189,'[1]Natural Account List - Active'!A:C,3,FALSE) -> 20000 | K189: =VLOOKUP(H189,'[1]Natural Account List - Active'!A:D,4,FALSE) -> Depreciation | L189: 7897
A190: 2025 | B190: COMCONN | C190: OpEx | D190: 140 | E190: Parks and Reserves General Districts | F190: Lake Kainui | G190: 1LA10024-E0-3411-0000 | H190: 3411 | I190: Lake Kainui Keys | J190: =VLOOKUP(H190,'[1]Natural Account List - Active'!A:C,3,FALSE) -> 16004 | K190: =VLOOKUP(H190,'[1]Natural Account List - Active'!A:D,4,FALSE) -> Lake Kainui Keys | L190: -7096
A191: 2025 | B191: COMCONN | C191: OpEx | D191: 140 | E191: Parks and Reserves General Districts | F191: District Wide lakes | G191: 1LA16000-E0-1490-0000 | H191: 1490 | I191: Repairs and Maintenance | J191: =VLOOKUP(H191,'[1]Natural Account List - Active'!A:C,3,FALSE) -> 25401 | K191: =VLOOKUP(H191,'[1]Natural Account List - Active'!A:D,4,FALSE) -> Repairs and Maintenance | L191: 414491 | M191: Current contract costs for the maintenance of lakes. Increased in year 4 for the maintenance of the Lake in the lake side development. | N191: 1LA10000E-1490 - District Wide lakes - Repairs and Maintenance
A192: 2025 | B192: COMCONN | C192: OpEx | D192: 140 | E192: Parks and Reserves General Districts | F192: District Wide neighbourhood parks | G192: 1NP10000-E0-2900-0000 | H192: 2900 | I192: Interest on Internal Loans | J192: =VLOOKUP(H192,'[1]Natural Account List - Active'!A:C,3,FALSE) -> 32900 | K192: =VLOOKUP(H192,'[1]Natural Account List - Active'!A:D,4,FALSE) -> Interest on Internal Loans | L192: 21461
A193: 2025 | B193: COMCONN | C193: OpEx | D193: 140 | E193: Parks and Reserves General Districts | F193: District Wide neighbourhood parks | G193: 1NP10000-E0-1411-0000 | H193: 1411 | I193: Depreciation | J193: =VLOOKUP(H193,'[1]Natural Account List - Active'!A:C,3,FALSE) -> 20000 | K193: =VLOOKUP(H193,'[1]Natural Account List - Active'!A:D,4,FALSE) -> Depreciation | L193: 5107
A194: 2025 | B194: COMCONN | C194: OpEx | D194: 140 | E194: Parks and Reserves General Districts | F194: Raglan neighbourhood parks | G194: 1NP10030-E0-1411-0000 | H194: 1411 | I194: Depreciation | J194: =VLOOKUP(H194,'[1]Natural Account List - Active'!A:C,3,FALSE) -> 20000 | K194: =VLOOKUP(H194,'[1]Natural Account List - Active'!A:D,4,FALSE) -> Depreciation | L194: 3571
A195: 2025 | B195: COMCONN | C195: OpEx | D195: 140 | E195: Parks and Reserves General Districts | F195: Mercer neighbourhood parks | G195: 1NP10082-E0-2900-0000 | H195: 2900 | I195: Interest on Internal Loans | J195: =VLOOKUP(H195,'[1]Natural Account List - Active'!A:C,3,FALSE) -> 32900 | K195: =VLOOKUP(H195,'[1]Natural Account List - Active'!A:D,4,FALSE) -> Interest on Internal Loans | L195: 58
A196: 2025 | B196: COMCONN | C196: OpEx | D196: 140 | E196: Parks and Reserves General Districts | F196: Pokeno neighbourhood parks | G196: 1NP10090-E0-1411-0000 | H196: 1411 | I196: Depreciation | J196: =VLOOKUP(H196,'[1]Natural Account List - Active'!A:C,3,FALSE) -> 20000 | K196: =VLOOKUP(H196,'[1]Natural Account List - Active'!A:D,4,FALSE) -> Depreciation | L196: 2501
A197: 2025 | B197: COMCONN | C197: OpEx | D197: 140 | E197: Parks and Reserves General Districts | F197: Tuakau neighbourhood parks | G197: 1NP10095-E0-1411-0000 | H197: 1411 | I197: Depreciation | J197: =VLOOKUP(H197,'[1]Natural Account List - Active'!A:C,3,FALSE) -> 20000 | K197: =VLOOKUP(H197,'[1]Natural Account List - Active'!A:D,4,FALSE) -> Depreciation | L197: 31861
A198: 2025 | B198: COMCONN | C198: OpEx | D198: 140 | E198: Parks and Reserves General Districts | F198: Tuakau neighbourhood parks | G198: 1NP10095-E0-2900-0000 | H198: 2900 | I198: Interest on Internal Loans | J198: =VLOOKUP(H198,'[1]Natural Account List - Active'!A:C,3,FALSE) -> 32900 | K198: =VLOOKUP(H198,'[1]Natural Account List - Active'!A:D,4,FALSE) -> Interest on Internal Loans | L198: 39611
A199: 2025 | B199: COMCONN | C199: OpEx | D199: 140 | E199: Parks and Reserves General Districts | F199: Pokeno neighbourhood parks | G199: 1NP16090-E0-1411-0000 | H199: 1411 | I199: Depreciation | J199: =VLOOKUP(H199,'[1]Natural Account List - Active'!A:C,3,FALSE) -> 20000 | K199: =VLOOKUP(H199,'[1]Natural Account List - Active'!A:D,4,FALSE) -> Depreciation | L199: 39703
A200: 2025 | B200: COMCONN | C200: OpEx | D200: 140 | E200: Parks and Reserves General Districts | F200: Tuakau neighbourhood parks | G200: 1NP16095-E0-1411-0000 | H200: 1411 | I200: Depreciation | J200: =VLOOKUP(H200,'[1]Natural Account List - Active'!A:C,3,FALSE) -> 20000 | K200: =VLOOKUP(H200,'[1]Natural Account List - Active'!A:D,4,FALSE) -> Depreciation | L200: 45854
... 6094 more rows

Sheet 2021-31 pvt (hidden)
A3: Sum of 2025 | B3: Column Labels
A4: Row Labels | B4: 2025 | C4: 2026 | D4: 2027 | E4: (blank) | F4: Grand Total
A5: 120 | B5: 243827 | C5: 343940 | D5: 451170 | F5: 1038937
A6: ACC levies | B6: 1338 | C6: 1364 | D6: 1394 | F6: 4096
A7: Catering Costs | B7: 1060 | C7: 1079 | D7: 1099 | F7: 3238
A8: Conferences | B8: 3181 | C8: 3238 | D8: 3296 | F8: 9715
A9: Consulting | B9: 21203 | C9: 21585 | D9: 21974 | F9: 64762
A10: Depreciation | B10: 49595 | C10: 50884 | D10: 52258 | F10: 152737
A11: FBT | B11: 106 | C11: 108 | D11: 110 | F11: 324
A12: General Expenses | B12: 1626 | C12: 1670 | D12: 1714 | F12: 5010
A13: Interest on Internal Loans | B13: 340531 | C13: 440320 | D13: 546082 | F13: 1326933
A14: Kiwisaver | B14: 14864 | C14: 15161 | D14: 15494 | F14: 45519
A15: Legal fees | B15: 31805 | C15: 32378 | D15: 32960 | F15: 97143
A16: Mileage Reimbursement | B16: 795 | C16: 809 | D16: 824 | F16: 2428
A17: Miscellaneous Revenue | B17: -1060168 | C17: -1079251 | D17: -1098677 | F17: -3238096
A18: Rates - council owned properties | B18: 3806 | C18: 4072 | D18: 4365 | F18: 12243
A19: Repairs and Maintenance | B19: 206733 | C19: 210454 | D19: 214242 | F19: 631429
A20: Salaries and wages - permanent | B20: 495450 | C20: 505359 | D20: 516477 | F20: 1517286
A21: Surveying Consultants | B21: 38166 | C21: 38853 | D21: 39552 | F21: 116571
A22: Training Costs | B22: 3976 | C22: 4047 | D22: 4120 | F22: 12143
A23: Valuation fees | B23: 76332 | C23: 77706 | D23: 79105 | F23: 233143
A24: Vehicles | B24: 13079 | C24: 13746 | D24: 14414 | F24: 41239
A25: Waikato Regional Council Rates | B25: 349 | C25: 358 | D25: 367 | F25: 1074
A27: 121 | B27: -463273 | C27: -433284 | D27: -481240 | F27: -1377797
A28: ACC levies | B28: 3949 | C28: 4028 | D28: 4117 | F28: 12094
A29: Catering Costs | B29: 636 | C29: 648 | D29: 659 | F29: 1943
A30: Conferences | B30: 5301 | C30: 5396 | D30: 5493 | F30: 16190
A31: Consulting | B31: 15903 | C31: 16189 | D31: 16480 | F31: 48572
A32: FBT | B32: 3273 | C32: 3332 | D32: 3392 | F32: 9997
A33: General Expenses | B33: 6506 | C33: 6681 | D33: 6855 | F33: 20042
A34: Hardware/Fittings/Tools | B34: 530 | C34: 540 | D34: 549 | F34: 1619
A35: Kiwisaver | B35: 43877 | C35: 44755 | D35: 45740 | F35: 134372
A36: Membership Expenses | B36: 3817 | C36: 3885 | D36: 3955 | F36: 11657
A37: Mileage Reimbursement | B37: 10888 | C37: 11084 | D37: 11283 | F37: 33255
A38: Miscellaneous Revenue | B38: -81374 | C38: -82839 | D38: -84330 | F38: -248543
A39: Salaries and wages - permanent | B39: 1462581 | C39: 1491833 | D39: 1524653 | F39: 4479067
A40: Software Maintenance | B40: 28323 | C40: 28833 | D40: 29352 | F40: 86508
A41: Subscriptions | B41: 318 | C41: 324 | D41: 330 | F41: 972
A42: TD Cross Charging - Projects Team | B42: -2021185 | C42: -2023255 | D42: -2106957 | F42: -6151397
A43: Training Costs | B43: 22264 | C43: 22664 | D43: 23072 | F43: 68000
A44: Uniforms | B44: 1654 | C44: 1684 | D44: 1714 | F44: 5052
A45: Vehicles | B45: 28406 | C45: 29855 | D45: 31304 | F45: 89565
A46: Zero Harm | B46: 1060 | C46: 1079 | D46: 1099 | F46: 3238
A48: 122 | B48: 526168 | C48: 536774 | D48: 526328 | F48: 1589270
A49: ACC levies | B49: 931 | C49: 950 | D49: 971 | F49: 2852
A50: Audit fees - financial statements | B50: 106017 | C50: 107925 | D50: 109868 | F50: 323810
A51: Cafeteria | B51: 1060 | C51: 1079 | D51: 1099 | F51: 3238
A52: Catering Costs | B52: 265 | C52: 270 | D52: 275 | F52: 810
A53: Consulting | B53: 31805 | C53: 32378 | D53: 10987 | F53: 75170
A54: FBT | B54: 1060 | C54: 1079 | D54: 1099 | F54: 3238
A55: Kiwisaver | B55: 10348 | C55: 10555 | D55: 10787 | F55: 31690
A56: Plant Hire | B56: 1060 | C56: 1079 | D56: 1099 | F56: 3238
A57: Salaries and wages - permanent | B57: 344936 | C57: 351835 | D57: 359576 | F57: 1056347
A58: Subscriptions | B58: 5301 | C58: 5396 | D58: 5493 | F58: 16190
A59: Training Costs | B59: 10602 | C59: 10793 | D59: 10987 | F59: 32382
A60: Vehicles | B60: 12783 | C60: 13435 | D60: 14087 | F60: 40305
A62: 123 | B62: 817601 | C62: 833617 | D62: 883135 | F62: 2534353
A63: ACC levies | B63: 1497 | C63: 1527 | D63: 1560 | F63: 4584
A64: Catering Costs | B64: 1060 | C64: 1079 | D64: 1099 | F64: 3238
A65: Conferences | B65: 7951 | C65: 8094 | D65: 8240 | F65: 24285
A66: Consulting | B66: 148423 | C66: 151095 | D66: 153815 | F66: 453333
A67: FBT | B67: 212 | C67: 216 | D67: 220 | F67: 648
A68: General Expenses | B68: 1626 | C68: 1670 | D68: 1714 | F68: 5010
A69: Kiwisaver | B69: 16632 | C69: 16964 | D69: 17337 | F69: 50933
A70: Membership Expenses | B70: 2601 | C70: 2647 | D70: 2695 | F70: 7943
A71: Mileage Reimbursement | B71: 838 | C71: 853 | D71: 868 | F71: 2559
A72: Salaries and wages - permanent | B72: 554386 | C72: 565474 | D72: 577914 | F72: 1697774
A73: Software Support | B73: 37106 | C73: 37774 | D73: 38454 | F73: 113334
A74: Training Costs | B74: 4962 | C74: 5051 | D74: 5142 | F74: 15155
A75: Valuation fees | B75: 36046 | C75: 36695 | D75: 69381 | F75: 142122
A76: Vehicles | B76: 4261 | C76: 4478 | D76: 4696 | F76: 13435
A78: 125 | B78: -56918 | C78: -61194 | D78: -65657 | F78: -183769
A79: Interest on Internal Loans | B79: 68 | C79: 68 | D79: 67 | F79: 203
A80: Interest on Targeted Rate Reserves | B80: -35215 | C80: -38903 | D80: -42784 | F80: -116902
A81: Tamahere Contributions | B81: -21771 | C81: -22359 | D81: -22940 | F81: -67070
A83: 131 | B83: 2561 | C83: 2681 | D83: 2804 | F83: 8046
A84: Depreciation | B84: 2561 | C84: 2681 | D84: 2804 | F84: 8046
A86: 133 | B86: 13011 | C86: 13364 | D86: 13707 | F86: 40082
A87: ACC levies | B87: 4025 | C87: 4105 | D87: 4195 | F87: 12325
A88: Advertising | B88: 2169 | C88: 2227 | D88: 2285 | F88: 6681
A89: Catering Costs | B89: 1699 | C89: 1745 | D89: 1790 | F89: 5234
A90: Consulting | B90: 47686 | C90: 48545 | D90: 49419 | F90: 145650
A91: FBT | B91: 7701 | C91: 7909 | D91: 8115 | F91: 23725
A92: General Expenses | B92: 18433 | C92: 18930 | D92: 19422 | F92: 56785
A93: Kiwisaver | B93: 44725 | C93: 45613 | D93: 46609 | F93: 136947
A94: Mileage Reimbursement | B94: 542 | C94: 557 | D94: 571 | F94: 1670
A95: Overheads | B95: 804258 | C95: 829553 | D95: 833586 | F95: 2467397
A96: Overheads (Mgmt) | B96: 25655 | C96: 26117 | D96: 26730 | F96: 78502
A97: Property Management | B97: -2720113 | C97: -2793827 | D97: -2848819 | F97: -8362759
A98: Property Rental | B98: 105473 | C98: 113857 | D98: 120903 | F98: 340233
A99: Salaries and wages - permanent | B99: 1490840 | C99: 1520438 | D99: 1553648 | F99: 4564926
A100: Subscriptions | B100: 16819 | C100: 17273 | D100: 17722 | F100: 51814
A101: Training Costs | B101: 32311 | C101: 33183 | D101: 34046 | F101: 99540
A102: Uniforms | B102: 5421 | C102: 5568 | D102: 5712 | F102: 16701
A103: Vehicles | B103: 117364 | C103: 123352 | D103: 129340 | F103: 370056
A104: Zero Harm | B104: 8003 | C104: 8219 | D104: 8433 | F104: 24655
A106: 135 | B106: 59405 | C106: 61313 | D106: 62947 | F106: 183665
A107: Depreciation | B107: 34829 | C107: 36915 | D107: 39073 | F107: 110817
A108: Interest on Internal Loans | B108: 59405 | C108: 61313 | D108: 62947 | F108: 183665
A109: SCADA | B109: -34829 | C109: -36915 | D109: -39073 | F109: -110817
A111: 136 | B111: -1 | C111: 0 | D111: 0 | F111: -1
A112: ACC levies | B112: 75 | C112: 76 | D112: 78 | F112: 229
A113: Consulting | B113: 487677 | C113: 496455 | D113: 505391 | F113: 1489523
A114: Insurance premiums - other | B114: 126873 | C114: 129157 | D114: 131482 | F114: 387512
A115: Kiwisaver | B115: 829 | C115: 846 | D115: 864 | F115: 2539
A116: Overheads | B116: 1300275 | C116: 1342710 | D116: 1347058 | F116: 3990043
A117: Overheads (Mgmt) | B117: 45301 | C117: 46115 | D117: 47200 | F117: 138616
A118: Property Rental | B118: 186181 | C118: 200978 | D118: 213417 | F118: 600576
A119: Salaries and wages - permanent | B119: 27633 | C119: 28186 | D119: 28806 | F119: 84625
A120: Utility Ops | B120: -2174845 | C120: -2244523 | D120: -2274296 | F120: -6693664
A122: 137 | B122: 0 | C122: -2 | D122: 1 | F122: -1
A123: Overheads | B123: 517913 | C123: 534223 | D123: 536778 | F123: 1588914
A124: Overheads (Mgmt) | B124: 16614 | C124: 16913 | D124: 17311 | F124: 50838
A125: Property Rental | B125: 68324 | C125: 73753 | D125: 78319 | F125: 220396
A126: Utility Tech | B126: -602851 | C126: -624891 | D126: -632407 | F126: -1860149
A128: 140 | B128: 10511581 | C128: 11183660 | D128: 11618060 | F128: 33313301
A129: Building Security/Fire Alarms | B129: 18707 | C129: 19212 | D129: 19711 | F129: 57630
A130: Burials | B130: 151796 | C130: 155894 | D130: 159948 | F130: 467638
A131: Cemeteries - Locate Plot | B131: -23 | C131: -23 | D131: -24 | F131: -70
A132: Cemeteries - Memorial Permit | B132: -532 | C132: -541 | D132: -551 | F132: -1624
A133: Cemeteries Ashes Interment | B133: -21461 | C133: -21847 | D133: -22241 | F133: -65549
A134: Cemeteries Ashes plot | B134: -28879 | C134: -29399 | D134: -29928 | F134: -88206
A135: Cemeteries Interment | B135: -184129 | C135: -187443 | D135: -190817 | F135: -562389
A136: Cemeteries Plot - Adult | B136: -240307 | C136: -244632 | D136: -249036 | F136: -733975
A137: Cemeteries plot - Child | B137: -2501 | C137: -2546 | D137: -2592 | F137: -7639
A138: Cemeteries Re-interment | B138: -44446 | C138: -45246 | D138: -46061 | F138: -135753
A139: Consulting | B139: 158205 | C139: 143041 | D139: 139023 | F139: 440269
A140: Depreciation | B140: 3685895 | C140: 3996349 | D140: 4196603 | F140: 11878847
A141: Development contributions recognised | B141: -1833163 | C141: -1882658 | D141: -1931606 | F141: -5647427
A142: DW Community Facilties DCL | B142: -1427649 | C142: -1466192 | D142: -1504313 | F142: -4398154
A143: Electricity | B143: 15814 | C143: 16099 | D143: 16389 | F143: 48302
A144: Garden Maintenance | B144: 845720 | C144: 835148 | D144: 856862 | F144: 2537730
A145: General Expenses | B145: 8751 | C145: 8987 | D145: 9221 | F145: 26959
A146: General Fees & Charges | B146: -2391 | C146: -2391 | D146: -2391 | F146: -7173
A147: Insurance premiums - other | B147: 46711 | C147: 47972 | D147: 49219 | F147: 143902
A148: Interest on Council Reserves | B148: -84631 | C148: -91847 | D148: -99266 | F148: -275744
A149: Interest on DC Reserves | B149: 404578 | C149: 502405 | D149: 467360 | F149: 1374343
A150: Interest on Internal Loans | B150: 780960 | C150: 1011973 | D150: 1180430 | F150: 2973363
A151: Laboratory testing | B151: 97583 | C151: 100218 | D151: 102823 | F151: 300624
A152: Lake Kainui Keys | B152: -7096 | C152: -7096 | D152: -7096 | F152: -21288
A153: Lake Puketirini key | B153: -4261 | C153: -4261 | D153: -4261 | F153: -12783
A154: Lease rental income | B154: -213862 | C154: -219472 | D154: -225020 | F154: -658354
A155: Notable Tree Maintenance | B155: 27106 | C155: 27838 | D155: 28562 | F155: 83506
A156: Pest control | B156: 54213 | C156: 55677 | D156: 57124 | F156: 167014
A157: Pest plant spraying | B157: 49884 | C157: 51231 | D157: 52563 | F157: 153678
A158: Plants | B158: 23149 | C158: 23774 | D158: 24392 | F158: 71315
A159: Property Management | B159: 560342 | C159: 575528 | D159: 586857 | F159: 1722727
A160: R&M Contractors | B160: 520443 | C160: 534495 | D160: 548392 | F160: 1603330
A161: R&M Grounds | B161: 704766 | C161: 723796 | D161: 742614 | F161: 2171176
A162: R&M Mowing | B162: 1680652 | C162: 1726029 | D162: 1770906 | F162: 5177587
A163: Raglan Aerodrome fees | B163: -34831 | C163: -34985 | D163: -35137 | F163: -104953
A164: Rates - council owned properties | B164: 84269 | C164: 90707 | D164: 97875 | F164: 272851
A165: Refuse Bags/Bins | B165: 443210 | C165: 455177 | D165: 467012 | F165: 1365399
A166: Repairs and Maintenance | B166: 3576324 | C166: 3684576 | D166: 3768378 | F166: 11029278
A167: Resource Consent Consultants | B167: 6237 | C167: 6405 | D167: 6572 | F167: 19214
A168: Resource Consents | B168: 7563 | C168: 7767 | D168: 7969 | F168: 23299
A169: Traffic Management | B169: 103004 | C169: 105785 | D169: 108536 | F169: 317325
A170: Tree Maintenance | B170: 563813 | C170: 495521 | D170: 479843 | F170: 1539177
A171: Waikato Regional Council Rates | B171: 8365 | C171: 8582 | D171: 8798 | F171: 25745
A172: Water | B172: 13683 | C172: 14053 | D172: 14418 | F172: 42154
A174: 141 | B174: 1085783 | C174: 1223156 | D174: 1162341 | F174: 3471280
A175: Aquatic Centre Contract | B175: 614439 | C175: 631029 | D175: 647436 | F175: 1892904
A176: Building Security/Fire Alarms | B176: 9702 | C176: 9964 | D176: 10223 | F176: 29889
A177: Consulting | C177: 45857 | F177: 45857
A178: Depreciation | B178: 189452 | C178: 186572 | D178: 216302 | F178: 592326
A179: Electricity | B179: 61538 | C179: 62646 | D179: 63774 | F179: 187958
A180: General Expenses | B180: 7501 | C180: 77025 | D180: 7904 | F180: 92430
A181: Insurance premiums - other | B181: 16306 | C181: 16746 | D181: 17182 | F181: 50234
A182: Interest on Internal Loans | B182: 2633 | C182: 2668 | D182: 2686 | F182: 7987
A183: Property Management | B183: 48961 | C183: 50289 | D183: 51277 | F183: 150527
A184: Rate Remission Grants | B184: 1282 | C184: 1282 | D184: 1282 | F184: 3846
A185: Rates - council owned properties | B185: 10834 | C185: 12000 | D185: 13307 | F185: 36141
A186: Rates - other targeted | B186: -47569 | C186: -48237 | D186: -48904 | F186: -144710
A187: Repairs and Maintenance | B187: 98082 | C187: 100732 | D187: 103350 | F187: 302164
A188: Water | B188: 72622 | C188: 74583 | D188: 76522 | F188: 223727
A190: 143 | B190: 1754979 | C190: 1802245 | D190: 1844142 | F190: 5401366
A191: Cleaning Contract | B191: 512853 | C191: 526700 | D191: 540394 | F191: 1579947
A192: Depreciation | B192: 182942 | C192: 187699 | D192: 192767 | F192: 563408
A193: Electricity | B193: 20207 | C193: 20571 | D193: 20941 | F193: 61719
A194: Insurance premiums - other | B194: 18499 | C194: 18998 | D194: 19492 | F194: 56989
A195: Interest on Internal Loans | B195: 23058 | C195: 23346 | D195: 23487 | F195: 69891
A196: Plant Hire | B196: 43650 | C196: 44829 | D196: 45994 | F196: 134473
A197: Property Management | B197: 783392 | C197: 804624 | D197: 820459 | F197: 2408475
A198: R&M General | B198: 14965 | C198: 15369 | D198: 15769 | F198: 46103
A199: Rates - council owned properties | B199: 6432 | C199: 7107 | D199: 7859 | F199: 21398
A200: Repairs and Maintenance | B200: 129027 | C200: 132510 | D200: 135955 | F200: 397492
A201: Water | B201: 19954 | C201: 20492 | D201: 21025 | F201: 61471
A203: 144 | B203: 138979 | C203: 141499 | D203: 149063 | F203: 429541
A204: ACC levies | B204: 189 | C204: 192 | D204: 197 | F204: 578
A205: Cattle Trading Expenses | B205: 108426 | C205: 111353 | D205: 114248 | F205: 334027
A206: Cattle Trading income | B206: -152149 | C206: -156257 | D206: -160320 | F206: -468726
A207: Depreciation | B207: 32731 | C207: 32731 | D207: 38934 | F207: 104396
A208: Electricity | B208: 2650 | C208: 2698 | D208: 2747 | F208: 8095
A209: Fuel & Oil | B209: 3711 | C209: 3777 | D209: 3845 | F209: 11333
A210: Insurance premiums - other | B210: 4996 | C210: 5131 | D210: 5265 | F210: 15392
A211: Interest on Council Reserves | B211: -10807 | C211: -11724 | D211: -12619 | F211: -35150
A212: Interest on Internal Loans | B212: 1461 | C212: 1466 | D212: 1461 | F212: 4388
A213: Kiwisaver | B213: 2097 | C213: 2139 | D213: 2186 | F213: 6422
A214: Lease rental income | B214: -18606 | C214: -19108 | D214: -19605 | F214: -57319
A215: Overheads | B215: 40547 | C215: 41917 | D215: 41994 | F215: 124458
... 1521 more rows

Sheet ATTACHMENT 6
A2: Attachment 6 - Operational Expenditure and Variances to LTP 2021 -2031 | G2: Legend: | H2: Uncontrollable costs
H3: Breakdown of figure immediately above
A5: CC | B5: OPERATIONAL COSTS | C5: LTP 2021 - 2031 | F5: LTP 2024 - 2034 | P5: Increase (decrease) from LTP 2021 - 2031 | S5: COMMENTS
B6: ACTIVITY | C6: 2024/2025 | D6: 2025/2026 | E6: 2026/2027 | F6: Year 2024/25 | G6: Year 2025/26 | H6: Year 2026/27 | I6: Year 2027/28 | J6: Year 2028/29 | K6: Year 2029/30 | L6: Year 2030/31 | M6: Year 2031/32 | N6: Year 2032/33 | O6: Year 2033/34 | P6: 2024/2025 | Q6: 2025/2026 | R6: 2026/2027
A7: 3WATERS
A9: 1250 | B9: Tamahere SP Drainage
B10: General Expenses | C10: 0 | D10: 0 | E10: 0 | F10: 50000 | G10: 0 | H10: 0 | I10: 0 | J10: 0 | K10: 0 | L10: 0 | M10: 0 | N10: 0 | O10: 0 | P10: =F10-C10 -> 50000 | Q10: =G10-D10 -> 0 | R10: =H10-E10 -> 0 | S10: Consultancy and miscellaneous costs for Tamahere specific projects, disputes on land drainage ownership with WRC
A12: 1360 | B12: Waters Services Management
B13: ACC levies | C13: 75 | D13: 76 | E13: 78 | F13: 1971.54 | G13: 2012.94234 | H13: 2055.214129 | I13: 2233.366215 | J13: 2321.3166 | K13: 2410.370069 | L13: 2500.377338 | M13: 2593.737001 | N13: 2687.960498 | O13: 2782.862719 | P13: =F13-C13 -> 1896.54 | Q13: =G13-D13 -> 1936.94234 | R13: =H13-E13 -> 1977.214129 | S13: Salary related costs for Waters staff
B14: Advertising | F14: 10000 | G14: 10210 | H14: 10424.41 | I14: 10632.9 | J14: 16252.38 | K14: 16561.185 | L14: 16859.28 | M14: 11441.83 | N14: 11647.79 | O14: 11845.8 | P14: 10000 | Q14: 10210 | R14: 10424.41 | S14: The communications refresh seems to be encouraging teams to lead their own comms. This budget is required to alleviate communication pressure points.
B15: Cafeteria | F15: 2000 | G15: 2042 | H15: 2606.1025 | I15: 2658.225 | J15: 2708.73 | K15: 2760.1975 | L15: 2809.88 | M15: 2860.4575 | N15: 2911.9475 | O15: 2961.45 | P15: 2000 | Q15: 2042 | R15: 2606.1025 | S15: For interagency huis or mana whenua engagement as it is customary for the host to demonstrate manaakitanga by providing kai.
B16: Consulting | C16: 487677 | D16: 496455 | E16: 505391 | F16: 300000 | G16: 331825 | H16: 364854.35 | I16: 372151.5 | J16: 650095.2 | K16: 662447.4 | L16: 674371.2 | M16: 400464.05 | N16: 407672.65 | O16: 414603 | P16: -187677 | Q16: -164630 | R16: -140536.65 | S16: The Three Waters Reform Project Manager and Waters Coordinator were brought inhouse as part of WDC staff.
B17: Employment Related Expenses | F17: 10000 | G17: 10210 | H17: 13030.5125 | I17: 13291.125 | J17: 16252.38 | K17: 16561.185 | L17: 16859.28 | M17: 17162.745 | N17: 17471.685 | O17: 17768.7 | P17: 10000 | Q17: 10210 | R17: 13030.5125 | S17: Zero Harm costs such as purchasing PPE, specialist equipment, purchasing software or relevant documentation such as industry guidelines from WaterNZ or AS/NZS 1547 for wastewater demand calculations.
B18: FBT | F18: 5400 | G18: 5513.4 | H18: 5629.1814 | I18: 5741.766 | J18: 5850.8568 | K18: 5962.0266 | L18: 6069.3408 | M18: 6178.5882 | N18: 6289.8066 | O18: 6396.732 | P18: 5400 | Q18: 5513.4 | R18: 5629.1814 | S18: FBT for Waters Manager car and pool vehicle use
B19: General Expenses | F19: 5000 | G19: 5105 | H19: 7818.3075 | I19: 5316.45 | J19: 10834.92 | K19: 11040.79 | L19: 11239.52 | M19: 5720.915 | N19: 5823.895 | O19: 5922.9 | P19: 5000 | Q19: 5105 | R19: 7818.3075 | S19: Based on 22/23 actuals. Buffer to allow for a bucket to draw down funding for miscellaneous expenses.
B20: Insurance premiums - other | C20: 126873 | D20: 129157 | E20: 131482 | F20: 404579 | G20: 413075.159 | H20: 421749.7373 | I20: 430184.8049 | J20: 438358.1099 | K20: 446687.1777 | L20: 454727.3762 | M20: 462912.414 | N20: 471245.123 | O20: 479256.1918 | P20: 277706 | Q20: 283918.159 | R20: 290267.7373 | S20: As per AON 2023/2024 Insurance
B21: Kiwisaver | C21: 829 | D21: 846 | E21: 864 | F21: 22748.52 | G21: 23249.04 | H21: 23737.26 | I21: 24235.74 | J21: 24720.45 | K21: 25190.14 | L21: 25668.76 | M21: 26156.46 | N21: 26627.28 | O21: 27106.57 | P21: 21919.52 | Q21: 22403.04 | R21: 22873.26 | S21: Salary related costs for Waters staff
B22: Landline call costs/line rental | F22: 500 | G22: 510.5 | H22: 781.83075 | I22: 531.645 | J22: 541.746 | K22: 552.0395 | L22: 561.976 | M22: 572.0915 | N22: 582.3895 | O22: 592.29 | P22: 500 | Q22: 510.5 | R22: 781.83075 | S22: Phone expenses for Waters staff (based on actuals)
B23: Membership Expenses | F23: 3000 | G23: 3063 | H23: 3648.5435 | I23: 3721.515 | J23: 3792.222 | K23: 3864.2765 | L23: 3933.832 | M23: 4004.6405 | N23: 4076.7265 | O23: 4146.03 | P23: 3000 | Q23: 3063 | R23: 3648.5435 | S23: WaterNZ, IPENZ, PMI and corporate memberships for Waters staff
B24: Public Notices and insurance | F24: 1500 | G24: 1531.5 | H24: 1563.6615 | I24: 1594.935 | J24: 1625.238 | K24: 1656.1185 | L24: 1685.928 | M24: 1716.2745 | N24: 1747.1685 | O24: 1776.87 | P24: 1500 | Q24: 1531.5 | R24: 1563.6615 | S24: Notices for meetings (based on actuals)
B25: Salaries and wages - permanent | C25: 27633 | D25: 28186 | E25: 28806 | F25: 758285.31 | G25: 774967.6 | H25: 789673.7 | I25: 807857.99 | J25: 824015.15 | K25: 839671.44 | L25: 855625.19 | M25: 871882.07 | N25: 887575.95 | O25: 903552.32 | P25: 730652.31 | Q25: 746781.6 | R25: 760867.7 | S25: The Water Services Management team was established and costs were separated from the Service Delivery Management cost centre. The budget was partly from CC 7100 and Consulting budget.
B26: Training Costs | F26: 10000 | G26: 10210 | H26: 13030.5125 | I26: 13291.125 | J26: 16252.38 | K26: 16561.185 | L26: 16859.28 | M26: 17162.745 | N26: 17471.685 | O26: 17768.7 | P26: 10000 | Q26: 10210 | R26: 13030.5125 | S26: Training and conferences for Waters staff
B27: Travel - General | F27: 3000 | G27: 3063 | H27: 5212.205 | I27: 3721.515 | J27: 3792.222 | K27: 3864.2765 | L27: 3933.832 | M27: 4004.6405 | N27: 4076.7265 | O27: 4146.03 | P27: 3000 | Q27: 3063 | R27: 5212.205 | S27: General travel to sites and meetings
B28: Vehicles | F28: 46095.72 | G28: 48573.84 | H28: 51052.2 | I28: 53530.43 | J28: 56008.7 | K28: 58486.96 | L28: 60965.22 | M28: 63443.48 | N28: 63443.48 | O28: 63443.48 | P28: 46095.72 | Q28: 48573.84 | R28: 51052.2 | S28: Mileage for Waters Manager and pool vehicles
A30: 1700 | B30: DW Stormwater
B31: Consulting | F31: 50000 | G31: 51400 | H31: 52942 | I31: 54477.3 | J31: 55948.2 | K31: 57346.9 | L31: 58723.25 | M31: 60132.6 | N31: 61515.65 | O31: 62930.5 | P31: =F31-C31 -> 50000 | Q31: 51400 | R31: 52942 | S31: On-going DW SW issues, for legal and technical advice
B32: Insurance premiums - other | C32: 558 | D32: 576 | E32: 586 | F32: 822 | G32: 845.016 | H32: 870.36648 | I32: 895.606812 | J32: 919.788408 | K32: 942.783036 | L32: 965.41023 | M32: 988.579944 | N32: 1011.317286 | O32: 1034.57742 | P32: 264 | Q32: 269.016 | R32: 284.36648 | S32: As per AON 2023/24
B33: Rate Remission Grants | C33: 7409 | D33: 8231 | E33: 9145 | F33: 6669 | G33: 6669 | H33: 6669 | I33: 6669 | J33: 6669 | K33: 6669 | L33: 6669 | M33: 6669 | N33: 6669 | O33: 6669 | P33: -740 | Q33: -1562 | R33: -2476 | S33: adjusted to current actuals
B34: Rates - council owned properties | C34: 216450 | D34: 223056 | E34: 229877 | F34: 200000 | G34: 205600 | H34: 211768 | I34: 217909.2 | J34: 223792.8 | K34: 229387.6 | L34: 234893 | M34: 240530.4 | N34: 246062.6 | O34: 251722 | P34: -16450 | Q34: -17456 | R34: -18109 | S34: adjusted to current actuals
B35: Waikato Regional Council Rates | C35: 15155 | D35: 15549 | E35: 15938 | F35: 20000 | G35: 20560 | H35: 21176.8 | I35: 21790.92 | J35: 22379.28 | K35: 22938.76 | L35: 23489.3 | M35: 24053.04 | N35: 24606.26 | O35: 25172.2 | P35: 4845 | Q35: 5011 | R35: 5238.8 | S35: adjusted to current actuals
B36: Watercare Operational Charges | C36: 2091645 | D36: 2169249 | E36: 1940097 | F36: 3440000 | G36: 3536320 | H36: 3642409.6 | I36: 3748038.24 | J36: 3849236.16 | K36: 3945466.72 | L36: 4040159.6 | M36: 4137122.88 | N36: 4232276.72 | O36: 4329618.4 | P36: 1348355 | Q36: 1367071 | R36: 1702312.6 | S36: Increase in work programme for 3Waters also increased the associated operational delivery costs for Watercare. (additional staff/labour, consultancy and materials)
A38: 1800 | B38: DW Wastewater
B39: Rate Remission Grants | C39: 161268 | D39: 175622 | E39: 191252 | F39: 148087 | G39: 148087 | H39: 148087 | I39: 148087 | J39: 148087 | K39: 148087 | L39: 148087 | M39: 148087 | N39: 148087 | O39: 148087 | P39: =F39-C39 -> -13181 | Q39: -27535 | R39: -43165 | S39: adjusted to current actuals
B40: Rates Council Properties | C40: 350925 | D40: 362084 | E40: 373665 | F40: 290300 | G40: 298428.4 | H40: 298428.4 | I40: 298428.4 | J40: 298428.4 | K40: 298428.4 | L40: 298428.4 | M40: 298428.4 | N40: 298428.4 | O40: 298428.4 | P40: -60625 | Q40: -63655.6 | R40: -75236.6 | S40: adjusted to current actuals
B41: Watercare Operational Charges | C41: 7974638 | D41: 8077655 | E41: 8219023 | F41: 8788760 | G41: 9468486.52 | H41: 9442819.827 | I41: 9778022.712 | J41: 10530754.83 | K41: 10439582.22 | L41: 10761742.59 | M41: 11538381.59 | N41: 10342089.82 | O41: 10579956.21 | P41: 814122 | Q41: 1390831.52 | R41: 1223796.827 | S41: Increase in work programme for 3Waters also increased the associated operational delivery costs for Watercare. (additional staff/labour, consultancy and materials)
B42: WRC Rates | C42: 27225 | D42: 27932 | E42: 28631 | F42: 13880 | G42: 14268.64 | H42: 14268.64 | I42: 14268.64 | J42: 14268.64 | K42: 14268.64 | L42: 14268.64 | M42: 14268.64 | N42: 14268.64 | O42: 14268.64 | P42: -13345 | Q42: -13663.36 | R42: -14362.36 | S42: adjusted to current actuals
A44: 1810 | B44: Wastewater Reticulation
B45: R&M Contractors (detail below) | C45: 775383 | D45: 795543 | E45: 813841 | F45: 970734 | G45: 1032842.908 | H45: 1101062.304 | I45: 1172646.763 | J45: 1246459.877 | K45: 1322338.081 | L45: 1401466.77 | M45: 0 | N45: 0 | O45: 0 | P45: =F45-C45 -> 195351 | Q45: 237299.908 | R45: 287221.3038 | S45: On-going DW wastewater reitculation operations inflated and adjusted to current actuals
B46: R&M Contractors - GL
B47: WW POK (Pokeno wastewater treatment plant extensions) | F47: 873661 | G47: 929558.72 | H47: 990955.6499 | I47: 1055382.196 | J47: 1121814.001 | K47: 1190104.159 | L47: 1261320.21 | M47: 0 | N47: 0 | O47: 0
B48: WW TUA (Tuakau wastewater treatment plant extensions) | F48: 97073 | G48: 103284.188 | H48: 110106.6539 | I48: 117264.5673 | J48: 124645.8758 | K48: 132233.9228 | L48: 140146.5595 | M48: 0 | N48: 0 | O48: 0
B49: Rate Remission Grants | C49: 245858 | D49: 267738 | E49: 291568 | F49: 225764 | G49: 225764 | H49: 225764 | I49: 225764 | J49: 225764 | K49: 225764 | L49: 225764 | M49: 225764 | N49: 225764 | O49: 225764 | P49: -20094 | Q49: -41974 | R49: -65804 | S49: adjusted to current actuals
B50: Insurance premiums - other | C50: 35407 | D50: 36327 | E50: 37163 | P50: -35407 | Q50: -36327 | R50: -37163 | S50: reallocated based on AON 2023/24
A52: 1820 | B52: Wastewater Treatment Plants
B53: Rates - council owned properties | C53: 7945 | D53: 8431 | E53: 8960 | F53: 7621 | G53: 7621 | H53: 7621 | I53: 7621 | J53: 7621 | K53: 7621 | L53: 7621 | M53: 7621 | N53: 7621 | O53: 7621 | P53: =F53-C53 -> -324 | Q53: -810 | R53: -1339 | S53: adjusted to current actuals
B54: Wastewater volume charge from Watercare (detail below) | C54: 3592137 | D54: 3731543 | E54: 3865959 | F54: 4792843 | G54: 5312518 | H54: 5889953 | I54: 7775470 | J54: 8607087 | K54: 10345189 | L54: 10777518.78 | M54: 13019449 | N54: 13547656 | O54: 14101069 | P54: 1200706 | Q54: 1580975 | R54: 2023994 | S54: Increase in work programme for 3Waters also increased the associated operational delivery costs for Watercare. (additional staff/labour, consultancy and materials)
B55: Wastewater volume charge from Watercare - GL
B56: WW 0 (Watercare wastewater treatment plant operation) | F56: 1819560 | G56: 2056773 | H56: 2324912 | I56: 2628007 | J56: 2970616 | K56: 3173898 | L56: 3391089 | M56: 3621683 | N56: 3867957 | O56: 4130979
B57: WW POK (Pokeno wastewater treatment plant operation) | F57: 2973283 | G57: 3255745 | H57: 3565041 | I57: 5147463 | J57: 5636471 | K57: 7171291 | L57: 7386429.78 | M57: 9397766 | N57: 9679699 | O57: 9970090
B58: Insurance premiums - other | C58: 26182 | D58: 26863 | E58: 27481 | P58: -26182 | Q58: -26863 | R58: -27481 | S58: reallocated based on AON 2023/24
A60: 1900 | B60: DW Wastewater
B61: Rates Council Properties | C61: 375590 | D61: 387498 | E61: 399853 | F61: 282700 | G61: 290615.6 | H61: 290615.6 | I61: 290615.6 | J61: 290615.6 | K61: 290615.6 | L61: 290615.6 | M61: 290615.6 | N61: 290615.6 | O61: 290615.6 | P61: =F61-C61 -> -92890 | Q61: -96882.4 | R61: -109237.4 | S61: adjusted to current actuals
B62: WRC Rates | C62: 28703 | D62: 29449 | E62: 30186 | F62: 18200 | G62: 18709.6 | H62: 18709.6 | I62: 18709.6 | J62: 18709.6 | K62: 18709.6 | L62: 18709.6 | M62: 18709.6 | N62: 18709.6 | O62: 18709.6 | P62: -10503 | Q62: -10739.4 | R62: -11476.4 | S62: adjusted to current actuals
B63: R&M Contractors | F63: 0 | G63: 0 | H63: 0 | I63: 0 | J63: 0 | K63: 0 | L63: 0 | M63: 0 | N63: 0 | O63: 0 | P63: 0 | Q63: 0 | R63: 0
B64: Rate Remission Grants | C64: 6234 | D64: 7307 | E64: 8563 | F64: 5320 | G64: 5320 | H64: 5320 | I64: 5320 | J64: 5320 | K64: 5320 | L64: 5320 | M64: 5320 | N64: 5320 | O64: 5320 | P64: -914 | Q64: -1987 | R64: -3243 | S64: adjusted to current actuals
B65: Watercare Operational Charges | C65: 8652545 | D65: 9103711 | E65: 9393592 | F65: 8810750 | G65: 9368235.96 | H65: 9864492.269 | I65: 9985818.746 | J65: 10840509.8 | K65: 10764087.68 | L65: 11289988.76 | M65: 11986478.9 | N65: 11541284.51 | O65: 11906093.15 | P65: 158205 | Q65: 264524.96 | R65: 470900.2688 | S65: Increase in 3Waters programme also increased the associated operational costs fro Watercare (additional staff/labour, consulting, materials).
A67: 1910 | B67: Water Reticulation
B68: Water | C68: 646700 | D68: 684969 | E68: 723382 | F68: 848474 | G68: 985943.492 | H68: 1147913.856 | I68: 1335193.952 | J68: 1550011.312 | K68: 1697482.003 | L68: 1857169.76 | M68: 1901741.581 | N68: 1945481.644 | O68: 1990227.407 | P68: =F68-C68 -> 201774 | Q68: 300974.492 | R68: 424531.8562 | S68: NW bulk water purchases from Watercare Auckland adjusted as per charge and quantity
B69: Insurance premiums - other | C69: 33808 | D69: 34687 | E69: 35485 | P69: -33808 | Q69: -34687 | R69: -35485 | S69: reallocated based on AON 2023/24
A71: 1920 | B71: Water Treatment Plant
B72: R&M Contractors (detail below) | C72: 568627 | D72: 582032 | E72: 594199 | F72: 717200 | G72: 763086.456 | H72: 813487.7129 | I72: 866376.4719 | J72: 920910.7289 | K72: 976970.9639 | L72: 1035433.008 | M72: 1060283.259 | N72: 1084669.777 | O72: 1109617.007 | P72: =F72-C72 -> 148573 | Q72: 181054.456 | R72: 219288.7129 | S72: On-going DW treatment plant operations inflated and adjusted based current actuals
B73: R&M Contractors - GL
B74: WA POK (Pokeno water supply treatment plant extensions) | F74: 645480 | G74: 686778.016 | H74: 732139.1534 | I74: 779739.0426 | J74: 828819.9917 | K74: 879273.6381 | L74: 931889.8244 | M74: 954255.0533 | N74: 976202.9227 | O74: 998655.432
B75: WA TUA (Tuakau water supply treatment plant extensions) | F75: 71720 | G75: 76308.44 | H75: 81348.55952 | I75: 86637.42928 | J75: 92090.7372 | K75: 97697.32578 | L75: 103543.1833 | M75: 106028.2056 | N75: 108466.8547 | O75: 110961.5748
B76: Insurance premiums - other | C76: 28313 | D76: 29049 | E76: 29717 | P76: -28313 | Q76: -29049 | R76: -29717 | S76: reallocated based on AON 2023/24
A78: 1930 | B78: Water North Waikato
B79: Insurance premiums - other | C79: 4883 | D79: 5010 | E79: 5125 | F79: 4773 | G79: 4906.644 | H79: 5053.84332 | I79: 5200.403058 | J79: 5340.815172 | K79: 5474.335074 | L79: 5605.721445 | M79: 0 | N79: 0 | O79: 0 | P79: =F79-C79 -> -110 | Q79: =G79-D79 -> -103.356 | R79: =H79-E79 -> -71.15668
A82: 1940 | B82: Water Southern Districts
B83: Rate Remission Grants | C83: 367 | D83: 430 | E83: 504 | F83: 313 | G83: 313 | H83: 313 | I83: 313 | J83: 313 | K83: 313 | L83: 313 | M83: 313 | N83: 313 | O83: 313 | P83: =F83-C83 -> -54 | Q83: -117 | R83: -191 | S83: adjusted to current actuals
B84: Rates - council owned properties | C84: 1072 | D84: 1142 | E84: 1218 | F84: 1019 | G84: 1019 | H84: 1019.04 | I84: 1019 | J84: 1019 | K84: 1019 | L84: 1019 | M84: 1019 | N84: 1019 | O84: 1019 | P84: -53 | Q84: -123 | R84: -198.96 | S84: adjusted to current actuals
A87: 8410 | B87: Tamahere DD
B88: Rate Remission Grants | C88: 654 | D88: 654 | E88: 654 | F88: 653.52 | G88: 653.52 | H88: 653.52 | I88: 653.53 | J88: 653.53 | K88: 653.53 | L88: 653.53 | M88: 653.53 | N88: 653.53 | O88: 653.53 | P88: =F88-C88 -> -0.48 | Q88: =G88-D88 -> -0.48 | R88: =H88-E88 -> -0.48
A90: GOVERNANCE
A92: 2000 | B92: Chief Executive
B93: ACC levies | C93: 2168 | D93: 2210 | E93: 2258 | F93: 2784 | G93: 2842.464 | H93: 2902.155744 | I93: 3153.71814 | J93: 3277.5633 | K93: 3403.875557 | L93: 3530.333232 | M93: 3662.529783 | N93: 3794.849982 | O93: 3929.25186 | P93: =F93-C93 -> 616 | Q93: =G93-D93 -> 632.464 | R93: =H93-E93 -> 644.155744
B94: Allowances | C94: 0 | D94: 0 | E94: 0 | F94: 17000 | G94: 17373.96 | H94: 17738.86 | I94: 18111.37 | J94: 18473.6 | K94: 18824.6 | L94: 19182.26 | M94: 19546.73 | N94: 19898.57 | O94: 20256.74 | P94: 17000 | Q94: 17373.96 | R94: 17738.86
B95: Catering Costs | C95: 5831 | D95: 5936 | E95: 6043 | F95: 5610 | G95: 5727.81 | H95: 5848.09401 | I95: 5965.0569 | J95: 6078.39012 | K95: 6193.88319 | L95: 6305.37072 | M95: 6418.86663 | N95: 6534.41019 | O95: 6645.4938 | P95: -221 | Q95: -208.19 | R95: -194.90599
B96: Consulting | C96: 8481 | D96: 8634 | E96: 8789 | F96: 8203 | G96: 8375.263 | H96: 8551.143523 | I96: 8722.16787 | J96: 8887.884876 | K96: 9056.760037 | L96: 9219.778256 | M96: 9385.733149 | N96: 9554.682137 | O96: 9717.10974 | P96: -278 | Q96: -258.737 | R96: -237.856477
B97: Employment Related Expenses | C97: 9602 | D97: 9775 | E97: 9951 | F97: 12000 | G97: 12252 | H97: 12509.292 | I97: 12759.48 | J97: 13001.904 | K97: 13248.948 | L97: 13487.424 | M97: 13730.196 | N97: 13977.348 | O97: 14214.96 | P97: 2398 | Q97: 2477 | R97: 2558.292
B98: FBT | C98: 6835 | D98: 6958 | E98: 7083 | F98: 6576 | G98: 6714.096 | H98: 6855.092016 | I98: 6992.19504 | J98: 7125.043392 | K98: 7260.423504 | L98: 7391.108352 | M98: 7524.147408 | N98: 7659.586704 | O98: 7789.79808 | P98: -259 | Q98: -243.904 | R98: -227.907984
B99: General Expenses | C99: 8132 | D99: 8351 | E99: 8569 | F99: 7949 | G99: 8115.929 | H99: 8286.363509 | I99: 8452.09221 | J99: 8612.677908 | K99: 8776.323971 | L99: 8934.294448 | M99: 9095.110667 | N99: 9258.828271 | O99: 9416.22642 | P99: -183 | Q99: -235.071 | R99: -282.636491
B100: Kiwisaver | C100: 24088 | D100: 24560 | E100: 25089 | F100: 32121 | G100: 32827 | H100: 33517 | I100: 34221 | J100: 34905 | K100: 35568 | L100: 36244 | M100: 36933 | N100: 37958 | O100: 38274 | P100: 8033 | Q100: 8267 | R100: 8428
B101: Salaries and wages - permanent | C101: 802934 | D101: 818653 | E101: 836290 | F101: 1131694 | G101: 1215250 | H101: 1238229 | I101: 1261691 | J101: 1284505 | K101: 1306611 | L101: 1329138 | M101: 1352092 | N101: 1374252 | O101: 1396811 | P101: 328760 | Q101: 396597 | R101: 401939
B102: Training Costs | C102: 10361 | D102: 10548 | E102: 10737 | F102: 10208 | G102: 10422.368 | H102: 10641.23773 | I102: 10854.06432 | J102: 11060.28634 | K102: 11270.43843 | L102: 11473.30202 | M102: 11679.82006 | N102: 11890.06403 | O102: 12092.19264 | P102: -153 | Q102: -125.632 | R102: -95.762272
B103: Vehicles | C103: 25565 | D103: 26870 | E103: 28174 | F103: 27900 | G103: 27900 | H103: 27900 | I103: 27900 | J103: 27900 | K103: 27900 | L103: 27900 | M103: 27900 | N103: 27900 | O103: 27900 | P103: 2335 | Q103: 1030 | R103: -274
A105: 2020 | B105: Council
B106: ACC levies | C106: 691 | D106: 705 | E106: 720 | F106: 2979.28 | G106: 3041.84488 | H106: 3105.723622 | I106: 3374.946257 | J106: 3507.84869 | K106: 3642.411825 | L106: 3778.423157 | M106: 3919.513285 | N106: 4061.898863 | O106: 4205.306383 | P106: =F106-C106 -> 2288.28 | Q106: =G106-D106 -> 2336.84488 | R106: =H106-E106 -> 2385.723622
B107: Catering Costs | C107: 16963 | D107: 17268 | E107: 17579 | F107: 16320 | G107: 16662.72 | H107: 18323.9862 | I107: 19008.43533 | J107: 19698.96805 | K107: 20414.42071 | L107: 21114.56227 | M107: 21494.62184 | N107: 21881.53829 | O107: 22253.51988 | P107: -643 | Q107: -605.28 | R107: 744.9862004
B108: Consulting | C108: 31805 | D108: 32378 | E108: 32960 | F108: 30761 | G108: 31374.309 | H108: 32022.74508 | I108: 32649.38274 | J108: 33458.23296 | K108: 33865.41517 | L108: 34464.86413 | M108: 35085.22751 | N108: 35716.78326 | O108: 36323.96112 | P108: -1044 | Q108: -1003.691 | R108: -937.254921
B109: Discretionary Funds | C109: 30963 | D109: 30963 | E109: 30963 | F109: 30963 | G109: 30963 | H109: 30963 | I109: 30963 | J109: 30963 | K109: 30963 | L109: 30963 | M109: 30963 | N109: 30963 | O109: 30963 | P109: 0 | Q109: 0 | R109: 0
B110: FBT | C110: 8946 | D110: 9107 | E110: 9271 | F110: 8607 | G110: 8787.747 | H110: 8972.289687 | I110: 9151.73703 | J110: 9325.615644 | K110: 9502.807953 | L110: 9673.854864 | M110: 9847.983081 | N110: 10025.25285 | O110: 10195.68006 | P110: -339 | Q110: -319.253 | R110: -298.710313
B111: General Expenses | C111: 27106 | D111: 27838 | E111: 28562 | F111: 26498 | G111: 46453.458 | H111: 27622.60162 | I111: 28175.05842 | J111: 16791.95902 | K111: 17111.01634 | L111: 17419.0081 | M111: 17732.54813 | N111: 18051.74494 | O111: 18358.62084 | P111: -608 | Q111: 18615.458 | R111: -939.398382
B112: General Grants (detail below) | C112: 0 | D112: 0 | E112: 0 | F112: 4000 | G112: 4000 | H112: 4000 | I112: 4000 | J112: 4000 | K112: 4000 | L112: 4000 | M112: 4000 | N112: 4000 | O112: 4000 | P112: 4000 | Q112: 4000 | R112: 4000
B113: General Grants - GL
B114: EX INT (G&D Tamahere community committee) | F114: 4000 | G114: 4000 | H114: 4000 | I114: 4000 | J114: 4000 | K114: 4000 | L114: 4000 | M114: 4000 | N114: 4000 | O114: 4000
B115: Mayoral Fund | C115: 8000 | D115: 8000 | E115: 8000 | F115: 15000 | G115: 15000 | H115: 15000 | I115: 15000 | J115: 15000 | K115: 15000 | L115: 15000 | M115: 15000 | N115: 15000 | O115: 15000 | P115: 7000 | Q115: 7000 | R115: 7000
B116: Mileage Reimbursement | C116: 42407 | D116: 43170 | E116: 43947 | F116: 42700 | G116: 43596.7 | H116: 44512.189 | I116: 45402.483 | J116: 46265.1084 | K116: 47144.1733 | L116: 47992.7504 | M116: 48856.6141 | N116: 49736.0633 | O116: 50581.566 | P116: 293 | Q116: 426.7 | R116: 565.1890024
B117: Salaries and wages - permanent | C117: 1017202 | D117: 1037441 | E117: 1060148 | F117: 1024464 | G117: 1047002 | H117: 1066870 | I117: 1091438 | J117: 1113267 | K117: 1134419 | L117: 1155973 | M117: 1177936 | N117: 1199139 | O117: 1220724 | P117: 7262 | Q117: 9561 | R117: 6722
B118: Subscriptions | C118: 74212 | D118: 75548 | E118: 76907 | F118: 72000 | G118: 73588.575 | H118: 75133.93508 | I118: 76636.62675 | J118: 78092.6859 | K118: 79576.49393 | L118: 81008.8404 | M118: 82466.98972 | N118: 83951.44643 | O118: 85378.6035 | P118: -2212 | Q118: -1959.425 | R118: -1773.064925
B119: Training Costs | C119: 42407 | D119: 43170 | E119: 43947 | F119: 41640 | G119: 42514.44 | H119: 43407.24324 | I119: 44275.3956 | J119: 45116.60688 | K119: 45973.84956 | L119: 46801.36128 | M119: 47643.78012 | N119: 48501.39756 | O119: 49325.9112 | P119: -767 | Q119: -655.56 | R119: -539.75676
B120: Vehicles | C120: 45449 | D120: 48807 | E120: 51176 | F120: 41724.6 | G120: 45449.28 | H120: 48807.12 | I120: 51176.34 | J120: 53545.62 | K120: 55914.9 | L120: 58284.17 | M120: 60653.45 | N120: 60653.45 | O120: 60653.45 | P120: -3724.4 | Q120: -3357.72 | R120: -2368.88
A123: 2040 | B123: CB Huntly
B124: ACC levies | C124: 110 | D124: 112 | E124: 115 | F124: 104.88 | G124: 107.08248 | H124: 109.3312121 | I124: 118.8226575 | J124: 123.5072531 | K124: 128.2387758 | L124: 133.0309587 | M124: 137.9999116 | N124: 143.0115656 | O124: 148.0606542 | P124: =F124-C124 -> -5.12 | Q124: -4.91752 | R124: -5.66878792
B125: Discretionary Funds | C125: 24026 | D125: 24026 | E125: 24026 | F125: 24026 | G125: 24026 | H125: 24026.04 | I125: 24026 | J125: 24026 | K125: 24026 | L125: 24026 | M125: 24026 | N125: 24026 | O125: 24026 | P125: 0 | Q125: 0 | R125: 0.04
B126: Rate Remission Grants | C126: 253 | D126: 253 | E126: 253 | F126: 252.96 | G126: 252.96 | H126: 252.96 | I126: 253 | J126: 253 | K126: 253 | L126: 253 | M126: 253 | N126: 253 | O126: 253 | P126: -0.04 | Q126: -0.04 | R126: -0.04
B127: Salaries and wages - permanent | C127: 40714 | D127: 41528 | E127: 42442 | F127: 40344.11 | G127: 41231.65 | H127: 42014.07 | I127: 42981.57 | J127: 43841.2 | K127: 44674.18 | L127: 45522.99 | M127: 46387.93 | N127: 47222.91 | O127: 48072.92 | P127: -369.89 | Q127: -296.35 | R127: -427.93
A130: 2050 | B130: CB Ngaruawahia
B131: ACC levies | C131: 110 | D131: 112 | E131: 115 | F131: 106.02 | G131: 108.24642 | H131: 110.5195948 | I131: 120.0986055 | J131: 124.8291133 | K131: 129.6078338 | L131: 134.4583778 | M131: 139.4759077 | N131: 144.5374261 | O131: 149.6479914 | P131: =F131-C131 -> -3.98 | Q131: -3.75358 | R131: -4.48040518
B132: Discretionary Funds | C132: 20999 | D132: 20999 | E132: 20999 | F132: 20999 | G132: 20999 | H132: 20999.04 | I132: 20999 | J132: 20999 | K132: 20999 | L132: 20999 | M132: 20999 | N132: 20999 | O132: 20999 | P132: 0 | Q132: 0 | R132: 0.04
B133: Rate Remission Grants | C133: 158 | D133: 158 | E133: 158 | F133: 158.04 | G133: 158.04 | H133: 158.04 | I133: 158 | J133: 158 | K133: 158 | L133: 158 | M133: 158 | N133: 158 | O133: 158 | P133: 0.04 | Q133: 0.04 | R133: 0.04
B134: Salaries and wages - permanent | C134: 40714 | D134: 41528 | E134: 42442 | F134: 40775.44 | G134: 41672.5 | H134: 42463.31 | I134: 43441.14 | J134: 44309.96 | K134: 45151.85 | L134: 46009.74 | M134: 46883.92 | N134: 47727.83 | O134: 48586.93 | P134: 61.44 | Q134: 144.5 | R134: 21.31
A137: 2060 | B137: CB Raglan
B138: ACC levies | C138: 92 | D138: 94 | E138: 96 | F138: 95.66 | G138: 97.66886 | H138: 99.71990606 | I138: 108.3811497 | J138: 112.6506632 | K138: 116.9661293 | L138: 121.3418579 | M138: 125.8715718 | N138: 130.4436002 | O138: 135.04212 | P138: =F138-C138 -> 3.66 | Q138: 3.66886 | R138: 3.71990606
B139: Discretionary Funds | C139: 14271 | D139: 14271 | E139: 14271 | F139: 14271 | G139: 14271 | H139: 14271 | I139: 14271 | J139: 14271 | K139: 14271 | L139: 14271 | M139: 14271 | N139: 14271 | O139: 14271 | P139: 0 | Q139: 0 | R139: 0
B140: Rate Remission Grants | C140: 380 | D140: 380 | E140: 380 | F140: 380.04 | G140: 380.04 | H140: 380.04 | I140: 380 | J140: 380 | K140: 380 | L140: 380 | M140: 380 | N140: 380 | O140: 380 | P140: 0.04 | Q140: 0.04 | R140: 0.04
B141: Salaries and wages - permanent | C141: 34068 | D141: 34749 | E141: 35514 | F141: 36798.04 | G141: 37607.61 | H141: 38321.3 | I141: 39203.74 | J141: 39987.81 | K141: 40747.58 | L141: 41521.79 | M141: 42310.7 | N141: 43072.29 | O141: 43847.59 | P141: 2730.04 | Q141: 2858.61 | R141: 2807.3
A144: 2070 | B144: CB Te Kauwhata
B145: Discretionary Funds | C145: 4198 | D145: 4198 | E145: 4198 | F145: 4198 | G145: 4198 | H145: 4197.96 | I145: 4198 | J145: 4198 | K145: 4198 | L145: 4198 | M145: 4198 | N145: 4198 | O145: 4198 | P145: =F145-C145 -> 0 | Q145: =G145-D145 -> 0 | R145: =H145-E145 -> -0.04
A147: 2080 | B147: CB Taupiri
B148: ACC levies | C148: 42 | D148: 43 | E148: 44 | F148: 29.98 | G148: 30.60958 | H148: 31.25238118 | I148: 33.9614826 | J148: 35.30016936 | K148: 36.6554228 | L148: 38.02329616 | M148: 39.43998801 | N148: 40.87209511 | O148: 42.3131976 | P148: =F148-C148 -> -12.02 | Q148: -12.39042 | R148: -12.74761882
B149: Discretionary Funds | C149: 1624 | D149: 1624 | E149: 1624 | F149: 1624 | G149: 1624 | H149: 1623.96 | I149: 1624 | J149: 1624 | K149: 1624 | L149: 1624 | M149: 1624 | N149: 1624 | O149: 1624 | P149: 0 | Q149: 0 | R149: -0.04
B150: Rate Remission Grants | C150: 63 | D150: 63 | E150: 63 | F150: 63 | G150: 63 | H150: 63 | I150: 63 | J150: 63 | K150: 63 | L150: 63 | M150: 63 | N150: 63 | O150: 63 | P150: 0 | Q150: 0 | R150: 0
B151: Salaries and wages - permanent | C151: 15475 | D151: 15784 | E151: 16132 | F151: 11531.1 | G151: 11784.74 | H151: 12008.37 | I151: 12284.9 | J151: 12530.6 | K151: 12768.68 | L151: 13011.28 | M151: 13258.5 | N151: 13497.15 | O151: 13740.1 | P151: -3943.9 | Q151: -3999.26 | R151: -4123.63
A153: 2090 | B153: CB Meremere
B154: Discretionary Funds | C154: 1550 | D154: 1550 | E154: 1550 | F154: 1550 | G154: 1550 | H154: 1550.04 | I154: 1550 | J154: 1550 | K154: 1550 | L154: 1550 | M154: 1550 | N154: 1550 | O154: 1550 | P154: =F154-C154 -> 0 | Q154: =G154-D154 -> 0 | R154: =H154-E154 -> 0.04
A156: 2110 | B156: Community Liason
B157: General Grants (detail below) | C157: 25000 | D157: 25000 | E157: 25000 | F157: 486897 | G157: 497121.837 | H157: 507561.3956 | I157: 517712.7111 | J157: 527549.0043 | K157: 537572.7529 | L157: 547248.8569 | M157: 557099.2702 | N157: 567127.4008 | O157: 576768.4483 | P157: =F157-C157 -> 461897 | Q157: =G157-D157 -> 472121.837 | R157: =H157-E157 -> 482561.3956 | S157: Community Aspirational Blueprint (CAB) budget is transferred to from Economic Development cost centre 5220 to Commmunity Liaison cost centre 2110
B158: General Grants - GL
B159: CB INT (Community aspiration blueprint) | F159: 486897 | G159: 497121.837 | H159: 507561.3956 | I159: 517712.7111 | J159: 527549.0043 | K159: 537572.7529 | L159: 547248.8569 | M159: 557099.2702 | N159: 567127.4008 | O159: 576768.4483
A161: 2150 | B161: Onewhero-Tuakau Community Board
B162: ACC levies | C162: 114 | D162: 117 | E162: 119 | F162: 102.51 | G162: 104.66271 | H162: 106.8606269 | I162: 116.1325338 | J162: 120.7010088 | K162: 125.3350481 | L162: 130.0187674 | M162: 134.8648502 | N162: 139.77348 | O162: 144.696447 | P162: =F162-C162 -> -11.49 | Q162: -12.33729 | R162: -12.13937309
B163: Discretionary Funds | C163: 28878 | D163: 28878 | E163: 28878 | F163: 28878 | G163: 28878 | H163: 28878 | I163: 28878 | J163: 28878 | K163: 28878 | L163: 28878 | M163: 28878 | N163: 28878 | O163: 28878 | P163: 0 | Q163: 0 | R163: 0
B164: Rate Remission Grants | C164: 681 | D164: 681 | E164: 681 | F164: 681 | G164: 681 | H164: 681 | I164: 681 | J164: 681 | K164: 681 | L164: 681 | M164: 681 | N164: 681 | O164: 681 | P164: 0 | Q164: 0 | R164: 0
B165: Salaries and wages - permanent | C165: 42379 | D165: 43226 | E165: 44177 | F165: 39429.15 | G165: 40296.54 | H165: 41061.24 | I165: 42006.79 | J165: 42846.92 | K165: 43661.01 | L165: 44490.57 | M165: 45335.89 | N165: 46151.94 | O165: 46982.68 | P165: -2949.85 | Q165: -2929.46 | R165: -3115.76
A167: 2160 | B167: Port Waikato Community Board
B168: ACC levies | C168: 0 | D168: 0 | E168: 0 | F168: 64.54 | G168: 65.89534 | H168: 67.27914214 | I168: 68.6247366 | J168: 69.92857368 | K168: 71.25725866 | L168: 72.53986208 | M168: 73.84557082 | N168: 75.17483666 | O168: 76.4527932 | P168: =F168-C168 -> 64.54 | Q168: 65.89534 | R168: 67.27914214 | S168: Port Waikato CB didn't exist in previous LTP, created in 2023 Elections
B169: Discretionary Funds | C169: 0 | D169: 0 | E169: 0 | F169: 16483 | G169: 16483 | H169: 16483 | I169: 16483 | J169: 16483 | K169: 16483 | L169: 16483 | M169: 16483 | N169: 16483 | O169: 16483 | P169: 16483 | Q169: 16483 | R169: 16483 | S169: Port Waikato CB didn't exist in previous LTP, created in 2023 Elections
B170: Mileage Reimbursement | C170: 0 | D170: 0 | E170: 0 | F170: 300 | G170: 306.3 | H170: 312.7323 | I170: 318.987 | J170: 325.0476 | K170: 331.2237 | L170: 337.1856 | M170: 343.2549 | N170: 349.4337 | O170: 355.374 | P170: 300 | Q170: 306.3 | R170: 312.7323 | S170: Port Waikato CB didn't exist in previous LTP, created in 2023 Elections
B171: Salaries and wages - permanent | C171: 0 | D171: 0 | E171: 0 | F171: 24832.52 | G171: 24832.52 | H171: 24832.52 | I171: 24832.52 | J171: 24832.52 | K171: 24832.52 | L171: 24832.52 | M171: 24832.52 | N171: 24832.52 | O171: 24832.52 | P171: 24832.52 | Q171: 24832.52 | R171: 24832.52 | S171: Port Waikato CB didn't exist in previous LTP, created in 2023 Elections
A173: 4030 | B173: Council Support
B174: ACC levies | C174: 881 | D174: 898 | E174: 918 | F174: 971.27 | G174: 991.66667 | H174: 1012.49167 | I174: 1100.228695 | J174: 1143.549962 | K174: 1187.425924 | L174: 1231.761476 | M174: 1277.754923 | N174: 1324.167358 | O174: 1370.92628 | P174: =F174-C174 -> 90.27 | Q174: =G174-D174 -> 93.66667 | R174: =H174-E174 -> 94.49167007
B175: Catering Costs | C175: 0 | D175: 0 | E175: 0 | F175: 2600 | G175: 2654.6 | H175: 2710.3466 | I175: 2764.554 | J175: 2817.0792 | K175: 2870.6054 | L175: 2922.2752 | M175: 2974.8758 | N175: 3028.4254 | O175: 3079.908 | P175: 2600 | Q175: 2654.6 | R175: 2710.3466
B176: General Expenses (detail below) | C176: 1157 | D176: 1188 | E176: 1219 | F176: 52931 | G176: 90798.551 | H176: 55177.44457 | I176: 94559.44299 | J176: 57350.31505 | K176: 98186.84955 | L176: 59491.90331 | M176: 101753.3384 | N176: 61652.91725 | O176: 105345.884 | P176: 51774 | Q176: 89610.551 | R176: 53958.44457 | S176: 35k budgeted for ANZAC events per year, $12k budgetd for Xmas events per year, $36k budgeted for Team up events for every two years
B177: General Expenses - GL | F177: 1131 | G177: 1154.751 | H177: 1179.000771 | I177: 1202.58099 | J177: 1225.429452 | K177: 1248.713349 | L177: 1271.189712 | M177: 1294.070973 | N177: 1317.365049 | O177: 1339.75998
B178: CZ (Citizenship) | F178: 3800 | G178: 3879.8 | H178: 3961.2758 | I178: 4040.502 | J178: 4117.2696 | K178: 4195.5002 | L178: 4271.0176 | M178: 4347.8954 | N178: 4426.1602 | O178: 4501.404
B179: EX INT (ANZAC) | F179: 35000 | G179: 35735 | H179: 36485.435 | I179: 37215.15 | J179: 37922.22 | K179: 38642.765 | L179: 39338.32 | M179: 40046.405 | N179: 40767.265 | O179: 41460.3
B180: EX INT (Mayoral Award) | F180: 1000 | G180: 1021 | H180: 1042.441 | I180: 1063.29 | J180: 1083.492 | K180: 1104.079 | L180: 1123.952 | M180: 1144.183 | N180: 1164.779 | O180: 1184.58
B181: EX INT (Team Up) | G181: 36756 | H181: 0 | I181: 38278.44 | J181: 0 | K181: 39746.844 | L181: 0 | M181: 41190.588 | N181: 0 | O181: 42644.88
B182: EX INT (Xmas) | F182: 12000 | G182: 12252 | H182: 12509.292 | I182: 12759.48 | J182: 13001.904 | K182: 13248.948 | L182: 13487.424 | M182: 13730.196 | N182: 13977.348 | O182: 14214.96
B183: Kiwisaver | C183: 9785 | D183: 9981 | E183: 10201 | F183: 11206.63 | G183: 11453.22 | H183: 11693.7 | I183: 11939.29 | J183: 12178.07 | K183: 12409.46 | L183: 12645.24 | M183: 12885.5 | N183: 13117.44 | O183: 13353.55 | P183: 1421.63 | Q183: 1472.22 | R183: 1492.7
B184: Mileage Reimbursement | C184: 424 | D184: 432 | E184: 439 | F184: 1000 | G184: 416.568 | H184: 425.315928 | I184: 433.82232 | J184: 442.064736 | K184: 450.464232 | L184: 458.572416 | M184: 466.826664 | N184: 475.229832 | O184: 483.30864 | P184: 576 | Q184: -15.432 | R184: -13.684072
B185: Rent | C185: 0 | D185: 0 | E185: 0 | F185: 1500 | G185: 1531.5 | H185: 1563.6615 | I185: 1594.935 | J185: 1625.238 | K185: 1656.1185 | L185: 1685.928 | M185: 1716.2745 | N185: 1747.1685 | O185: 1776.87 | P185: 1500 | Q185: 1531.5 | R185: 1563.6615
B186: Salaries and wages - permanent | C186: 326182 | D186: 332706 | E186: 340025 | F186: 373555.22 | G186: 381773.41 | H186: 389018.11 | I186: 397976.26 | J186: 405935.79 | K186: 413648.56 | L186: 421507.89 | M186: 429516.54 | N186: 437247.84 | O186: 445118.3 | P186: 47373.22 | Q186: 49067.41 | R186: 48993.11
B187: Training Costs | C187: 3379 | D187: 3440 | E187: 3501 | F187: 6000 | G187: 3441.791 | H187: 3514.068611 | I187: 3584.35059 | J187: 3652.451532 | K187: 3721.850309 | L187: 3788.842192 | M187: 3857.040893 | N187: 3926.470009 | O187: 3993.21918 | P187: 2621 | Q187: 1.791 | R187: 13.068611
B188: Vehicles | C188: 2841 | D188: 3050 | E188: 3198 | F188: 2608.08 | G188: 2840.52 | H188: 3049.68 | I188: 3197.74 | J188: 3345.78 | K188: 3493.83 | L188: 3641.87 | M188: 3789.91 | N188: 3789.91 | O188: 3789.91 | P188: -232.92 | Q188: -209.48 | R188: -148.32
A190: 4050 | B190: Community & Iwi liason Partnership
B191: General Expenses (detail below) | C191: 13011 | D191: 13362 | E191: 13710 | F191: 11500 | G191: 11384.15 | H191: 11623.21715 | I191: 11855.6835 | J191: 12080.9358 | K191: 12310.48085 | L191: 12532.0648 | M191: 12757.64045 | N191: 12987.28585 | O191: 13208.067 | P191: =F191-C191 -> -1511 | Q191: -1977.85 | R191: -2086.78285
B192: General Expenses - GL | F192: 1500 | G192: 1174.15 | H192: 1198.80715 | I192: 1222.7835 | J192: 1246.0158 | K192: 1269.69085 | L192: 1292.5448 | M192: 1315.81045 | N192: 1339.49585 | O192: 1362.267
B193: IW (Community & Iwi Liaison Projects) | F193: 10000 | G193: 10210 | H193: 10424.41 | I193: 10632.9 | J193: 10834.92 | K193: 11040.79 | L193: 11239.52 | M193: 11441.83 | N193: 11647.79 | O193: 11845.8
B194: Training Costs | C194: 3181 | D194: 3238 | E194: 3296 | F194: 3180 | G194: 3246.78 | H194: 3314.96238 | I194: 3381.2622 | J194: 3445.50456 | K194: 3510.97122 | L194: 3574.16736 | M194: 3638.50194 | N194: 3703.99722 | O194: 3766.9644 | P194: -1 | Q194: 8.78 | R194: 18.96238
B195: Vehicles | C195: 8522 | D195: 8957 | E195: 9391 | F195: 8086.92 | G195: 8521.68 | H195: 8956.56 | I195: 9391.3 | J195: 9826.09 | K195: 10260.87 | L195: 10695.65 | M195: 11130.43 | N195: 11130.43 | O195: 11130.43 | P195: -435.08 | Q195: -435.32 | R195: -434.44
A197: 4200 | B197: Elections
B198: Consulting (detail below) | C198: 146303 | D198: 197503 | E198: 38454 | F198: 120000 | G198: 252697.5 | H198: 37959.44657 | I198: 182455.2476 | J198: 216568.381 | K198: 0 | L198: 177950.8244 | M198: 228836.6 | N198: 0 | O198: 189532.8 | P198: =F198-C198 -> -26303 | Q198: 55194.5 | R198: -494.553426
B199: Consulting - GL
B200: EL (Elections) | F200: 120000 | G200: 252697.5 | H200: 0 | I200: 160330.3092 | J200: 216568.381 | K200: 0 | L200: 177950.8244 | M200: 228836.6 | N200: 0 | O200: 189532.8
B201: EL (Representation Review) | F201: 0 | G201: 0 | H201: 37959.44657 | I201: 22124.93832 | J201: 0 | K201: 0 | L201: 0 | M201: 0 | N201: 0 | O201: 0
B202: General Expenses | C202: 19517 | D202: 20044 | F202: 19022 | G202: 19421.462 | H202: 0 | I202: 21237.09117 | J202: 21640.58572 | K202: 0 | L202: 23570.39739 | M202: 22852.76706 | N202: 0 | O202: 23659.61634 | P202: -495 | Q202: -622.538 | R202: 0
A204: ORGANISATIONAL SUPPORT
A206: 1220 | B206: Contracts & Partnering
B207: ACC levies | C207: 931 | D207: 950 | E207: 971 | F207: 1127.4 | G207: 1151.0754 | H207: 1175.247983 | I207: 1277.170784 | J207: 1327.461894 | K207: 1378.387428 | L207: 1429.858016 | M207: 1483.25019 | N207: 1537.135551 | O207: 1591.400309 | P207: =F207-C207 -> 196.4 | Q207: =G207-D207 -> 201.0754 | R207: =H207-E207 -> 204.2479834
B208: Audit fees - financial statements | C208: 106017 | D208: 107925 | E208: 109868 | F208: 181144 | G208: 104142 | H208: 106328.982 | I208: 108455.58 | J208: 110516.184 | K208: 112616.058 | L208: 114643.104 | M208: 116706.666 | N208: 118807.458 | O208: 120827.16 | P208: 75127 | Q208: -3783 | R208: -3539.018 | S208: Yr 1 variance is to cover remainder of fixed term for 2 staff (Jul to Oct 2024).
B209: Cafeteria | C209: 1060 | D209: 1079 | E209: 1099 | F209: 600 | G209: 613 | H209: 625 | I209: 638 | J209: 650 | K209: 662 | L209: 674 | M209: 687 | N209: 699 | O209: 711 | P209: -460 | Q209: -466 | R209: -474
B210: Catering Costs | C210: 265 | D210: 270 | E210: 275 | P210: -265 | Q210: -270 | R210: -275
B211: Consulting | C211: 31805 | D211: 32378 | E211: 10987 | F211: 20000 | G211: 20420 | H211: 20849 | I211: 21266 | J211: 21670 | K211: 22082 | L211: 22479 | M211: 22884 | N211: 23296 | O211: 23692 | P211: -11805 | Q211: -11958 | R211: 9862 | S211: Covering continued systems CMS/P2P development and evolution; data integrity and forward pipeline tools; and specialist support for interactive self-learning for staff; moving in later years to development of formal learning/qulalification pathways in contract management particularly for higher risk contracts
B212: Kiwisaver | C212: 10348 | D212: 10555 | E212: 10787 | F212: 13008.96 | G212: 13295.16 | H212: 13574.36 | I212: 13859.43 | J212: 14136.61 | K212: 14405.21 | L212: 14678.91 | M212: 14957.81 | N212: 15227.05 | O212: 15501.13 | P212: 2660.96 | Q212: 2740.16 | R212: 2787.36
B213: Minor IT/Comms purchases | C213: 0 | D213: 0 | E213: 0 | F213: 1500 | G213: 1531.5 | H213: 1563.6615 | I213: 1594.935 | J213: 1625.238 | K213: 1656.1185 | L213: 1685.928 | M213: 1716.2745 | N213: 1747.1685 | O213: 1776.87 | P213: 1500 | Q213: 1531.5 | R213: 1563.6615
B214: Plant Hire | C214: 1060 | D214: 1079 | E214: 1099 | F214: 0 | G214: 0 | H214: 0 | I214: 0 | J214: 0 | K214: 0 | L214: 0 | M214: 0 | N214: 0 | O214: 0 | P214: -1060 | Q214: -1079 | R214: -1099
B215: Salaries and wages - permanent | C215: 344936 | D215: 351835 | E215: 359576 | F215: 433632 | G215: 365839 | H215: 374249 | I215: 384648 | J215: 393887 | K215: 402841 | L215: 411964 | M215: 421261 | N215: 430235 | O215: 439372 | P215: 88696 | Q215: 14004 | R215: 14673
B216: Subscriptions | C216: 5301 | D216: 5396 | E216: 5493 | F216: 5255 | G216: 5365.355 | H216: 5478.027455 | I216: 5587.58895 | J216: 5693.75046 | K216: 5801.935145 | L216: 5906.36776 | M216: 6012.681665 | N216: 6120.913645 | O216: 6224.9679 | P216: -46 | Q216: -30.645 | R216: -14.972545
B217: Training Costs | C217: 10602 | D217: 10793 | E217: 10987 | F217: 5000 | G217: 5105 | H217: 5212 | I217: 5316 | J217: 5417 | K217: 5520 | L217: 5620 | M217: 5721 | N217: 5824 | O217: 5923 | P217: -5602 | Q217: -5688 | R217: -5775
B218: Vehicles | C218: 12783 | D218: 13435 | E218: 14087 | F218: 0 | G218: 0 | H218: 0 | P218: -12783 | Q218: -13435 | R218: -14087
A220: 1330 | B220: Community Connections
B221: ACC levies | C221: 4025 | D221: 4105 | E221: 4195 | F221: 5056.17 | G221: 5167.40574 | H221: 5291.423478 | I221: 5767.000953 | J221: 6011.74702 | K221: 6254.60976 | L221: 6507.294063 | M221: 6763.553874 | N221: 7023.009758 | O221: 7285.26644 | P221: =F221-C221 -> 1031.17 | Q221: =G221-D221 -> 1062.40574 | R221: =H221-E221 -> 1096.423478
B222: Advertising - detail below | C222: 2169 | D222: 2227 | E222: 2285 | F222: 2500 | G222: 2555 | H222: 2616.32 | I222: 2676.495 | J222: 2735.3775 | K222: 2792.82 | L222: 2851.47 | M222: 2908.5 | N222: 2966.67 | O222: 3023.0375 | P222: 331 | Q222: 328 | R222: 331.32
B223: Advertising - GL
B224: EV ( Events & Venues - Volunteer Training kits) | F224: 2500 | G224: 2555 | H224: 2616.32 | I224: 2676.495 | J224: 2735.3775 | K224: 2792.82 | L224: 2851.47 | M224: 2908.5 | N224: 2966.67 | O224: 3023.0375
B225: Catering Costs | C225: 1699 | D225: 1745 | E225: 1790 | F225: 0 | G225: 0 | H225: 0 | I225: 0 | J225: 0 | K225: 0 | L225: 0 | M225: 0 | N225: 0 | O225: 0 | P225: -1699 | Q225: -1745 | R225: -1790
B226: Consulting | C226: 47686 | D226: 48545 | E226: 49419 | F226: 46016 | G226: 46982.336 | H226: 47968.96506 | I226: 48928.35264 | J226: 49857.96787 | K226: 50805.29926 | L226: 51719.77523 | M226: 52650.72493 | N226: 53598.47046 | O226: 54509.63328 | P226: -1670 | Q226: -1562.664 | R226: -1450.034944
B227: FBT | C227: 7701 | D227: 7909 | E227: 8115 | F227: 7316 | G227: 7476.952 | H227: 7656.440709 | I227: 7832.494968 | J227: 8004.808716 | K227: 8172.908448 | L227: 8344.541808 | M227: 8511.4344 | N227: 8681.663088 | O227: 8846.61694 | P227: -385 | Q227: -432.048 | R227: -458.5592909
B228: General Expenses - detail below | C228: 18433 | D228: 18930 | E228: 19422 | F228: 10284 | G228: 10499.964 | H228: 10720.46324 | I228: 10934.87436 | J228: 11142.63173 | K228: 11354.34844 | L228: 11558.72237 | M228: 11766.77797 | N228: 11978.58724 | O228: 12182.22072 | P228: -8149 | Q228: -8430.036 | R228: -8701.536756
B229: General Expenses - GL | F229: 5284 | G229: 5394.964 | H229: 5508.258244 | I229: 5618.42436 | J229: 5725.171728 | K229: 5833.953436 | L229: 5938.962368 | M229: 6045.862972 | N229: 6154.692236 | O229: 6259.32072
B230: EV ( Events & Venues - General Expenses) | F230: 5000 | G230: 5105 | H230: 5212.205 | I230: 5316.45 | J230: 5417.46 | K230: 5520.395 | L230: 5619.76 | M230: 5720.915 | N230: 5823.895 | O230: 5922.9
B231: Kiwisaver | C231: 44725 | D231: 45613 | E231: 46609 | F231: 58340.3 | G231: 59623.82 | H231: 60875.92 | I231: 62154.3 | J231: 63397.39 | K231: 64601.94 | L231: 65829.38 | M231: 67080.13 | N231: 68287.58 | O231: 69516.75 | P231: 13615.3 | Q231: 14010.82 | R231: 14266.92 | S231: KS budget has increased in line to salaries increased budget
B232: Mileage Reimbursement | C232: 542 | D232: 557 | E232: 571 | F232: 515 | G232: 526.33 | H232: 539.0037811 | I232: 551.35797 | J232: 563.487765 | K232: 575.32092 | L232: 587.40282 | M232: 599.151 | N232: 611.13402 | O232: 622.745725 | P232: -27 | Q232: -30.67 | R232: -31.99621888
B233: Salaries and wages - permanent | C233: 1490840 | D233: 1520438 | E233: 1553648 | F233: 2019677.38 | G233: 2062460.29 | H233: 2100175.18 | I233: 2146810.08 | J233: 2188246.28 | K233: 2228397.96 | L233: 2269312.52 | M233: 2311004.46 | N233: 2351252.54 | O233: 2392225.09 | P233: 528837.38 | Q233: 542022.29 | R233: 546527.18 | S233: salaries have increased budgets
B234: Software Support - detail below | C234: 0 | D234: 0 | E234: 0 | F234: 0 | G234: 0 | H234: 0 | I234: 0 | J234: 0 | K234: 0 | L234: 0 | M234: 0 | N234: 0 | O234: 0 | P234: 0 | Q234: 0 | R234: 0
B235: Software Support - GL
B236: EV ( Events & Venues - Consultant Event Strategy)
B237: Subscriptions | C237: 16819 | D237: 17273 | E237: 17722 | F237: 5000 | G237: 5110 | H237: 5232.64 | I237: 5352.99 | J237: 5470.755 | K237: 5585.64 | L237: 5702.94 | M237: 5817 | N237: 5933.34 | O237: 6046.075 | P237: -11819 | Q237: -12163 | R237: -12489.36
B238: Training Costs | C238: 32311 | D238: 33183 | E238: 34046 | F238: 20000 | G238: 20440 | H238: 20930.56 | I238: 21411.96 | J238: 21883.02 | K238: 22342.56 | L238: 22811.76 | M238: 23268 | N238: 23733.36 | O238: 24184.3 | P238: -12311 | Q238: -12743 | R238: -13115.44
... 1226 more rows

Sheet VARIANCE REPORT (hidden)
A3: Row Labels | B3: Sum of Total Budget 2024/25 | C3: Sum of Year 2025/26 Inflated | D3: Sum of Year 2026/27 Inflated | E3: Sum of Year 2027/28 Inflated | F3: Sum of Year 2028/29 Inflated | G3: 2029/30 | H3: 2030/31 | I3: 2031/32 | J3: Sum of Year 2032/33 Inflated | K3: Sum of Year 2033/34 Inflated
A4: 3WATERS | B4: 31278962.61 | C4: 33413375.74 | D4: 34928286.11 | E4: 37730004.12 | F4: 40944241.37 | G4: 42938952.58 | H4: 44659294.99 | I4: 46884907.75 | J4: 45975475.33 | K4: 47338979.15
A5: 1250 | B5: 50000 | C5: 0 | D5: 0 | E5: 0 | F5: 0 | G5: 0 | H5: 0 | I5: 0 | J5: 0 | K5: 0
A6: Tamahere SP Drainage | B6: 50000 | C6: 0 | D6: 0 | E6: 0 | F6: 0 | G6: 0 | H6: 0 | I6: 0 | J6: 0 | K6: 0
A7: General Expenses | B7: 50000 | C7: 0 | D7: 0 | E7: 0 | F7: 0 | G7: 0 | H7: 0 | I7: 0 | J7: 0 | K7: 0
A8: 1360 | B8: 1584080.09 | C8: 1645161.981 | D8: 1716867.729 | E8: 1750695.032 | F8: 2073422.001 | G8: 2114276.768 | H8: 2154670.272 | I8: 1898277.139 | J8: 1931352.264 | K8: 1964069.927
A9: Waters Services Management | B9: 1584080.09 | C9: 1645161.981 | D9: 1716867.729 | E9: 1750695.032 | F9: 2073422.001 | G9: 2114276.768 | H9: 2154670.272 | I9: 1898277.139 | J9: 1931352.264 | K9: 1964069.927
A10: ACC levies | B10: 1971.54 | C10: 2012.94234 | D10: 2055.214129 | E10: 2233.366215 | F10: 2321.3166 | G10: 2410.370069 | H10: 2500.377338 | I10: 2593.737001 | J10: 2687.960498 | K10: 2782.862719
A11: Advertising | B11: 10000 | C11: 10210 | D11: 10424.41 | E11: 10632.9 | F11: 16252.38 | G11: 16561.185 | H11: 16859.28 | I11: 11441.83 | J11: 11647.79 | K11: 11845.8
A12: Cafeteria | B12: 2000 | C12: 2042 | D12: 2606.1025 | E12: 2658.225 | F12: 2708.73 | G12: 2760.1975 | H12: 2809.88 | I12: 2860.4575 | J12: 2911.9475 | K12: 2961.45
A13: Consulting | B13: 300000 | C13: 331825 | D13: 364854.35 | E13: 372151.5 | F13: 650095.2 | G13: 662447.4 | H13: 674371.2 | I13: 400464.05 | J13: 407672.65 | K13: 414603
A14: Employment Related Expenses | B14: 10000 | C14: 10210 | D14: 13030.5125 | E14: 13291.125 | F14: 16252.38 | G14: 16561.185 | H14: 16859.28 | I14: 17162.745 | J14: 17471.685 | K14: 17768.7
A15: FBT | B15: 5400 | C15: 5513.4 | D15: 5629.1814 | E15: 5741.766 | F15: 5850.8568 | G15: 5962.0266 | H15: 6069.3408 | I15: 6178.5882 | J15: 6289.8066 | K15: 6396.732
A16: General Expenses | B16: 5000 | C16: 5105 | D16: 7818.3075 | E16: 5316.45 | F16: 10834.92 | G16: 11040.79 | H16: 11239.52 | I16: 5720.915 | J16: 5823.895 | K16: 5922.9
A17: Insurance premiums - other | B17: 404579 | C17: 413075.159 | D17: 421749.7373 | E17: 430184.8049 | F17: 438358.1099 | G17: 446687.1777 | H17: 454727.3762 | I17: 462912.414 | J17: 471245.123 | K17: 479256.1918
A18: Kiwisaver | B18: 22748.52 | C18: 23249.04 | D18: 23737.26 | E18: 24235.74 | F18: 24720.45 | G18: 25190.14 | H18: 25668.76 | I18: 26156.46 | J18: 26627.28 | K18: 27106.57
A19: Landline call costs/line rental | B19: 500 | C19: 510.5 | D19: 781.83075 | E19: 531.645 | F19: 541.746 | G19: 552.0395 | H19: 561.976 | I19: 572.0915 | J19: 582.3895 | K19: 592.29
A20: Membership Expenses | B20: 3000 | C20: 3063 | D20: 3648.5435 | E20: 3721.515 | F20: 3792.222 | G20: 3864.2765 | H20: 3933.832 | I20: 4004.6405 | J20: 4076.7265 | K20: 4146.03
A21: Public Notices and insurance | B21: 1500 | C21: 1531.5 | D21: 1563.6615 | E21: 1594.935 | F21: 1625.238 | G21: 1656.1185 | H21: 1685.928 | I21: 1716.2745 | J21: 1747.1685 | K21: 1776.87
A22: Salaries and wages - permanent | B22: 758285.31 | C22: 774967.6 | D22: 789673.7 | E22: 807857.99 | F22: 824015.15 | G22: 839671.44 | H22: 855625.19 | I22: 871882.07 | J22: 887575.95 | K22: 903552.32
A23: Training Costs | B23: 10000 | C23: 10210 | D23: 13030.5125 | E23: 13291.125 | F23: 16252.38 | G23: 16561.185 | H23: 16859.28 | I23: 17162.745 | J23: 17471.685 | K23: 17768.7
A24: Travel - General | B24: 3000 | C24: 3063 | D24: 5212.205 | E24: 3721.515 | F24: 3792.222 | G24: 3864.2765 | H24: 3933.832 | I24: 4004.6405 | J24: 4076.7265 | K24: 4146.03
A25: Vehicles | B25: 46095.72 | C25: 48573.84 | D25: 51052.2 | E25: 53530.43 | F25: 56008.7 | G25: 58486.96 | H25: 60965.22 | I25: 63443.48 | J25: 63443.48 | K25: 63443.48
A26: 1700 | B26: 3717491 | C26: 3821394.016 | D26: 3935835.766 | E26: 4049780.267 | F26: 4158945.228 | G26: 4262751.763 | H26: 4364899.56 | I26: 4469496.5 | J26: 4572141.547 | K26: 4677146.677
A27: DW Stormwater | B27: 3710822 | C27: 3814725.016 | D27: 3929166.766 | E27: 4043111.267 | F27: 4152276.228 | G27: 4256082.763 | H27: 4358230.56 | I27: 4462827.5 | J27: 4565472.547 | K27: 4670477.677
A28: Consulting | B28: 50000 | C28: 51400 | D28: 52942 | E28: 54477.3 | F28: 55948.2 | G28: 57346.9 | H28: 58723.25 | I28: 60132.6 | J28: 61515.65 | K28: 62930.5
A29: Insurance premiums - other | B29: 822 | C29: 845.016 | D29: 870.36648 | E29: 895.606812 | F29: 919.788408 | G29: 942.783036 | H29: 965.41023 | I29: 988.579944 | J29: 1011.317286 | K29: 1034.57742
A30: Rates - council owned properties | B30: 200000 | C30: 205600 | D30: 211768 | E30: 217909.2 | F30: 223792.8 | G30: 229387.6 | H30: 234893 | I30: 240530.4 | J30: 246062.6 | K30: 251722
A31: Waikato Regional Council Rates | B31: 20000 | C31: 20560 | D31: 21176.8 | E31: 21790.92 | F31: 22379.28 | G31: 22938.76 | H31: 23489.3 | I31: 24053.04 | J31: 24606.26 | K31: 25172.2
A32: Watercare Operational Charges | B32: 3440000 | C32: 3536320 | D32: 3642409.6 | E32: 3748038.24 | F32: 3849236.16 | G32: 3945466.72 | H32: 4040159.6 | I32: 4137122.88 | J32: 4232276.72 | K32: 4329618.4
A33: SW DIW (District Wide stormwater targeted rates) | B33: 6669 | C33: 6669 | D33: 6669 | E33: 6669 | F33: 6669 | G33: 6669 | H33: 6669 | I33: 6669 | J33: 6669 | K33: 6669
A34: Rate Remission Grants | B34: 6669 | C34: 6669 | D34: 6669 | E34: 6669 | F34: 6669 | G34: 6669 | H34: 6669 | I34: 6669 | J34: 6669 | K34: 6669
A35: 1800 | B35: 9241027 | C35: 9929270.56 | D35: 9903603.867 | E35: 10238806.75 | F35: 10991538.87 | G35: 10900366.26 | H35: 11222526.63 | I35: 11999165.63 | J35: 10802873.86 | K35: 11040740.25
A36: DW Wastewater | B36: 9092940 | C36: 9781183.56 | D36: 9755516.867 | E36: 10090719.75 | F36: 10843451.87 | G36: 10752279.26 | H36: 11074439.63 | I36: 11851078.63 | J36: 10654786.86 | K36: 10892653.25
A37: Rates Council Properties | B37: 290300 | C37: 298428.4 | D37: 298428.4 | E37: 298428.4 | F37: 298428.4 | G37: 298428.4 | H37: 298428.4 | I37: 298428.4 | J37: 298428.4 | K37: 298428.4
A38: Watercare Operational Charges | B38: 8788760 | C38: 9468486.52 | D38: 9442819.827 | E38: 9778022.712 | F38: 10530754.83 | G38: 10439582.22 | H38: 10761742.59 | I38: 11538381.59 | J38: 10342089.82 | K38: 10579956.21
A39: WRC Rates | B39: 13880 | C39: 14268.64 | D39: 14268.64 | E39: 14268.64 | F39: 14268.64 | G39: 14268.64 | H39: 14268.64 | I39: 14268.64 | J39: 14268.64 | K39: 14268.64
A40: WW HUN (Huntly wastewater targeted rates) | B40: 44147 | C40: 44147 | D40: 44147 | E40: 44147 | F40: 44147 | G40: 44147 | H40: 44147 | I40: 44147 | J40: 44147 | K40: 44147
A41: Rate Remission Grants | B41: 44147 | C41: 44147 | D41: 44147 | E41: 44147 | F41: 44147 | G41: 44147 | H41: 44147 | I41: 44147 | J41: 44147 | K41: 44147
A42: WW NGA (Ngaruawahia wastewater targeted rates) | B42: 62588 | C42: 62588 | D42: 62588 | E42: 62588 | F42: 62588 | G42: 62588 | H42: 62588 | I42: 62588 | J42: 62588 | K42: 62588
A43: Rate Remission Grants | B43: 62588 | C43: 62588 | D43: 62588 | E43: 62588 | F43: 62588 | G43: 62588 | H43: 62588 | I43: 62588 | J43: 62588 | K43: 62588
A44: WW TAU (Taupiri wastewater targeted rates) | B44: 2235 | C44: 2235 | D44: 2235 | E44: 2235 | F44: 2235 | G44: 2235 | H44: 2235 | I44: 2235 | J44: 2235 | K44: 2235
A45: Rate Remission Grants | B45: 2235 | C45: 2235 | D45: 2235 | E45: 2235 | F45: 2235 | G45: 2235 | H45: 2235 | I45: 2235 | J45: 2235 | K45: 2235
A46: WW RAG (Raglan wastewater targeted rates) | B46: 34647 | C46: 34647 | D46: 34647 | E46: 34647 | F46: 34647 | G46: 34647 | H46: 34647 | I46: 34647 | J46: 34647 | K46: 34647
A47: Rate Remission Grants | B47: 34647 | C47: 34647 | D47: 34647 | E47: 34647 | F47: 34647 | G47: 34647 | H47: 34647 | I47: 34647 | J47: 34647 | K47: 34647
A48: WW TKA (Te Kauwhata wastewater targeted rates) | B48: 2235 | C48: 2235 | D48: 2235 | E48: 2235 | F48: 2235 | G48: 2235 | H48: 2235 | I48: 2235 | J48: 2235 | K48: 2235
A49: Rate Remission Grants | B49: 2235 | C49: 2235 | D49: 2235 | E49: 2235 | F49: 2235 | G49: 2235 | H49: 2235 | I49: 2235 | J49: 2235 | K49: 2235
A50: WW RAN (Rangiriri wastewater targeted rates) | B50: 2235 | C50: 2235 | D50: 2235 | E50: 2235 | F50: 2235 | G50: 2235 | H50: 2235 | I50: 2235 | J50: 2235 | K50: 2235
A51: Rate Remission Grants | B51: 2235 | C51: 2235 | D51: 2235 | E51: 2235 | F51: 2235 | G51: 2235 | H51: 2235 | I51: 2235 | J51: 2235 | K51: 2235
A52: 1810 | B52: 1196498 | C52: 1258606.908 | D52: 1326826.304 | E52: 1398410.763 | F52: 1472223.877 | G52: 1548102.081 | H52: 1627230.77 | I52: 225764 | J52: 225764 | K52: 225764
A53: WW POK (Pokeno wastewater treatment plant extensions) | B53: 873661 | C53: 929558.72 | D53: 990955.6499 | E53: 1055382.196 | F53: 1121814.001 | G53: 1190104.159 | H53: 1261320.21 | I53: 0 | J53: 0 | K53: 0
A54: R&M Contractors | B54: 873661 | C54: 929558.72 | D54: 990955.6499 | E54: 1055382.196 | F54: 1121814.001 | G54: 1190104.159 | H54: 1261320.21 | I54: 0 | J54: 0 | K54: 0
A55: WW TUA (Tuakau wastewater treatment plant extensions) | B55: 97073 | C55: 103284.188 | D55: 110106.6539 | E55: 117264.5673 | F55: 124645.8758 | G55: 132233.9228 | H55: 140146.5595 | I55: 0 | J55: 0 | K55: 0
A56: R&M Contractors | B56: 97073 | C56: 103284.188 | D56: 110106.6539 | E56: 117264.5673 | F56: 124645.8758 | G56: 132233.9228 | H56: 140146.5595 | I56: 0 | J56: 0 | K56: 0
A57: WW POK (Pokeno wastewater targeted rates) | B57: 116794 | C57: 116794 | D57: 116794 | E57: 116794 | F57: 116794 | G57: 116794 | H57: 116794 | I57: 116794 | J57: 116794 | K57: 116794
A58: Rate Remission Grants | B58: 116794 | C58: 116794 | D58: 116794 | E58: 116794 | F58: 116794 | G58: 116794 | H58: 116794 | I58: 116794 | J58: 116794 | K58: 116794
A59: WW TUA (Tuakau wastewater targeted rates) | B59: 108970 | C59: 108970 | D59: 108970 | E59: 108970 | F59: 108970 | G59: 108970 | H59: 108970 | I59: 108970 | J59: 108970 | K59: 108970
A60: Rate Remission Grants | B60: 108970 | C60: 108970 | D60: 108970 | E60: 108970 | F60: 108970 | G60: 108970 | H60: 108970 | I60: 108970 | J60: 108970 | K60: 108970
A61: 1820 | B61: 4800464 | C61: 5320139 | D61: 5897574 | E61: 7783091 | F61: 8614708 | G61: 10352810 | H61: 10785139.78 | I61: 13027070 | J61: 13555277 | K61: 14108690
A62: WW RAG (Raglan wastewater treatment plant operation) | B62: 4794 | C62: 4794 | D62: 4794 | E62: 4794 | F62: 4794 | G62: 4794 | H62: 4794 | I62: 4794 | J62: 4794 | K62: 4794
A63: Rates - council owned properties | B63: 4794 | C63: 4794 | D63: 4794 | E63: 4794 | F63: 4794 | G63: 4794 | H63: 4794 | I63: 4794 | J63: 4794 | K63: 4794
A64: WW TKA (Te Kauwhata wastewater treatment plant operation) | B64: 1721 | C64: 1721 | D64: 1721 | E64: 1721 | F64: 1721 | G64: 1721 | H64: 1721 | I64: 1721 | J64: 1721 | K64: 1721
A65: Rates - council owned properties | B65: 1721 | C65: 1721 | D65: 1721 | E65: 1721 | F65: 1721 | G65: 1721 | H65: 1721 | I65: 1721 | J65: 1721 | K65: 1721
A66: WW TKO (Te Kowhai wastewater treatment plant operation) | B66: 1106 | C66: 1106 | D66: 1106 | E66: 1106 | F66: 1106 | G66: 1106 | H66: 1106 | I66: 1106 | J66: 1106 | K66: 1106
A67: Rates - council owned properties | B67: 1106 | C67: 1106 | D67: 1106 | E67: 1106 | F67: 1106 | G67: 1106 | H67: 1106 | I67: 1106 | J67: 1106 | K67: 1106
A68: WW 0 (Watercare wastewater treatment plant operation) | B68: 1819560 | C68: 2056773 | D68: 2324912 | E68: 2628007 | F68: 2970616 | G68: 3173898 | H68: 3391089 | I68: 3621683 | J68: 3867957 | K68: 4130979
A69: Wastewater volume charge from Watercare | B69: 1819560 | C69: 2056773 | D69: 2324912 | E69: 2628007 | F69: 2970616 | G69: 3173898 | H69: 3391089 | I69: 3621683 | J69: 3867957 | K69: 4130979
A70: WW POK (Pokeno wastewater treatment plant operation) | B70: 2973283 | C70: 3255745 | D70: 3565041 | E70: 5147463 | F70: 5636471 | G70: 7171291 | H70: 7386429.78 | I70: 9397766 | J70: 9679699 | K70: 9970090
A71: Wastewater volume charge from Watercare | B71: 2973283 | C71: 3255745 | D71: 3565041 | E71: 5147463 | F71: 5636471 | G71: 7171291 | H71: 7386429.78 | I71: 9397766 | J71: 9679699 | K71: 9970090
A72: 1900 | B72: 9116970 | C72: 9682881.16 | D72: 10179137.47 | E72: 10300463.95 | F72: 11155155 | G72: 11078732.88 | H72: 11604633.96 | I72: 12301124.1 | J72: 11855929.71 | K72: 12220738.35
A73: DW Water | B73: 9111650 | C73: 9677561.16 | D73: 10173817.47 | E73: 10295143.95 | F73: 11149835 | G73: 11073412.88 | H73: 11599313.96 | I73: 12295804.1 | J73: 11850609.71 | K73: 12215418.35
A74: R&M Contractors | B74: 0 | C74: 0 | D74: 0 | E74: 0 | F74: 0 | G74: 0 | H74: 0 | I74: 0 | J74: 0 | K74: 0
A75: Rates Council Properties | B75: 282700 | C75: 290615.6 | D75: 290615.6 | E75: 290615.6 | F75: 290615.6 | G75: 290615.6 | H75: 290615.6 | I75: 290615.6 | J75: 290615.6 | K75: 290615.6
A76: Watercare Operational Charges | B76: 8810750 | C76: 9368235.96 | D76: 9864492.269 | E76: 9985818.746 | F76: 10840509.8 | G76: 10764087.68 | H76: 11289988.76 | I76: 11986478.9 | J76: 11541284.51 | K76: 11906093.15
A77: WRC Rates | B77: 18200 | C77: 18709.6 | D77: 18709.6 | E77: 18709.6 | F77: 18709.6 | G77: 18709.6 | H77: 18709.6 | I77: 18709.6 | J77: 18709.6 | K77: 18709.6
A78: WA HUN (Huntly water supply targeted rates) | B78: 3129 | C78: 3129 | D78: 3129 | E78: 3129 | F78: 3129 | G78: 3129 | H78: 3129 | I78: 3129 | J78: 3129 | K78: 3129
A79: Rate Remission Grants | B79: 3129 | C79: 3129 | D79: 3129 | E79: 3129 | F79: 3129 | G79: 3129 | H79: 3129 | I79: 3129 | J79: 3129 | K79: 3129
A80: WA NGA (Ngaruawahia water supply targeted rates) | B80: 1252 | C80: 1252 | D80: 1252 | E80: 1252 | F80: 1252 | G80: 1252 | H80: 1252 | I80: 1252 | J80: 1252 | K80: 1252
A81: Rate Remission Grants | B81: 1252 | C81: 1252 | D81: 1252 | E81: 1252 | F81: 1252 | G81: 1252 | H81: 1252 | I81: 1252 | J81: 1252 | K81: 1252
A82: WA TAU (Taupiri water supply targeted rates) | B82: 313 | C82: 313 | D82: 313 | E82: 313 | F82: 313 | G82: 313 | H82: 313 | I82: 313 | J82: 313 | K82: 313
A83: Rate Remission Grants | B83: 313 | C83: 313 | D83: 313 | E83: 313 | F83: 313 | G83: 313 | H83: 313 | I83: 313 | J83: 313 | K83: 313
A84: WA RAG (Raglan water supply targeted rates) | B84: 626 | C84: 626 | D84: 626 | E84: 626 | F84: 626 | G84: 626 | H84: 626 | I84: 626 | J84: 626 | K84: 626
A85: Rate Remission Grants | B85: 626 | C85: 626 | D85: 626 | E85: 626 | F85: 626 | G85: 626 | H85: 626 | I85: 626 | J85: 626 | K85: 626
A86: 1910 | B86: 848474 | C86: 985943.492 | D86: 1147913.856 | E86: 1335193.952 | F86: 1550011.312 | G86: 1697482.003 | H86: 1857169.76 | I86: 1901741.581 | J86: 1945481.644 | K86: 1990227.407
A87: WA 0 (Northern Waikato water supply reticulation operation) | B87: 848474 | C87: 985943.492 | D87: 1147913.856 | E87: 1335193.952 | F87: 1550011.312 | G87: 1697482.003 | H87: 1857169.76 | I87: 1901741.581 | J87: 1945481.644 | K87: 1990227.407
A88: Water | B88: 848474 | C88: 985943.492 | D88: 1147913.856 | E88: 1335193.952 | F88: 1550011.312 | G88: 1697482.003 | H88: 1857169.76 | I88: 1901741.581 | J88: 1945481.644 | K88: 1990227.407
A89: 1920 | B89: 717200 | C89: 763086.456 | D89: 813487.7129 | E89: 866376.4719 | F89: 920910.7289 | G89: 976970.9639 | H89: 1035433.008 | I89: 1060283.259 | J89: 1084669.777 | K89: 1109617.007
A90: WA POK (Pokeno water supply treatment plant extensions) | B90: 645480 | C90: 686778.016 | D90: 732139.1534 | E90: 779739.0426 | F90: 828819.9917 | G90: 879273.6381 | H90: 931889.8244 | I90: 954255.0533 | J90: 976202.9227 | K90: 998655.432
A91: R&M Contractors | B91: 645480 | C91: 686778.016 | D91: 732139.1534 | E91: 779739.0426 | F91: 828819.9917 | G91: 879273.6381 | H91: 931889.8244 | I91: 954255.0533 | J91: 976202.9227 | K91: 998655.432
A92: WA TUA (Tuakau water supply treatment plant extensions) | B92: 71720 | C92: 76308.44 | D92: 81348.55952 | E92: 86637.42928 | F92: 92090.7372 | G92: 97697.32578 | H92: 103543.1833 | I92: 106028.2056 | J92: 108466.8547 | K92: 110961.5748
A93: R&M Contractors | B93: 71720 | C93: 76308.44 | D93: 81348.55952 | E93: 86637.42928 | F93: 92090.7372 | G93: 97697.32578 | H93: 103543.1833 | I93: 106028.2056 | J93: 108466.8547 | K93: 110961.5748
A94: 1930 | B94: 4773 | C94: 4906.644 | D94: 5053.84332 | E94: 5200.403058 | F94: 5340.815172 | G94: 5474.335074 | H94: 5605.721445 | I94: 0 | J94: 0 | K94: 0
A95: WA TKA (Te Kauwhata water association headwork's) | B95: 4773 | C95: 4906.644 | D95: 5053.84332 | E95: 5200.403058 | F95: 5340.815172 | G95: 5474.335074 | H95: 5605.721445 | I95: 0 | J95: 0 | K95: 0
A96: Insurance premiums - other | B96: 4773 | C96: 4906.644 | D96: 5053.84332 | E96: 5200.403058 | F96: 5340.815172 | G96: 5474.335074 | H96: 5605.721445 | I96: 0 | J96: 0 | K96: 0
A97: 1940 | B97: 1332 | C97: 1332 | D97: 1332.04 | E97: 1332 | F97: 1332 | G97: 1332 | H97: 1332 | I97: 1332 | J97: 1332 | K97: 1332
A98: Water Southern Districts | B98: 1019 | C98: 1019 | D98: 1019.04 | E98: 1019 | F98: 1019 | G98: 1019 | H98: 1019 | I98: 1019 | J98: 1019 | K98: 1019
A99: Rates - council owned properties | B99: 1019 | C99: 1019 | D99: 1019.04 | E99: 1019 | F99: 1019 | G99: 1019 | H99: 1019 | I99: 1019 | J99: 1019 | K99: 1019
A100: WA 0 (Southern Districts water supply targeted rates) | B100: 313 | C100: 313 | D100: 313 | E100: 313 | F100: 313 | G100: 313 | H100: 313 | I100: 313 | J100: 313 | K100: 313
A101: Rate Remission Grants | B101: 313 | C101: 313 | D101: 313 | E101: 313 | F101: 313 | G101: 313 | H101: 313 | I101: 313 | J101: 313 | K101: 313
A102: 8410 | B102: 653.52 | C102: 653.52 | D102: 653.52 | E102: 653.53 | F102: 653.53 | G102: 653.53 | H102: 653.53 | I102: 653.53 | J102: 653.53 | K102: 653.53
A103: Tamahere DD | B103: 653.52 | C103: 653.52 | D103: 653.52 | E103: 653.53 | F103: 653.53 | G103: 653.53 | H103: 653.53 | I103: 653.53 | J103: 653.53 | K103: 653.53
A104: Rate Remission Grants | B104: 653.52 | C104: 653.52 | D104: 653.52 | E104: 653.53 | F104: 653.53 | G104: 653.53 | H104: 653.53 | I104: 653.53 | J104: 653.53 | K104: 653.53
A105: GOVERNAN | B105: 4028837.99 | C105: 4356340.265 | D105: 4144402.058 | E105: 4432457.137 | F105: 4495285.81 | G105: 4373261.084 | H105: 4612145.438 | I105: 4781689.345 | J105: 4562710.484 | K105: 4892066.921
A106: 2000 | B106: 1262045 | C106: 1347800.89 | D106: 1372978.239 | E106: 1398822.144 | F106: 1423827.35 | G106: 1448114.253 | H106: 1472805.871 | I106: 1497968.134 | J106: 1522678.339 | K106: 1547046.773
A107: Chief Executive | B107: 1262045 | C107: 1347800.89 | D107: 1372978.239 | E107: 1398822.144 | F107: 1423827.35 | G107: 1448114.253 | H107: 1472805.871 | I107: 1497968.134 | J107: 1522678.339 | K107: 1547046.773
A108: ACC levies | B108: 2784 | C108: 2842.464 | D108: 2902.155744 | E108: 3153.71814 | F108: 3277.5633 | G108: 3403.875557 | H108: 3530.333232 | I108: 3662.529783 | J108: 3794.849982 | K108: 3929.25186
A109: Allowances | B109: 17000 | C109: 17373.96 | D109: 17738.86 | E109: 18111.37 | F109: 18473.6 | G109: 18824.6 | H109: 19182.26 | I109: 19546.73 | J109: 19898.57 | K109: 20256.74
A110: Catering Costs | B110: 5610 | C110: 5727.81 | D110: 5848.09401 | E110: 5965.0569 | F110: 6078.39012 | G110: 6193.88319 | H110: 6305.37072 | I110: 6418.86663 | J110: 6534.41019 | K110: 6645.4938
A111: Consulting | B111: 8203 | C111: 8375.263 | D111: 8551.143523 | E111: 8722.16787 | F111: 8887.884876 | G111: 9056.760037 | H111: 9219.778256 | I111: 9385.733149 | J111: 9554.682137 | K111: 9717.10974
A112: Employment Related Expenses | B112: 12000 | C112: 12252 | D112: 12509.292 | E112: 12759.48 | F112: 13001.904 | G112: 13248.948 | H112: 13487.424 | I112: 13730.196 | J112: 13977.348 | K112: 14214.96
A113: FBT | B113: 6576 | C113: 6714.096 | D113: 6855.092016 | E113: 6992.19504 | F113: 7125.043392 | G113: 7260.423504 | H113: 7391.108352 | I113: 7524.147408 | J113: 7659.586704 | K113: 7789.79808
A114: General Expenses | B114: 7949 | C114: 8115.929 | D114: 8286.363509 | E114: 8452.09221 | F114: 8612.677908 | G114: 8776.323971 | H114: 8934.294448 | I114: 9095.110667 | J114: 9258.828271 | K114: 9416.22642
A115: Kiwisaver | B115: 32121 | C115: 32827 | D115: 33517 | E115: 34221 | F115: 34905 | G115: 35568 | H115: 36244 | I115: 36933 | J115: 37958 | K115: 38274
A116: Salaries and wages - permanent | B116: 1131694 | C116: 1215250 | D116: 1238229 | E116: 1261691 | F116: 1284505 | G116: 1306611 | H116: 1329138 | I116: 1352092 | J116: 1374252 | K116: 1396811
A117: Training Costs | B117: 10208 | C117: 10422.368 | D117: 10641.23773 | E117: 10854.06432 | F117: 11060.28634 | G117: 11270.43843 | H117: 11473.30202 | I117: 11679.82006 | J117: 11890.06403 | K117: 12092.19264
A118: Vehicles | B118: 27900 | C118: 27900 | D118: 27900 | E118: 27900 | F118: 27900 | G118: 27900 | H118: 27900 | I118: 27900 | J118: 27900 | K118: 27900
A119: 2020 | B119: 1357656.88 | C119: 1408434.074 | D119: 1418740.834 | E119: 1451251.405 | F119: 1469032.646 | G119: 1497527.489 | H119: 1526473.835 | I119: 1555599.728 | J119: 1581681.575 | K119: 1607963.619
A120: Council | B120: 1353656.88 | C120: 1404434.074 | D120: 1414740.834 | E120: 1447251.405 | F120: 1465032.646 | G120: 1493527.489 | H120: 1522473.835 | I120: 1551599.728 | J120: 1577681.575 | K120: 1603963.619
A121: ACC levies | B121: 2979.28 | C121: 3041.84488 | D121: 3105.723622 | E121: 3374.946257 | F121: 3507.84869 | G121: 3642.411825 | H121: 3778.423157 | I121: 3919.513285 | J121: 4061.898863 | K121: 4205.306383
A122: Catering Costs | B122: 16320 | C122: 16662.72 | D122: 18323.9862 | E122: 19008.43533 | F122: 19698.96805 | G122: 20414.42071 | H122: 21114.56227 | I122: 21494.62184 | J122: 21881.53829 | K122: 22253.51988
A123: Consulting | B123: 30761 | C123: 31374.309 | D123: 32022.74508 | E123: 32649.38274 | F123: 33458.23296 | G123: 33865.41517 | H123: 34464.86413 | I123: 35085.22751 | J123: 35716.78326 | K123: 36323.96112
A124: Discretionary Funds | B124: 30963 | C124: 30963 | D124: 30963 | E124: 30963 | F124: 30963 | G124: 30963 | H124: 30963 | I124: 30963 | J124: 30963 | K124: 30963
A125: FBT | B125: 8607 | C125: 8787.747 | D125: 8972.289687 | E125: 9151.73703 | F125: 9325.615644 | G125: 9502.807953 | H125: 9673.854864 | I125: 9847.983081 | J125: 10025.25285 | K125: 10195.68006
A126: General Expenses | B126: 26498 | C126: 46453.458 | D126: 27622.60162 | E126: 28175.05842 | F126: 16791.95902 | G126: 17111.01634 | H126: 17419.0081 | I126: 17732.54813 | J126: 18051.74494 | K126: 18358.62084
A127: Mayoral Fund | B127: 15000 | C127: 15000 | D127: 15000 | E127: 15000 | F127: 15000 | G127: 15000 | H127: 15000 | I127: 15000 | J127: 15000 | K127: 15000
A128: Mileage Reimbursement | B128: 42700 | C128: 43596.7 | D128: 44512.189 | E128: 45402.483 | F128: 46265.1084 | G128: 47144.1733 | H128: 47992.7504 | I128: 48856.6141 | J128: 49736.0633 | K128: 50581.566
A129: Salaries and wages - permanent | B129: 1024464 | C129: 1047002 | D129: 1066870 | E129: 1091438 | F129: 1113267 | G129: 1134419 | H129: 1155973 | I129: 1177936 | J129: 1199139 | K129: 1220724
A130: Subscriptions | B130: 72000 | C130: 73588.575 | D130: 75133.93508 | E130: 76636.62675 | F130: 78092.6859 | G130: 79576.49393 | H130: 81008.8404 | I130: 82466.98972 | J130: 83951.44643 | K130: 85378.6035
A131: Training Costs | B131: 41640 | C131: 42514.44 | D131: 43407.24324 | E131: 44275.3956 | F131: 45116.60688 | G131: 45973.84956 | H131: 46801.36128 | I131: 47643.78012 | J131: 48501.39756 | K131: 49325.9112
A132: Vehicles | B132: 41724.6 | C132: 45449.28 | D132: 48807.12 | E132: 51176.34 | F132: 53545.62 | G132: 55914.9 | H132: 58284.17 | I132: 60653.45 | J132: 60653.45 | K132: 60653.45
A133: EX INT (G&D Tamahere community committee) | B133: 4000 | C133: 4000 | D133: 4000 | E133: 4000 | F133: 4000 | G133: 4000 | H133: 4000 | I133: 4000 | J133: 4000 | K133: 4000
A134: General Grants | B134: 4000 | C134: 4000 | D134: 4000 | E134: 4000 | F134: 4000 | G134: 4000 | H134: 4000 | I134: 4000 | J134: 4000 | K134: 4000
A135: 2040 | B135: 64727.95 | C135: 65617.69248 | D135: 66402.40121 | E135: 67379.39266 | F135: 68243.70725 | G135: 69081.41878 | H135: 69935.02096 | I135: 70804.92991 | J135: 71644.92157 | K135: 72499.98065
A136: CB Huntly | B136: 64727.95 | C136: 65617.69248 | D136: 66402.40121 | E136: 67379.39266 | F136: 68243.70725 | G136: 69081.41878 | H136: 69935.02096 | I136: 70804.92991 | J136: 71644.92157 | K136: 72499.98065
A137: ACC levies | B137: 104.88 | C137: 107.08248 | D137: 109.3312121 | E137: 118.8226575 | F137: 123.5072531 | G137: 128.2387758 | H137: 133.0309587 | I137: 137.9999116 | J137: 143.0115656 | K137: 148.0606542
A138: Discretionary Funds | B138: 24026 | C138: 24026 | D138: 24026.04 | E138: 24026 | F138: 24026 | G138: 24026 | H138: 24026 | I138: 24026 | J138: 24026 | K138: 24026
A139: Rate Remission Grants | B139: 252.96 | C139: 252.96 | D139: 252.96 | E139: 253 | F139: 253 | G139: 253 | H139: 253 | I139: 253 | J139: 253 | K139: 253
A140: Salaries and wages - permanent | B140: 40344.11 | C140: 41231.65 | D140: 42014.07 | E140: 42981.57 | F140: 43841.2 | G140: 44674.18 | H140: 45522.99 | I140: 46387.93 | J140: 47222.91 | K140: 48072.92
A141: 2050 | B141: 62038.5 | C141: 62937.78642 | D141: 63730.90959 | E141: 64718.23861 | F141: 65591.78911 | G141: 66438.45783 | H141: 67301.19838 | I141: 68180.39591 | J141: 69029.36743 | K141: 69893.57799
A142: CB Ngaruawahia | B142: 62038.5 | C142: 62937.78642 | D142: 63730.90959 | E142: 64718.23861 | F142: 65591.78911 | G142: 66438.45783 | H142: 67301.19838 | I142: 68180.39591 | J142: 69029.36743 | K142: 69893.57799
A143: ACC levies | B143: 106.02 | C143: 108.24642 | D143: 110.5195948 | E143: 120.0986055 | F143: 124.8291133 | G143: 129.6078338 | H143: 134.4583778 | I143: 139.4759077 | J143: 144.5374261 | K143: 149.6479914
A144: Discretionary Funds | B144: 20999 | C144: 20999 | D144: 20999.04 | E144: 20999 | F144: 20999 | G144: 20999 | H144: 20999 | I144: 20999 | J144: 20999 | K144: 20999
A145: Rate Remission Grants | B145: 158.04 | C145: 158.04 | D145: 158.04 | E145: 158 | F145: 158 | G145: 158 | H145: 158 | I145: 158 | J145: 158 | K145: 158
A146: Salaries and wages - permanent | B146: 40775.44 | C146: 41672.5 | D146: 42463.31 | E146: 43441.14 | F146: 44309.96 | G146: 45151.85 | H146: 46009.74 | I146: 46883.92 | J146: 47727.83 | K146: 48586.93
A147: 2060 | B147: 51544.74 | C147: 52356.31886 | D147: 53072.05991 | E147: 53963.12115 | F147: 54751.46066 | G147: 55515.54613 | H147: 56294.13186 | I147: 57087.57157 | J147: 57853.7336 | K147: 58633.63212
A148: CB Raglan | B148: 51544.74 | C148: 52356.31886 | D148: 53072.05991 | E148: 53963.12115 | F148: 54751.46066 | G148: 55515.54613 | H148: 56294.13186 | I148: 57087.57157 | J148: 57853.7336 | K148: 58633.63212
A149: ACC levies | B149: 95.66 | C149: 97.66886 | D149: 99.71990606 | E149: 108.3811497 | F149: 112.6506632 | G149: 116.9661293 | H149: 121.3418579 | I149: 125.8715718 | J149: 130.4436002 | K149: 135.04212
A150: Discretionary Funds | B150: 14271 | C150: 14271 | D150: 14271 | E150: 14271 | F150: 14271 | G150: 14271 | H150: 14271 | I150: 14271 | J150: 14271 | K150: 14271
A151: Rate Remission Grants | B151: 380.04 | C151: 380.04 | D151: 380.04 | E151: 380 | F151: 380 | G151: 380 | H151: 380 | I151: 380 | J151: 380 | K151: 380
A152: Salaries and wages - permanent | B152: 36798.04 | C152: 37607.61 | D152: 38321.3 | E152: 39203.74 | F152: 39987.81 | G152: 40747.58 | H152: 41521.79 | I152: 42310.7 | J152: 43072.29 | K152: 43847.59
A153: 2070 | B153: 4198 | C153: 4198 | D153: 4197.96 | E153: 4198 | F153: 4198 | G153: 4198 | H153: 4198 | I153: 4198 | J153: 4198 | K153: 4198
A154: CB Te Kauwhata | B154: 4198 | C154: 4198 | D154: 4197.96 | E154: 4198 | F154: 4198 | G154: 4198 | H154: 4198 | I154: 4198 | J154: 4198 | K154: 4198
A155: Discretionary Funds | B155: 4198 | C155: 4198 | D155: 4197.96 | E155: 4198 | F155: 4198 | G155: 4198 | H155: 4198 | I155: 4198 | J155: 4198 | K155: 4198
A156: 2080 | B156: 13248.08 | C156: 13502.34958 | D156: 13726.58238 | E156: 14005.86148 | F156: 14252.90017 | G156: 14492.33542 | H156: 14736.3033 | I156: 14984.93999 | J156: 15225.0221 | K156: 15469.4132
A157: CB Taupiri | B157: 13248.08 | C157: 13502.34958 | D157: 13726.58238 | E157: 14005.86148 | F157: 14252.90017 | G157: 14492.33542 | H157: 14736.3033 | I157: 14984.93999 | J157: 15225.0221 | K157: 15469.4132
A158: ACC levies | B158: 29.98 | C158: 30.60958 | D158: 31.25238118 | E158: 33.9614826 | F158: 35.30016936 | G158: 36.6554228 | H158: 38.02329616 | I158: 39.43998801 | J158: 40.87209511 | K158: 42.3131976
A159: Discretionary Funds | B159: 1624 | C159: 1624 | D159: 1623.96 | E159: 1624 | F159: 1624 | G159: 1624 | H159: 1624 | I159: 1624 | J159: 1624 | K159: 1624
A160: Rate Remission Grants | B160: 63 | C160: 63 | D160: 63 | E160: 63 | F160: 63 | G160: 63 | H160: 63 | I160: 63 | J160: 63 | K160: 63
A161: Salaries and wages - permanent | B161: 11531.1 | C161: 11784.74 | D161: 12008.37 | E161: 12284.9 | F161: 12530.6 | G161: 12768.68 | H161: 13011.28 | I161: 13258.5 | J161: 13497.15 | K161: 13740.1
A162: 2090 | B162: 1550 | C162: 1550 | D162: 1550.04 | E162: 1550 | F162: 1550 | G162: 1550 | H162: 1550 | I162: 1550 | J162: 1550 | K162: 1550
A163: CB Meremere | B163: 1550 | C163: 1550 | D163: 1550.04 | E163: 1550 | F163: 1550 | G163: 1550 | H163: 1550 | I163: 1550 | J163: 1550 | K163: 1550
A164: Discretionary Funds | B164: 1550 | C164: 1550 | D164: 1550.04 | E164: 1550 | F164: 1550 | G164: 1550 | H164: 1550 | I164: 1550 | J164: 1550 | K164: 1550
A165: 2110 | B165: 486897 | C165: 497121.837 | D165: 507561.3956 | E165: 517712.7111 | F165: 527549.0043 | G165: 537572.7529 | H165: 547248.8569 | I165: 557099.2702 | J165: 567127.4008 | K165: 576768.4483
A166: CB INT (Community aspiration blueprint) | B166: 486897 | C166: 497121.837 | D166: 507561.3956 | E166: 517712.7111 | F166: 527549.0043 | G166: 537572.7529 | H166: 547248.8569 | I166: 557099.2702 | J166: 567127.4008 | K166: 576768.4483
A167: General Grants | B167: 486897 | C167: 497121.837 | D167: 507561.3956 | E167: 517712.7111 | F167: 527549.0043 | G167: 537572.7529 | H167: 547248.8569 | I167: 557099.2702 | J167: 567127.4008 | K167: 576768.4483
A168: 2150 | B168: 69090.66 | C168: 69960.20271 | D168: 70727.10063 | E168: 71681.92253 | F168: 72526.62101 | G168: 73345.34505 | H168: 74179.58877 | I168: 75029.75485 | J168: 75850.71348 | K168: 76686.37645
A169: Onewhero-Tuakau Community Board | B169: 69090.66 | C169: 69960.20271 | D169: 70727.10063 | E169: 71681.92253 | F169: 72526.62101 | G169: 73345.34505 | H169: 74179.58877 | I169: 75029.75485 | J169: 75850.71348 | K169: 76686.37645
A170: ACC levies | B170: 102.51 | C170: 104.66271 | D170: 106.8606269 | E170: 116.1325338 | F170: 120.7010088 | G170: 125.3350481 | H170: 130.0187674 | I170: 134.8648502 | J170: 139.77348 | K170: 144.696447
A171: Discretionary Funds | B171: 28878 | C171: 28878 | D171: 28878 | E171: 28878 | F171: 28878 | G171: 28878 | H171: 28878 | I171: 28878 | J171: 28878 | K171: 28878
A172: Rate Remission Grants | B172: 681 | C172: 681 | D172: 681 | E172: 681 | F172: 681 | G172: 681 | H172: 681 | I172: 681 | J172: 681 | K172: 681
A173: Salaries and wages - permanent | B173: 39429.15 | C173: 40296.54 | D173: 41061.24 | E173: 42006.79 | F173: 42846.92 | G173: 43661.01 | H173: 44490.57 | I173: 45335.89 | J173: 46151.94 | K173: 46982.68
A174: 2160 | B174: 41680.06 | C174: 41687.71534 | D174: 41695.53144 | E174: 41703.13174 | F174: 41710.49617 | G174: 41718.00096 | H174: 41725.24546 | I174: 41732.62047 | J174: 41740.12854 | K174: 41747.34679
A175: Port Waikato Community Board | B175: 41680.06 | C175: 41687.71534 | D175: 41695.53144 | E175: 41703.13174 | F175: 41710.49617 | G175: 41718.00096 | H175: 41725.24546 | I175: 41732.62047 | J175: 41740.12854 | K175: 41747.34679
A176: ACC levies | B176: 64.54 | C176: 65.89534 | D176: 67.27914214 | E176: 68.6247366 | F176: 69.92857368 | G176: 71.25725866 | H176: 72.53986208 | I176: 73.84557082 | J176: 75.17483666 | K176: 76.4527932
A177: Discretionary Funds | B177: 16483 | C177: 16483 | D177: 16483 | E177: 16483 | F177: 16483 | G177: 16483 | H177: 16483 | I177: 16483 | J177: 16483 | K177: 16483
A178: Mileage Reimbursement | B178: 300 | C178: 306.3 | D178: 312.7323 | E178: 318.987 | F178: 325.0476 | G178: 331.2237 | H178: 337.1856 | I178: 343.2549 | J178: 349.4337 | K178: 355.374
A179: Salaries and wages - permanent | B179: 24832.52 | C179: 24832.52 | D179: 24832.52 | E179: 24832.52 | F179: 24832.52 | G179: 24832.52 | H179: 24832.52 | I179: 24832.52 | J179: 24832.52 | K179: 24832.52
A180: 4030 | B180: 452372.2 | C180: 495901.8267 | D180: 468164.8189 | E180: 517150.6236 | F180: 488490.3385 | G180: 537625.1639 | H180: 507374.2826 | I180: 558238.0612 | J180: 526309.5683 | K180: 578311.8761
A181: Council Support | B181: 397972.2 | C181: 403603.4267 | D181: 411456.0285 | E181: 421029.2076 | F181: 429548.3737 | G181: 437816.4223 | H181: 446231.2938 | I181: 454803.918 | J181: 462945.5907 | K181: 471225.8441
A182: ACC levies | B182: 971.27 | C182: 991.66667 | D182: 1012.49167 | E182: 1100.228695 | F182: 1143.549962 | G182: 1187.425924 | H182: 1231.761476 | I182: 1277.754923 | J182: 1324.167358 | K182: 1370.92628
A183: General Expenses | B183: 1131 | C183: 1154.751 | D183: 1179.000771 | E183: 1202.58099 | F183: 1225.429452 | G183: 1248.713349 | H183: 1271.189712 | I183: 1294.070973 | J183: 1317.365049 | K183: 1339.75998
A184: Kiwisaver | B184: 11206.63 | C184: 11453.22 | D184: 11693.7 | E184: 11939.29 | F184: 12178.07 | G184: 12409.46 | H184: 12645.24 | I184: 12885.5 | J184: 13117.44 | K184: 13353.55
A185: Mileage Reimbursement | B185: 1000 | C185: 416.568 | D185: 425.315928 | E185: 433.82232 | F185: 442.064736 | G185: 450.464232 | H185: 458.572416 | I185: 466.826664 | J185: 475.229832 | K185: 483.30864
A186: Rent | B186: 1500 | C186: 1531.5 | D186: 1563.6615 | E186: 1594.935 | F186: 1625.238 | G186: 1656.1185 | H186: 1685.928 | I186: 1716.2745 | J186: 1747.1685 | K186: 1776.87
A187: Salaries and wages - permanent | B187: 373555.22 | C187: 381773.41 | D187: 389018.11 | E187: 397976.26 | F187: 405935.79 | G187: 413648.56 | H187: 421507.89 | I187: 429516.54 | J187: 437247.84 | K187: 445118.3
A188: Training Costs | B188: 6000 | C188: 3441.791 | D188: 3514.068611 | E188: 3584.35059 | F188: 3652.451532 | G188: 3721.850309 | H188: 3788.842192 | I188: 3857.040893 | J188: 3926.470009 | K188: 3993.21918
A189: Vehicles | B189: 2608.08 | C189: 2840.52 | D189: 3049.68 | E189: 3197.74 | F189: 3345.78 | G189: 3493.83 | H189: 3641.87 | I189: 3789.91 | J189: 3789.91 | K189: 3789.91
A190: CZ (Citizenship) | B190: 6400 | C190: 6534.4 | D190: 6671.6224 | E190: 6805.056 | F190: 6934.3488 | G190: 7066.1056 | H190: 7193.2928 | I190: 7322.7712 | J190: 7454.5856 | K190: 7581.312
A191: Catering Costs | B191: 2600 | C191: 2654.6 | D191: 2710.3466 | E191: 2764.554 | F191: 2817.0792 | G191: 2870.6054 | H191: 2922.2752 | I191: 2974.8758 | J191: 3028.4254 | K191: 3079.908
A192: General Expenses | B192: 3800 | C192: 3879.8 | D192: 3961.2758 | E192: 4040.502 | F192: 4117.2696 | G192: 4195.5002 | H192: 4271.0176 | I192: 4347.8954 | J192: 4426.1602 | K192: 4501.404
A193: EX INT (ANZAC) | B193: 35000 | C193: 35735 | D193: 36485.435 | E193: 37215.15 | F193: 37922.22 | G193: 38642.765 | H193: 39338.32 | I193: 40046.405 | J193: 40767.265 | K193: 41460.3
A194: General Expenses | B194: 35000 | C194: 35735 | D194: 36485.435 | E194: 37215.15 | F194: 37922.22 | G194: 38642.765 | H194: 39338.32 | I194: 40046.405 | J194: 40767.265 | K194: 41460.3
A195: EX INT (Mayoral Award) | B195: 1000 | C195: 1021 | D195: 1042.441 | E195: 1063.29 | F195: 1083.492 | G195: 1104.079 | H195: 1123.952 | I195: 1144.183 | J195: 1164.779 | K195: 1184.58
A196: General Expenses | B196: 1000 | C196: 1021 | D196: 1042.441 | E196: 1063.29 | F196: 1083.492 | G196: 1104.079 | H196: 1123.952 | I196: 1144.183 | J196: 1164.779 | K196: 1184.58
A197: EX INT (Team Up) | C197: 36756 | D197: 0 | E197: 38278.44 | F197: 0 | G197: 39746.844 | H197: 0 | I197: 41190.588 | J197: 0 | K197: 42644.88
A198: General Expenses | C198: 36756 | D198: 0 | E198: 38278.44 | F198: 0 | G198: 39746.844 | H198: 0 | I198: 41190.588 | J198: 0 | K198: 42644.88
A199: EX INT (Xmas) | B199: 12000 | C199: 12252 | D199: 12509.292 | E199: 12759.48 | F199: 13001.904 | G199: 13248.948 | H199: 13487.424 | I199: 13730.196 | J199: 13977.348 | K199: 14214.96
A200: General Expenses | B200: 12000 | C200: 12252 | D200: 12509.292 | E200: 12759.48 | F200: 13001.904 | G200: 13248.948 | H200: 13487.424 | I200: 13730.196 | J200: 13977.348 | K200: 14214.96
A201: 4050 | B201: 22766.92 | C201: 23152.61 | D201: 23894.73953 | E201: 24628.2457 | F201: 25352.53036 | G201: 26082.32207 | H201: 26801.88216 | I201: 27526.57239 | J201: 27821.71307 | K201: 28105.4614
A202: Community & Iwi liason Partnership | B202: 12766.92 | C202: 12942.61 | D202: 13470.32953 | E202: 13995.3457 | F202: 14517.61036 | G202: 15041.53207 | H202: 15562.36216 | I202: 16084.74239 | J202: 16173.92307 | K202: 16259.6614
... 1535 more rows

Sheet CONTROLLED pvt (hidden)
A3: Row Labels | B3: Sum of Total Budget 2024/25 | C3: Sum of Year 2025/26 Inflated | D3: Sum of Year 2026/27 Inflated | E3: Sum of Year 2027/28 Inflated | F3: Sum of Year 2028/29 Inflated | G3: 2029/30 | H3: 2030/31 | I3: 2031/32 | J3: Sum of Year 2032/33 Inflated | K3: Sum of Year 2033/34 Inflated
A4: 3WATERS | B4: 31278962.61 | C4: 33413375.74 | D4: 34928286.11 | E4: 37730004.12 | F4: 40944241.37 | G4: 42938952.58 | H4: 44659294.99 | I4: 46884907.75 | J4: 45975475.33 | K4: 47338979.15
A5: 1250
A6: Tamahere SP Drainage | B6: 50000 | C6: 0 | D6: 0 | E6: 0 | F6: 0 | G6: 0 | H6: 0 | I6: 0 | J6: 0 | K6: 0
A7: General Expenses | B7: 50000 | C7: 0 | D7: 0 | E7: 0 | F7: 0 | G7: 0 | H7: 0 | I7: 0 | J7: 0 | K7: 0
A8: 1250 Total | B8: 50000 | C8: 0 | D8: 0 | E8: 0 | F8: 0 | G8: 0 | H8: 0 | I8: 0 | J8: 0 | K8: 0
A9: 1360
A10: Waters Services Management | B10: 1584080.09 | C10: 1645161.981 | D10: 1716867.729 | E10: 1750695.032 | F10: 2073422.001 | G10: 2114276.768 | H10: 2154670.272 | I10: 1898277.139 | J10: 1931352.264 | K10: 1964069.927
A11: ACC levies | B11: 1971.54 | C11: 2012.94234 | D11: 2055.214129 | E11: 2233.366215 | F11: 2321.3166 | G11: 2410.370069 | H11: 2500.377338 | I11: 2593.737001 | J11: 2687.960498 | K11: 2782.862719
A12: Advertising | B12: 10000 | C12: 10210 | D12: 10424.41 | E12: 10632.9 | F12: 16252.38 | G12: 16561.185 | H12: 16859.28 | I12: 11441.83 | J12: 11647.79 | K12: 11845.8
A13: Cafeteria | B13: 2000 | C13: 2042 | D13: 2606.1025 | E13: 2658.225 | F13: 2708.73 | G13: 2760.1975 | H13: 2809.88 | I13: 2860.4575 | J13: 2911.9475 | K13: 2961.45
A14: Consulting | B14: 300000 | C14: 331825 | D14: 364854.35 | E14: 372151.5 | F14: 650095.2 | G14: 662447.4 | H14: 674371.2 | I14: 400464.05 | J14: 407672.65 | K14: 414603
A15: Employment Related Expenses | B15: 10000 | C15: 10210 | D15: 13030.5125 | E15: 13291.125 | F15: 16252.38 | G15: 16561.185 | H15: 16859.28 | I15: 17162.745 | J15: 17471.685 | K15: 17768.7
A16: FBT | B16: 5400 | C16: 5513.4 | D16: 5629.1814 | E16: 5741.766 | F16: 5850.8568 | G16: 5962.0266 | H16: 6069.3408 | I16: 6178.5882 | J16: 6289.8066 | K16: 6396.732
A17: General Expenses | B17: 5000 | C17: 5105 | D17: 7818.3075 | E17: 5316.45 | F17: 10834.92 | G17: 11040.79 | H17: 11239.52 | I17: 5720.915 | J17: 5823.895 | K17: 5922.9
A18: Insurance premiums - other | B18: 404579 | C18: 413075.159 | D18: 421749.7373 | E18: 430184.8049 | F18: 438358.1099 | G18: 446687.1777 | H18: 454727.3762 | I18: 462912.414 | J18: 471245.123 | K18: 479256.1918
A19: Kiwisaver | B19: 22748.52 | C19: 23249.04 | D19: 23737.26 | E19: 24235.74 | F19: 24720.45 | G19: 25190.14 | H19: 25668.76 | I19: 26156.46 | J19: 26627.28 | K19: 27106.57
A20: Landline call costs/line rental | B20: 500 | C20: 510.5 | D20: 781.83075 | E20: 531.645 | F20: 541.746 | G20: 552.0395 | H20: 561.976 | I20: 572.0915 | J20: 582.3895 | K20: 592.29
A21: Membership Expenses | B21: 3000 | C21: 3063 | D21: 3648.5435 | E21: 3721.515 | F21: 3792.222 | G21: 3864.2765 | H21: 3933.832 | I21: 4004.6405 | J21: 4076.7265 | K21: 4146.03
A22: Public Notices and insurance | B22: 1500 | C22: 1531.5 | D22: 1563.6615 | E22: 1594.935 | F22: 1625.238 | G22: 1656.1185 | H22: 1685.928 | I22: 1716.2745 | J22: 1747.1685 | K22: 1776.87
A23: Salaries and wages - permanent | B23: 758285.31 | C23: 774967.6 | D23: 789673.7 | E23: 807857.99 | F23: 824015.15 | G23: 839671.44 | H23: 855625.19 | I23: 871882.07 | J23: 887575.95 | K23: 903552.32
A24: Training Costs | B24: 10000 | C24: 10210 | D24: 13030.5125 | E24: 13291.125 | F24: 16252.38 | G24: 16561.185 | H24: 16859.28 | I24: 17162.745 | J24: 17471.685 | K24: 17768.7
A25: Travel - General | B25: 3000 | C25: 3063 | D25: 5212.205 | E25: 3721.515 | F25: 3792.222 | G25: 3864.2765 | H25: 3933.832 | I25: 4004.6405 | J25: 4076.7265 | K25: 4146.03
A26: Vehicles | B26: 46095.72 | C26: 48573.84 | D26: 51052.2 | E26: 53530.43 | F26: 56008.7 | G26: 58486.96 | H26: 60965.22 | I26: 63443.48 | J26: 63443.48 | K26: 63443.48
A27: 1360 Total | B27: 1584080.09 | C27: 1645161.981 | D27: 1716867.729 | E27: 1750695.032 | F27: 2073422.001 | G27: 2114276.768 | H27: 2154670.272 | I27: 1898277.139 | J27: 1931352.264 | K27: 1964069.927
A28: 1700
A29: DW Stormwater | B29: 3710822 | C29: 3814725.016 | D29: 3929166.766 | E29: 4043111.267 | F29: 4152276.228 | G29: 4256082.763 | H29: 4358230.56 | I29: 4462827.5 | J29: 4565472.547 | K29: 4670477.677
A30: Consulting | B30: 50000 | C30: 51400 | D30: 52942 | E30: 54477.3 | F30: 55948.2 | G30: 57346.9 | H30: 58723.25 | I30: 60132.6 | J30: 61515.65 | K30: 62930.5
A31: Insurance premiums - other | B31: 822 | C31: 845.016 | D31: 870.36648 | E31: 895.606812 | F31: 919.788408 | G31: 942.783036 | H31: 965.41023 | I31: 988.579944 | J31: 1011.317286 | K31: 1034.57742
A32: Rates - council owned properties | B32: 200000 | C32: 205600 | D32: 211768 | E32: 217909.2 | F32: 223792.8 | G32: 229387.6 | H32: 234893 | I32: 240530.4 | J32: 246062.6 | K32: 251722
A33: Waikato Regional Council Rates | B33: 20000 | C33: 20560 | D33: 21176.8 | E33: 21790.92 | F33: 22379.28 | G33: 22938.76 | H33: 23489.3 | I33: 24053.04 | J33: 24606.26 | K33: 25172.2
A34: Watercare Operational Charges | B34: 3440000 | C34: 3536320 | D34: 3642409.6 | E34: 3748038.24 | F34: 3849236.16 | G34: 3945466.72 | H34: 4040159.6 | I34: 4137122.88 | J34: 4232276.72 | K34: 4329618.4
A35: SW DIW (District Wide stormwater targeted rates) | B35: 6669 | C35: 6669 | D35: 6669 | E35: 6669 | F35: 6669 | G35: 6669 | H35: 6669 | I35: 6669 | J35: 6669 | K35: 6669
A36: Rate Remission Grants | B36: 6669 | C36: 6669 | D36: 6669 | E36: 6669 | F36: 6669 | G36: 6669 | H36: 6669 | I36: 6669 | J36: 6669 | K36: 6669
A37: 1700 Total | B37: 3717491 | C37: 3821394.016 | D37: 3935835.766 | E37: 4049780.267 | F37: 4158945.228 | G37: 4262751.763 | H37: 4364899.56 | I37: 4469496.5 | J37: 4572141.547 | K37: 4677146.677
A38: 1800
A39: DW Wastewater | B39: 9092940 | C39: 9781183.56 | D39: 9755516.867 | E39: 10090719.75 | F39: 10843451.87 | G39: 10752279.26 | H39: 11074439.63 | I39: 11851078.63 | J39: 10654786.86 | K39: 10892653.25
A40: Rates Council Properties | B40: 290300 | C40: 298428.4 | D40: 298428.4 | E40: 298428.4 | F40: 298428.4 | G40: 298428.4 | H40: 298428.4 | I40: 298428.4 | J40: 298428.4 | K40: 298428.4
A41: Watercare Operational Charges | B41: 8788760 | C41: 9468486.52 | D41: 9442819.827 | E41: 9778022.712 | F41: 10530754.83 | G41: 10439582.22 | H41: 10761742.59 | I41: 11538381.59 | J41: 10342089.82 | K41: 10579956.21
A42: WRC Rates | B42: 13880 | C42: 14268.64 | D42: 14268.64 | E42: 14268.64 | F42: 14268.64 | G42: 14268.64 | H42: 14268.64 | I42: 14268.64 | J42: 14268.64 | K42: 14268.64
A43: WW HUN (Huntly wastewater targeted rates) | B43: 44147 | C43: 44147 | D43: 44147 | E43: 44147 | F43: 44147 | G43: 44147 | H43: 44147 | I43: 44147 | J43: 44147 | K43: 44147
A44: Rate Remission Grants | B44: 44147 | C44: 44147 | D44: 44147 | E44: 44147 | F44: 44147 | G44: 44147 | H44: 44147 | I44: 44147 | J44: 44147 | K44: 44147
A45: WW NGA (Ngaruawahia wastewater targeted rates) | B45: 62588 | C45: 62588 | D45: 62588 | E45: 62588 | F45: 62588 | G45: 62588 | H45: 62588 | I45: 62588 | J45: 62588 | K45: 62588
A46: Rate Remission Grants | B46: 62588 | C46: 62588 | D46: 62588 | E46: 62588 | F46: 62588 | G46: 62588 | H46: 62588 | I46: 62588 | J46: 62588 | K46: 62588
A47: WW TAU (Taupiri wastewater targeted rates) | B47: 2235 | C47: 2235 | D47: 2235 | E47: 2235 | F47: 2235 | G47: 2235 | H47: 2235 | I47: 2235 | J47: 2235 | K47: 2235
A48: Rate Remission Grants | B48: 2235 | C48: 2235 | D48: 2235 | E48: 2235 | F48: 2235 | G48: 2235 | H48: 2235 | I48: 2235 | J48: 2235 | K48: 2235
A49: WW RAG (Raglan wastewater targeted rates) | B49: 34647 | C49: 34647 | D49: 34647 | E49: 34647 | F49: 34647 | G49: 34647 | H49: 34647 | I49: 34647 | J49: 34647 | K49: 34647
A50: Rate Remission Grants | B50: 34647 | C50: 34647 | D50: 34647 | E50: 34647 | F50: 34647 | G50: 34647 | H50: 34647 | I50: 34647 | J50: 34647 | K50: 34647
A51: WW TKA (Te Kauwhata wastewater targeted rates) | B51: 2235 | C51: 2235 | D51: 2235 | E51: 2235 | F51: 2235 | G51: 2235 | H51: 2235 | I51: 2235 | J51: 2235 | K51: 2235
A52: Rate Remission Grants | B52: 2235 | C52: 2235 | D52: 2235 | E52: 2235 | F52: 2235 | G52: 2235 | H52: 2235 | I52: 2235 | J52: 2235 | K52: 2235
A53: WW RAN (Rangiriri wastewater targeted rates) | B53: 2235 | C53: 2235 | D53: 2235 | E53: 2235 | F53: 2235 | G53: 2235 | H53: 2235 | I53: 2235 | J53: 2235 | K53: 2235
A54: Rate Remission Grants | B54: 2235 | C54: 2235 | D54: 2235 | E54: 2235 | F54: 2235 | G54: 2235 | H54: 2235 | I54: 2235 | J54: 2235 | K54: 2235
A55: 1800 Total | B55: 9241027 | C55: 9929270.56 | D55: 9903603.867 | E55: 10238806.75 | F55: 10991538.87 | G55: 10900366.26 | H55: 11222526.63 | I55: 11999165.63 | J55: 10802873.86 | K55: 11040740.25
A56: 1810
A57: WW POK (Pokeno wastewater treatment plant extensions) | B57: 873661 | C57: 929558.72 | D57: 990955.6499 | E57: 1055382.196 | F57: 1121814.001 | G57: 1190104.159 | H57: 1261320.21 | I57: 0 | J57: 0 | K57: 0
A58: R&M Contractors | B58: 873661 | C58: 929558.72 | D58: 990955.6499 | E58: 1055382.196 | F58: 1121814.001 | G58: 1190104.159 | H58: 1261320.21 | I58: 0 | J58: 0 | K58: 0
A59: WW TUA (Tuakau wastewater treatment plant extensions) | B59: 97073 | C59: 103284.188 | D59: 110106.6539 | E59: 117264.5673 | F59: 124645.8758 | G59: 132233.9228 | H59: 140146.5595 | I59: 0 | J59: 0 | K59: 0
A60: R&M Contractors | B60: 97073 | C60: 103284.188 | D60: 110106.6539 | E60: 117264.5673 | F60: 124645.8758 | G60: 132233.9228 | H60: 140146.5595 | I60: 0 | J60: 0 | K60: 0
A61: WW POK (Pokeno wastewater targeted rates) | B61: 116794 | C61: 116794 | D61: 116794 | E61: 116794 | F61: 116794 | G61: 116794 | H61: 116794 | I61: 116794 | J61: 116794 | K61: 116794
A62: Rate Remission Grants | B62: 116794 | C62: 116794 | D62: 116794 | E62: 116794 | F62: 116794 | G62: 116794 | H62: 116794 | I62: 116794 | J62: 116794 | K62: 116794
A63: WW TUA (Tuakau wastewater targeted rates) | B63: 108970 | C63: 108970 | D63: 108970 | E63: 108970 | F63: 108970 | G63: 108970 | H63: 108970 | I63: 108970 | J63: 108970 | K63: 108970
A64: Rate Remission Grants | B64: 108970 | C64: 108970 | D64: 108970 | E64: 108970 | F64: 108970 | G64: 108970 | H64: 108970 | I64: 108970 | J64: 108970 | K64: 108970
A65: 1810 Total | B65: 1196498 | C65: 1258606.908 | D65: 1326826.304 | E65: 1398410.763 | F65: 1472223.877 | G65: 1548102.081 | H65: 1627230.77 | I65: 225764 | J65: 225764 | K65: 225764
A66: 1820
A67: WW RAG (Raglan wastewater treatment plant operation) | B67: 4794 | C67: 4794 | D67: 4794 | E67: 4794 | F67: 4794 | G67: 4794 | H67: 4794 | I67: 4794 | J67: 4794 | K67: 4794
A68: Rates - council owned properties | B68: 4794 | C68: 4794 | D68: 4794 | E68: 4794 | F68: 4794 | G68: 4794 | H68: 4794 | I68: 4794 | J68: 4794 | K68: 4794
A69: WW TKA (Te Kauwhata wastewater treatment plant operation) | B69: 1721 | C69: 1721 | D69: 1721 | E69: 1721 | F69: 1721 | G69: 1721 | H69: 1721 | I69: 1721 | J69: 1721 | K69: 1721
A70: Rates - council owned properties | B70: 1721 | C70: 1721 | D70: 1721 | E70: 1721 | F70: 1721 | G70: 1721 | H70: 1721 | I70: 1721 | J70: 1721 | K70: 1721
A71: WW TKO (Te Kowhai wastewater treatment plant operation) | B71: 1106 | C71: 1106 | D71: 1106 | E71: 1106 | F71: 1106 | G71: 1106 | H71: 1106 | I71: 1106 | J71: 1106 | K71: 1106
A72: Rates - council owned properties | B72: 1106 | C72: 1106 | D72: 1106 | E72: 1106 | F72: 1106 | G72: 1106 | H72: 1106 | I72: 1106 | J72: 1106 | K72: 1106
A73: WW 0 (Watercare wastewater treatment plant operation) | B73: 1819560 | C73: 2056773 | D73: 2324912 | E73: 2628007 | F73: 2970616 | G73: 3173898 | H73: 3391089 | I73: 3621683 | J73: 3867957 | K73: 4130979
A74: Wastewater volume charge from Watercare | B74: 1819560 | C74: 2056773 | D74: 2324912 | E74: 2628007 | F74: 2970616 | G74: 3173898 | H74: 3391089 | I74: 3621683 | J74: 3867957 | K74: 4130979
A75: WW POK (Pokeno wastewater treatment plant operation) | B75: 2973283 | C75: 3255745 | D75: 3565041 | E75: 5147463 | F75: 5636471 | G75: 7171291 | H75: 7386429.78 | I75: 9397766 | J75: 9679699 | K75: 9970090
A76: Wastewater volume charge from Watercare | B76: 2973283 | C76: 3255745 | D76: 3565041 | E76: 5147463 | F76: 5636471 | G76: 7171291 | H76: 7386429.78 | I76: 9397766 | J76: 9679699 | K76: 9970090
A77: 1820 Total | B77: 4800464 | C77: 5320139 | D77: 5897574 | E77: 7783091 | F77: 8614708 | G77: 10352810 | H77: 10785139.78 | I77: 13027070 | J77: 13555277 | K77: 14108690
A78: 1900
A79: DW Water | B79: 9111650 | C79: 9677561.16 | D79: 10173817.47 | E79: 10295143.95 | F79: 11149835 | G79: 11073412.88 | H79: 11599313.96 | I79: 12295804.1 | J79: 11850609.71 | K79: 12215418.35
A80: R&M Contractors | B80: 0 | C80: 0 | D80: 0 | E80: 0 | F80: 0 | G80: 0 | H80: 0 | I80: 0 | J80: 0 | K80: 0
A81: Rates Council Properties | B81: 282700 | C81: 290615.6 | D81: 290615.6 | E81: 290615.6 | F81: 290615.6 | G81: 290615.6 | H81: 290615.6 | I81: 290615.6 | J81: 290615.6 | K81: 290615.6
A82: Watercare Operational Charges | B82: 8810750 | C82: 9368235.96 | D82: 9864492.269 | E82: 9985818.746 | F82: 10840509.8 | G82: 10764087.68 | H82: 11289988.76 | I82: 11986478.9 | J82: 11541284.51 | K82: 11906093.15
A83: WRC Rates | B83: 18200 | C83: 18709.6 | D83: 18709.6 | E83: 18709.6 | F83: 18709.6 | G83: 18709.6 | H83: 18709.6 | I83: 18709.6 | J83: 18709.6 | K83: 18709.6
A84: WA HUN (Huntly water supply targeted rates) | B84: 3129 | C84: 3129 | D84: 3129 | E84: 3129 | F84: 3129 | G84: 3129 | H84: 3129 | I84: 3129 | J84: 3129 | K84: 3129
A85: Rate Remission Grants | B85: 3129 | C85: 3129 | D85: 3129 | E85: 3129 | F85: 3129 | G85: 3129 | H85: 3129 | I85: 3129 | J85: 3129 | K85: 3129
A86: WA NGA (Ngaruawahia water supply targeted rates) | B86: 1252 | C86: 1252 | D86: 1252 | E86: 1252 | F86: 1252 | G86: 1252 | H86: 1252 | I86: 1252 | J86: 1252 | K86: 1252
A87: Rate Remission Grants | B87: 1252 | C87: 1252 | D87: 1252 | E87: 1252 | F87: 1252 | G87: 1252 | H87: 1252 | I87: 1252 | J87: 1252 | K87: 1252
A88: WA TAU (Taupiri water supply targeted rates) | B88: 313 | C88: 313 | D88: 313 | E88: 313 | F88: 313 | G88: 313 | H88: 313 | I88: 313 | J88: 313 | K88: 313
A89: Rate Remission Grants | B89: 313 | C89: 313 | D89: 313 | E89: 313 | F89: 313 | G89: 313 | H89: 313 | I89: 313 | J89: 313 | K89: 313
A90: WA RAG (Raglan water supply targeted rates) | B90: 626 | C90: 626 | D90: 626 | E90: 626 | F90: 626 | G90: 626 | H90: 626 | I90: 626 | J90: 626 | K90: 626
A91: Rate Remission Grants | B91: 626 | C91: 626 | D91: 626 | E91: 626 | F91: 626 | G91: 626 | H91: 626 | I91: 626 | J91: 626 | K91: 626
A92: 1900 Total | B92: 9116970 | C92: 9682881.16 | D92: 10179137.47 | E92: 10300463.95 | F92: 11155155 | G92: 11078732.88 | H92: 11604633.96 | I92: 12301124.1 | J92: 11855929.71 | K92: 12220738.35
A93: 1910
A94: WA 0 (Northern Waikato water supply reticulation operation) | B94: 848474 | C94: 985943.492 | D94: 1147913.856 | E94: 1335193.952 | F94: 1550011.312 | G94: 1697482.003 | H94: 1857169.76 | I94: 1901741.581 | J94: 1945481.644 | K94: 1990227.407
A95: Water | B95: 848474 | C95: 985943.492 | D95: 1147913.856 | E95: 1335193.952 | F95: 1550011.312 | G95: 1697482.003 | H95: 1857169.76 | I95: 1901741.581 | J95: 1945481.644 | K95: 1990227.407
A96: 1910 Total | B96: 848474 | C96: 985943.492 | D96: 1147913.856 | E96: 1335193.952 | F96: 1550011.312 | G96: 1697482.003 | H96: 1857169.76 | I96: 1901741.581 | J96: 1945481.644 | K96: 1990227.407
A97: 1920
A98: WA POK (Pokeno water supply treatment plant extensions) | B98: 645480 | C98: 686778.016 | D98: 732139.1534 | E98: 779739.0426 | F98: 828819.9917 | G98: 879273.6381 | H98: 931889.8244 | I98: 954255.0533 | J98: 976202.9227 | K98: 998655.432
A99: R&M Contractors | B99: 645480 | C99: 686778.016 | D99: 732139.1534 | E99: 779739.0426 | F99: 828819.9917 | G99: 879273.6381 | H99: 931889.8244 | I99: 954255.0533 | J99: 976202.9227 | K99: 998655.432
A100: WA TUA (Tuakau water supply treatment plant extensions) | B100: 71720 | C100: 76308.44 | D100: 81348.55952 | E100: 86637.42928 | F100: 92090.7372 | G100: 97697.32578 | H100: 103543.1833 | I100: 106028.2056 | J100: 108466.8547 | K100: 110961.5748
A101: R&M Contractors | B101: 71720 | C101: 76308.44 | D101: 81348.55952 | E101: 86637.42928 | F101: 92090.7372 | G101: 97697.32578 | H101: 103543.1833 | I101: 106028.2056 | J101: 108466.8547 | K101: 110961.5748
A102: 1920 Total | B102: 717200 | C102: 763086.456 | D102: 813487.7129 | E102: 866376.4719 | F102: 920910.7289 | G102: 976970.9639 | H102: 1035433.008 | I102: 1060283.259 | J102: 1084669.777 | K102: 1109617.007
A103: 1930
A104: WA TKA (Te Kauwhata water association headwork's) | B104: 4773 | C104: 4906.644 | D104: 5053.84332 | E104: 5200.403058 | F104: 5340.815172 | G104: 5474.335074 | H104: 5605.721445 | I104: 0 | J104: 0 | K104: 0
A105: Insurance premiums - other | B105: 4773 | C105: 4906.644 | D105: 5053.84332 | E105: 5200.403058 | F105: 5340.815172 | G105: 5474.335074 | H105: 5605.721445 | I105: 0 | J105: 0 | K105: 0
A106: 1930 Total | B106: 4773 | C106: 4906.644 | D106: 5053.84332 | E106: 5200.403058 | F106: 5340.815172 | G106: 5474.335074 | H106: 5605.721445 | I106: 0 | J106: 0 | K106: 0
A107: 1940
A108: Water Southern Districts | B108: 1019 | C108: 1019 | D108: 1019.04 | E108: 1019 | F108: 1019 | G108: 1019 | H108: 1019 | I108: 1019 | J108: 1019 | K108: 1019
A109: Rates - council owned properties | B109: 1019 | C109: 1019 | D109: 1019.04 | E109: 1019 | F109: 1019 | G109: 1019 | H109: 1019 | I109: 1019 | J109: 1019 | K109: 1019
A110: WA 0 (Southern Districts water supply targeted rates) | B110: 313 | C110: 313 | D110: 313 | E110: 313 | F110: 313 | G110: 313 | H110: 313 | I110: 313 | J110: 313 | K110: 313
A111: Rate Remission Grants | B111: 313 | C111: 313 | D111: 313 | E111: 313 | F111: 313 | G111: 313 | H111: 313 | I111: 313 | J111: 313 | K111: 313
A112: 1940 Total | B112: 1332 | C112: 1332 | D112: 1332.04 | E112: 1332 | F112: 1332 | G112: 1332 | H112: 1332 | I112: 1332 | J112: 1332 | K112: 1332
A113: 8410
A114: Tamahere DD | B114: 653.52 | C114: 653.52 | D114: 653.52 | E114: 653.53 | F114: 653.53 | G114: 653.53 | H114: 653.53 | I114: 653.53 | J114: 653.53 | K114: 653.53
A115: Rate Remission Grants | B115: 653.52 | C115: 653.52 | D115: 653.52 | E115: 653.53 | F115: 653.53 | G115: 653.53 | H115: 653.53 | I115: 653.53 | J115: 653.53 | K115: 653.53
A116: 8410 Total | B116: 653.52 | C116: 653.52 | D116: 653.52 | E116: 653.53 | F116: 653.53 | G116: 653.53 | H116: 653.53 | I116: 653.53 | J116: 653.53 | K116: 653.53
A117: GOVERNAN | B117: 4028837.99 | C117: 4356340.265 | D117: 4144402.058 | E117: 4432457.137 | F117: 4495285.81 | G117: 4373261.084 | H117: 4612145.438 | I117: 4781689.345 | J117: 4562710.484 | K117: 4892066.921
A118: 2000
A119: Chief Executive | B119: 1262045 | C119: 1347800.89 | D119: 1372978.239 | E119: 1398822.144 | F119: 1423827.35 | G119: 1448114.253 | H119: 1472805.871 | I119: 1497968.134 | J119: 1522678.339 | K119: 1547046.773
A120: ACC levies | B120: 2784 | C120: 2842.464 | D120: 2902.155744 | E120: 3153.71814 | F120: 3277.5633 | G120: 3403.875557 | H120: 3530.333232 | I120: 3662.529783 | J120: 3794.849982 | K120: 3929.25186
A121: Allowances | B121: 17000 | C121: 17373.96 | D121: 17738.86 | E121: 18111.37 | F121: 18473.6 | G121: 18824.6 | H121: 19182.26 | I121: 19546.73 | J121: 19898.57 | K121: 20256.74
A122: Catering Costs | B122: 5610 | C122: 5727.81 | D122: 5848.09401 | E122: 5965.0569 | F122: 6078.39012 | G122: 6193.88319 | H122: 6305.37072 | I122: 6418.86663 | J122: 6534.41019 | K122: 6645.4938
A123: Consulting | B123: 8203 | C123: 8375.263 | D123: 8551.143523 | E123: 8722.16787 | F123: 8887.884876 | G123: 9056.760037 | H123: 9219.778256 | I123: 9385.733149 | J123: 9554.682137 | K123: 9717.10974
A124: Employment Related Expenses | B124: 12000 | C124: 12252 | D124: 12509.292 | E124: 12759.48 | F124: 13001.904 | G124: 13248.948 | H124: 13487.424 | I124: 13730.196 | J124: 13977.348 | K124: 14214.96
A125: FBT | B125: 6576 | C125: 6714.096 | D125: 6855.092016 | E125: 6992.19504 | F125: 7125.043392 | G125: 7260.423504 | H125: 7391.108352 | I125: 7524.147408 | J125: 7659.586704 | K125: 7789.79808
A126: General Expenses | B126: 7949 | C126: 8115.929 | D126: 8286.363509 | E126: 8452.09221 | F126: 8612.677908 | G126: 8776.323971 | H126: 8934.294448 | I126: 9095.110667 | J126: 9258.828271 | K126: 9416.22642
A127: Kiwisaver | B127: 32121 | C127: 32827 | D127: 33517 | E127: 34221 | F127: 34905 | G127: 35568 | H127: 36244 | I127: 36933 | J127: 37958 | K127: 38274
A128: Salaries and wages - permanent | B128: 1131694 | C128: 1215250 | D128: 1238229 | E128: 1261691 | F128: 1284505 | G128: 1306611 | H128: 1329138 | I128: 1352092 | J128: 1374252 | K128: 1396811
A129: Training Costs | B129: 10208 | C129: 10422.368 | D129: 10641.23773 | E129: 10854.06432 | F129: 11060.28634 | G129: 11270.43843 | H129: 11473.30202 | I129: 11679.82006 | J129: 11890.06403 | K129: 12092.19264
A130: Vehicles | B130: 27900 | C130: 27900 | D130: 27900 | E130: 27900 | F130: 27900 | G130: 27900 | H130: 27900 | I130: 27900 | J130: 27900 | K130: 27900
A131: 2000 Total | B131: 1262045 | C131: 1347800.89 | D131: 1372978.239 | E131: 1398822.144 | F131: 1423827.35 | G131: 1448114.253 | H131: 1472805.871 | I131: 1497968.134 | J131: 1522678.339 | K131: 1547046.773
A132: 2020
A133: Council | B133: 1353656.88 | C133: 1404434.074 | D133: 1414740.834 | E133: 1447251.405 | F133: 1465032.646 | G133: 1493527.489 | H133: 1522473.835 | I133: 1551599.728 | J133: 1577681.575 | K133: 1603963.619
A134: ACC levies | B134: 2979.28 | C134: 3041.84488 | D134: 3105.723622 | E134: 3374.946257 | F134: 3507.84869 | G134: 3642.411825 | H134: 3778.423157 | I134: 3919.513285 | J134: 4061.898863 | K134: 4205.306383
A135: Catering Costs | B135: 16320 | C135: 16662.72 | D135: 18323.9862 | E135: 19008.43533 | F135: 19698.96805 | G135: 20414.42071 | H135: 21114.56227 | I135: 21494.62184 | J135: 21881.53829 | K135: 22253.51988
A136: Consulting | B136: 30761 | C136: 31374.309 | D136: 32022.74508 | E136: 32649.38274 | F136: 33458.23296 | G136: 33865.41517 | H136: 34464.86413 | I136: 35085.22751 | J136: 35716.78326 | K136: 36323.96112
A137: Discretionary Funds | B137: 30963 | C137: 30963 | D137: 30963 | E137: 30963 | F137: 30963 | G137: 30963 | H137: 30963 | I137: 30963 | J137: 30963 | K137: 30963
A138: FBT | B138: 8607 | C138: 8787.747 | D138: 8972.289687 | E138: 9151.73703 | F138: 9325.615644 | G138: 9502.807953 | H138: 9673.854864 | I138: 9847.983081 | J138: 10025.25285 | K138: 10195.68006
A139: General Expenses | B139: 26498 | C139: 46453.458 | D139: 27622.60162 | E139: 28175.05842 | F139: 16791.95902 | G139: 17111.01634 | H139: 17419.0081 | I139: 17732.54813 | J139: 18051.74494 | K139: 18358.62084
A140: Mayoral Fund | B140: 15000 | C140: 15000 | D140: 15000 | E140: 15000 | F140: 15000 | G140: 15000 | H140: 15000 | I140: 15000 | J140: 15000 | K140: 15000
A141: Mileage Reimbursement | B141: 42700 | C141: 43596.7 | D141: 44512.189 | E141: 45402.483 | F141: 46265.1084 | G141: 47144.1733 | H141: 47992.7504 | I141: 48856.6141 | J141: 49736.0633 | K141: 50581.566
A142: Salaries and wages - permanent | B142: 1024464 | C142: 1047002 | D142: 1066870 | E142: 1091438 | F142: 1113267 | G142: 1134419 | H142: 1155973 | I142: 1177936 | J142: 1199139 | K142: 1220724
A143: Subscriptions | B143: 72000 | C143: 73588.575 | D143: 75133.93508 | E143: 76636.62675 | F143: 78092.6859 | G143: 79576.49393 | H143: 81008.8404 | I143: 82466.98972 | J143: 83951.44643 | K143: 85378.6035
A144: Training Costs | B144: 41640 | C144: 42514.44 | D144: 43407.24324 | E144: 44275.3956 | F144: 45116.60688 | G144: 45973.84956 | H144: 46801.36128 | I144: 47643.78012 | J144: 48501.39756 | K144: 49325.9112
A145: Vehicles | B145: 41724.6 | C145: 45449.28 | D145: 48807.12 | E145: 51176.34 | F145: 53545.62 | G145: 55914.9 | H145: 58284.17 | I145: 60653.45 | J145: 60653.45 | K145: 60653.45
A146: EX INT (G&D Tamahere community committee) | B146: 4000 | C146: 4000 | D146: 4000 | E146: 4000 | F146: 4000 | G146: 4000 | H146: 4000 | I146: 4000 | J146: 4000 | K146: 4000
A147: General Grants | B147: 4000 | C147: 4000 | D147: 4000 | E147: 4000 | F147: 4000 | G147: 4000 | H147: 4000 | I147: 4000 | J147: 4000 | K147: 4000
A148: 2020 Total | B148: 1357656.88 | C148: 1408434.074 | D148: 1418740.834 | E148: 1451251.405 | F148: 1469032.646 | G148: 1497527.489 | H148: 1526473.835 | I148: 1555599.728 | J148: 1581681.575 | K148: 1607963.619
A149: 2040
A150: CB Huntly | B150: 64727.95 | C150: 65617.69248 | D150: 66402.40121 | E150: 67379.39266 | F150: 68243.70725 | G150: 69081.41878 | H150: 69935.02096 | I150: 70804.92991 | J150: 71644.92157 | K150: 72499.98065
A151: ACC levies | B151: 104.88 | C151: 107.08248 | D151: 109.3312121 | E151: 118.8226575 | F151: 123.5072531 | G151: 128.2387758 | H151: 133.0309587 | I151: 137.9999116 | J151: 143.0115656 | K151: 148.0606542
A152: Discretionary Funds | B152: 24026 | C152: 24026 | D152: 24026.04 | E152: 24026 | F152: 24026 | G152: 24026 | H152: 24026 | I152: 24026 | J152: 24026 | K152: 24026
A153: Rate Remission Grants | B153: 252.96 | C153: 252.96 | D153: 252.96 | E153: 253 | F153: 253 | G153: 253 | H153: 253 | I153: 253 | J153: 253 | K153: 253
A154: Salaries and wages - permanent | B154: 40344.11 | C154: 41231.65 | D154: 42014.07 | E154: 42981.57 | F154: 43841.2 | G154: 44674.18 | H154: 45522.99 | I154: 46387.93 | J154: 47222.91 | K154: 48072.92
A155: 2040 Total | B155: 64727.95 | C155: 65617.69248 | D155: 66402.40121 | E155: 67379.39266 | F155: 68243.70725 | G155: 69081.41878 | H155: 69935.02096 | I155: 70804.92991 | J155: 71644.92157 | K155: 72499.98065
A156: 2050
A157: CB Ngaruawahia | B157: 62038.5 | C157: 62937.78642 | D157: 63730.90959 | E157: 64718.23861 | F157: 65591.78911 | G157: 66438.45783 | H157: 67301.19838 | I157: 68180.39591 | J157: 69029.36743 | K157: 69893.57799
A158: ACC levies | B158: 106.02 | C158: 108.24642 | D158: 110.5195948 | E158: 120.0986055 | F158: 124.8291133 | G158: 129.6078338 | H158: 134.4583778 | I158: 139.4759077 | J158: 144.5374261 | K158: 149.6479914
A159: Discretionary Funds | B159: 20999 | C159: 20999 | D159: 20999.04 | E159: 20999 | F159: 20999 | G159: 20999 | H159: 20999 | I159: 20999 | J159: 20999 | K159: 20999
A160: Rate Remission Grants | B160: 158.04 | C160: 158.04 | D160: 158.04 | E160: 158 | F160: 158 | G160: 158 | H160: 158 | I160: 158 | J160: 158 | K160: 158
A161: Salaries and wages - permanent | B161: 40775.44 | C161: 41672.5 | D161: 42463.31 | E161: 43441.14 | F161: 44309.96 | G161: 45151.85 | H161: 46009.74 | I161: 46883.92 | J161: 47727.83 | K161: 48586.93
A162: 2050 Total | B162: 62038.5 | C162: 62937.78642 | D162: 63730.90959 | E162: 64718.23861 | F162: 65591.78911 | G162: 66438.45783 | H162: 67301.19838 | I162: 68180.39591 | J162: 69029.36743 | K162: 69893.57799
A163: 2060
A164: CB Raglan | B164: 51544.74 | C164: 52356.31886 | D164: 53072.05991 | E164: 53963.12115 | F164: 54751.46066 | G164: 55515.54613 | H164: 56294.13186 | I164: 57087.57157 | J164: 57853.7336 | K164: 58633.63212
A165: ACC levies | B165: 95.66 | C165: 97.66886 | D165: 99.71990606 | E165: 108.3811497 | F165: 112.6506632 | G165: 116.9661293 | H165: 121.3418579 | I165: 125.8715718 | J165: 130.4436002 | K165: 135.04212
A166: Discretionary Funds | B166: 14271 | C166: 14271 | D166: 14271 | E166: 14271 | F166: 14271 | G166: 14271 | H166: 14271 | I166: 14271 | J166: 14271 | K166: 14271
A167: Rate Remission Grants | B167: 380.04 | C167: 380.04 | D167: 380.04 | E167: 380 | F167: 380 | G167: 380 | H167: 380 | I167: 380 | J167: 380 | K167: 380
A168: Salaries and wages - permanent | B168: 36798.04 | C168: 37607.61 | D168: 38321.3 | E168: 39203.74 | F168: 39987.81 | G168: 40747.58 | H168: 41521.79 | I168: 42310.7 | J168: 43072.29 | K168: 43847.59
A169: 2060 Total | B169: 51544.74 | C169: 52356.31886 | D169: 53072.05991 | E169: 53963.12115 | F169: 54751.46066 | G169: 55515.54613 | H169: 56294.13186 | I169: 57087.57157 | J169: 57853.7336 | K169: 58633.63212
A170: 2070
A171: CB Te Kauwhata | B171: 4198 | C171: 4198 | D171: 4197.96 | E171: 4198 | F171: 4198 | G171: 4198 | H171: 4198 | I171: 4198 | J171: 4198 | K171: 4198
A172: Discretionary Funds | B172: 4198 | C172: 4198 | D172: 4197.96 | E172: 4198 | F172: 4198 | G172: 4198 | H172: 4198 | I172: 4198 | J172: 4198 | K172: 4198
A173: 2070 Total | B173: 4198 | C173: 4198 | D173: 4197.96 | E173: 4198 | F173: 4198 | G173: 4198 | H173: 4198 | I173: 4198 | J173: 4198 | K173: 4198
A174: 2080
A175: CB Taupiri | B175: 13248.08 | C175: 13502.34958 | D175: 13726.58238 | E175: 14005.86148 | F175: 14252.90017 | G175: 14492.33542 | H175: 14736.3033 | I175: 14984.93999 | J175: 15225.0221 | K175: 15469.4132
A176: ACC levies | B176: 29.98 | C176: 30.60958 | D176: 31.25238118 | E176: 33.9614826 | F176: 35.30016936 | G176: 36.6554228 | H176: 38.02329616 | I176: 39.43998801 | J176: 40.87209511 | K176: 42.3131976
A177: Discretionary Funds | B177: 1624 | C177: 1624 | D177: 1623.96 | E177: 1624 | F177: 1624 | G177: 1624 | H177: 1624 | I177: 1624 | J177: 1624 | K177: 1624
A178: Rate Remission Grants | B178: 63 | C178: 63 | D178: 63 | E178: 63 | F178: 63 | G178: 63 | H178: 63 | I178: 63 | J178: 63 | K178: 63
A179: Salaries and wages - permanent | B179: 11531.1 | C179: 11784.74 | D179: 12008.37 | E179: 12284.9 | F179: 12530.6 | G179: 12768.68 | H179: 13011.28 | I179: 13258.5 | J179: 13497.15 | K179: 13740.1
A180: 2080 Total | B180: 13248.08 | C180: 13502.34958 | D180: 13726.58238 | E180: 14005.86148 | F180: 14252.90017 | G180: 14492.33542 | H180: 14736.3033 | I180: 14984.93999 | J180: 15225.0221 | K180: 15469.4132
A181: 2090
A182: CB Meremere | B182: 1550 | C182: 1550 | D182: 1550.04 | E182: 1550 | F182: 1550 | G182: 1550 | H182: 1550 | I182: 1550 | J182: 1550 | K182: 1550
A183: Discretionary Funds | B183: 1550 | C183: 1550 | D183: 1550.04 | E183: 1550 | F183: 1550 | G183: 1550 | H183: 1550 | I183: 1550 | J183: 1550 | K183: 1550
A184: 2090 Total | B184: 1550 | C184: 1550 | D184: 1550.04 | E184: 1550 | F184: 1550 | G184: 1550 | H184: 1550 | I184: 1550 | J184: 1550 | K184: 1550
A185: 2110
A186: CB INT (Community aspiration blueprint) | B186: 486897 | C186: 497121.837 | D186: 507561.3956 | E186: 517712.7111 | F186: 527549.0043 | G186: 537572.7529 | H186: 547248.8569 | I186: 557099.2702 | J186: 567127.4008 | K186: 576768.4483
A187: General Grants | B187: 486897 | C187: 497121.837 | D187: 507561.3956 | E187: 517712.7111 | F187: 527549.0043 | G187: 537572.7529 | H187: 547248.8569 | I187: 557099.2702 | J187: 567127.4008 | K187: 576768.4483
A188: 2110 Total | B188: 486897 | C188: 497121.837 | D188: 507561.3956 | E188: 517712.7111 | F188: 527549.0043 | G188: 537572.7529 | H188: 547248.8569 | I188: 557099.2702 | J188: 567127.4008 | K188: 576768.4483
A189: 2150
A190: Onewhero-Tuakau Community Board | B190: 69090.66 | C190: 69960.20271 | D190: 70727.10063 | E190: 71681.92253 | F190: 72526.62101 | G190: 73345.34505 | H190: 74179.58877 | I190: 75029.75485 | J190: 75850.71348 | K190: 76686.37645
A191: ACC levies | B191: 102.51 | C191: 104.66271 | D191: 106.8606269 | E191: 116.1325338 | F191: 120.7010088 | G191: 125.3350481 | H191: 130.0187674 | I191: 134.8648502 | J191: 139.77348 | K191: 144.696447
A192: Discretionary Funds | B192: 28878 | C192: 28878 | D192: 28878 | E192: 28878 | F192: 28878 | G192: 28878 | H192: 28878 | I192: 28878 | J192: 28878 | K192: 28878
A193: Rate Remission Grants | B193: 681 | C193: 681 | D193: 681 | E193: 681 | F193: 681 | G193: 681 | H193: 681 | I193: 681 | J193: 681 | K193: 681
A194: Salaries and wages - permanent | B194: 39429.15 | C194: 40296.54 | D194: 41061.24 | E194: 42006.79 | F194: 42846.92 | G194: 43661.01 | H194: 44490.57 | I194: 45335.89 | J194: 46151.94 | K194: 46982.68
A195: 2150 Total | B195: 69090.66 | C195: 69960.20271 | D195: 70727.10063 | E195: 71681.92253 | F195: 72526.62101 | G195: 73345.34505 | H195: 74179.58877 | I195: 75029.75485 | J195: 75850.71348 | K195: 76686.37645
A196: 2160
A197: Port Waikato Community Board | B197: 41680.06 | C197: 41687.71534 | D197: 41695.53144 | E197: 41703.13174 | F197: 41710.49617 | G197: 41718.00096 | H197: 41725.24546 | I197: 41732.62047 | J197: 41740.12854 | K197: 41747.34679
A198: ACC levies | B198: 64.54 | C198: 65.89534 | D198: 67.27914214 | E198: 68.6247366 | F198: 69.92857368 | G198: 71.25725866 | H198: 72.53986208 | I198: 73.84557082 | J198: 75.17483666 | K198: 76.4527932
A199: Discretionary Funds | B199: 16483 | C199: 16483 | D199: 16483 | E199: 16483 | F199: 16483 | G199: 16483 | H199: 16483 | I199: 16483 | J199: 16483 | K199: 16483
A200: Mileage Reimbursement | B200: 300 | C200: 306.3 | D200: 312.7323 | E200: 318.987 | F200: 325.0476 | G200: 331.2237 | H200: 337.1856 | I200: 343.2549 | J200: 349.4337 | K200: 355.374
A201: Salaries and wages - permanent | B201: 24832.52 | C201: 24832.52 | D201: 24832.52 | E201: 24832.52 | F201: 24832.52 | G201: 24832.52 | H201: 24832.52 | I201: 24832.52 | J201: 24832.52 | K201: 24832.52
A202: 2160 Total | B202: 41680.06 | C202: 41687.71534 | D202: 41695.53144 | E202: 41703.13174 | F202: 41710.49617 | G202: 41718.00096 | H202: 41725.24546 | I202: 41732.62047 | J202: 41740.12854 | K202: 41747.34679
... 1691 more rows

Sheet GL PR Opex comb controlled (hidden)
A1: Lock | B1: Account Number - Formatted | C1: Account | D1: Cost Centre | E1: Cost Centre Description | F1: Activity | G1: Natural Account | H1: Natural Account Description | I1: Entity | J1: Total Budget 2024/25 | K1: Total Budget 2025/26 | L1: Total Budget 2026/27 | M1: Year 2027/28 | N1: Year 2028/29 | O1: Year 2029/30 | P1: Year 2030/31 | Q1: Year 2031/32 | R1: Year 2032/33 | S1: Year 2033/34 | T1: Year 2025/26 Inflated | U1: Year 2026/27 Inflated | V1: Year 2027/28 Inflated | W1: Year 2028/29 Inflated | X1: Year 2029/30 Inflated | Y1: Year 2030/31 Inflated | Z1: Year 2031/32 Inflated | AA1: Year 2032/33 Inflated | AB1: Year 2033/34 Inflated | AC1: Selection Type 3 | AD1: Funding Impact Statement | AE1: Management Reports | AF1: Inflation Option | AG1: Subsidies | AH1: LTP Group
A2: * | B2: 10-1200-0000-00-22000 | C2: 10120000000022000 | D2: 1200 | E2: Strategic Property | F2: 0000 | G2: 22000 | H2: Salaries and wages - permanent | I2: 10 | J2: 660173.83 | K2: 674697.62 | L2: 687501 | M2: 703332.49 | N2: 717399.14 | O2: 731029.72 | P2: 744919.29 | Q2: 759072.76 | R2: 772736.07 | S2: 786645.31 | T2: 674697.62 | U2: 687501 | V2: 703332.49 | W2: 717399.14 | X2: 731029.72 | Y2: 744919.29 | Z2: 759072.76 | AA2: 772736.07 | AB2: 786645.31 | AC2: ORG3 | AD2: 200 | AE2: 1100 | AF2: WDC_INFLATION_RATES | AG2: NA | AH2: SUSCOMM
A3: * | B3: 10-1220-0000-00-22000 | C3: 10122000000022000 | D3: 1220 | E3: Contracts & Partnering | F3: 0000 | G3: 22000 | H3: Salaries and wages - permanent | I3: 10 | J3: 433632.25 | K3: 365839.19 | L3: 374248.99 | M3: 384647.84 | N3: 393887.45 | O3: 402840.64 | P3: 411963.94 | Q3: 421260.58 | R3: 430235.27 | S3: 439371.5 | T3: 365839.19 | U3: 374248.99 | V3: 384647.84 | W3: 393887.45 | X3: 402840.64 | Y3: 411963.94 | Z3: 421260.58 | AA3: 430235.27 | AB3: 439371.5 | AC3: CONPART | AD3: 200 | AE3: 1100 | AF3: WDC_INFLATION_RATES | AG3: NA | AH3: ORGSUP
A4: * | B4: 10-1230-0000-00-22000 | C4: 10123000000022000 | D4: 1230 | E4: Community Assets | F4: 0000 | G4: 22000 | H4: Salaries and wages - permanent | I4: 10 | J4: 679833.62 | K4: 694789.94 | L4: 707974.58 | M4: 724277.52 | N4: 738763.07 | O4: 752799.57 | P4: 767102.76 | Q4: 781677.71 | R4: 795747.91 | S4: 810071.37 | T4: 694789.94 | U4: 707974.58 | V4: 724277.52 | W4: 738763.07 | X4: 752799.57 | Y4: 767102.76 | Z4: 781677.71 | AA4: 795747.91 | AB4: 810071.37 | AC4: COMASSET | AD4: 200 | AE4: 1100 | AF4: WDC_INFLATION_RATES | AG4: NA | AH4: SUSCOMM
A5: MJC addedline #8 | B5: 10-1330-0000-00-22000 | C5: 10133000000022000 | D5: 1330 | E5: Community Connections | F5: 0000 | G5: 22000 | H5: Salaries and wages - permanent | I5: 10 | J5: 2019677.38 | K5: 2062460.29 | L5: 2100175.18 | M5: 2146810.08 | N5: 2188246.28 | O5: 2228397.96 | P5: 2269312.52 | Q5: 2311004.46 | R5: 2351252.54 | S5: 2392225.09 | T5: 2062460.29 | U5: 2100175.18 | V5: 2146810.08 | W5: 2188246.28 | X5: 2228397.96 | Y5: 2269312.52 | Z5: 2311004.46 | AA5: 2351252.54 | AB5: 2392225.09 | AC5: COMCONN | AD5: 200 | AE5: 1100 | AF5: WDC_INFLATION_RATES | AG5: NA | AH5: ORGSUP
A6: * | B6: 10-1440-0000-00-22000 | C6: 10144000000022000 | D6: 1440 | E6: Wainui Reserve | F6: 0000 | G6: 22000 | H6: Salaries and wages - permanent | I6: 10 | J6: 82534.41 | K6: 84350.16 | L6: 85950.81 | M6: 87930.06 | N6: 89688.66 | O6: 91392.75 | P6: 93129.21 | Q6: 94898.66 | R6: 96606.84 | S6: 98345.76 | T6: 84350.16 | U6: 85950.81 | V6: 87930.06 | W6: 89688.66 | X6: 91392.75 | Y6: 93129.21 | Z6: 94898.66 | AA6: 96606.84 | AB6: 98345.76 | AC6: COMCONN | AD6: 200 | AE6: 1100 | AF6: WDC_INFLATION_RATES | AG6: NA | AH6: SUSCOMM
A7: * | B7: 10-1460-0000-00-22000 | C7: 10146000000022000 | D7: 1460 | E7: Woodlands | F7: 0000 | G7: 22000 | H7: Salaries and wages - permanent | I7: 10 | J7: 182973.45 | K7: 186998.87 | L7: 190547.42 | M7: 194935.27 | N7: 198833.98 | O7: 202611.83 | P7: 206461.45 | Q7: 210384.22 | R7: 214171.13 | S7: 218026.21 | T7: 186998.87 | U7: 190547.42 | V7: 194935.27 | W7: 198833.98 | X7: 202611.83 | Y7: 206461.45 | Z7: 210384.22 | AA7: 214171.13 | AB7: 218026.21 | AC7: COMCONN | AD7: 200 | AE7: 1100 | AF7: WDC_INFLATION_RATES | AG7: NA | AH7: SUSCOMM
A8: * | B8: 10-1540-0000-00-22000 | C8: 10154000000022000 | D8: 1540 | E8: Lake Hakanoa Motor Caravan Park | F8: 0000 | G8: 22000 | H8: Salaries and wages - permanent | I8: 10 | J8: 134400.01 | K8: 137356.79 | L8: 139963.35 | M8: 143186.36 | N8: 146050.09 | O8: 148825.04 | P8: 151652.71 | Q8: 154534.12 | R8: 157315.73 | S8: 160147.41 | T8: 137356.79 | U8: 139963.35 | V8: 143186.36 | W8: 146050.09 | X8: 148825.04 | Y8: 151652.71 | Z8: 154534.12 | AA8: 157315.73 | AB8: 160147.41 | AC8: COMCONN | AD8: 200 | AE8: 1100 | AF8: WDC_INFLATION_RATES | AG8: NA | AH8: SUSCOMM
A9: * | B9: 10-1550-0000-00-22000 | C9: 10155000000022000 | D9: 1550 | E9: Raglan Holiday Park Papahua | F9: 0000 | G9: 22000 | H9: Salaries and wages - permanent | I9: 10 | J9: 1230641.1 | K9: 1257715.27 | L9: 1281582.22 | M9: 1311093.95 | N9: 1337315.83 | O9: 1362724.83 | P9: 1388616.6 | Q9: 1415000.32 | R9: 1440470.32 | S9: 1466398.79 | T9: 1257715.27 | U9: 1281582.22 | V9: 1311093.95 | W9: 1337315.83 | X9: 1362724.83 | Y9: 1388616.6 | Z9: 1415000.32 | AA9: 1440470.32 | AB9: 1466398.79 | AC9: COMCONN | AD9: 200 | AE9: 1100 | AF9: WDC_INFLATION_RATES | AG9: NA | AH9: SUSCOMM
A10: MJC added line 7 | B10: 10-1670-0000-00-22000 | C10: 10167000000022000 | D10: 1670 | E10: Refuse Collection General | F10: 0000 | G10: 22000 | H10: Salaries and wages - permanent | I10: 10 | J10: 0 | K10: 0 | L10: 75000 | M10: 75000 | N10: 75000 | O10: 75000 | P10: 75000 | Q10: 75000 | R10: 75000 | S10: 75000 | T10: 0 | U10: 75000 | V10: 75000 | W10: 75000 | X10: 75000 | Y10: 75000 | Z10: 75000 | AA10: 75000 | AB10: 75000 | AC10: SWASTE | AD10: 200 | AE10: 1100 | AG10: NA | AH10: SUSENV
A11: MJC - added line10 | B11: 10-2000-0000-00-22000 | C11: 10200000000022000 | D11: 2000 | E11: Chief Executive | F11: 0000 | G11: 22000 | H11: Salaries and wages - permanent | I11: 10 | J11: 1131694 | K11: 1215250 | L11: 1238229 | M11: 1261691 | N11: 1284505 | O11: 1306611 | P11: 1329138 | Q11: 1352092 | R11: 1374252 | S11: 1396811 | T11: 1215250 | U11: 1238229 | V11: 1261691 | W11: 1284505 | X11: 1306611 | Y11: 1329138 | Z11: 1352092 | AA11: 1374252 | AB11: 1396811 | AC11: CHIEFEXE | AD11: 200 | AE11: 1100 | AG11: NA | AH11: GOVERNAN
A12: MJC added line 5 & 6 | B12: 10-2010-0000-00-22000 | C12: 10201000000022000 | D12: 2010 | E12: Projects and Innovation | F12: 0000 | G12: 22000 | H12: Salaries and wages - permanent | I12: 10 | J12: 2034909.07 | K12: 2198411.15 | L12: 2235878.4 | M12: 2282207.1 | N12: 2323371.25 | O12: 2363259.3 | P12: 2403905.23 | Q12: 2445323.42 | R12: 2485307.25 | S12: 2526010.78 | T12: 2198411.15 | U12: 2235878.4 | V12: 2282207.1 | W12: 2323371.25 | X12: 2363259.3 | Y12: 2403905.23 | Z12: 2445323.42 | AA12: 2485307.25 | AB12: 2526010.78 | AC12: OPPS | AD12: 200 | AE12: 1100 | AG12: NA | AH12: ORGSUP
A13: * | B13: 10-2020-0000-00-22000 | C13: 10202000000022000 | D13: 2020 | E13: Council | F13: 0000 | G13: 22000 | H13: Salaries and wages - permanent | I13: 10 | J13: 1024464 | K13: 1047002 | L13: 1066870 | M13: 1091438 | N13: 1113267 | O13: 1134419 | P13: 1155973 | Q13: 1177936 | R13: 1199139 | S13: 1220724 | T13: 1047002 | U13: 1066870 | V13: 1091438 | W13: 1113267 | X13: 1134419 | Y13: 1155973 | Z13: 1177936 | AA13: 1199139 | AB13: 1220724 | AC13: GOVERN | AD13: 200 | AE13: 1100 | AG13: NA | AH13: GOVERNAN
A14: * | B14: 10-2040-0000-00-22000 | C14: 10204000000022000 | D14: 2040 | E14: CB Huntly | F14: 0000 | G14: 22000 | H14: Salaries and wages - permanent | I14: 10 | J14: 40344.11 | K14: 41231.65 | L14: 42014.07 | M14: 42981.57 | N14: 43841.2 | O14: 44674.18 | P14: 45522.99 | Q14: 46387.93 | R14: 47222.91 | S14: 48072.92 | T14: 41231.65 | U14: 42014.07 | V14: 42981.57 | W14: 43841.2 | X14: 44674.18 | Y14: 45522.99 | Z14: 46387.93 | AA14: 47222.91 | AB14: 48072.92 | AC14: GOVERN | AD14: 200 | AE14: 1100 | AG14: NA | AH14: GOVERNAN
A15: * | B15: 10-2050-0000-00-22000 | C15: 10205000000022000 | D15: 2050 | E15: CB Ngaruawahia | F15: 0000 | G15: 22000 | H15: Salaries and wages - permanent | I15: 10 | J15: 40775.44 | K15: 41672.5 | L15: 42463.31 | M15: 43441.14 | N15: 44309.96 | O15: 45151.85 | P15: 46009.74 | Q15: 46883.92 | R15: 47727.83 | S15: 48586.93 | T15: 41672.5 | U15: 42463.31 | V15: 43441.14 | W15: 44309.96 | X15: 45151.85 | Y15: 46009.74 | Z15: 46883.92 | AA15: 47727.83 | AB15: 48586.93 | AC15: GOVERN | AD15: 200 | AE15: 1100 | AG15: NA | AH15: GOVERNAN
A16: * | B16: 10-2060-0000-00-22000 | C16: 10206000000022000 | D16: 2060 | E16: CB Raglan | F16: 0000 | G16: 22000 | H16: Salaries and wages - permanent | I16: 10 | J16: 36798.04 | K16: 37607.61 | L16: 38321.3 | M16: 39203.74 | N16: 39987.81 | O16: 40747.58 | P16: 41521.79 | Q16: 42310.7 | R16: 43072.29 | S16: 43847.59 | T16: 37607.61 | U16: 38321.3 | V16: 39203.74 | W16: 39987.81 | X16: 40747.58 | Y16: 41521.79 | Z16: 42310.7 | AA16: 43072.29 | AB16: 43847.59 | AC16: GOVERN | AD16: 200 | AE16: 1100 | AG16: NA | AH16: GOVERNAN
A17: * | B17: 10-2080-0000-00-22000 | C17: 10208000000022000 | D17: 2080 | E17: CB Taupiri | F17: 0000 | G17: 22000 | H17: Salaries and wages - permanent | I17: 10 | J17: 11531.1 | K17: 11784.74 | L17: 12008.37 | M17: 12284.9 | N17: 12530.6 | O17: 12768.68 | P17: 13011.28 | Q17: 13258.5 | R17: 13497.15 | S17: 13740.1 | T17: 11784.74 | U17: 12008.37 | V17: 12284.9 | W17: 12530.6 | X17: 12768.68 | Y17: 13011.28 | Z17: 13258.5 | AA17: 13497.15 | AB17: 13740.1 | AC17: GOVERN | AD17: 200 | AE17: 1100 | AG17: NA | AH17: GOVERNAN
A18: * | B18: 10-2150-0000-00-22000 | C18: 10215000000022000 | D18: 2150 | E18: Onewhero-Tuakau Community Board | F18: 0000 | G18: 22000 | H18: Salaries and wages - permanent | I18: 10 | J18: 39429.15 | K18: 40296.54 | L18: 41061.24 | M18: 42006.79 | N18: 42846.92 | O18: 43661.01 | P18: 44490.57 | Q18: 45335.89 | R18: 46151.94 | S18: 46982.68 | T18: 40296.54 | U18: 41061.24 | V18: 42006.79 | W18: 42846.92 | X18: 43661.01 | Y18: 44490.57 | Z18: 45335.89 | AA18: 46151.94 | AB18: 46982.68 | AC18: GOVERN | AD18: 200 | AE18: 1100 | AG18: NA | AH18: GOVERNAN
A19: * | B19: 10-2160-0000-00-22000 | C19: 10216000000022000 | D19: 2160 | E19: Port Waikato Community Board | F19: 0000 | G19: 22000 | H19: Salaries and wages - permanent | I19: 10 | J19: 24832.52 | K19: 24832.52 | L19: 24832.52 | M19: 24832.52 | N19: 24832.52 | O19: 24832.52 | P19: 24832.52 | Q19: 24832.52 | R19: 24832.52 | S19: 24832.52 | T19: 24832.52 | U19: 24832.52 | V19: 24832.52 | W19: 24832.52 | X19: 24832.52 | Y19: 24832.52 | Z19: 24832.52 | AA19: 24832.52 | AB19: 24832.52 | AC19: GOVERN | AD19: 200 | AE19: 1100 | AG19: NA | AH19: GOVERNAN
A20: MJC - addtl FTE per CB | B20: 10-2210-0000-00-22000 | C20: 10221000000022000 | D20: 2210 | E20: EPMO | F20: 0000 | G20: 22000 | H20: Salaries and wages - permanent | I20: 10 | J20: 3258452.23 | K20: 3327938.17 | L20: 3389192.92 | M20: 3464935.1 | N20: 3532233.8 | O20: 3597446.24 | P20: 3663897.72 | Q20: 3731611.78 | R20: 3796980.79 | S20: 3863526.44 | T20: 3327938.17 | U20: 3389192.92 | V20: 3464935.1 | W20: 3532233.8 | X20: 3597446.24 | Y20: 3663897.72 | Z20: 3731611.78 | AA20: 3796980.79 | AB20: 3863526.44 | AC20: OPPS | AD20: 200 | AE20: 1100 | AG20: NA | AH20: ORGSUP
A21: MJC - added line #17 | B21: 10-3000-0000-00-22000 | C21: 10300000000022000 | D21: 3000 | E21: People and Capability | F21: 0000 | G21: 22000 | H21: Salaries and wages - permanent | I21: 10 | J21: 1651320.91 | K21: 1684987.95 | L21: 1714666.82 | M21: 1751365.17 | N21: 1783972.47 | O21: 1815568.95 | P21: 1847765.76 | Q21: 1880574.31 | R21: 1912246.65 | S21: 1944489.09 | T21: 1684987.95 | U21: 1714666.82 | V21: 1751365.17 | W21: 1783972.47 | X21: 1815568.95 | Y21: 1847765.76 | Z21: 1880574.31 | AA21: 1912246.65 | AB21: 1944489.09 | AC21: PEOPLE | AD21: 200 | AE21: 1100 | AG21: NA | AH21: ORGSUP
A22: * | B22: 10-3010-0000-00-22000 | C22: 10301000000022000 | D22: 3010 | E22: Zero Harm | F22: 0000 | G22: 22000 | H22: Salaries and wages - permanent | I22: 10 | J22: 413081.61 | K22: 422169.4 | L22: 430180.67 | M22: 440086.69 | N22: 448888.42 | O22: 457417.3 | P22: 466108.23 | Q22: 474964.29 | R22: 483513.64 | S22: 492216.89 | T22: 422169.4 | U22: 430180.67 | V22: 440086.69 | W22: 448888.42 | X22: 457417.3 | Y22: 466108.23 | Z22: 474964.29 | AA22: 483513.64 | AB22: 492216.89 | AC22: ZEROHARM | AD22: 200 | AE22: 1100 | AG22: NA | AH22: ORGSUP
A23: * | B23: 10-4000-0000-00-22000 | C23: 10400000000022000 | D23: 4000 | E23: Customer Delivery Management | F23: 0000 | G23: 22000 | H23: Salaries and wages - permanent | I23: 10 | J23: 515790.81 | K23: 527138.24 | L23: 537141.46 | M23: 549510.52 | N23: 560500.73 | O23: 571150.25 | P23: 582002.1 | Q23: 593060.14 | R23: 603735.22 | S23: 614602.46 | T23: 527138.24 | U23: 537141.46 | V23: 549510.52 | W23: 560500.73 | X23: 571150.25 | Y23: 582002.1 | Z23: 593060.14 | AA23: 603735.22 | AB23: 614602.46 | AC23: CUSTOMD | AD23: 200 | AE23: 1100 | AG23: NA | AH23: SUSCOMM
A24: * | B24: 10-4010-0000-00-22000 | C24: 10401000000022000 | D24: 4010 | E24: Cafeteria | F24: 0000 | G24: 22000 | H24: Salaries and wages - permanent | I24: 10 | J24: 65814.51 | K24: 67262.42 | L24: 68538.83 | M24: 70117.13 | N24: 71519.48 | O24: 72878.35 | P24: 74263.03 | Q24: 75674.03 | R24: 77036.16 | S24: 78422.82 | T24: 67262.42 | U24: 68538.83 | V24: 70117.13 | W24: 71519.48 | X24: 72878.35 | Y24: 74263.03 | Z24: 75674.03 | AA24: 77036.16 | AB24: 78422.82 | AC24: COMCONN | AD24: 200 | AE24: 1100 | AG24: NA | AH24: ORGSUP
A25: * | B25: 10-4030-0000-00-22000 | C25: 10403000000022000 | D25: 4030 | E25: Council Support | F25: 0000 | G25: 22000 | H25: Salaries and wages - permanent | I25: 10 | J25: 373555.22 | K25: 381773.41 | L25: 389018.11 | M25: 397976.26 | N25: 405935.79 | O25: 413648.56 | P25: 421507.89 | Q25: 429516.54 | R25: 437247.84 | S25: 445118.3 | T25: 381773.41 | U25: 389018.11 | V25: 397976.26 | W25: 405935.79 | X25: 413648.56 | Y25: 421507.89 | Z25: 429516.54 | AA25: 437247.84 | AB25: 445118.3 | AC25: COMMS | AD25: 200 | AE25: 1100 | AG25: NA | AH25: GOVERNAN
A26: * | B26: 10-4040-0000-00-22000 | C26: 10404000000022000 | D26: 4040 | E26: Huntly Integrated Service Centre | F26: 0000 | G26: 22000 | H26: Salaries and wages - permanent | I26: 10 | J26: 612706.31 | K26: 626185.86 | L26: 638068.63 | M26: 652761.8 | N26: 665817.03 | O26: 678467.56 | P26: 691358.44 | Q26: 704494.25 | R26: 717175.15 | S26: 730084.3 | T26: 626185.86 | U26: 638068.63 | V26: 652761.8 | W26: 665817.03 | X26: 678467.56 | Y26: 691358.44 | Z26: 704494.25 | AA26: 717175.15 | AB26: 730084.3 | AC26: CUSTOMD | AD26: 200 | AE26: 1100 | AG26: NA | AH26: SUSCOMM
A27: * | B27: 10-4060-0000-00-22000 | C27: 10406000000022000 | D27: 4060 | E27: Ngaruawahia Integrated Service Centre | F27: 0000 | G27: 22000 | H27: Salaries and wages - permanent | I27: 10 | J27: 576755.7 | K27: 589444.34 | L27: 600629.89 | M27: 614460.94 | N27: 626750.16 | O27: 638658.42 | P27: 650792.93 | Q27: 663157.99 | R27: 675094.84 | S27: 687246.54 | T27: 589444.34 | U27: 600629.89 | V27: 614460.94 | W27: 626750.16 | X27: 638658.42 | Y27: 650792.93 | Z27: 663157.99 | AA27: 675094.84 | AB27: 687246.54 | AC27: CUSTOMD | AD27: 200 | AE27: 1100 | AG27: NA | AH27: SUSCOMM
A28: * | B28: 10-4070-0000-00-22000 | C28: 10407000000022000 | D28: 4070 | E28: Customer Delivery Contact Centre | F28: 0000 | G28: 22000 | H28: Salaries and wages - permanent | I28: 10 | J28: 576479.24 | K28: 589161.79 | L28: 600341.95 | M28: 614166.39 | N28: 626449.72 | O28: 638352.26 | P28: 650480.96 | Q28: 662840.09 | R28: 674771.22 | S28: 686917.1 | T28: 589161.79 | U28: 600341.95 | V28: 614166.39 | W28: 626449.72 | X28: 638352.26 | Y28: 650480.96 | Z28: 662840.09 | AA28: 674771.22 | AB28: 686917.1 | AC28: CUSTOMD | AD28: 200 | AE28: 1100 | AG28: NA | AH28: SUSCOMM
A29: * | B29: 10-4080-0000-00-22000 | C29: 10408000000022000 | D29: 4080 | E29: Raglan Integrated Service Centre | F29: 0000 | G29: 22000 | H29: Salaries and wages - permanent | I29: 10 | J29: 383460.37 | K29: 391896.48 | L29: 399333.27 | M29: 408528.96 | N29: 416699.54 | O29: 424616.83 | P29: 432684.55 | Q29: 440905.55 | R29: 448841.85 | S29: 456921.01 | T29: 391896.48 | U29: 399333.27 | V29: 408528.96 | W29: 416699.54 | X29: 424616.83 | Y29: 432684.55 | Z29: 440905.55 | AA29: 448841.85 | AB29: 456921.01 | AC29: CUSTOMD | AD29: 200 | AE29: 1100 | AG29: NA | AH29: SUSCOMM
A30: * | B30: 10-4090-0000-00-22000 | C30: 10409000000022000 | D30: 4090 | E30: Te Kauwhata Integrated Service Centre | F30: 0000 | G30: 22000 | H30: Salaries and wages - permanent | I30: 10 | J30: 324164.61 | K30: 331296.23 | L30: 337583.08 | M30: 345356.77 | N30: 352263.91 | O30: 358956.92 | P30: 365777.1 | Q30: 372726.87 | R30: 379435.95 | S30: 386265.8 | T30: 331296.23 | U30: 337583.08 | V30: 345356.77 | W30: 352263.91 | X30: 358956.92 | Y30: 365777.1 | Z30: 372726.87 | AA30: 379435.95 | AB30: 386265.8 | AC30: CUSTOMD | AD30: 200 | AE30: 1100 | AG30: NA | AH30: SUSCOMM
A31: * | B31: 10-4100-0000-00-22000 | C31: 10410000000022000 | D31: 4100 | E31: Tuakau Integrated Service Centre | F31: 0000 | G31: 22000 | H31: Salaries and wages - permanent | I31: 10 | J31: 513044.49 | K31: 524331.47 | L31: 534281.36 | M31: 546584.61 | N31: 557516.3 | O31: 568109.11 | P31: 578903.19 | Q31: 589902.35 | R31: 600520.59 | S31: 611329.96 | T31: 524331.47 | U31: 534281.36 | V31: 546584.61 | W31: 557516.3 | X31: 568109.11 | Y31: 578903.19 | Z31: 589902.35 | AA31: 600520.59 | AB31: 611329.96 | AC31: CUSTOMD | AD31: 200 | AE31: 1100 | AG31: NA | AH31: SUSCOMM
A32: * | B32: 10-4120-0000-00-22000 | C32: 10412000000022000 | D32: 4120 | E32: Communications | F32: 0000 | G32: 22000 | H32: Salaries and wages - permanent | I32: 10 | J32: 1088040.95 | K32: 1111977.89 | L32: 1133079.22 | M32: 1159171.31 | N32: 1182354.74 | O32: 1204819.48 | P32: 1227711.05 | Q32: 1251037.56 | R32: 1273556.24 | S32: 1296480.25 | T32: 1111977.89 | U32: 1133079.22 | V32: 1159171.31 | W32: 1182354.74 | X32: 1204819.48 | Y32: 1227711.05 | Z32: 1251037.56 | AA32: 1273556.24 | AB32: 1296480.25 | AC32: COMMS | AD32: 200 | AE32: 1100 | AG32: NA | AH32: ORGSUP
A33: * | B33: 10-5000-0000-00-22000 | C33: 10500000000022000 | D33: 5000 | E33: Operations Group Management | F33: 0000 | G33: 22000 | H33: Salaries and wages - permanent | I33: 10 | J33: 384894.96 | K33: 393362.66 | L33: 400827.32 | M33: 410057.37 | N33: 418258.52 | O33: 426205.43 | P33: 434303.33 | Q33: 442555.1 | R33: 450521.09 | S33: 458630.47 | T33: 393362.66 | U33: 400827.32 | V33: 410057.37 | W33: 418258.52 | X33: 426205.43 | Y33: 434303.33 | Z33: 442555.1 | AA33: 450521.09 | AB33: 458630.47 | AC33: COOMNGT | AD33: 200 | AE33: 1100 | AG33: NA | AH33: ORGSUP
A34: * | B34: 10-5030-0000-00-22000 | C34: 10503000000022000 | D34: 5030 | E34: Legal | F34: 0000 | G34: 22000 | H34: Salaries and wages - permanent | I34: 10 | J34: 1121233.9 | K34: 1145901.08 | L34: 1167646.19 | M34: 1194534.25 | N34: 1218424.94 | O34: 1241575.01 | P34: 1265164.94 | Q34: 1289203.07 | R34: 1312408.73 | S34: 1336032.08 | T34: 1145901.08 | U34: 1167646.19 | V34: 1194534.25 | W34: 1218424.94 | X34: 1241575.01 | Y34: 1265164.94 | Z34: 1289203.07 | AA34: 1312408.73 | AB34: 1336032.08 | AC34: LEGAL | AD34: 200 | AE34: 1100 | AG34: NA | AH34: ORGSUP
A35: MJC - added line #19-21 | B35: 10-5040-0000-00-22000 | C35: 10504000000022000 | D35: 5040 | E35: Finance | F35: 0000 | G35: 22000 | H35: Salaries and wages - permanent | I35: 10 | J35: 2557290.5 | K35: 2605454.89 | L35: 2647913.79 | M35: 2700414.71 | N35: 2747063 | O35: 2792265.2 | P35: 2838326.24 | Q35: 2885262.44 | R35: 2930573.16 | S35: 2976699.48 | T35: 2605454.89 | U35: 2647913.79 | V35: 2700414.71 | W35: 2747063 | X35: 2792265.2 | Y35: 2838326.24 | Z35: 2885262.44 | AA35: 2930573.16 | AB35: 2976699.48 | AC35: FINANCE | AD35: 200 | AE35: 1100 | AG35: NA | AH35: ORGSUP
A36: MJC - added line #10-16 | B36: 10-5050-0000-00-22000 | C36: 10505000000022000 | D36: 5050 | E36: Information Management | F36: 0000 | G36: 22000 | H36: Salaries and wages - permanent | I36: 10 | J36: 3681270.72 | K36: 3746616.67 | L36: 3804221.84 | M36: 3875451.28 | N36: 3938740.31 | O36: 4000067.37 | P36: 4062559.65 | Q36: 4126239.29 | R36: 4187713.6 | S36: 4250294.44 | T36: 3746616.67 | U36: 3804221.84 | V36: 3875451.28 | W36: 3938740.31 | X36: 4000067.37 | Y36: 4062559.65 | Z36: 4126239.29 | AA36: 4187713.6 | AB36: 4250294.44 | AC36: INFOM | AD36: 200 | AE36: 1100 | AG36: NA | AH36: ORGSUP
A37: MJC updated line #21 | B37: 10-5070-0000-00-22000 | C37: 10507000000022000 | D37: 5070 | E37: Rates Team | F37: 0000 | G37: 22000 | H37: Salaries and wages - permanent | I37: 10 | J37: 579853.64 | K37: 592324.42 | L37: 603317.92 | M37: 616911.52 | N37: 628989.75 | O37: 640693.55 | P37: 652619.73 | Q37: 664772.51 | R37: 676504.41 | S37: 688447.49 | T37: 592324.42 | U37: 603317.92 | V37: 616911.52 | W37: 628989.75 | X37: 640693.55 | Y37: 652619.73 | Z37: 664772.51 | AA37: 676504.41 | AB37: 688447.49 | AC37: FINANCE | AD37: 200 | AE37: 1100 | AG37: NA | AH37: ORGSUP
A38: * | B38: 10-5200-0000-00-22000 | C38: 10520000000022000 | D38: 5200 | E38: Community Growth Management | F38: 0000 | G38: 22000 | H38: Salaries and wages - permanent | I38: 10 | J38: 832424.97 | K38: 850738.33 | L38: 866882.27 | M38: 886844.49 | N38: 904581.38 | O38: 921768.43 | P38: 939282.03 | Q38: 957128.39 | R38: 974356.7 | S38: 991895.12 | T38: 850738.33 | U38: 866882.27 | V38: 886844.49 | W38: 904581.38 | X38: 921768.43 | Y38: 939282.03 | Z38: 957128.39 | AA38: 974356.7 | AB38: 991895.12 | AC38: COMMGRTH | AD38: 200 | AE38: 1100 | AG38: NA | AH38: ORGSUP
A39: * | B39: 10-5210-0000-00-22000 | C39: 10521000000022000 | D39: 5210 | E39: Community Growth Analytics | F39: 0000 | G39: 22000 | H39: Salaries and wages - permanent | I39: 10 | J39: 1057095.71 | K39: 1080351.79 | L39: 1100852.99 | M39: 1126203 | N39: 1148727.05 | O39: 1170552.87 | P39: 1192793.37 | Q39: 1215456.45 | R39: 1237334.66 | S39: 1259606.69 | T39: 1080351.79 | U39: 1100852.99 | V39: 1126203 | W39: 1148727.05 | X39: 1170552.87 | Y39: 1192793.37 | Z39: 1215456.45 | AA39: 1237334.66 | AB39: 1259606.69 | AC39: ANALYTIC | AD39: 200 | AE39: 1100 | AG39: NA | AH39: SUSENV
A40: * | B40: 10-5220-0000-00-22000 | C40: 10522000000022000 | D40: 5220 | E40: Economic and Community Development | F40: 0000 | G40: 22000 | H40: Salaries and wages - permanent | I40: 10 | J40: 710220.78 | K40: 725845.66 | L40: 739619.62 | M40: 756651.27 | N40: 771784.3 | O40: 786448.2 | P40: 801390.72 | Q40: 816617.14 | R40: 831316.25 | S40: 846279.94 | T40: 725845.66 | U40: 739619.62 | V40: 756651.27 | W40: 771784.3 | X40: 786448.2 | Y40: 801390.72 | Z40: 816617.14 | AA40: 831316.25 | AB40: 846279.94 | AC40: ECONDEV | AD40: 200 | AE40: 1100 | AG40: NA | AH40: SUSCOMM
A41: * | B41: 10-5230-0000-00-22000 | C41: 10523000000022000 | D41: 5230 | E41: Corporate Planning | F41: 0000 | G41: 22000 | H41: Salaries and wages - permanent | I41: 10 | J41: 624694.28 | K41: 638437.59 | L41: 650552.82 | M41: 665533.47 | N41: 678844.14 | O41: 691742.18 | P41: 704885.28 | Q41: 718278.1 | R41: 731207.11 | S41: 744368.84 | T41: 638437.59 | U41: 650552.82 | V41: 665533.47 | W41: 678844.14 | X41: 691742.18 | Y41: 704885.28 | Z41: 718278.1 | AA41: 731207.11 | AB41: 744368.84 | AC41: PLANSTRA | AD41: 200 | AE41: 1100 | AG41: NA | AH41: ORGSUP
A42: MJC - updated line # 18 | B42: 10-5240-0000-00-22000 | C42: 10524000000022000 | D42: 5240 | E42: Resource Management Policy | F42: 0000 | G42: 22000 | H42: Salaries and wages - permanent | I42: 10 | J42: 1276291.12 | K42: 1301707.55 | L42: 1324113.17 | M42: 1351817.95 | N42: 1376434.31 | O42: 1400287.56 | P42: 1424594.02 | Q42: 1449362.31 | R42: 1473272.83 | S42: 1497613.74 | T42: 1301707.55 | U42: 1324113.17 | V42: 1351817.95 | W42: 1376434.31 | X42: 1400287.56 | Y42: 1424594.02 | Z42: 1449362.31 | AA42: 1473272.83 | AB42: 1497613.74 | AC42: PLANSTRA | AD42: 200 | AE42: 1100 | AG42: NA | AH42: SUSENV
A43: * | B43: 10-5250-0000-00-22000 | C43: 10525000000022000 | D43: 5250 | E43: Strategic Planning | F43: 0000 | G43: 22000 | H43: Salaries and wages - permanent | I43: 10 | J43: 584220.66 | K43: 597073.51 | L43: 608403.84 | M43: 622413.92 | N43: 634862.2 | O43: 646924.58 | P43: 659216.15 | Q43: 671741.26 | R43: 683832.6 | S43: 696141.59 | T43: 597073.51 | U43: 608403.84 | V43: 622413.92 | W43: 634862.2 | X43: 646924.58 | Y43: 659216.15 | Z43: 671741.26 | AA43: 683832.6 | AB43: 696141.59 | AC43: PLANSTRA | AD43: 200 | AE43: 1100 | AG43: NA | AH43: SUSENV
A44: * | B44: 10-5260-0000-00-22000 | C44: 10526000000022000 | D44: 5260 | E44: Planning & Policy | F44: 0000 | G44: 22000 | H44: Salaries and wages - permanent | I44: 10 | J44: 544571.4 | K44: 556551.94 | L44: 567113.35 | M44: 580172.58 | N44: 591776.04 | O44: 603019.78 | P44: 614477.16 | Q44: 626152.22 | R44: 637422.96 | S44: 648896.58 | T44: 556551.94 | U44: 567113.35 | V44: 580172.58 | W44: 591776.04 | X44: 603019.78 | Y44: 614477.16 | Z44: 626152.22 | AA44: 637422.96 | AB44: 648896.58 | AC44: PLANSTRA | AD44: 200 | AE44: 1100 | AG44: NA | AH44: ORGSUP
A45: * | B45: 10-6010-0000-00-22000 | C45: 10601000000022000 | D45: 6010 | E45: Environment Health | F45: 0000 | G45: 22000 | H45: Salaries and wages - permanent | I45: 10 | J45: 814134.26 | K45: 832045.27 | L45: 847834.46 | M45: 867358.06 | N45: 884705.22 | O45: 901514.62 | P45: 918643.4 | Q45: 936097.62 | R45: 952947.38 | S45: 970100.43 | T45: 832045.27 | U45: 847834.46 | V45: 867358.06 | W45: 884705.22 | X45: 901514.62 | Y45: 918643.4 | Z45: 936097.62 | AA45: 952947.38 | AB45: 970100.43 | AC45: ENHEALTH | AD45: 200 | AE45: 1100 | AG45: NA | AH45: SUSENV
A46: * | B46: 10-6020-0000-00-22000 | C46: 10602000000022000 | D46: 6020 | E46: Building Quality | F46: 0000 | G46: 22000 | H46: Salaries and wages - permanent | I46: 10 | J46: 3142408.2 | K46: 3211541.18 | L46: 3272484.78 | M46: 3347842.19 | N46: 3414799.03 | O46: 3479680.22 | P46: 3545794.14 | Q46: 3613164.23 | R46: 3678201.19 | S46: 3744408.81 | T46: 3211541.18 | U46: 3272484.78 | V46: 3347842.19 | W46: 3414799.03 | X46: 3479680.22 | Y46: 3545794.14 | Z46: 3613164.23 | AA46: 3678201.19 | AB46: 3744408.81 | AC46: BUILDQ | AD46: 200 | AE46: 1100 | AG46: NA | AH46: SUSENV
A47: * | B47: 10-6030-0000-00-22000 | C47: 10603000000022000 | D47: 6030 | E47: Animal Control | F47: 0000 | G47: 22000 | H47: Salaries and wages - permanent | I47: 10 | J47: 1264913.4 | K47: 1292741.52 | L47: 1317273.11 | M47: 1347606.75 | N47: 1374558.88 | O47: 1400675.5 | P47: 1427288.33 | Q47: 1454406.81 | R47: 1480586.13 | S47: 1507236.68 | T47: 1292741.52 | U47: 1317273.11 | V47: 1347606.75 | W47: 1374558.88 | X47: 1400675.5 | Y47: 1427288.33 | Z47: 1454406.81 | AA47: 1480586.13 | AB47: 1507236.68 | AC47: ANIMAL | AD47: 200 | AE47: 1100 | AG47: NA | AH47: SUSENV
A48: * | B48: 10-6040-0000-00-22000 | C48: 10604000000022000 | D48: 6040 | E48: Consents | F48: 0000 | G48: 22000 | H48: Salaries and wages - permanent | I48: 10 | J48: 5146046.48 | K48: 5259259.49 | L48: 5359061.44 | M48: 5482467.72 | N48: 5592117.07 | O48: 5698367.3 | P48: 5806636.28 | Q48: 5916962.36 | R48: 6023467.69 | S48: 6131890.11 | T48: 5259259.49 | U48: 5359061.44 | V48: 5482467.72 | W48: 5592117.07 | X48: 5698367.3 | Y48: 5806636.28 | Z48: 5916962.36 | AA48: 6023467.69 | AB48: 6131890.11 | AC48: CONSENT | AD48: 200 | AE48: 1100 | AG48: NA | AH48: SUSENV
A49: * | B49: 10-6050-0000-00-22000 | C49: 10605000000022000 | D49: 6050 | E49: Community Safety Support Team | F49: 0000 | G49: 22000 | H49: Salaries and wages - permanent | I49: 10 | J49: 404626.44 | K49: 413528.2 | L49: 421375.51 | M49: 431078.76 | N49: 439700.34 | O49: 448054.65 | P49: 456567.68 | Q49: 465242.47 | R49: 473616.83 | S49: 482141.94 | T49: 413528.2 | U49: 421375.51 | V49: 431078.76 | W49: 439700.34 | X49: 448054.65 | Y49: 456567.68 | Z49: 465242.47 | AA49: 473616.83 | AB49: 482141.94 | AC49: COMSAFE | AD49: 200 | AE49: 1100 | AG49: NA | AH49: SUSENV
A50: MJC - updated line #4 | B50: 10-6060-0000-00-22000 | C50: 10606000000022000 | D50: 6060 | E50: Monitoring & Bylaws | F50: 0000 | G50: 22000 | H50: Salaries and wages - permanent | I50: 10 | J50: 984564.59 | K50: 1004157.08 | L50: 1021428.58 | M50: 1042785 | N50: 1061760.7 | O50: 1080148.16 | P50: 1098884.97 | Q50: 1117977.79 | R50: 1136409.39 | S50: 1155172.76 | T50: 1004157.08 | U50: 1021428.58 | V50: 1042785 | W50: 1061760.7 | X50: 1080148.16 | Y50: 1098884.97 | Z50: 1117977.79 | AA50: 1136409.39 | AB50: 1155172.76 | AC50: MONITOR | AD50: 200 | AE50: 1100 | AG50: NA | AH50: SUSENV
A51: * | B51: 10-6100-0000-00-22000 | C51: 10610000000022000 | D51: 6100 | E51: Customer Support Mgmt | F51: 0000 | G51: 22000 | H51: Salaries and wages - permanent | I51: 10 | J51: 1237052.41 | K51: 1264267.57 | L51: 1288258.86 | M51: 1317924.35 | N51: 1344282.84 | O51: 1369824.21 | P51: 1395850.87 | Q51: 1422372.04 | R51: 1447974.73 | S51: 1474038.28 | T51: 1264267.57 | U51: 1288258.86 | V51: 1317924.35 | W51: 1344282.84 | X51: 1369824.21 | Y51: 1395850.87 | Z51: 1422372.04 | AA51: 1447974.73 | AB51: 1474038.28 | AC51: CSUPMGMT | AD51: 200 | AE51: 1100 | AG51: NA | AH51: ORGSUP
A52: * | B52: 10-7010-0000-00-22000 | C52: 10701000000022000 | D52: 7010 | E52: Roading Asset Management | F52: 0000 | G52: 22000 | H52: Salaries and wages - permanent | I52: 10 | J52: 1194022.92 | K52: 1220291.45 | L52: 1243448.18 | M52: 1272081.8 | N52: 1297523.44 | O52: 1322176.39 | P52: 1347297.74 | Q52: 1372896.39 | R52: 1397608.53 | S52: 1422765.48 | T52: 1220291.45 | U52: 1243448.18 | V52: 1272081.8 | W52: 1297523.44 | X52: 1322176.39 | Y52: 1347297.74 | Z52: 1372896.39 | AA52: 1397608.53 | AB52: 1422765.48 | AC52: CONPART | AD52: 200 | AE52: 1100 | AG52: NA | AH52: TRANSPORT
A53: * | B53: 10-7070-0000-00-22000 | C53: 10707000000022000 | D53: 7070 | E53: Waikato District Alliance on charges | F53: 0000 | G53: 22000 | H53: Salaries and wages - permanent | I53: 10 | J53: 1044015.11 | K53: 1066983.42 | L53: 1087230.98 | M53: 1112267.28 | N53: 1134512.63 | O53: 1156068.37 | P53: 1178033.66 | Q53: 1200416.3 | R53: 1222023.8 | S53: 1244020.23 | T53: 1066983.42 | U53: 1087230.98 | V53: 1112267.28 | W53: 1134512.63 | X53: 1156068.37 | Y53: 1178033.66 | Z53: 1200416.3 | AA53: 1222023.8 | AB53: 1244020.23 | AC53: CONPART | AD53: 200 | AE53: 1100 | AG53: NA | AH53: TRANSPORT
A54: * | B54: 10-7100-0000-00-22000 | C54: 10710000000022000 | D54: 7100 | E54: Service Delivery Mgmt | F54: 0000 | G54: 22000 | H54: Salaries and wages - permanent | I54: 10 | J54: 534134.8 | K54: 545885.74 | L54: 556244.69 | M54: 569053.69 | N54: 580434.76 | O54: 591463.02 | P54: 602700.82 | Q54: 614152.13 | R54: 625206.87 | S54: 636460.6 | T54: 545885.74 | U54: 556244.69 | V54: 569053.69 | W54: 580434.76 | X54: 591463.02 | Y54: 602700.82 | Z54: 614152.13 | AA54: 625206.87 | AB54: 636460.6 | AC54: SDELMGMT | AD54: 200 | AE54: 1100 | AG54: NA | AH54: TRANSPORT
A55: * | B55: 50-1360-0000-00-22000 | C55: 50136000000022000 | D55: 1360 | E55: Waters Services Management | F55: 0000 | G55: 22000 | H55: Salaries and wages - permanent | I55: 50 | J55: 758285.31 | K55: 774967.6 | L55: 789673.7 | M55: 807857.99 | N55: 824015.15 | O55: 839671.44 | P55: 855625.19 | Q55: 871882.07 | R55: 887575.95 | S55: 903552.32 | T55: 774967.6 | U55: 789673.7 | V55: 807857.99 | W55: 824015.15 | X55: 839671.44 | Y55: 855625.19 | Z55: 871882.07 | AA55: 887575.95 | AB55: 903552.32 | AC55: WATERS | AD55: 200 | AE55: 1100 | AG55: NA | AH55: 3WATERS
B56: 10-3000-0000-00-22005 | C56: 10300000000022005 | D56: 3000 | E56: People and Capability | F56: 0000 | G56: 22005 | H56: Vacant Positions | I56: 10 | J56: -1071140 | K56: -1075000 | L56: -1077946 | M56: -1082811 | N56: -896811 | O56: -898811 | P56: -900811 | Q56: -900811 | R56: -900811 | S56: -900811 | T56: -1097575 | U56: -1123695.106 | V56: -1151342.108 | W56: -971687.544 | X56: -992358.3501 | Y56: -1012468.325 | Z56: -1030692.632 | AA56: -1049245.736 | AB56: -1067082.694 | AC56: PEOPLE | AD56: 200 | AE56: 1100 | AG56: NA | AH56: ORGSUP
B57: 10-6020-0000-00-22009 | C57: 10602000000022009 | D57: 6020 | E57: Building Quality | F57: 0000 | G57: 22009 | H57: Overtime | I57: 10 | J57: 1237.5 | K57: 1238 | L57: 1238 | M57: 1238 | N57: 1238 | O57: 1238 | P57: 1238 | Q57: 1238 | R57: 1238 | S57: 1238 | T57: 1263.998 | U57: 1290.541958 | V57: 1316.35302 | W57: 1341.363096 | X57: 1366.849802 | Y57: 1391.452576 | Z57: 1416.498554 | AA57: 1441.996402 | AB57: 1466.51004 | AC57: BUILDQ | AD57: 200 | AE57: 1100 | AG57: NA | AH57: SUSENV
B58: 10-6030-0000-00-22009 | C58: 10603000000022009 | D58: 6030 | E58: Animal Control | F58: 0000 | G58: 22009 | H58: Overtime | I58: 10 | J58: 79200 | K58: 79200 | L58: 79200 | M58: 79200 | N58: 79200 | O58: 79200 | P58: 79200 | Q58: 79200 | R58: 79200 | S58: 79200 | T58: 80863.2 | U58: 82561.3272 | V58: 84212.568 | W58: 85812.5664 | X58: 87443.0568 | Y58: 89016.9984 | Z58: 90619.2936 | AA58: 92250.4968 | AB58: 93818.736 | AC58: ANIMAL | AD58: 200 | AE58: 1100 | AG58: NA | AH58: SUSENV
B59: 10-6040-0000-00-22009 | C59: 10604000000022009 | D59: 6040 | E59: Consents | F59: 0000 | G59: 22009 | H59: Overtime | I59: 10 | J59: 2000 | K59: 2040 | L59: 2081 | M59: 2122 | N59: 2165 | O59: 2208 | P59: 2252 | Q59: 2297 | R59: 2343 | S59: 2390 | T59: 2082.84 | U59: 2169.319721 | V59: 2256.30138 | W59: 2345.76018 | X59: 2437.806432 | Y59: 2531.139904 | Z59: 2628.188351 | AA59: 2729.077197 | AB59: 2831.1462 | AC59: CONSENT | AD59: 200 | AE59: 1100 | AG59: NA | AH59: SUSENV
B60: 10-6060-0000-00-22009 | C60: 10606000000022009 | D60: 6060 | E60: Monitoring & Bylaws | F60: 0000 | G60: 22009 | H60: Overtime | I60: 10 | J60: 5000 | K60: 5000 | L60: 5500 | M60: 5500 | N60: 6000 | O60: 6000 | P60: 6500 | Q60: 6500 | R60: 7000 | S60: 7000 | T60: 5105 | U60: 5733.4255 | V60: 5848.095 | W60: 6500.952 | X60: 6624.474 | Y60: 7305.688 | Z60: 7437.1895 | AA60: 8153.453 | AB60: 8292.06 | AC60: MONITOR | AD60: 200 | AE60: 1100 | AG60: NA | AH60: SUSENV
B61: 10-7010-0000-00-22009 | C61: 10701000000022009 | D61: 7010 | E61: Roading Asset Management | F61: 0000 | G61: 22009 | H61: Overtime | I61: 10 | J61: 11500 | K61: 11500 | L61: 11500 | M61: 11500 | N61: 11500 | O61: 11500 | P61: 11500 | Q61: 11500 | R61: 11500 | S61: 11500 | T61: 11741.5 | U61: 11988.0715 | V61: 12227.835 | W61: 12460.158 | X61: 12696.9085 | Y61: 12925.448 | Z61: 13158.1045 | AA61: 13394.9585 | AB61: 13622.67 | AC61: CONPART | AD61: 200 | AE61: 1100 | AG61: NA | AH61: TRANSPORT
A62: * | B62: 10-2000-0000-00-22035 | C62: 10200000000022035 | D62: 2000 | E62: Chief Executive | F62: 0000 | G62: 22035 | H62: Allowances | I62: 10 | J62: 17000 | K62: 17373.96 | L62: 17738.86 | M62: 18111.37 | N62: 18473.6 | O62: 18824.6 | P62: 19182.26 | Q62: 19546.73 | R62: 19898.57 | S62: 20256.74 | T62: 17373.96 | U62: 17738.86 | V62: 18111.37 | W62: 18473.6 | X62: 18824.6 | Y62: 19182.26 | Z62: 19546.73 | AA62: 19898.57 | AB62: 20256.74 | AC62: CHIEFEXE | AD62: 200 | AE62: 1100 | AG62: NA | AH62: GOVERNAN
B63: 10-4000-0000-00-22038 | C63: 10400000000022038 | D63: 4000 | E63: Customer Delivery Management | F63: 0000 | G63: 22038 | H63: Expenses subject to FBT | I63: 10 | J63: 0 | K63: 0 | L63: 0 | M63: 0 | N63: 0 | O63: 0 | P63: 0 | Q63: 0 | R63: 0 | S63: 0 | T63: 0 | U63: 0 | V63: 0 | W63: 0 | X63: 0 | Y63: 0 | Z63: 0 | AA63: 0 | AB63: 0 | AC63: CUSTOMD | AD63: 200 | AE63: 1600 | AG63: NA | AH63: SUSCOMM
B64: 10-5000-0000-00-22038 | C64: 10500000000022038 | D64: 5000 | E64: Operations Group Management | F64: 0000 | G64: 22038 | H64: Expenses subject to FBT | I64: 10 | J64: 306 | K64: 306 | L64: 306 | M64: 306 | N64: 306 | O64: 306 | P64: 306 | Q64: 306 | R64: 306 | S64: 306 | T64: 312.426 | U64: 318.986946 | V64: 325.36674 | W64: 331.548552 | X64: 337.848174 | Y64: 343.929312 | Z64: 350.119998 | AA64: 356.422374 | AB64: 362.48148 | AC64: COOMNGT | AD64: 200 | AE64: 1600 | AG64: NA | AH64: ORGSUP
B65: 10-7100-0000-00-22038 | C65: 10710000000022038 | D65: 7100 | E65: Service Delivery Mgmt | F65: 0000 | G65: 22038 | H65: Expenses subject to FBT | I65: 10 | J65: 2040 | K65: 2040 | L65: 2040 | M65: 2040 | N65: 2040 | O65: 2040 | P65: 2040 | Q65: 2040 | R65: 2040 | S65: 2040 | T65: 2082.84 | U65: 2126.57964 | V65: 2169.1116 | W65: 2210.32368 | X65: 2252.32116 | Y65: 2292.86208 | Z65: 2334.13332 | AA65: 2376.14916 | AB65: 2416.5432 | AC65: SDELMGMT | AD65: 200 | AE65: 1600 | AG65: NA | AH65: TRANSPORT
B66: 10-1230-0000-00-22039 | C66: 10123000000022039 | D66: 1230 | E66: Community Assets | F66: 0000 | G66: 22039 | H66: FBT | I66: 10 | J66: 204 | K66: 204 | L66: 204 | M66: 204 | N66: 204 | O66: 204 | P66: 204 | Q66: 204 | R66: 204 | S66: 204 | T66: 208.284 | U66: 212.657964 | V66: 216.91116 | W66: 221.032368 | X66: 225.232116 | Y66: 229.286208 | Z66: 233.413332 | AA66: 237.614916 | AB66: 241.65432 | AC66: COMASSET | AD66: 200 | AE66: 1100 | AF66: WDC_INFLATION_RATES_CC | AG66: NA | AH66: SUSCOMM
B67: 10-1330-0000-00-22039 | C67: 10133000000022039 | D67: 1330 | E67: Community Connections | F67: 0000 | G67: 22039 | H67: FBT | I67: 10 | J67: 7316 | K67: 7316 | L67: 7316.04 | M67: 7316 | N67: 7316 | O67: 7316 | P67: 7316 | Q67: 7316 | R67: 7316 | S67: 7316 | T67: 7476.952 | U67: 7656.440709 | V67: 7832.494968 | W67: 8004.808716 | X67: 8172.908448 | Y67: 8344.541808 | Z67: 8511.4344 | AA67: 8681.663088 | AB67: 8846.61694 | AC67: COMCONN | AD67: 200 | AE67: 1100 | AF67: WDC_INFLATION_RATES_CC | AG67: NA | AH67: ORGSUP
B68: 10-1670-0000-00-22039 | C68: 10167000000022039 | D68: 1670 | E68: Refuse Collection General | F68: 0000 | G68: 22039 | H68: FBT | I68: 10 | J68: 300 | K68: 300 | L68: 300 | M68: 300 | N68: 300 | O68: 300 | P68: 300 | Q68: 300 | R68: 300 | S68: 300 | T68: 306.3 | U68: 312.7323 | V68: 318.987 | W68: 325.0476 | X68: 331.2237 | Y68: 337.1856 | Z68: 343.2549 | AA68: 349.4337 | AB68: 355.374 | AC68: SWASTE | AD68: 200 | AE68: 1100 | AG68: NA | AH68: SUSENV
B69: 10-2000-0000-00-22039 | C69: 10200000000022039 | D69: 2000 | E69: Chief Executive | F69: 0000 | G69: 22039 | H69: FBT | I69: 10 | J69: 6576 | K69: 6576 | L69: 6576 | M69: 6576 | N69: 6576 | O69: 6576 | P69: 6576 | Q69: 6576 | R69: 6576 | S69: 6576 | T69: 6714.096 | U69: 6855.092016 | V69: 6992.19504 | W69: 7125.043392 | X69: 7260.423504 | Y69: 7391.108352 | Z69: 7524.147408 | AA69: 7659.586704 | AB69: 7789.79808 | AC69: CHIEFEXE | AD69: 200 | AE69: 1100 | AG69: NA | AH69: GOVERNAN
B70: 10-2010-0000-00-22039 | C70: 10201000000022039 | D70: 2010 | E70: Projects and Innovation | F70: 0000 | G70: 22039 | H70: FBT | I70: 10 | J70: 11023 | K70: 11023 | L70: 11022.96 | M70: 11023 | N70: 11023 | O70: 11023 | P70: 11023 | Q70: 11023 | R70: 11023 | S70: 11023 | T70: 11254.483 | U70: 11490.78545 | V70: 11720.64567 | W70: 11943.33232 | X70: 12170.26282 | Y70: 12389.3229 | Z70: 12612.32921 | AA70: 12839.35892 | AB70: 13057.62534 | AC70: OPPS | AD70: 200 | AE70: 1100 | AG70: NA | AH70: ORGSUP
B71: 10-2020-0000-00-22039 | C71: 10202000000022039 | D71: 2020 | E71: Council | F71: 0000 | G71: 22039 | H71: FBT | I71: 10 | J71: 8607 | K71: 8607 | L71: 8607 | M71: 8607 | N71: 8607 | O71: 8607 | P71: 8607 | Q71: 8607 | R71: 8607 | S71: 8607 | T71: 8787.747 | U71: 8972.289687 | V71: 9151.73703 | W71: 9325.615644 | X71: 9502.807953 | Y71: 9673.854864 | Z71: 9847.983081 | AA71: 10025.25285 | AB71: 10195.68006 | AC71: GOVERN | AD71: 200 | AE71: 1100 | AG71: NA | AH71: GOVERNAN
B72: 10-2210-0000-00-22039 | C72: 10221000000022039 | D72: 2210 | E72: EPMO | F72: 0000 | G72: 22039 | H72: FBT | I72: 10 | J72: 3212 | K72: 3212 | L72: 3212.04 | M72: 3212 | N72: 3212 | O72: 3212 | P72: 3212 | Q72: 3212 | R72: 3212 | S72: 3212 | T72: 3279.452 | U72: 3348.36219 | V72: 3415.28748 | W72: 3480.176304 | X72: 3546.301748 | Y72: 3610.133824 | Z72: 3675.115796 | AA72: 3741.270148 | AB72: 3804.87096 | AC72: OPPS | AD72: 200 | AE72: 1100 | AG72: NA | AH72: ORGSUP
B73: 10-3010-0000-00-22039 | C73: 10301000000022039 | D73: 3010 | E73: Zero Harm | F73: 0000 | G73: 22039 | H73: FBT | I73: 10 | J73: 4500 | K73: 4500 | L73: 4500 | M73: 4500 | N73: 4500 | O73: 4500 | P73: 4500 | Q73: 4500 | R73: 4500 | S73: 4500 | T73: 4594.5 | U73: 4690.9845 | V73: 4784.805 | W73: 4875.714 | X73: 4968.3555 | Y73: 5057.784 | Z73: 5148.8235 | AA73: 5241.5055 | AB73: 5330.61 | AC73: ZEROHARM | AD73: 200 | AE73: 1100 | AG73: NA | AH73: ORGSUP
B74: 10-5000-0000-00-22039 | C74: 10500000000022039 | D74: 5000 | E74: Operations Group Management | F74: 0000 | G74: 22039 | H74: FBT | I74: 10 | J74: 7589 | K74: 7589 | L74: 7589.04 | M74: 7589 | N74: 7589 | O74: 7589 | P74: 7589 | Q74: 7589 | R74: 7589 | S74: 7589 | T74: 7748.369 | U74: 7911.126447 | V74: 8069.30781 | W74: 8222.620788 | X74: 8378.855531 | Y74: 8529.671728 | Z74: 8683.204787 | AA74: 8839.507831 | AB74: 8989.77762 | AC74: COOMNGT | AD74: 200 | AE74: 1100 | AG74: NA | AH74: ORGSUP
B75: 10-5220-0000-00-22039 | C75: 10522000000022039 | D75: 5220 | E75: Economic and Community Development | F75: 0000 | G75: 22039 | H75: FBT | I75: 10 | J75: 4969 | K75: 4969 | L75: 4968.96 | M75: 4969 | N75: 4969 | O75: 4969 | P75: 4969 | Q75: 4969 | R75: 4969 | S75: 4969 | T75: 5073.349 | U75: 5179.847631 | V75: 5283.48801 | W75: 5383.871748 | X75: 5486.168551 | Y75: 5584.917488 | Z75: 5685.445327 | AA75: 5787.786851 | AB75: 5886.17802 | AC75: ECONDEV | AD75: 200 | AE75: 1100 | AG75: NA | AH75: SUSCOMM
B76: 10-5250-0000-00-22039 | C76: 10525000000022039 | D76: 5250 | E76: Strategic Planning | F76: 0000 | G76: 22039 | H76: FBT | I76: 10 | J76: 174 | K76: 174 | L76: 174 | M76: 174 | N76: 174 | O76: 174 | P76: 174 | Q76: 174 | R76: 174 | S76: 174 | T76: 177.654 | U76: 181.384734 | V76: 185.01246 | W76: 188.527608 | X76: 192.109746 | Y76: 195.567648 | Z76: 199.087842 | AA76: 202.671546 | AB76: 206.11692 | AC76: PLANSTRA | AD76: 200 | AE76: 1100 | AG76: NA | AH76: SUSENV
B77: 10-6010-0000-00-22039 | C77: 10601000000022039 | D77: 6010 | E77: Environment Health | F77: 0000 | G77: 22039 | H77: FBT | I77: 10 | J77: 0 | K77: 0 | L77: 0 | M77: 0 | N77: 0 | O77: 0 | P77: 0 | Q77: 0 | R77: 0 | S77: 0 | T77: 0 | U77: 0 | V77: 0 | W77: 0 | X77: 0 | Y77: 0 | Z77: 0 | AA77: 0 | AB77: 0 | AC77: ENHEALTH | AD77: 200 | AE77: 1100 | AG77: NA | AH77: SUSENV
B78: 10-6020-0000-00-22039 | C78: 10602000000022039 | D78: 6020 | E78: Building Quality | F78: 0000 | G78: 22039 | H78: FBT | I78: 10 | J78: 32220 | K78: 32220 | L78: 32220 | M78: 32220 | N78: 32220 | O78: 32220 | P78: 32220 | Q78: 32220 | R78: 32220 | S78: 32220 | T78: 32896.62 | U78: 33587.44902 | V78: 34259.2038 | W78: 34910.11224 | X78: 35573.42538 | Y78: 36213.73344 | Z78: 36865.57626 | AA78: 37529.17938 | AB78: 38167.1676 | AC78: BUILDQ | AD78: 200 | AE78: 1100 | AG78: NA | AH78: SUSENV
B79: 10-6060-0000-00-22039 | C79: 10606000000022039 | D79: 6060 | E79: Monitoring & Bylaws | F79: 0000 | G79: 22039 | H79: FBT | I79: 10 | J79: 1168 | K79: 1168 | L79: 1168 | M79: 1600 | N79: 1600 | O79: 1600 | P79: 1600 | Q79: 1600 | R79: 1600 | S79: 1600 | T79: 1192.528 | U79: 1217.571088 | V79: 1701.264 | W79: 1733.5872 | X79: 1766.5264 | Y79: 1798.3232 | Z79: 1830.6928 | AA79: 1863.6464 | AB79: 1895.328 | AC79: MONITOR | AD79: 200 | AE79: 1100 | AG79: NA | AH79: SUSENV
A80: SS 18/01/2024 | B80: 10-6100-0000-00-22039 | C80: 10610000000022039 | D80: 6100 | E80: Customer Support Mgmt | F80: 0000 | G80: 22039 | H80: FBT | I80: 10 | J80: 12092 | K80: 12092 | L80: 12092 | M80: 12092 | N80: 12092 | O80: 12092 | P80: 12092 | Q80: 12092 | R80: 12092 | S80: 12092 | T80: 12345.932 | U80: 12605.19657 | V80: 12857.30268 | W80: 13101.58526 | X80: 13350.52327 | Y80: 13590.82758 | Z80: 13835.46084 | AA80: 14084.50767 | AB80: 14323.94136 | AC80: CSUPMGMT | AD80: 200 | AE80: 1100 | AG80: NA | AH80: ORGSUP | AI80: SS: CS GM FBT 1764 per quarter Building Manager 1259 per quarter
B81: 10-7010-0000-00-22039 | C81: 10701000000022039 | D81: 7010 | E81: Roading Asset Management | F81: 0000 | G81: 22039 | H81: FBT | I81: 10 | J81: 4000 | K81: 4100 | L81: 4100 | M81: 4000 | N81: 3570 | O81: 3570 | P81: 3570 | Q81: 0 | R81: 0 | S81: 0 | T81: 4186.1 | U81: 4274.0081 | V81: 4253.16 | W81: 3868.06644 | X81: 3941.56203 | Y81: 4012.50864 | Z81: 0 | AA81: 0 | AB81: 0 | AC81: CONPART | AD81: 200 | AE81: 1100 | AG81: NA | AH81: TRANSPORT
B82: 10-7100-0000-00-22039 | C82: 10710000000022039 | D82: 7100 | E82: Service Delivery Mgmt | F82: 0000 | G82: 22039 | H82: FBT | I82: 10 | J82: 4000 | K82: 4000 | L82: 4000 | M82: 4000 | N82: 4000 | O82: 4000 | P82: 4000 | Q82: 4000 | R82: 4000 | S82: 4000 | T82: 4084 | U82: 4169.764 | V82: 4253.16 | W82: 4333.968 | X82: 4416.316 | Y82: 4495.808 | Z82: 4576.732 | AA82: 4659.116 | AB82: 4738.32 | AC82: SDELMGMT | AD82: 200 | AE82: 1100 | AG82: NA | AH82: TRANSPORT
B83: 50-1360-0000-00-22039 | C83: 50136000000022039 | D83: 1360 | E83: Waters Services Management | F83: 0000 | G83: 22039 | H83: FBT | I83: 50 | J83: 5400 | K83: 5400 | L83: 5400 | M83: 5400 | N83: 5400 | O83: 5400 | P83: 5400 | Q83: 5400 | R83: 5400 | S83: 5400 | T83: 5513.4 | U83: 5629.1814 | V83: 5741.766 | W83: 5850.8568 | X83: 5962.0266 | Y83: 6069.3408 | Z83: 6178.5882 | AA83: 6289.8066 | AB83: 6396.732 | AC83: WATERS | AD83: 200 | AE83: 1100 | AG83: NA | AH83: 3WATERS
B84: 50-1360-0000-00-22046 | C84: 50136000000022046 | D84: 1360 | E84: Waters Services Management | F84: 0000 | G84: 22046 | H84: Travel - General | I84: 50 | J84: 3000 | K84: 3000 | L84: 5000 | M84: 3500 | N84: 3500 | O84: 3500 | P84: 3500 | Q84: 3500 | R84: 3500 | S84: 3500 | T84: 3063 | U84: 5212.205 | V84: 3721.515 | W84: 3792.222 | X84: 3864.2765 | Y84: 3933.832 | Z84: 4004.6405 | AA84: 4076.7265 | AB84: 4146.03 | AC84: WATERS | AD84: 200 | AE84: 1100 | AG84: NA | AH84: 3WATERS
A85: HG 17.01.2024 | B85: 10-1200-0000-00-22047 | C85: 10120000000022047 | D85: 1200 | E85: Strategic Property | F85: 0000 | G85: 22047 | H85: Mileage Reimbursement | I85: 10 | J85: 0 | K85: 0 | L85: 0 | M85: 0 | N85: 0 | O85: 0 | P85: 0 | Q85: 0 | R85: 0 | S85: 0 | T85: 0 | U85: 0 | V85: 0 | W85: 0 | X85: 0 | Y85: 0 | Z85: 0 | AA85: 0 | AB85: 0 | AC85: ORG3 | AD85: 200 | AE85: 1100 | AF85: WDC_INFLATION_RATES_ACT | AG85: NA | AH85: SUSCOMM
B86: 10-1230-0000-00-22047 | C86: 10123000000022047 | D86: 1230 | E86: Community Assets | F86: 0000 | G86: 22047 | H86: Mileage Reimbursement | I86: 10 | J86: 395 | K86: 395 | L86: 395 | M86: 395 | N86: 395 | O86: 395 | P86: 395 | Q86: 395 | R86: 395 | S86: 395 | T86: 403.295 | U86: 411.764195 | V86: 419.99955 | W86: 427.97934 | X86: 436.111205 | Y86: 443.96104 | Z86: 451.952285 | AA86: 460.087705 | AB86: 467.9091 | AC86: COMASSET | AD86: 200 | AE86: 1100 | AF86: WDC_INFLATION_RATES_CC | AG86: NA | AH86: SUSCOMM
B87: 10-1330-0000-00-22047 | C87: 10133000000022047 | D87: 1330 | E87: Community Connections | F87: 0000 | G87: 22047 | H87: Mileage Reimbursement | I87: 10 | J87: 515 | K87: 515 | L87: 515.04 | M87: 515 | N87: 515 | O87: 515 | P87: 515 | Q87: 515 | R87: 515 | S87: 515 | T87: 526.33 | U87: 539.0037811 | V87: 551.35797 | W87: 563.487765 | X87: 575.32092 | Y87: 587.40282 | Z87: 599.151 | AA87: 611.13402 | AB87: 622.745725 | AC87: COMCONN | AD87: 200 | AE87: 1100 | AF87: WDC_INFLATION_RATES_CC | AG87: NA | AH87: ORGSUP
B88: 10-1460-0000-00-22047 | C88: 10146000000022047 | D88: 1460 | E88: Woodlands | F88: 0000 | G88: 22047 | H88: Mileage Reimbursement | I88: 10 | J88: 700 | K88: 700 | L88: 700 | M88: 700 | N88: 700 | O88: 700 | P88: 700 | Q88: 700 | R88: 700 | S88: 700 | T88: 715.4 | U88: 732.5696 | V88: 749.4186 | W88: 765.9057 | X88: 781.9896 | Y88: 798.4116 | Z88: 814.38 | AA88: 830.6676 | AB88: 846.4505 | AC88: COMCONN | AD88: 200 | AE88: 1100 | AF88: WDC_INFLATION_RATES_CC | AG88: NA | AH88: SUSCOMM
B89: 10-2010-0000-00-22047 | C89: 10201000000022047 | D89: 2010 | E89: Projects and Innovation | F89: 0000 | G89: 22047 | H89: Mileage Reimbursement | I89: 10 | J89: 542 | K89: 542 | L89: 542.04 | M89: 542 | N89: 542 | O89: 542 | P89: 542 | Q89: 542 | R89: 542 | S89: 542 | T89: 553.382 | U89: 565.0447196 | V89: 576.30318 | W89: 587.252664 | X89: 598.410818 | Y89: 609.181984 | Z89: 620.147186 | AA89: 631.310218 | AB89: 642.04236 | AC89: OPPS | AD89: 200 | AE89: 1100 | AG89: NA | AH89: ORGSUP
B90: 10-2020-0000-00-22047 | C90: 10202000000022047 | D90: 2020 | E90: Council | F90: 0000 | G90: 22047 | H90: Mileage Reimbursement | I90: 10 | J90: 42700 | K90: 42700 | L90: 42699.96 | M90: 42700 | N90: 42700 | O90: 42700 | P90: 42700 | Q90: 42700 | R90: 42700 | S90: 42700 | T90: 43596.7 | U90: 44512.189 | V90: 45402.483 | W90: 46265.1084 | X90: 47144.1733 | Y90: 47992.7504 | Z90: 48856.6141 | AA90: 49736.0633 | AB90: 50581.566 | AC90: GOVERN | AD90: 200 | AE90: 1100 | AG90: NA | AH90: GOVERNAN
B91: 10-2160-0000-00-22047 | C91: 10216000000022047 | D91: 2160 | E91: Port Waikato Community Board | F91: 0000 | G91: 22047 | H91: Mileage Reimbursement | I91: 10 | J91: 300 | K91: 300 | L91: 300 | M91: 300 | N91: 300 | O91: 300 | P91: 300 | Q91: 300 | R91: 300 | S91: 300 | T91: 306.3 | U91: 312.7323 | V91: 318.987 | W91: 325.0476 | X91: 331.2237 | Y91: 337.1856 | Z91: 343.2549 | AA91: 349.4337 | AB91: 355.374 | AC91: GOVERN | AD91: 200 | AE91: 1100 | AG91: NA | AH91: GOVERNAN
B92: 10-2210-0000-00-22047 | C92: 10221000000022047 | D92: 2210 | E92: EPMO | F92: 0000 | G92: 22047 | H92: Mileage Reimbursement | I92: 10 | J92: 5000 | K92: 5000 | L92: 10685.04 | M92: 10685 | N92: 10685 | O92: 10685 | P92: 5000 | Q92: 5000 | R92: 5000 | S92: 5000 | T92: 5105 | U92: 11138.52378 | V92: 11361.25365 | W92: 11577.11202 | X92: 11797.08411 | Y92: 5619.76 | Z92: 5720.915 | AA92: 5823.895 | AB92: 5922.9 | AC92: OPPS | AD92: 200 | AE92: 1100 | AG92: NA | AH92: ORGSUP
B93: 10-3000-0000-00-22047 | C93: 10300000000022047 | D93: 3000 | E93: People and Capability | F93: 0000 | G93: 22047 | H93: Mileage Reimbursement | I93: 10 | J93: 500 | K93: 500 | L93: 500 | M93: 500 | N93: 500 | O93: 500 | P93: 500 | Q93: 500 | R93: 500 | S93: 500 | T93: 510.5 | U93: 521.2205 | V93: 531.645 | W93: 541.746 | X93: 552.0395 | Y93: 561.976 | Z93: 572.0915 | AA93: 582.3895 | AB93: 592.29 | AC93: PEOPLE | AD93: 200 | AE93: 1100 | AG93: NA | AH93: ORGSUP
B94: 10-4000-0000-00-22047 | C94: 10400000000022047 | D94: 4000 | E94: Customer Delivery Management | F94: 0000 | G94: 22047 | H94: Mileage Reimbursement | I94: 10 | J94: 4500 | K94: 4500 | L94: 4500 | M94: 4500 | N94: 4500 | O94: 4500 | P94: 4500 | Q94: 4500 | R94: 4500 | S94: 4500 | T94: 4594.5 | U94: 4690.9845 | V94: 4784.805 | W94: 4875.714 | X94: 4968.3555 | Y94: 5057.784 | Z94: 5148.8235 | AA94: 5241.5055 | AB94: 5330.61 | AC94: CUSTOMD | AD94: 200 | AE94: 1100 | AG94: NA | AH94: SUSCOMM
B95: 10-4030-0000-00-22047 | C95: 10403000000022047 | D95: 4030 | E95: Council Support | F95: 0000 | G95: 22047 | H95: Mileage Reimbursement | I95: 10 | J95: 1000 | K95: 408 | L95: 408 | M95: 408 | N95: 408 | O95: 408 | P95: 408 | Q95: 408 | R95: 408 | S95: 408 | T95: 416.568 | U95: 425.315928 | V95: 433.82232 | W95: 442.064736 | X95: 450.464232 | Y95: 458.572416 | Z95: 466.826664 | AA95: 475.229832 | AB95: 483.30864 | AC95: COMMS | AD95: 200 | AE95: 1100 | AG95: NA | AH95: GOVERNAN
A96: SS 18/01/2024 | B96: 10-4040-0000-00-22047 | C96: 10404000000022047 | D96: 4040 | E96: Huntly Integrated Service Centre | F96: 0000 | G96: 22047 | H96: Mileage Reimbursement | I96: 10 | J96: 3500 | K96: 3500 | L96: 3500 | M96: 3500 | N96: 3500 | O96: 3500 | P96: 3500 | Q96: 3500 | R96: 3500 | S96: 3500 | T96: 3573.5 | U96: 3648.5435 | V96: 3721.515 | W96: 3792.222 | X96: 3864.2765 | Y96: 3933.832 | Z96: 4004.6405 | AA96: 4076.7265 | AB96: 4146.03 | AC96: CUSTOMD | AD96: 200 | AE96: 1100 | AG96: NA | AH96: SUSCOMM | AI96: Per Shelby: change year 2-10 to $3,500 per year
B97: 10-4060-0000-00-22047 | C97: 10406000000022047 | D97: 4060 | E97: Ngaruawahia Integrated Service Centre | F97: 0000 | G97: 22047 | H97: Mileage Reimbursement | I97: 10 | J97: 2000 | K97: 1951 | L97: 1950.96 | M97: 1951 | N97: 1951 | O97: 1951 | P97: 1951 | Q97: 1951 | R97: 1951 | S97: 1951 | T97: 1991.971 | U97: 2033.760693 | V97: 2074.47879 | W97: 2113.892892 | X97: 2154.058129 | Y97: 2192.830352 | Z97: 2232.301033 | AA97: 2272.483829 | AB97: 2311.11558 | AC97: CUSTOMD | AD97: 200 | AE97: 1100 | AG97: NA | AH97: SUSCOMM
B98: 10-4070-0000-00-22047 | C98: 10407000000022047 | D98: 4070 | E98: Customer Delivery Contact Centre | F98: 0000 | G98: 22047 | H98: Mileage Reimbursement | I98: 10 | J98: 250 | K98: 1530 | L98: 1530 | M98: 1530 | N98: 1530 | O98: 1530 | P98: 1530 | Q98: 1530 | R98: 1530 | S98: 1530 | T98: 1562.13 | U98: 1594.93473 | V98: 1626.8337 | W98: 1657.74276 | X98: 1689.24087 | Y98: 1719.64656 | Z98: 1750.59999 | AA98: 1782.11187 | AB98: 1812.4074 | AC98: CUSTOMD | AD98: 200 | AE98: 1100 | AG98: NA | AH98: SUSCOMM
B99: 10-4080-0000-00-22047 | C99: 10408000000022047 | D99: 4080 | E99: Raglan Integrated Service Centre | F99: 0000 | G99: 22047 | H99: Mileage Reimbursement | I99: 10 | J99: 3500 | K99: 3500 | L99: 3500 | M99: 3500 | N99: 3500 | O99: 3500 | P99: 3500 | Q99: 3500 | R99: 3500 | S99: 3500 | T99: 3573.5 | U99: 3648.5435 | V99: 3721.515 | W99: 3792.222 | X99: 3864.2765 | Y99: 3933.832 | Z99: 4004.6405 | AA99: 4076.7265 | AB99: 4146.03 | AC99: CUSTOMD | AD99: 200 | AE99: 1100 | AG99: NA | AH99: SUSCOMM
B100: 10-4090-0000-00-22047 | C100: 10409000000022047 | D100: 4090 | E100: Te Kauwhata Integrated Service Centre | F100: 0000 | G100: 22047 | H100: Mileage Reimbursement | I100: 10 | J100: 1700 | K100: 1700 | L100: 1700 | M100: 1700 | N100: 1700 | O100: 1700 | P100: 1700 | Q100: 1700 | R100: 1700 | S100: 1700 | T100: 1735.7 | U100: 1772.1497 | V100: 1807.593 | W100: 1841.9364 | X100: 1876.9343 | Y100: 1910.7184 | Z100: 1945.1111 | AA100: 1980.1243 | AB100: 2013.786 | AC100: CUSTOMD | AD100: 200 | AE100: 1100 | AG100: NA | AH100: SUSCOMM
B101: 10-4100-0000-00-22047 | C101: 10410000000022047 | D101: 4100 | E101: Tuakau Integrated Service Centre | F101: 0000 | G101: 22047 | H101: Mileage Reimbursement | I101: 10 | J101: 2500 | K101: 3160 | L101: 3159.96 | M101: 3160 | N101: 3160 | O101: 3160 | P101: 3160 | Q101: 3160 | R101: 3160 | S101: 3160 | T101: 3226.36 | U101: 3294.071862 | V101: 3359.9964 | W101: 3423.83472 | X101: 3488.88964 | Y101: 3551.68832 | Z101: 3615.61828 | AA101: 3680.70164 | AB101: 3743.2728 | AC101: CUSTOMD | AD101: 200 | AE101: 1100 | AG101: NA | AH101: SUSCOMM
B102: 10-4120-0000-00-22047 | C102: 10412000000022047 | D102: 4120 | E102: Communications | F102: 0000 | G102: 22047 | H102: Mileage Reimbursement | I102: 10 | J102: 1000 | K102: 1000 | L102: 1000 | M102: 1000 | N102: 1000 | O102: 1000 | P102: 1000 | Q102: 1000 | R102: 1000 | S102: 1000 | T102: 1021 | U102: 1042.441 | V102: 1063.29 | W102: 1083.492 | X102: 1104.079 | Y102: 1123.952 | Z102: 1144.183 | AA102: 1164.779 | AB102: 1184.58 | AC102: COMMS | AD102: 200 | AE102: 1100 | AG102: NA | AH102: ORGSUP
B103: 10-5000-0000-00-22047 | C103: 10500000000022047 | D103: 5000 | E103: Operations Group Management | F103: 0000 | G103: 22047 | H103: Mileage Reimbursement | I103: 10 | J103: 542 | K103: 542 | L103: 542.04 | M103: 542 | N103: 542 | O103: 542 | P103: 542 | Q103: 542 | R103: 542 | S103: 542 | T103: 553.382 | U103: 565.0447196 | V103: 576.30318 | W103: 587.252664 | X103: 598.410818 | Y103: 609.181984 | Z103: 620.147186 | AA103: 631.310218 | AB103: 642.04236 | AC103: COOMNGT | AD103: 200 | AE103: 1100 | AG103: NA | AH103: ORGSUP
A104: SS 18/01/2024 | B104: 10-5250-0000-00-22047 | C104: 10525000000022047 | D104: 5250 | E104: Strategic Planning | F104: 0000 | G104: 22047 | H104: Mileage Reimbursement | I104: 10 | J104: 0 | K104: 0 | L104: 0 | M104: 0 | N104: 0 | O104: 0 | P104: 0 | Q104: 0 | R104: 0 | S104: 0 | T104: 0 | U104: 0 | V104: 0 | W104: 0 | X104: 0 | Y104: 0 | Z104: 0 | AA104: 0 | AB104: 0 | AC104: PLANSTRA | AD104: 200 | AE104: 1100 | AG104: NA | AH104: SUSENV | AI104: Per Will: reduced to $0
B105: 10-6010-0000-00-22047 | C105: 10601000000022047 | D105: 6010 | E105: Environment Health | F105: 0000 | G105: 22047 | H105: Mileage Reimbursement | I105: 10 | J105: 500 | K105: 500 | L105: 500 | M105: 500 | N105: 500 | O105: 500 | P105: 500 | Q105: 500 | R105: 500 | S105: 500 | T105: 510.5 | U105: 521.2205 | V105: 531.645 | W105: 541.746 | X105: 552.0395 | Y105: 561.976 | Z105: 572.0915 | AA105: 582.3895 | AB105: 592.29 | AC105: ENHEALTH | AD105: 200 | AE105: 1100 | AG105: NA | AH105: SUSENV
B106: 10-6040-0000-00-22047 | C106: 10604000000022047 | D106: 6040 | E106: Consents | F106: 0000 | G106: 22047 | H106: Mileage Reimbursement | I106: 10 | J106: 200 | K106: 200 | L106: 200 | M106: 200 | N106: 200 | O106: 200 | P106: 200 | Q106: 200 | R106: 200 | S106: 200 | T106: 204.2 | U106: 208.4882 | V106: 212.658 | W106: 216.6984 | X106: 220.8158 | Y106: 224.7904 | Z106: 228.8366 | AA106: 232.9558 | AB106: 236.916 | AC106: CONSENT | AD106: 200 | AE106: 1100 | AG106: NA | AH106: SUSENV
B107: 10-6050-0000-00-22047 | C107: 10605000000022047 | D107: 6050 | E107: Community Safety Support Team | F107: 0000 | G107: 22047 | H107: Mileage Reimbursement | I107: 10 | J107: 0 | K107: 0 | L107: 0 | M107: 0 | N107: 0 | O107: 0 | P107: 0 | Q107: 0 | R107: 0 | S107: 0 | T107: 0 | U107: 0 | V107: 0 | W107: 0 | X107: 0 | Y107: 0 | Z107: 0 | AA107: 0 | AB107: 0 | AC107: COMSAFE | AD107: 200 | AE107: 1100 | AG107: NA | AH107: SUSENV
B108: 10-6060-0000-00-22047 | C108: 10606000000022047 | D108: 6060 | E108: Monitoring & Bylaws | F108: 0000 | G108: 22047 | H108: Mileage Reimbursement | I108: 10 | J108: 0 | K108: 0 | L108: 0 | M108: 0 | N108: 0 | O108: 0 | P108: 0 | Q108: 0 | R108: 0 | S108: 0 | T108: 0 | U108: 0 | V108: 0 | W108: 0 | X108: 0 | Y108: 0 | Z108: 0 | AA108: 0 | AB108: 0 | AC108: MONITOR | AD108: 200 | AE108: 1100 | AG108: NA | AH108: SUSENV
A109: * | B109: 10-1200-0000-00-22050 | C109: 10120000000022050 | D109: 1200 | E109: Strategic Property | F109: 0000 | G109: 22050 | H109: Kiwisaver | I109: 10 | J109: 19805.23 | K109: 20240.97 | L109: 20666.02 | M109: 21099.97 | N109: 21521.97 | O109: 21930.89 | P109: 22347.58 | Q109: 22772.18 | R109: 23182.08 | S109: 23599.36 | T109: 20240.97 | U109: 20666.02 | V109: 21099.97 | W109: 21521.97 | X109: 21930.89 | Y109: 22347.58 | Z109: 22772.18 | AA109: 23182.08 | AB109: 23599.36 | AC109: ORG3 | AD109: 200 | AE109: 1100 | AF109: WDC_INFLATION_RATES | AG109: NA | AH109: SUSCOMM
A110: * | B110: 10-1220-0000-00-22050 | C110: 10122000000022050 | D110: 1220 | E110: Contracts & Partnering | F110: 0000 | G110: 22050 | H110: Kiwisaver | I110: 10 | J110: 13008.96 | K110: 13295.16 | L110: 13574.36 | M110: 13859.43 | N110: 14136.61 | O110: 14405.21 | P110: 14678.91 | Q110: 14957.81 | R110: 15227.05 | S110: 15501.13 | T110: 13295.16 | U110: 13574.36 | V110: 13859.43 | W110: 14136.61 | X110: 14405.21 | Y110: 14678.91 | Z110: 14957.81 | AA110: 15227.05 | AB110: 15501.13 | AC110: CONPART | AD110: 200 | AE110: 1100 | AF110: WDC_INFLATION_RATES | AG110: NA | AH110: ORGSUP
A111: * | B111: 10-1230-0000-00-22050 | C111: 10123000000022050 | D111: 1230 | E111: Community Assets | F111: 0000 | G111: 22050 | H111: Kiwisaver | I111: 10 | J111: 20395.02 | K111: 20843.69 | L111: 21281.4 | M111: 21728.33 | N111: 22162.89 | O111: 22583.99 | P111: 23013.08 | Q111: 23450.33 | R111: 23872.44 | S111: 24302.14 | T111: 20843.69 | U111: 21281.4 | V111: 21728.33 | W111: 22162.89 | X111: 22583.99 | Y111: 23013.08 | Z111: 23450.33 | AA111: 23872.44 | AB111: 24302.14 | AC111: COMASSET | AD111: 200 | AE111: 1100 | AF111: WDC_INFLATION_RATES | AG111: NA | AH111: SUSCOMM
A112: * | B112: 10-1330-0000-00-22050 | C112: 10133000000022050 | D112: 1330 | E112: Community Connections | F112: 0000 | G112: 22050 | H112: Kiwisaver | I112: 10 | J112: 58340.3 | K112: 59623.82 | L112: 60875.92 | M112: 62154.3 | N112: 63397.39 | O112: 64601.94 | P112: 65829.38 | Q112: 67080.13 | R112: 68287.58 | S112: 69516.75 | T112: 59623.82 | U112: 60875.92 | V112: 62154.3 | W112: 63397.39 | X112: 64601.94 | Y112: 65829.38 | Z112: 67080.13 | AA112: 68287.58 | AB112: 69516.75 | AC112: COMCONN | AD112: 200 | AE112: 1100 | AF112: WDC_INFLATION_RATES | AG112: NA | AH112: ORGSUP
A113: * | B113: 10-1440-0000-00-22050 | C113: 10144000000022050 | D113: 1440 | E113: Wainui Reserve | F113: 0000 | G113: 22050 | H113: Kiwisaver | I113: 10 | J113: 2476.02 | K113: 2530.55 | L113: 2583.64 | M113: 2637.9 | N113: 2690.66 | O113: 2741.78 | P113: 2793.88 | Q113: 2846.96 | R113: 2898.21 | S113: 2950.37 | T113: 2530.55 | U113: 2583.64 | V113: 2637.9 | W113: 2690.66 | X113: 2741.78 | Y113: 2793.88 | Z113: 2846.96 | AA113: 2898.21 | AB113: 2950.37 | AC113: COMCONN | AD113: 200 | AE113: 1100 | AF113: WDC_INFLATION_RATES | AG113: NA | AH113: SUSCOMM
A114: * | B114: 10-1460-0000-00-22050 | C114: 10146000000022050 | D114: 1460 | E114: Woodlands | F114: 0000 | G114: 22050 | H114: Kiwisaver | I114: 10 | J114: 5489.19 | K114: 5609.94 | L114: 5727.74 | M114: 5848.06 | N114: 5965.02 | O114: 6078.35 | P114: 6193.84 | Q114: 6311.53 | R114: 6425.13 | S114: 6540.79 | T114: 5609.94 | U114: 5727.74 | V114: 5848.06 | W114: 5965.02 | X114: 6078.35 | Y114: 6193.84 | Z114: 6311.53 | AA114: 6425.13 | AB114: 6540.79 | AC114: COMCONN | AD114: 200 | AE114: 1100 | AF114: WDC_INFLATION_RATES | AG114: NA | AH114: SUSCOMM
A115: * | B115: 10-1540-0000-00-22050 | C115: 10154000000022050 | D115: 1540 | E115: Lake Hakanoa Motor Caravan Park | F115: 0000 | G115: 22050 | H115: Kiwisaver | I115: 10 | J115: 4031.98 | K115: 4120.69 | L115: 4207.24 | M115: 4295.59 | N115: 4381.5 | O115: 4464.75 | P115: 4549.58 | Q115: 4636.02 | R115: 4719.47 | S115: 4804.42 | T115: 4120.69 | U115: 4207.24 | V115: 4295.59 | W115: 4381.5 | X115: 4464.75 | Y115: 4549.58 | Z115: 4636.02 | AA115: 4719.47 | AB115: 4804.42 | AC115: COMCONN | AD115: 200 | AE115: 1100 | AF115: WDC_INFLATION_RATES | AG115: NA | AH115: SUSCOMM
A116: * | B116: 10-1550-0000-00-22050 | C116: 10155000000022050 | D116: 1550 | E116: Raglan Holiday Park Papahua | F116: 0000 | G116: 22050 | H116: Kiwisaver | I116: 10 | J116: 36919.24 | K116: 37731.48 | L116: 38523.82 | M116: 39332.82 | N116: 40119.47 | O116: 40881.74 | P116: 41658.5 | Q116: 42450.01 | R116: 43214.11 | S116: 43991.96 | T116: 37731.48 | U116: 38523.82 | V116: 39332.82 | W116: 40119.47 | X116: 40881.74 | Y116: 41658.5 | Z116: 42450.01 | AA116: 43214.11 | AB116: 43991.96 | AC116: COMCONN | AD116: 200 | AE116: 1100 | AF116: WDC_INFLATION_RATES | AG116: NA | AH116: SUSCOMM
A117: * | B117: 10-1670-0000-00-22050 | C117: 10167000000022050 | D117: 1670 | E117: Refuse Collection General | F117: 0000 | G117: 22050 | H117: Kiwisaver | I117: 10 | J117: 9538.95 | K117: 9748.79 | L117: 9953.52 | M117: 10162.57 | N117: 10365.82 | O117: 10562.77 | P117: 10763.46 | Q117: 10967.97 | R117: 11165.39 | S117: 11366.37 | T117: 9748.79 | U117: 9953.52 | V117: 10162.57 | W117: 10365.82 | X117: 10562.77 | Y117: 10763.46 | Z117: 10967.97 | AA117: 11165.39 | AB117: 11366.37 | AC117: SWASTE | AD117: 200 | AE117: 1100 | AG117: NA | AH117: SUSENV
A118: * | B118: 10-2000-0000-00-22050 | C118: 10200000000022050 | D118: 2000 | E118: Chief Executive | F118: 0000 | G118: 22050 | H118: Kiwisaver | I118: 10 | J118: 32121 | K118: 32827 | L118: 33517 | M118: 34221 | N118: 34905 | O118: 35568 | P118: 36244 | Q118: 36933 | R118: 37958 | S118: 38274 | T118: 32827 | U118: 33517 | V118: 34221 | W118: 34905 | X118: 35568 | Y118: 36244 | Z118: 36933 | AA118: 37958 | AB118: 38274 | AC118: CHIEFEXE | AD118: 200 | AE118: 1100 | AG118: NA | AH118: GOVERNAN
A119: * | B119: 10-2010-0000-00-22050 | C119: 10201000000022050 | D119: 2010 | E119: Projects and Innovation | F119: 0000 | G119: 22050 | H119: Kiwisaver | I119: 10 | J119: 57957.3 | K119: 59232.34 | L119: 60476.22 | M119: 61746.21 | N119: 62981.14 | O119: 64177.78 | P119: 65397.16 | Q119: 66639.7 | R119: 67839.22 | S119: 69060.32 | T119: 59232.34 | U119: 60476.22 | V119: 61746.21 | W119: 62981.14 | X119: 64177.78 | Y119: 65397.16 | Z119: 66639.7 | AA119: 67839.22 | AB119: 69060.32 | AC119: OPPS | AD119: 200 | AE119: 1100 | AG119: NA | AH119: ORGSUP
A120: * | B120: 10-2210-0000-00-22050 | C120: 10221000000022050 | D120: 2210 | E120: EPMO | F120: 0000 | G120: 22050 | H120: Kiwisaver | I120: 10 | J120: 94753.56 | K120: 96838.14 | L120: 98871.74 | M120: 100948.05 | N120: 102967.01 | O120: 104923.39 | P120: 106916.93 | Q120: 108948.35 | R120: 110909.42 | S120: 112905.79 | T120: 96838.14 | U120: 98871.74 | V120: 100948.05 | W120: 102967.01 | X120: 104923.39 | Y120: 106916.93 | Z120: 108948.35 | AA120: 110909.42 | AB120: 112905.79 | AC120: OPPS | AD120: 200 | AE120: 1100 | AG120: NA | AH120: ORGSUP
A121: * | B121: 10-3000-0000-00-22050 | C121: 10300000000022050 | D121: 3000 | E121: People and Capability | F121: 0000 | G121: 22050 | H121: Kiwisaver | I121: 10 | J121: 45909.66 | K121: 46919.65 | L121: 47904.96 | M121: 48910.96 | N121: 49889.17 | O121: 50837.07 | P121: 51802.97 | Q121: 52787.23 | R121: 53737.4 | S121: 54704.67 | T121: 46919.65 | U121: 47904.96 | V121: 48910.96 | W121: 49889.17 | X121: 50837.07 | Y121: 51802.97 | Z121: 52787.23 | AA121: 53737.4 | AB121: 54704.67 | AC121: PEOPLE | AD121: 200 | AE121: 1100 | AG121: NA | AH121: ORGSUP
A122: * | B122: 10-3010-0000-00-22050 | C122: 10301000000022050 | D122: 3010 | E122: Zero Harm | F122: 0000 | G122: 22050 | H122: Kiwisaver | I122: 10 | J122: 12392.4 | K122: 12665.1 | L122: 12931.08 | M122: 13202.6 | N122: 13466.65 | O122: 13722.52 | P122: 13983.25 | Q122: 14248.93 | R122: 14505.41 | S122: 14766.51 | T122: 12665.1 | U122: 12931.08 | V122: 13202.6 | W122: 13466.65 | X122: 13722.52 | Y122: 13983.25 | Z122: 14248.93 | AA122: 14505.41 | AB122: 14766.51 | AC122: ZEROHARM | AD122: 200 | AE122: 1100 | AG122: NA | AH122: ORGSUP
A123: * | B123: 10-4000-0000-00-22050 | C123: 10400000000022050 | D123: 4000 | E123: Customer Delivery Management | F123: 0000 | G123: 22050 | H123: Kiwisaver | I123: 10 | J123: 15473.74 | K123: 15814.18 | L123: 16146.24 | M123: 16485.32 | N123: 16815.02 | O123: 17134.51 | P123: 17460.06 | Q123: 17791.8 | R123: 18112.06 | S123: 18438.07 | T123: 15814.18 | U123: 16146.24 | V123: 16485.32 | W123: 16815.02 | X123: 17134.51 | Y123: 17460.06 | Z123: 17791.8 | AA123: 18112.06 | AB123: 18438.07 | AC123: CUSTOMD | AD123: 200 | AE123: 1100 | AG123: NA | AH123: SUSCOMM
A124: * | B124: 10-4010-0000-00-22050 | C124: 10401000000022050 | D124: 4010 | E124: Cafeteria | F124: 0000 | G124: 22050 | H124: Kiwisaver | I124: 10 | J124: 1974.43 | K124: 2017.85 | L124: 2060.24 | M124: 2103.51 | N124: 2145.58 | O124: 2186.35 | P124: 2227.89 | Q124: 2270.22 | R124: 2311.08 | S124: 2352.68 | T124: 2017.85 | U124: 2060.24 | V124: 2103.51 | W124: 2145.58 | X124: 2186.35 | Y124: 2227.89 | Z124: 2270.22 | AA124: 2311.08 | AB124: 2352.68 | AC124: COMCONN | AD124: 200 | AE124: 1100 | AG124: NA | AH124: ORGSUP
A125: * | B125: 10-4030-0000-00-22050 | C125: 10403000000022050 | D125: 4030 | E125: Council Support | F125: 0000 | G125: 22050 | H125: Kiwisaver | I125: 10 | J125: 11206.63 | K125: 11453.22 | L125: 11693.7 | M125: 11939.29 | N125: 12178.07 | O125: 12409.46 | P125: 12645.24 | Q125: 12885.5 | R125: 13117.44 | S125: 13353.55 | T125: 11453.22 | U125: 11693.7 | V125: 11939.29 | W125: 12178.07 | X125: 12409.46 | Y125: 12645.24 | Z125: 12885.5 | AA125: 13117.44 | AB125: 13353.55 | AC125: COMMS | AD125: 200 | AE125: 1100 | AG125: NA | AH125: GOVERNAN
A126: * | B126: 10-4040-0000-00-22050 | C126: 10404000000022050 | D126: 4040 | E126: Huntly Integrated Service Centre | F126: 0000 | G126: 22050 | H126: Kiwisaver | I126: 10 | J126: 18381.2 | K126: 18785.58 | L126: 19180.08 | M126: 19582.85 | N126: 19974.51 | O126: 20354.03 | P126: 20740.75 | Q126: 21134.83 | R126: 21515.25 | S126: 21902.53 | T126: 18785.58 | U126: 19180.08 | V126: 19582.85 | W126: 19974.51 | X126: 20354.03 | Y126: 20740.75 | Z126: 21134.83 | AA126: 21515.25 | AB126: 21902.53 | AC126: CUSTOMD | AD126: 200 | AE126: 1100 | AG126: NA | AH126: SUSCOMM
A127: * | B127: 10-4060-0000-00-22050 | C127: 10406000000022050 | D127: 4060 | E127: Ngaruawahia Integrated Service Centre | F127: 0000 | G127: 22050 | H127: Kiwisaver | I127: 10 | J127: 17302.68 | K127: 17683.32 | L127: 18054.72 | M127: 18433.83 | N127: 18802.5 | O127: 19159.75 | P127: 19523.79 | Q127: 19894.74 | R127: 20252.85 | S127: 20617.4 | T127: 17683.32 | U127: 18054.72 | V127: 18433.83 | W127: 18802.5 | X127: 19159.75 | Y127: 19523.79 | Z127: 19894.74 | AA127: 20252.85 | AB127: 20617.4 | AC127: CUSTOMD | AD127: 200 | AE127: 1100 | AG127: NA | AH127: SUSCOMM
A128: * | B128: 10-4070-0000-00-22050 | C128: 10407000000022050 | D128: 4070 | E128: Customer Delivery Contact Centre | F128: 0000 | G128: 22050 | H128: Kiwisaver | I128: 10 | J128: 17294.37 | K128: 17674.85 | L128: 18046.02 | M128: 18424.99 | N128: 18793.49 | O128: 19150.57 | P128: 19514.43 | Q128: 19885.2 | R128: 20243.14 | S128: 20607.51 | T128: 17674.85 | U128: 18046.02 | V128: 18424.99 | W128: 18793.49 | X128: 19150.57 | Y128: 19514.43 | Z128: 19885.2 | AA128: 20243.14 | AB128: 20607.51 | AC128: CUSTOMD | AD128: 200 | AE128: 1100 | AG128: NA | AH128: SUSCOMM
A129: * | B129: 10-4080-0000-00-22050 | C129: 10408000000022050 | D129: 4080 | E129: Raglan Integrated Service Centre | F129: 0000 | G129: 22050 | H129: Kiwisaver | I129: 10 | J129: 11503.81 | K129: 11756.92 | L129: 12003.8 | M129: 12255.87 | N129: 12500.99 | O129: 12738.5 | P129: 12980.54 | Q129: 13227.17 | R129: 13465.26 | S129: 13707.63 | T129: 11756.92 | U129: 12003.8 | V129: 12255.87 | W129: 12500.99 | X129: 12738.5 | Y129: 12980.54 | Z129: 13227.17 | AA129: 13465.26 | AB129: 13707.63 | AC129: CUSTOMD | AD129: 200 | AE129: 1100 | AG129: NA | AH129: SUSCOMM
A130: * | B130: 10-4090-0000-00-22050 | C130: 10409000000022050 | D130: 4090 | E130: Te Kauwhata Integrated Service Centre | F130: 0000 | G130: 22050 | H130: Kiwisaver | I130: 10 | J130: 9724.98 | K130: 9938.88 | L130: 10147.62 | M130: 10360.7 | N130: 10567.92 | O130: 10768.71 | P130: 10973.31 | Q130: 11181.81 | R130: 11383.08 | S130: 11587.97 | T130: 9938.88 | U130: 10147.62 | V130: 10360.7 | W130: 10567.92 | X130: 10768.71 | Y130: 10973.31 | Z130: 11181.81 | AA130: 11383.08 | AB130: 11587.97 | AC130: CUSTOMD | AD130: 200 | AE130: 1100 | AG130: NA | AH130: SUSCOMM
A131: * | B131: 10-4100-0000-00-22050 | C131: 10410000000022050 | D131: 4100 | E131: Tuakau Integrated Service Centre | F131: 0000 | G131: 22050 | H131: Kiwisaver | I131: 10 | J131: 15391.29 | K131: 15729.94 | L131: 16060.26 | M131: 16397.54 | N131: 16725.49 | O131: 17043.27 | P131: 17367.1 | Q131: 17697.07 | R131: 18015.62 | S131: 18339.9 | T131: 15729.94 | U131: 16060.26 | V131: 16397.54 | W131: 16725.49 | X131: 17043.27 | Y131: 17367.1 | Z131: 17697.07 | AA131: 18015.62 | AB131: 18339.9 | AC131: CUSTOMD | AD131: 200 | AE131: 1100 | AG131: NA | AH131: SUSCOMM
A132: * | B132: 10-4120-0000-00-22050 | C132: 10412000000022050 | D132: 4120 | E132: Communications | F132: 0000 | G132: 22050 | H132: Kiwisaver | I132: 10 | J132: 32641.25 | K132: 33359.32 | L132: 34059.9 | M132: 34775.14 | N132: 35470.64 | O132: 36144.58 | P132: 36831.33 | Q132: 37531.13 | R132: 38206.69 | S132: 38894.41 | T132: 33359.32 | U132: 34059.9 | V132: 34775.14 | W132: 35470.64 | X132: 36144.58 | Y132: 36831.33 | Z132: 37531.13 | AA132: 38206.69 | AB132: 38894.41 | AC132: COMMS | AD132: 200 | AE132: 1100 | AG132: NA | AH132: ORGSUP
A133: * | B133: 10-5000-0000-00-22050 | C133: 10500000000022050 | D133: 5000 | E133: Operations Group Management | F133: 0000 | G133: 22050 | H133: Kiwisaver | I133: 10 | J133: 11546.88 | K133: 11800.85 | L133: 12048.72 | M133: 12301.72 | N133: 12547.76 | O133: 12786.16 | P133: 13029.1 | Q133: 13276.65 | R133: 13515.63 | S133: 13758.91 | T133: 11800.85 | U133: 12048.72 | V133: 12301.72 | W133: 12547.76 | X133: 12786.16 | Y133: 13029.1 | Z133: 13276.65 | AA133: 13515.63 | AB133: 13758.91 | AC133: COOMNGT | AD133: 200 | AE133: 1100 | AG133: NA | AH133: ORGSUP
A134: * | B134: 10-5030-0000-00-22050 | C134: 10503000000022050 | D134: 5030 | E134: Legal | F134: 0000 | G134: 22050 | H134: Kiwisaver | I134: 10 | J134: 33637.01 | K134: 34377.07 | L134: 35098.94 | M134: 35836.03 | N134: 36552.75 | O134: 37247.25 | P134: 37954.95 | Q134: 38676.09 | R134: 39372.26 | S134: 40080.96 | T134: 34377.07 | U134: 35098.94 | V134: 35836.03 | W134: 36552.75 | X134: 37247.25 | Y134: 37954.95 | Z134: 38676.09 | AA134: 39372.26 | AB134: 40080.96 | AC134: LEGAL | AD134: 200 | AE134: 1100 | AG134: NA | AH134: ORGSUP
A135: * | B135: 10-5040-0000-00-22050 | C135: 10504000000022050 | D135: 5040 | E135: Finance | F135: 0000 | G135: 22050 | H135: Kiwisaver | I135: 10 | J135: 65678.71 | K135: 67123.64 | L135: 68533.24 | M135: 69972.44 | N135: 71371.89 | O135: 72727.96 | P135: 74109.79 | Q135: 75517.87 | R135: 76877.19 | S135: 78260.98 | T135: 67123.64 | U135: 68533.24 | V135: 69972.44 | W135: 71371.89 | X135: 72727.96 | Y135: 74109.79 | Z135: 75517.87 | AA135: 76877.19 | AB135: 78260.98 | AC135: FINANCE | AD135: 200 | AE135: 1100 | AG135: NA | AH135: ORGSUP
A136: * | B136: 10-5050-0000-00-22050 | C136: 10505000000022050 | D136: 5050 | E136: Information Management | F136: 0000 | G136: 22050 | H136: Kiwisaver | I136: 10 | J136: 89108.13 | K136: 91068.5 | L136: 92980.96 | M136: 94933.54 | N136: 96832.21 | O136: 98672.02 | P136: 100546.79 | Q136: 102457.18 | R136: 104301.41 | S136: 106178.83 | T136: 91068.5 | U136: 92980.96 | V136: 94933.54 | W136: 96832.21 | X136: 98672.02 | Y136: 100546.79 | Z136: 102457.18 | AA136: 104301.41 | AB136: 106178.83 | AC136: INFOM | AD136: 200 | AE136: 1100 | AG136: NA | AH136: ORGSUP
A137: * | B137: 10-5070-0000-00-22050 | C137: 10507000000022050 | D137: 5070 | E137: Rates Team | F137: 0000 | G137: 22050 | H137: Kiwisaver | I137: 10 | J137: 17005.61 | K137: 17379.71 | L137: 17744.7 | M137: 18117.35 | N137: 18479.69 | O137: 18830.81 | P137: 19188.59 | Q137: 19553.18 | R137: 19905.13 | S137: 20263.42 | T137: 17379.71 | U137: 17744.7 | V137: 18117.35 | W137: 18479.69 | X137: 18830.81 | Y137: 19188.59 | Z137: 19553.18 | AA137: 19905.13 | AB137: 20263.42 | AC137: FINANCE | AD137: 200 | AE137: 1100 | AG137: NA | AH137: ORGSUP
A138: * | B138: 10-5200-0000-00-22050 | C138: 10520000000022050 | D138: 5200 | E138: Community Growth Management | F138: 0000 | G138: 22050 | H138: Kiwisaver | I138: 10 | J138: 24972.72 | K138: 25522.13 | L138: 26058.12 | M138: 26605.33 | N138: 27137.44 | O138: 27653.05 | P138: 28178.46 | Q138: 28713.85 | R138: 29230.7 | S138: 29756.85 | T138: 25522.13 | U138: 26058.12 | V138: 26605.33 | W138: 27137.44 | X138: 27653.05 | Y138: 28178.46 | Z138: 28713.85 | AA138: 29230.7 | AB138: 29756.85 | AC138: COMMGRTH | AD138: 200 | AE138: 1100 | AG138: NA | AH138: ORGSUP
A139: * | B139: 10-5210-0000-00-22050 | C139: 10521000000022050 | D139: 5210 | E139: Community Growth Analytics | F139: 0000 | G139: 22050 | H139: Kiwisaver | I139: 10 | J139: 31712.89 | K139: 32410.57 | L139: 33091.2 | M139: 33786.09 | N139: 34461.81 | O139: 35116.59 | P139: 35783.8 | Q139: 36463.69 | R139: 37120.04 | S139: 37788.2 | T139: 32410.57 | U139: 33091.2 | V139: 33786.09 | W139: 34461.81 | X139: 35116.59 | Y139: 35783.8 | Z139: 36463.69 | AA139: 37120.04 | AB139: 37788.2 | AC139: ANALYTIC | AD139: 200 | AE139: 1100 | AG139: NA | AH139: SUSENV
A140: * | B140: 10-5220-0000-00-22050 | C140: 10522000000022050 | D140: 5220 | E140: Economic and Community Development | F140: 0000 | G140: 22050 | H140: Kiwisaver | I140: 10 | J140: 21306.65 | K140: 21775.4 | L140: 22232.64 | M140: 22699.54 | N140: 23153.53 | O140: 23593.45 | P140: 24041.72 | Q140: 24498.51 | R140: 24939.49 | S140: 25388.4 | T140: 21775.4 | U140: 22232.64 | V140: 22699.54 | W140: 23153.53 | X140: 23593.45 | Y140: 24041.72 | Z140: 24498.51 | AA140: 24939.49 | AB140: 25388.4 | AC140: ECONDEV | AD140: 200 | AE140: 1100 | AG140: NA | AH140: SUSCOMM
A141: * | B141: 10-5230-0000-00-22050 | C141: 10523000000022050 | D141: 5230 | E141: Corporate Planning | F141: 0000 | G141: 22050 | H141: Kiwisaver | I141: 10 | J141: 18740.83 | K141: 19153.17 | L141: 19555.34 | M141: 19966 | N141: 20365.32 | O141: 20752.27 | P141: 21146.56 | Q141: 21548.34 | R141: 21936.21 | S141: 22331.07 | T141: 19153.17 | U141: 19555.34 | V141: 19966 | W141: 20365.32 | X141: 20752.27 | Y141: 21146.56 | Z141: 21548.34 | AA141: 21936.21 | AB141: 22331.07 | AC141: PLANSTRA | AD141: 200 | AE141: 1100 | AG141: NA | AH141: ORGSUP
A142: * | B142: 10-5240-0000-00-22050 | C142: 10524000000022050 | D142: 5240 | E142: Resource Management Policy | F142: 0000 | G142: 22050 | H142: Kiwisaver | I142: 10 | J142: 34658.74 | K142: 35421.2 | L142: 36165.06 | M142: 36924.54 | N142: 37663.03 | O142: 38378.63 | P142: 39107.82 | Q142: 39850.87 | R142: 40568.18 | S142: 41298.41 | T142: 35421.2 | U142: 36165.06 | V142: 36924.54 | W142: 37663.03 | X142: 38378.63 | Y142: 39107.82 | Z142: 39850.87 | AA142: 40568.18 | AB142: 41298.41 | AC142: PLANSTRA | AD142: 200 | AE142: 1100 | AG142: NA | AH142: SUSENV
A143: * | B143: 10-5250-0000-00-22050 | C143: 10525000000022050 | D143: 5250 | E143: Strategic Planning | F143: 0000 | G143: 22050 | H143: Kiwisaver | I143: 10 | J143: 17526.63 | K143: 17912.2 | L143: 18288.36 | M143: 18672.42 | N143: 19045.87 | O143: 19407.74 | P143: 19776.48 | Q143: 20152.24 | R143: 20514.98 | S143: 20884.25 | T143: 17912.2 | U143: 18288.36 | V143: 18672.42 | W143: 19045.87 | X143: 19407.74 | Y143: 19776.48 | Z143: 20152.24 | AA143: 20514.98 | AB143: 20884.25 | AC143: PLANSTRA | AD143: 200 | AE143: 1100 | AG143: NA | AH143: SUSENV
A144: * | B144: 10-5260-0000-00-22050 | C144: 10526000000022050 | D144: 5260 | E144: Planning & Policy | F144: 0000 | G144: 22050 | H144: Kiwisaver | I144: 10 | J144: 16337.14 | K144: 16696.58 | L144: 17047.2 | M144: 17405.18 | N144: 17753.28 | O144: 18090.59 | P144: 18434.31 | Q144: 18784.57 | R144: 19122.69 | S144: 19466.9 | T144: 16696.58 | U144: 17047.2 | V144: 17405.18 | W144: 17753.28 | X144: 18090.59 | Y144: 18434.31 | Z144: 18784.57 | AA144: 19122.69 | AB144: 19466.9 | AC144: PLANSTRA | AD144: 200 | AE144: 1100 | AG144: NA | AH144: ORGSUP
A145: * | B145: 10-6010-0000-00-22050 | C145: 10601000000022050 | D145: 6010 | E145: Environment Health | F145: 0000 | G145: 22050 | H145: Kiwisaver | I145: 10 | J145: 24424.02 | K145: 24961.37 | L145: 25485.54 | M145: 26020.74 | N145: 26541.16 | O145: 27045.44 | P145: 27559.3 | Q145: 28082.93 | R145: 28588.42 | S145: 29103.01 | T145: 24961.37 | U145: 25485.54 | V145: 26020.74 | W145: 26541.16 | X145: 27045.44 | Y145: 27559.3 | Z145: 28082.93 | AA145: 28588.42 | AB145: 29103.01 | AC145: ENHEALTH | AD145: 200 | AE145: 1100 | AG145: NA | AH145: SUSENV
A146: * | B146: 10-6020-0000-00-22050 | C146: 10602000000022050 | D146: 6020 | E146: Building Quality | F146: 0000 | G146: 22050 | H146: Kiwisaver | I146: 10 | J146: 94272.25 | K146: 96346.22 | L146: 98369.5 | M146: 100435.27 | N146: 102443.97 | O146: 104390.41 | P146: 106373.82 | Q146: 108394.93 | R146: 110346.04 | S146: 112332.26 | T146: 96346.22 | U146: 98369.5 | V146: 100435.27 | W146: 102443.97 | X146: 104390.41 | Y146: 106373.82 | Z146: 108394.93 | AA146: 110346.04 | AB146: 112332.26 | AC146: BUILDQ | AD146: 200 | AE146: 1100 | AG146: NA | AH146: SUSENV
A147: * | B147: 10-6030-0000-00-22050 | C147: 10603000000022050 | D147: 6030 | E147: Animal Control | F147: 0000 | G147: 22050 | H147: Kiwisaver | I147: 10 | J147: 37947.39 | K147: 38782.23 | L147: 39596.66 | M147: 40428.2 | N147: 41236.77 | O147: 42020.26 | P147: 42818.65 | Q147: 43632.2 | R147: 44417.58 | S147: 45217.1 | T147: 38782.23 | U147: 39596.66 | V147: 40428.2 | W147: 41236.77 | X147: 42020.26 | Y147: 42818.65 | Z147: 43632.2 | AA147: 44417.58 | AB147: 45217.1 | AC147: ANIMAL | AD147: 200 | AE147: 1100 | AG147: NA | AH147: SUSENV
A148: * | B148: 10-6040-0000-00-22050 | C148: 10604000000022050 | D148: 6040 | E148: Consents | F148: 0000 | G148: 22050 | H148: Kiwisaver | I148: 10 | J148: 154381.38 | K148: 157777.74 | L148: 161091.12 | M148: 164474.03 | N148: 167763.51 | O148: 170951.02 | P148: 174199.09 | Q148: 177508.87 | R148: 180704.03 | S148: 183956.7 | T148: 157777.74 | U148: 161091.12 | V148: 164474.03 | W148: 167763.51 | X148: 170951.02 | Y148: 174199.09 | Z148: 177508.87 | AA148: 180704.03 | AB148: 183956.7 | AC148: CONSENT | AD148: 200 | AE148: 1100 | AG148: NA | AH148: SUSENV
A149: * | B149: 10-6050-0000-00-22050 | C149: 10605000000022050 | D149: 6050 | E149: Community Safety Support Team | F149: 0000 | G149: 22050 | H149: Kiwisaver | I149: 10 | J149: 12138.76 | K149: 12405.86 | L149: 12666.36 | M149: 12932.36 | N149: 13191.01 | O149: 13441.64 | P149: 13697.03 | Q149: 13957.27 | R149: 14208.51 | S149: 14464.26 | T149: 12405.86 | U149: 12666.36 | V149: 12932.36 | W149: 13191.01 | X149: 13441.64 | Y149: 13697.03 | Z149: 13957.27 | AA149: 14208.51 | AB149: 14464.26 | AC149: COMSAFE | AD149: 200 | AE149: 1100 | AG149: NA | AH149: SUSENV
A150: * | B150: 10-6060-0000-00-22050 | C150: 10606000000022050 | D150: 6060 | E150: Monitoring & Bylaws | F150: 0000 | G150: 22050 | H150: Kiwisaver | I150: 10 | J150: 26716.94 | K150: 27304.71 | L150: 27878.1 | M150: 28463.55 | N150: 29032.82 | O150: 29584.44 | P150: 30146.55 | Q150: 30719.33 | R150: 31272.28 | S150: 31835.18 | T150: 27304.71 | U150: 27878.1 | V150: 28463.55 | W150: 29032.82 | X150: 29584.44 | Y150: 30146.55 | Z150: 30719.33 | AA150: 31272.28 | AB150: 31835.18 | AC150: MONITOR | AD150: 200 | AE150: 1100 | AG150: NA | AH150: SUSENV
A151: * | B151: 10-6100-0000-00-22050 | C151: 10610000000022050 | D151: 6100 | E151: Customer Support Mgmt | F151: 0000 | G151: 22050 | H151: Kiwisaver | I151: 10 | J151: 37111.59 | K151: 37928.08 | L151: 38724.54 | M151: 39537.73 | N151: 40328.49 | O151: 41094.73 | P151: 41875.53 | Q151: 42671.16 | R151: 43439.24 | S151: 44221.15 | T151: 37928.08 | U151: 38724.54 | V151: 39537.73 | W151: 40328.49 | X151: 41094.73 | Y151: 41875.53 | Z151: 42671.16 | AA151: 43439.24 | AB151: 44221.15 | AC151: CSUPMGMT | AD151: 200 | AE151: 1100 | AG151: NA | AH151: ORGSUP
A152: * | B152: 10-7010-0000-00-22050 | C152: 10701000000022050 | D152: 7010 | E152: Roading Asset Management | F152: 0000 | G152: 22050 | H152: Kiwisaver | I152: 10 | J152: 35820.67 | K152: 36608.74 | L152: 37377.54 | M152: 38162.45 | N152: 38925.7 | O152: 39665.29 | P152: 40418.93 | Q152: 41186.89 | R152: 41928.26 | S152: 42682.96 | T152: 36608.74 | U152: 37377.54 | V152: 38162.45 | W152: 38925.7 | X152: 39665.29 | Y152: 40418.93 | Z152: 41186.89 | AA152: 41928.26 | AB152: 42682.96 | AC152: CONPART | AD152: 200 | AE152: 1100 | AG152: NA | AH152: TRANSPORT
A153: * | B153: 10-7070-0000-00-22050 | C153: 10707000000022050 | D153: 7070 | E153: Waikato District Alliance on charges | F153: 0000 | G153: 22050 | H153: Kiwisaver | I153: 10 | J153: 31320.47 | K153: 32009.5 | L153: 32681.72 | M153: 33368.02 | N153: 34035.38 | O153: 34682.05 | P153: 35341.01 | Q153: 36012.49 | R153: 36660.71 | S153: 37320.61 | T153: 32009.5 | U153: 32681.72 | V153: 33368.02 | W153: 34035.38 | X153: 34682.05 | Y153: 35341.01 | Z153: 36012.49 | AA153: 36660.71 | AB153: 37320.61 | AC153: CONPART | AD153: 200 | AE153: 1100 | AG153: NA | AH153: TRANSPORT
A154: * | B154: 10-7100-0000-00-22050 | C154: 10710000000022050 | D154: 7100 | E154: Service Delivery Mgmt | F154: 0000 | G154: 22050 | H154: Kiwisaver | I154: 10 | J154: 16024.06 | K154: 16376.57 | L154: 16720.5 | M154: 17071.61 | N154: 17413.04 | O154: 17743.89 | P154: 18081.02 | Q154: 18424.56 | R154: 18756.21 | S154: 19093.82 | T154: 16376.57 | U154: 16720.5 | V154: 17071.61 | W154: 17413.04 | X154: 17743.89 | Y154: 18081.02 | Z154: 18424.56 | AA154: 18756.21 | AB154: 19093.82 | AC154: SDELMGMT | AD154: 200 | AE154: 1100 | AG154: NA | AH154: TRANSPORT
A155: * | B155: 50-1360-0000-00-22050 | C155: 50136000000022050 | D155: 1360 | E155: Waters Services Management | F155: 0000 | G155: 22050 | H155: Kiwisaver | I155: 50 | J155: 22748.52 | K155: 23249.04 | L155: 23737.26 | M155: 24235.74 | N155: 24720.45 | O155: 25190.14 | P155: 25668.76 | Q155: 26156.46 | R155: 26627.28 | S155: 27106.57 | T155: 23249.04 | U155: 23737.26 | V155: 24235.74 | W155: 24720.45 | X155: 25190.14 | Y155: 25668.76 | Z155: 26156.46 | AA155: 26627.28 | AB155: 27106.57 | AC155: WATERS | AD155: 200 | AE155: 1100 | AG155: NA | AH155: 3WATERS
A156: SS 18/01/2024 | B156: 10-3000-0000-00-22060 | C156: 10300000000022060 | D156: 3000 | E156: People and Capability | F156: 0000 | G156: 22060 | H156: Recruitment agency fees | I156: 10 | J156: 339000 | K156: 339000 | L156: 339000 | M156: 339000 | N156: 339000 | O156: 339000 | P156: 339000 | Q156: 339000 | R156: 339000 | S156: 339000 | T156: 346119 | U156: 353387.499 | V156: 360455.31 | W156: 367303.788 | X156: 374282.781 | Y156: 381019.728 | Z156: 387878.037 | AA156: 394860.081 | AB156: 401572.62 | AC156: PEOPLE | AD156: 200 | AE156: 1100 | AG156: NA | AH156: ORGSUP | AI156: Per Vanessa: Based on staff turnover number of 90 @ 3,500 per staff PLUS monthly recruitment expenses of 2,000. Reduced to $3,500 per staff from $4,000 per staff.
B157: 10-2000-0000-00-22063 | C157: 10200000000022063 | D157: 2000 | E157: Chief Executive | F157: 0000 | G157: 22063 | H157: Employment Related Expenses | I157: 10 | J157: 12000 | K157: 12000 | L157: 12000 | M157: 12000 | N157: 12000 | O157: 12000 | P157: 12000 | Q157: 12000 | R157: 12000 | S157: 12000 | T157: 12252 | U157: 12509.292 | V157: 12759.48 | W157: 13001.904 | X157: 13248.948 | Y157: 13487.424 | Z157: 13730.196 | AA157: 13977.348 | AB157: 14214.96 | AC157: CHIEFEXE | AD157: 200 | AE157: 1100 | AG157: NA | AH157: GOVERNAN
B158: 10-2010-0000-00-22063 | C158: 10201000000022063 | D158: 2010 | E158: Projects and Innovation | F158: 0000 | G158: 22063 | H158: Employment Related Expenses | I158: 10 | J158: 1159 | K158: 1159 | L158: 1159 | M158: 1159 | N158: 1159 | O158: 1159 | P158: 1159 | Q158: 1159 | R158: 1159 | S158: 1159 | T158: 1183.339 | U158: 1208.189119 | V158: 1232.35311 | W158: 1255.767228 | X158: 1279.627561 | Y158: 1302.660368 | Z158: 1326.108097 | AA158: 1349.978861 | AB158: 1372.92822 | AC158: OPPS | AD158: 200 | AE158: 1100 | AG158: NA | AH158: ORGSUP
B159: 10-3000-0000-00-22063 | C159: 10300000000022063 | D159: 3000 | E159: People and Capability | F159: 0000 | G159: 22063 | H159: Employment Related Expenses | I159: 10 | J159: 6950 | K159: 6950 | L159: 6950 | M159: 6950 | N159: 6950 | O159: 6950 | P159: 6950 | Q159: 6950 | R159: 6950 | S159: 6950 | T159: 7095.95 | U159: 7244.96495 | V159: 7389.8655 | W159: 7530.2694 | X159: 7673.34905 | Y159: 7811.4664 | Z159: 7952.07185 | AA159: 8095.21405 | AB159: 8232.831 | AC159: PEOPLE | AD159: 200 | AE159: 1100 | AG159: NA | AH159: ORGSUP
B160: 10-4000-0000-00-22063 | C160: 10400000000022063 | D160: 4000 | E160: Customer Delivery Management | F160: 0000 | G160: 22063 | H160: Employment Related Expenses | I160: 10 | J160: 500 | K160: 500 | L160: 500 | M160: 500 | N160: 500 | O160: 500 | P160: 500 | Q160: 500 | R160: 500 | S160: 500 | T160: 510.5 | U160: 521.2205 | V160: 531.645 | W160: 541.746 | X160: 552.0395 | Y160: 561.976 | Z160: 572.0915 | AA160: 582.3895 | AB160: 592.29 | AC160: CUSTOMD | AD160: 200 | AE160: 1100 | AG160: NA | AH160: SUSCOMM
B161: 10-5000-0000-00-22063 | C161: 10500000000022063 | D161: 5000 | E161: Operations Group Management | F161: 0000 | G161: 22063 | H161: Employment Related Expenses | I161: 10 | J161: 1250 | K161: 1250 | L161: 1250 | M161: 1250 | N161: 1250 | O161: 1250 | P161: 1250 | Q161: 1250 | R161: 1250 | S161: 1250 | T161: 1276.25 | U161: 1303.05125 | V161: 1329.1125 | W161: 1354.365 | X161: 1380.09875 | Y161: 1404.94 | Z161: 1430.22875 | AA161: 1455.97375 | AB161: 1480.725 | AC161: COOMNGT | AD161: 200 | AE161: 1100 | AG161: NA | AH161: ORGSUP
B162: 10-5030-0000-00-22063 | C162: 10503000000022063 | D162: 5030 | E162: Legal | F162: 0000 | G162: 22063 | H162: Employment Related Expenses | I162: 10 | J162: 12700 | K162: 12700 | L162: 12700 | M162: 12700 | N162: 12700 | O162: 12700 | P162: 12700 | Q162: 12700 | R162: 12700 | S162: 12700 | T162: 12966.7 | U162: 13239.0007 | V162: 13503.783 | W162: 13760.3484 | X162: 14021.8033 | Y162: 14274.1904 | Z162: 14531.1241 | AA162: 14792.6933 | AB162: 15044.166 | AC162: LEGAL | AD162: 200 | AE162: 1100 | AG162: NA | AH162: ORGSUP
A163: SS 18/01/2024 | B163: 10-5240-0000-00-22063 | C163: 10524000000022063 | D163: 5240 | E163: Resource Management Policy | F163: 0000 | G163: 22063 | H163: Employment Related Expenses | I163: 10 | J163: 4000 | K163: 4000 | L163: 4000 | M163: 4000 | N163: 4000 | O163: 4000 | P163: 4000 | Q163: 4000 | R163: 4000 | S163: 4000 | T163: 4084 | U163: 4169.764 | V163: 4253.16 | W163: 4333.968 | X163: 4416.316 | Y163: 4495.808 | Z163: 4576.732 | AA163: 4659.116 | AB163: 4738.32 | AC163: PLANSTRA | AD163: 200 | AE163: 1100 | AG163: NA | AH163: SUSENV | AI163: Per Will: increased from $2,520 per year to $4,000 per year
A164: SS 18/01/2024 | B164: 10-5250-0000-00-22063 | C164: 10525000000022063 | D164: 5250 | E164: Strategic Planning | F164: 0000 | G164: 22063 | H164: Employment Related Expenses | I164: 10 | J164: 3000 | K164: 3000 | L164: 3000 | M164: 3000 | N164: 3000 | O164: 3000 | P164: 3000 | Q164: 3000 | R164: 3000 | S164: 3000 | T164: 3063 | U164: 3127.323 | V164: 3189.87 | W164: 3250.476 | X164: 3312.237 | Y164: 3371.856 | Z164: 3432.549 | AA164: 3494.337 | AB164: 3553.74 | AC164: PLANSTRA | AD164: 200 | AE164: 1100 | AG164: NA | AH164: SUSENV | AI164: Per Will: increased from $2,425 per year to $3,000 per year
B165: 10-6010-0000-00-22063 | C165: 10601000000022063 | D165: 6010 | E165: Environment Health | F165: 0000 | G165: 22063 | H165: Employment Related Expenses | I165: 10 | J165: 2600 | K165: 2600 | L165: 2600 | M165: 2248 | N165: 2248 | O165: 2248 | P165: 2248 | Q165: 2248 | R165: 2248 | S165: 2248 | T165: 2654.6 | U165: 2710.3466 | V165: 2390.27592 | W165: 2435.690016 | X165: 2481.969592 | Y165: 2526.644096 | Z165: 2572.123384 | AA165: 2618.423192 | AB165: 2662.93584 | AC165: ENHEALTH | AD165: 200 | AE165: 1100 | AG165: NA | AH165: SUSENV
B166: 10-6020-0000-00-22063 | C166: 10602000000022063 | D166: 6020 | E166: Building Quality | F166: 0000 | G166: 22063 | H166: Employment Related Expenses | I166: 10 | J166: 820 | K166: 820 | L166: 820 | M166: 820 | N166: 8508 | O166: 8508 | P166: 8508 | Q166: 8508 | R166: 8508 | S166: 8508 | T166: 837.22 | U166: 854.80162 | V166: 871.8978 | W166: 9218.349936 | X166: 9393.504132 | Y166: 9562.583616 | Z166: 9734.708964 | AA166: 9909.939732 | AB166: 10078.40664 | AC166: BUILDQ | AD166: 200 | AE166: 1100 | AG166: NA | AH166: SUSENV
B167: 10-6030-0000-00-22063 | C167: 10603000000022063 | D167: 6030 | E167: Animal Control | F167: 0000 | G167: 22063 | H167: Employment Related Expenses | I167: 10 | J167: 1800 | K167: 1800 | L167: 1800 | M167: 1800 | N167: 1872 | O167: 1872 | P167: 1872 | Q167: 1872 | R167: 1872 | S167: 1872 | T167: 1837.8 | U167: 1876.3938 | V167: 1913.922 | W167: 2028.297024 | X167: 2066.835888 | Y167: 2104.038144 | Z167: 2141.910576 | AA167: 2180.466288 | AB167: 2217.53376 | AC167: ANIMAL | AD167: 200 | AE167: 1100 | AG167: NA | AH167: SUSENV
A168: SS 18/01/2024 | B168: 10-6040-0000-00-22063 | C168: 10604000000022063 | D168: 6040 | E168: Consents | F168: 0000 | G168: 22063 | H168: Employment Related Expenses | I168: 10 | J168: 10000 | K168: 10000 | L168: 10000 | M168: 10000 | N168: 10000 | O168: 10000 | P168: 10000 | Q168: 10000 | R168: 10000 | S168: 10000 | T168: 10210 | U168: 10424.41 | V168: 10632.9 | W168: 10834.92 | X168: 11040.79 | Y168: 11239.52 | Z168: 11441.83 | AA168: 11647.79 | AB168: 11845.8 | AC168: CONSENT | AD168: 200 | AE168: 1100 | AG168: NA | AH168: SUSENV | AI168: Per Wade: reduced to $10k per year from 15k
